Workbook

Sheet BMVT
A1: Boletim Mensal de Vales Transporte | D1: Competência: | F1: Dias Úteis (Mês): | G1: =VLOOKUP(INDEX($W$6:$AF$16,$W$5,1),$W$6:$AF$16,9,FALSE) -> 21 | I1: SC (Empregado): | J1: 0 | K1: =(SUMIFS(BMVT[Vlr. Total],BMVT[Vínculo],"<>Aprendiz",BMVT[Empresa], "Salvador Card"))-J1 -> 1300.2 | N1: Qtd Usuários | O1: =SUMPRODUCT(SUBTOTAL(3,OFFSET(BMVT[Matrícula],ROW(BMVT[Matrícula])-ROW(A6),0,1)),--(BMVT[Situação]="Regular")) -> 24
D2: =VLOOKUP(INDEX($W$6:$AF$16,$W$5,1),$W$6:$AF$16,1,FALSE) -> Julho | F2: Compesações: | G2: =VLOOKUP(INDEX($W$6:$AF$16,$W$5,1),$W$6:$AF$16,10,FALSE) -> 0 | I2: SC (Aprendiz): | J2: 0 | K2: =(SUMIFS(BMVT[Vlr. Total],BMVT[Vínculo],"Aprendiz",BMVT[Empresa],"Salvador Card"))-J2 -> 0 | N2: Qtd VT : | O2: =SUMPRODUCT(SUBTOTAL(9,OFFSET(BMVT[Qtd. Solic.],ROW(BMVT[Qtd. Solic.])-ROW(O6),0,1)),--(BMVT[Situação]="Regular")) -> 835
F3: Desconto : | G3: 0 | I3: Metropasse: | J3: 250.8 | K3: =(SUMIF(BMVT[Empresa],"Metropasse",BMVT[Vlr. Total]))-J3 -> 165 | N3: Valor Total: | O3: =SUMPRODUCT(SUBTOTAL(9,OFFSET(BMVT[Vlr. Total],ROW(BMVT[Vlr. Total])-ROW(R6),0,1)),--(BMVT[Situação]="Regular")) -> 5932.16
W4: =D2 -> Julho
A5: Matrícula | B5: Empregado | C5: Vínculo | D5: Lotação | E5: Setor | F5: Rota | G5: Situação | H5: Origem | I5: Destino | J5: Tipo | K5: Empresa | L5: Vales/Trecho | M5: Chipagem | N5: Quant. Apur. | O5: Qtd. Solic. | P5: Dias Lanc Sist. | Q5: Vlr. Unit. | R5: Vlr. Total | U5: Trechos | W5: 7 | X5: Período | Z5: Feriados | AB5: Compensações | AE5: DU
A6: 000.001 | B6: =IF(ISERROR(VLOOKUP(BMVT[[#This Row],[Matrícula]],Usuarios[#All],2,FALSE)),"",VLOOKUP(BMVT[[#This Row],[Matrícula]],Usuarios[#All],2,FALSE)) -> João | C6: =IF(ISERROR(VLOOKUP(BMVT[[#This Row],[Matrícula]],Usuarios[#All],3,FALSE)),"",VLOOKUP(BMVT[[#This Row],[Matrícula]],Usuarios[#All],3,FALSE)) -> Anistiado | D6: =IF(ISERROR(VLOOKUP(BMVT[[#This Row],[Matrícula]],Usuarios[#All],4,FALSE)),"",VLOOKUP(BMVT[[#This Row],[Matrícula]],Usuarios[#All],4,FALSE)) -> Salvador | E6: =IF(ISERROR(VLOOKUP(BMVT[[#This Row],[Matrícula]],Usuarios[#All],5,FALSE)),"",VLOOKUP(BMVT[[#This Row],[Matrícula]],Usuarios[#All],5,FALSE)) -> ADMINISTRATIVO | F6: xxxxx-Y | G6: Regular | H6: =IF(ISERROR(VLOOKUP(BMVT[[#This Row],[Rota]],Rotas[#All],3,FALSE)),"",VLOOKUP(BMVT[[#This Row],[Rota]],Rotas[#All],3,FALSE)) -> Dias D'Ávila | I6: =IF(ISERROR(VLOOKUP(BMVT[[#This Row],[Rota]],Rotas[#All],4,FALSE)),"",VLOOKUP(BMVT[[#This Row],[Rota]],Rotas[#All],4,FALSE)) -> Camaçari | J6: =IF(ISERROR(VLOOKUP(BMVT[[#This Row],[Rota]],Rotas[#All],5,FALSE)),"",VLOOKUP(BMVT[[#This Row],[Rota]],Rotas[#All],5,FALSE)) -> Intermunicipal | K6: =IF(ISERROR(VLOOKUP(BMVT[[#This Row],[Rota]],Rotas[#All],6,FALSE)),"",VLOOKUP(BMVT[[#This Row],[Rota]],Rotas[#All],6,FALSE)) -> Cidade das Águas | L6: 2 | M6: =L6 -> 2 | N6: =L6*$G$1 -> 42 | O6: =BMVT[[#This Row],[Quant. Apur.]] -> 42 | P6: =IF(ISERROR(O6/M6),0,O6/M6) -> 21 | Q6: =IF(ISERROR(VLOOKUP(BMVT[[#This Row],[Rota]],Rotas[#All],7,FALSE)),0,VLOOKUP(BMVT[[#This Row],[Rota]],Rotas[#All],7,FALSE)) -> 2.8 | R6: =O6*Q6 -> 117.6 | U6: =IF(ISERROR(BMVT[[#This Row],[Origem]]&" - "&BMVT[[#This Row],[Destino]]),"",BMVT[[#This Row],[Origem]]&" - "&BMVT[[#This Row],[Destino]]) -> Dias D'Ávila - Camaçari | W6: Janeiro | X6: 2016-01-01 | Y6: 2016-01-31 | Z6: 2016-01-01 | AE6: =NETWORKDAYS(X6,Y6,Z6:AD6) -> 20 | AF6: =COUNTA(AB6:AD6) -> 0
A7: 000.002 | B7: =IF(ISERROR(VLOOKUP(BMVT[[#This Row],[Matrícula]],Usuarios[#All],2,FALSE)),"",VLOOKUP(BMVT[[#This Row],[Matrícula]],Usuarios[#All],2,FALSE)) -> Maria | C7: =IF(ISERROR(VLOOKUP(BMVT[[#This Row],[Matrícula]],Usuarios[#All],3,FALSE)),"",VLOOKUP(BMVT[[#This Row],[Matrícula]],Usuarios[#All],3,FALSE)) -> Anistiado | D7: =IF(ISERROR(VLOOKUP(BMVT[[#This Row],[Matrícula]],Usuarios[#All],4,FALSE)),"",VLOOKUP(BMVT[[#This Row],[Matrícula]],Usuarios[#All],4,FALSE)) -> Salvador | E7: =IF(ISERROR(VLOOKUP(BMVT[[#This Row],[Matrícula]],Usuarios[#All],5,FALSE)),"",VLOOKUP(BMVT[[#This Row],[Matrícula]],Usuarios[#All],5,FALSE)) -> ADMINISTRATIVO | F7: 23196 | G7: Regular | H7: =IF(ISERROR(VLOOKUP(BMVT[[#This Row],[Rota]],Rotas[#All],3,FALSE)),"",VLOOKUP(BMVT[[#This Row],[Rota]],Rotas[#All],3,FALSE)) -> Alagoinhas | I7: =IF(ISERROR(VLOOKUP(BMVT[[#This Row],[Rota]],Rotas[#All],4,FALSE)),"",VLOOKUP(BMVT[[#This Row],[Rota]],Rotas[#All],4,FALSE)) -> Salvador | J7: =IF(ISERROR(VLOOKUP(BMVT[[#This Row],[Rota]],Rotas[#All],5,FALSE)),"",VLOOKUP(BMVT[[#This Row],[Rota]],Rotas[#All],5,FALSE)) -> Intermunicipal | K7: =IF(ISERROR(VLOOKUP(BMVT[[#This Row],[Rota]],Rotas[#All],6,FALSE)),"",VLOOKUP(BMVT[[#This Row],[Rota]],Rotas[#All],6,FALSE)) -> Cidade Sol | L7: 2 | M7: 2 | N7: 42 | O7: =BMVT[[#This Row],[Quant. Apur.]] -> 42 | P7: 21 | Q7: =IF(ISERROR(VLOOKUP(BMVT[[#This Row],[Rota]],Rotas[#All],7,FALSE)),0,VLOOKUP(BMVT[[#This Row],[Rota]],Rotas[#All],7,FALSE)) -> 28.35 | R7: 1190.7 | U7: =IF(ISERROR(BMVT[[#This Row],[Origem]]&" - "&BMVT[[#This Row],[Destino]]),"",BMVT[[#This Row],[Origem]]&" - "&BMVT[[#This Row],[Destino]]) -> Alagoinhas - Salvador | W7: Fevereiro | X7: 2016-02-01 | Y7: 2016-02-29 | Z7: 2016-02-08 | AB7: 2016-02-09 | AC7: 2016-02-10 | AE7: =NETWORKDAYS(X7,Y7,Z7:AD7) -> 18 | AF7: =COUNTA(AB7:AD7) -> 2
A8: 000.003 | B8: =IF(ISERROR(VLOOKUP(BMVT[[#This Row],[Matrícula]],Usuarios[#All],2,FALSE)),"",VLOOKUP(BMVT[[#This Row],[Matrícula]],Usuarios[#All],2,FALSE)) -> Francisco | C8: =IF(ISERROR(VLOOKUP(BMVT[[#This Row],[Matrícula]],Usuarios[#All],3,FALSE)),"",VLOOKUP(BMVT[[#This Row],[Matrícula]],Usuarios[#All],3,FALSE)) -> Anistiado | D8: =IF(ISERROR(VLOOKUP(BMVT[[#This Row],[Matrícula]],Usuarios[#All],4,FALSE)),"",VLOOKUP(BMVT[[#This Row],[Matrícula]],Usuarios[#All],4,FALSE)) -> Salvador | E8: =IF(ISERROR(VLOOKUP(BMVT[[#This Row],[Matrícula]],Usuarios[#All],5,FALSE)),"",VLOOKUP(BMVT[[#This Row],[Matrícula]],Usuarios[#All],5,FALSE)) -> ADMINISTRATIVO | F8: 23184 | G8: Regular | H8: =IF(ISERROR(VLOOKUP(BMVT[[#This Row],[Rota]],Rotas[#All],3,FALSE)),"",VLOOKUP(BMVT[[#This Row],[Rota]],Rotas[#All],3,FALSE)) -> Jequié | I8: =IF(ISERROR(VLOOKUP(BMVT[[#This Row],[Rota]],Rotas[#All],4,FALSE)),"",VLOOKUP(BMVT[[#This Row],[Rota]],Rotas[#All],4,FALSE)) -> Ipiaú | J8: =IF(ISERROR(VLOOKUP(BMVT[[#This Row],[Rota]],Rotas[#All],5,FALSE)),"",VLOOKUP(BMVT[[#This Row],[Rota]],Rotas[#All],5,FALSE)) -> Intermunicipal | K8: =IF(ISERROR(VLOOKUP(BMVT[[#This Row],[Rota]],Rotas[#All],6,FALSE)),"",VLOOKUP(BMVT[[#This Row],[Rota]],Rotas[#All],6,FALSE)) -> Cidade Sol | L8: 2 | M8: =L8 -> 2 | N8: 42 | O8: 48 | P8: 24 | Q8: =IF(ISERROR(VLOOKUP(BMVT[[#This Row],[Rota]],Rotas[#All],7,FALSE)),0,VLOOKUP(BMVT[[#This Row],[Rota]],Rotas[#All],7,FALSE)) -> 10.65 | R8: 511.2 | U8: =IF(ISERROR(BMVT[[#This Row],[Origem]]&" - "&BMVT[[#This Row],[Destino]]),"",BMVT[[#This Row],[Origem]]&" - "&BMVT[[#This Row],[Destino]]) -> Jequié - Ipiaú | W8: Março | X8: 2016-03-01 | Y8: 2016-03-31 | Z8: 2016-03-25 | AB8: 2016-03-24 | AE8: =NETWORKDAYS(X8,Y8,Z8:AD8) -> 21 | AF8: 1
A9: 000.004 | B9: =IF(ISERROR(VLOOKUP(BMVT[[#This Row],[Matrícula]],Usuarios[#All],2,FALSE)),"",VLOOKUP(BMVT[[#This Row],[Matrícula]],Usuarios[#All],2,FALSE)) -> Ricardo | C9: =IF(ISERROR(VLOOKUP(BMVT[[#This Row],[Matrícula]],Usuarios[#All],3,FALSE)),"",VLOOKUP(BMVT[[#This Row],[Matrícula]],Usuarios[#All],3,FALSE)) -> Empregado | D9: =IF(ISERROR(VLOOKUP(BMVT[[#This Row],[Matrícula]],Usuarios[#All],4,FALSE)),"",VLOOKUP(BMVT[[#This Row],[Matrícula]],Usuarios[#All],4,FALSE)) -> Salvador | E9: =IF(ISERROR(VLOOKUP(BMVT[[#This Row],[Matrícula]],Usuarios[#All],5,FALSE)),"",VLOOKUP(BMVT[[#This Row],[Matrícula]],Usuarios[#All],5,FALSE)) -> ADMINISTRATIVO | F9: 23183 | G9: Regular | H9: =IF(ISERROR(VLOOKUP(BMVT[[#This Row],[Rota]],Rotas[#All],3,FALSE)),"",VLOOKUP(BMVT[[#This Row],[Rota]],Rotas[#All],3,FALSE)) -> Feira de Santana | I9: =IF(ISERROR(VLOOKUP(BMVT[[#This Row],[Rota]],Rotas[#All],4,FALSE)),"",VLOOKUP(BMVT[[#This Row],[Rota]],Rotas[#All],4,FALSE)) -> Feira de Santana | J9: =IF(ISERROR(VLOOKUP(BMVT[[#This Row],[Rota]],Rotas[#All],5,FALSE)),"",VLOOKUP(BMVT[[#This Row],[Rota]],Rotas[#All],5,FALSE)) -> Urbano | K9: =IF(ISERROR(VLOOKUP(BMVT[[#This Row],[Rota]],Rotas[#All],6,FALSE)),"",VLOOKUP(BMVT[[#This Row],[Rota]],Rotas[#All],6,FALSE)) -> Via Feira | L9: 2 | M9: 2 | N9: 42 | O9: 0 | P9: 0 | Q9: =IF(ISERROR(VLOOKUP(BMVT[[#This Row],[Rota]],Rotas[#All],7,FALSE)),0,VLOOKUP(BMVT[[#This Row],[Rota]],Rotas[#All],7,FALSE)) -> 3.1 | R9: 0 | U9: =IF(ISERROR(BMVT[[#This Row],[Origem]]&" - "&BMVT[[#This Row],[Destino]]),"",BMVT[[#This Row],[Origem]]&" - "&BMVT[[#This Row],[Destino]]) -> Feira de Santana - Feira de Santana | W9: Abril | X9: 2016-04-01 | Y9: 2016-04-30 | Z9: 2016-04-21 | AB9: 2016-01-22 | AE9: 20 | AF9: 1
A10: 000.005 | B10: =IF(ISERROR(VLOOKUP(BMVT[[#This Row],[Matrícula]],Usuarios[#All],2,FALSE)),"",VLOOKUP(BMVT[[#This Row],[Matrícula]],Usuarios[#All],2,FALSE)) -> Mauro | C10: =IF(ISERROR(VLOOKUP(BMVT[[#This Row],[Matrícula]],Usuarios[#All],3,FALSE)),"",VLOOKUP(BMVT[[#This Row],[Matrícula]],Usuarios[#All],3,FALSE)) -> Empregado | D10: =IF(ISERROR(VLOOKUP(BMVT[[#This Row],[Matrícula]],Usuarios[#All],4,FALSE)),"",VLOOKUP(BMVT[[#This Row],[Matrícula]],Usuarios[#All],4,FALSE)) -> Salvador | E10: =IF(ISERROR(VLOOKUP(BMVT[[#This Row],[Matrícula]],Usuarios[#All],5,FALSE)),"",VLOOKUP(BMVT[[#This Row],[Matrícula]],Usuarios[#All],5,FALSE)) -> ADMINISTRATIVO | F10: 23183 | G10: Regular | H10: =IF(ISERROR(VLOOKUP(BMVT[[#This Row],[Rota]],Rotas[#All],3,FALSE)),"",VLOOKUP(BMVT[[#This Row],[Rota]],Rotas[#All],3,FALSE)) -> Feira de Santana | I10: =IF(ISERROR(VLOOKUP(BMVT[[#This Row],[Rota]],Rotas[#All],4,FALSE)),"",VLOOKUP(BMVT[[#This Row],[Rota]],Rotas[#All],4,FALSE)) -> Feira de Santana | J10: =IF(ISERROR(VLOOKUP(BMVT[[#This Row],[Rota]],Rotas[#All],5,FALSE)),"",VLOOKUP(BMVT[[#This Row],[Rota]],Rotas[#All],5,FALSE)) -> Urbano | K10: =IF(ISERROR(VLOOKUP(BMVT[[#This Row],[Rota]],Rotas[#All],6,FALSE)),"",VLOOKUP(BMVT[[#This Row],[Rota]],Rotas[#All],6,FALSE)) -> Via Feira | L10: 2 | M10: 2 | N10: 42 | O10: =BMVT[[#This Row],[Quant. Apur.]] -> 42 | P10: 21 | Q10: =IF(ISERROR(VLOOKUP(BMVT[[#This Row],[Rota]],Rotas[#All],7,FALSE)),0,VLOOKUP(BMVT[[#This Row],[Rota]],Rotas[#All],7,FALSE)) -> 3.1 | R10: 130.2 | U10: =IF(ISERROR(BMVT[[#This Row],[Origem]]&" - "&BMVT[[#This Row],[Destino]]),"",BMVT[[#This Row],[Origem]]&" - "&BMVT[[#This Row],[Destino]]) -> Feira de Santana - Feira de Santana | W10: Maio | X10: 2016-05-01 | Y10: 2016-05-31 | Z10: 2016-05-26 | AB10: 2016-05-27 | AE10: 20 | AF10: 1
A11: 000.006 | B11: =IF(ISERROR(VLOOKUP(BMVT[[#This Row],[Matrícula]],Usuarios[#All],2,FALSE)),"",VLOOKUP(BMVT[[#This Row],[Matrícula]],Usuarios[#All],2,FALSE)) -> Marcio | C11: =IF(ISERROR(VLOOKUP(BMVT[[#This Row],[Matrícula]],Usuarios[#All],3,FALSE)),"",VLOOKUP(BMVT[[#This Row],[Matrícula]],Usuarios[#All],3,FALSE)) -> Empregado | D11: =IF(ISERROR(VLOOKUP(BMVT[[#This Row],[Matrícula]],Usuarios[#All],4,FALSE)),"",VLOOKUP(BMVT[[#This Row],[Matrícula]],Usuarios[#All],4,FALSE)) -> Salvador | E11: =IF(ISERROR(VLOOKUP(BMVT[[#This Row],[Matrícula]],Usuarios[#All],5,FALSE)),"",VLOOKUP(BMVT[[#This Row],[Matrícula]],Usuarios[#All],5,FALSE)) -> ADMINISTRATIVO | F11: 23125-M | G11: Regular | H11: =IF(ISERROR(VLOOKUP(BMVT[[#This Row],[Rota]],Rotas[#All],3,FALSE)),"",VLOOKUP(BMVT[[#This Row],[Rota]],Rotas[#All],3,FALSE)) -> Conceição de Feira | I11: =IF(ISERROR(VLOOKUP(BMVT[[#This Row],[Rota]],Rotas[#All],4,FALSE)),"",VLOOKUP(BMVT[[#This Row],[Rota]],Rotas[#All],4,FALSE)) -> Salvador | J11: =IF(ISERROR(VLOOKUP(BMVT[[#This Row],[Rota]],Rotas[#All],5,FALSE)),"",VLOOKUP(BMVT[[#This Row],[Rota]],Rotas[#All],5,FALSE)) -> Intermunicipal | K11: =IF(ISERROR(VLOOKUP(BMVT[[#This Row],[Rota]],Rotas[#All],6,FALSE)),"",VLOOKUP(BMVT[[#This Row],[Rota]],Rotas[#All],6,FALSE)) -> Viação Jauá | L11: 2 | M11: 2 | N11: 42 | O11: 10 | P11: 5 | Q11: =IF(ISERROR(VLOOKUP(BMVT[[#This Row],[Rota]],Rotas[#All],7,FALSE)),0,VLOOKUP(BMVT[[#This Row],[Rota]],Rotas[#All],7,FALSE)) -> 23.03 | R11: 230.3 | U11: =IF(ISERROR(BMVT[[#This Row],[Origem]]&" - "&BMVT[[#This Row],[Destino]]),"",BMVT[[#This Row],[Origem]]&" - "&BMVT[[#This Row],[Destino]]) -> Conceição de Feira - Salvador | W11: Junho | X11: 2016-06-01 | Y11: 2016-06-30 | AC11: 2016-06-24 | AE11: 21 | AF11: 1
A12: 000.007 | B12: =IF(ISERROR(VLOOKUP(BMVT[[#This Row],[Matrícula]],Usuarios[#All],2,FALSE)),"",VLOOKUP(BMVT[[#This Row],[Matrícula]],Usuarios[#All],2,FALSE)) -> Carla | C12: =IF(ISERROR(VLOOKUP(BMVT[[#This Row],[Matrícula]],Usuarios[#All],3,FALSE)),"",VLOOKUP(BMVT[[#This Row],[Matrícula]],Usuarios[#All],3,FALSE)) -> Empregado | D12: =IF(ISERROR(VLOOKUP(BMVT[[#This Row],[Matrícula]],Usuarios[#All],4,FALSE)),"",VLOOKUP(BMVT[[#This Row],[Matrícula]],Usuarios[#All],4,FALSE)) -> Salvador | E12: =IF(ISERROR(VLOOKUP(BMVT[[#This Row],[Matrícula]],Usuarios[#All],5,FALSE)),"",VLOOKUP(BMVT[[#This Row],[Matrícula]],Usuarios[#All],5,FALSE)) -> ADMINISTRATIVO | F12: 23125-M | G12: Regular | H12: =IF(ISERROR(VLOOKUP(BMVT[[#This Row],[Rota]],Rotas[#All],3,FALSE)),"",VLOOKUP(BMVT[[#This Row],[Rota]],Rotas[#All],3,FALSE)) -> Conceição de Feira | I12: =IF(ISERROR(VLOOKUP(BMVT[[#This Row],[Rota]],Rotas[#All],4,FALSE)),"",VLOOKUP(BMVT[[#This Row],[Rota]],Rotas[#All],4,FALSE)) -> Salvador | J12: =IF(ISERROR(VLOOKUP(BMVT[[#This Row],[Rota]],Rotas[#All],5,FALSE)),"",VLOOKUP(BMVT[[#This Row],[Rota]],Rotas[#All],5,FALSE)) -> Intermunicipal | K12: =IF(ISERROR(VLOOKUP(BMVT[[#This Row],[Rota]],Rotas[#All],6,FALSE)),"",VLOOKUP(BMVT[[#This Row],[Rota]],Rotas[#All],6,FALSE)) -> Viação Jauá | L12: 2 | M12: 2 | N12: 42 | O12: =BMVT[[#This Row],[Quant. Apur.]] -> 42 | P12: 21 | Q12: =IF(ISERROR(VLOOKUP(BMVT[[#This Row],[Rota]],Rotas[#All],7,FALSE)),0,VLOOKUP(BMVT[[#This Row],[Rota]],Rotas[#All],7,FALSE)) -> 23.03 | R12: 967.26 | U12: =IF(ISERROR(BMVT[[#This Row],[Origem]]&" - "&BMVT[[#This Row],[Destino]]),"",BMVT[[#This Row],[Origem]]&" - "&BMVT[[#This Row],[Destino]]) -> Conceição de Feira - Salvador | W12: Julho | X12: 2016-07-01 | Y12: 2016-07-31 | AE12: 21 | AF12: 0
A13: 000.008 | B13: =IF(ISERROR(VLOOKUP(BMVT[[#This Row],[Matrícula]],Usuarios[#All],2,FALSE)),"",VLOOKUP(BMVT[[#This Row],[Matrícula]],Usuarios[#All],2,FALSE)) -> Caroline | C13: =IF(ISERROR(VLOOKUP(BMVT[[#This Row],[Matrícula]],Usuarios[#All],3,FALSE)),"",VLOOKUP(BMVT[[#This Row],[Matrícula]],Usuarios[#All],3,FALSE)) -> Empregado | D13: =IF(ISERROR(VLOOKUP(BMVT[[#This Row],[Matrícula]],Usuarios[#All],4,FALSE)),"",VLOOKUP(BMVT[[#This Row],[Matrícula]],Usuarios[#All],4,FALSE)) -> Salvador | E13: =IF(ISERROR(VLOOKUP(BMVT[[#This Row],[Matrícula]],Usuarios[#All],5,FALSE)),"",VLOOKUP(BMVT[[#This Row],[Matrícula]],Usuarios[#All],5,FALSE)) -> COMERCIAL | F13: 23190-V | G13: Regular | H13: =IF(ISERROR(VLOOKUP(BMVT[[#This Row],[Rota]],Rotas[#All],3,FALSE)),"",VLOOKUP(BMVT[[#This Row],[Rota]],Rotas[#All],3,FALSE)) -> Lauro de Freitas | I13: =IF(ISERROR(VLOOKUP(BMVT[[#This Row],[Rota]],Rotas[#All],4,FALSE)),"",VLOOKUP(BMVT[[#This Row],[Rota]],Rotas[#All],4,FALSE)) -> Salvador | J13: =IF(ISERROR(VLOOKUP(BMVT[[#This Row],[Rota]],Rotas[#All],5,FALSE)),"",VLOOKUP(BMVT[[#This Row],[Rota]],Rotas[#All],5,FALSE)) -> Intermunicipal | K13: =IF(ISERROR(VLOOKUP(BMVT[[#This Row],[Rota]],Rotas[#All],6,FALSE)),"",VLOOKUP(BMVT[[#This Row],[Rota]],Rotas[#All],6,FALSE)) -> Metropasse | L13: 2 | M13: 2 | N13: 42 | O13: =BMVT[[#This Row],[Quant. Apur.]] -> 42 | P13: 21 | Q13: =IF(ISERROR(VLOOKUP(BMVT[[#This Row],[Rota]],Rotas[#All],7,FALSE)),0,VLOOKUP(BMVT[[#This Row],[Rota]],Rotas[#All],7,FALSE)) -> 3.3 | R13: 138.6 | U13: =IF(ISERROR(BMVT[[#This Row],[Origem]]&" - "&BMVT[[#This Row],[Destino]]),"",BMVT[[#This Row],[Origem]]&" - "&BMVT[[#This Row],[Destino]]) -> Lauro de Freitas - Salvador | W13: Agosto | X13: 2016-08-01 | Y13: 2016-08-31 | AE13: 23 | AF13: 0
A14: 000.009 | B14: =IF(ISERROR(VLOOKUP(BMVT[[#This Row],[Matrícula]],Usuarios[#All],2,FALSE)),"",VLOOKUP(BMVT[[#This Row],[Matrícula]],Usuarios[#All],2,FALSE)) -> Pedro | C14: =IF(ISERROR(VLOOKUP(BMVT[[#This Row],[Matrícula]],Usuarios[#All],3,FALSE)),"",VLOOKUP(BMVT[[#This Row],[Matrícula]],Usuarios[#All],3,FALSE)) -> Empregado | D14: =IF(ISERROR(VLOOKUP(BMVT[[#This Row],[Matrícula]],Usuarios[#All],4,FALSE)),"",VLOOKUP(BMVT[[#This Row],[Matrícula]],Usuarios[#All],4,FALSE)) -> Salvador | E14: =IF(ISERROR(VLOOKUP(BMVT[[#This Row],[Matrícula]],Usuarios[#All],5,FALSE)),"",VLOOKUP(BMVT[[#This Row],[Matrícula]],Usuarios[#All],5,FALSE)) -> COMERCIAL | F14: 23190-V | G14: Regular | H14: =IF(ISERROR(VLOOKUP(BMVT[[#This Row],[Rota]],Rotas[#All],3,FALSE)),"",VLOOKUP(BMVT[[#This Row],[Rota]],Rotas[#All],3,FALSE)) -> Lauro de Freitas | I14: =IF(ISERROR(VLOOKUP(BMVT[[#This Row],[Rota]],Rotas[#All],4,FALSE)),"",VLOOKUP(BMVT[[#This Row],[Rota]],Rotas[#All],4,FALSE)) -> Salvador | J14: =IF(ISERROR(VLOOKUP(BMVT[[#This Row],[Rota]],Rotas[#All],5,FALSE)),"",VLOOKUP(BMVT[[#This Row],[Rota]],Rotas[#All],5,FALSE)) -> Intermunicipal | K14: =IF(ISERROR(VLOOKUP(BMVT[[#This Row],[Rota]],Rotas[#All],6,FALSE)),"",VLOOKUP(BMVT[[#This Row],[Rota]],Rotas[#All],6,FALSE)) -> Metropasse | L14: 2 | M14: 2 | N14: 42 | O14: =BMVT[[#This Row],[Quant. Apur.]]*0 -> 0 | P14: 0 | Q14: =IF(ISERROR(VLOOKUP(BMVT[[#This Row],[Rota]],Rotas[#All],7,FALSE)),0,VLOOKUP(BMVT[[#This Row],[Rota]],Rotas[#All],7,FALSE)) -> 3.3 | R14: 0 | U14: =IF(ISERROR(BMVT[[#This Row],[Origem]]&" - "&BMVT[[#This Row],[Destino]]),"",BMVT[[#This Row],[Origem]]&" - "&BMVT[[#This Row],[Destino]]) -> Lauro de Freitas - Salvador | W14: Setembro | X14: 2016-09-01 | Y14: 2016-09-30 | Z14: 2016-09-07 | AE14: 21 | AF14: 0
A15: 000.010 | B15: =IF(ISERROR(VLOOKUP(BMVT[[#This Row],[Matrícula]],Usuarios[#All],2,FALSE)),"",VLOOKUP(BMVT[[#This Row],[Matrícula]],Usuarios[#All],2,FALSE)) -> Paulo | C15: =IF(ISERROR(VLOOKUP(BMVT[[#This Row],[Matrícula]],Usuarios[#All],3,FALSE)),"",VLOOKUP(BMVT[[#This Row],[Matrícula]],Usuarios[#All],3,FALSE)) -> Empregado | D15: =IF(ISERROR(VLOOKUP(BMVT[[#This Row],[Matrícula]],Usuarios[#All],4,FALSE)),"",VLOOKUP(BMVT[[#This Row],[Matrícula]],Usuarios[#All],4,FALSE)) -> Salvador | E15: =IF(ISERROR(VLOOKUP(BMVT[[#This Row],[Matrícula]],Usuarios[#All],5,FALSE)),"",VLOOKUP(BMVT[[#This Row],[Matrícula]],Usuarios[#All],5,FALSE)) -> COMERCIAL | F15: 23190-V | G15: Regular | H15: =IF(ISERROR(VLOOKUP(BMVT[[#This Row],[Rota]],Rotas[#All],3,FALSE)),"",VLOOKUP(BMVT[[#This Row],[Rota]],Rotas[#All],3,FALSE)) -> Lauro de Freitas | I15: =IF(ISERROR(VLOOKUP(BMVT[[#This Row],[Rota]],Rotas[#All],4,FALSE)),"",VLOOKUP(BMVT[[#This Row],[Rota]],Rotas[#All],4,FALSE)) -> Salvador | J15: =IF(ISERROR(VLOOKUP(BMVT[[#This Row],[Rota]],Rotas[#All],5,FALSE)),"",VLOOKUP(BMVT[[#This Row],[Rota]],Rotas[#All],5,FALSE)) -> Intermunicipal | K15: =IF(ISERROR(VLOOKUP(BMVT[[#This Row],[Rota]],Rotas[#All],6,FALSE)),"",VLOOKUP(BMVT[[#This Row],[Rota]],Rotas[#All],6,FALSE)) -> Metropasse | L15: 2 | M15: 2 | N15: 42 | O15: =BMVT[[#This Row],[Quant. Apur.]] -> 42 | P15: 21 | Q15: =IF(ISERROR(VLOOKUP(BMVT[[#This Row],[Rota]],Rotas[#All],7,FALSE)),0,VLOOKUP(BMVT[[#This Row],[Rota]],Rotas[#All],7,FALSE)) -> 3.3 | R15: 138.6 | U15: =IF(ISERROR(BMVT[[#This Row],[Origem]]&" - "&BMVT[[#This Row],[Destino]]),"",BMVT[[#This Row],[Origem]]&" - "&BMVT[[#This Row],[Destino]]) -> Lauro de Freitas - Salvador | W15: Outubro | X15: 2016-10-01 | Y15: 2016-10-31 | Z15: 2016-10-12 | AE15: 20 | AF15: 0
A16: 000.011 | B16: =IF(ISERROR(VLOOKUP(BMVT[[#This Row],[Matrícula]],Usuarios[#All],2,FALSE)),"",VLOOKUP(BMVT[[#This Row],[Matrícula]],Usuarios[#All],2,FALSE)) -> Rafael | C16: =IF(ISERROR(VLOOKUP(BMVT[[#This Row],[Matrícula]],Usuarios[#All],3,FALSE)),"",VLOOKUP(BMVT[[#This Row],[Matrícula]],Usuarios[#All],3,FALSE)) -> Empregado | D16: =IF(ISERROR(VLOOKUP(BMVT[[#This Row],[Matrícula]],Usuarios[#All],4,FALSE)),"",VLOOKUP(BMVT[[#This Row],[Matrícula]],Usuarios[#All],4,FALSE)) -> Salvador | E16: =IF(ISERROR(VLOOKUP(BMVT[[#This Row],[Matrícula]],Usuarios[#All],5,FALSE)),"",VLOOKUP(BMVT[[#This Row],[Matrícula]],Usuarios[#All],5,FALSE)) -> COMERCIAL | F16: 23190-V | G16: Regular | H16: =IF(ISERROR(VLOOKUP(BMVT[[#This Row],[Rota]],Rotas[#All],3,FALSE)),"",VLOOKUP(BMVT[[#This Row],[Rota]],Rotas[#All],3,FALSE)) -> Lauro de Freitas | I16: =IF(ISERROR(VLOOKUP(BMVT[[#This Row],[Rota]],Rotas[#All],4,FALSE)),"",VLOOKUP(BMVT[[#This Row],[Rota]],Rotas[#All],4,FALSE)) -> Salvador | J16: =IF(ISERROR(VLOOKUP(BMVT[[#This Row],[Rota]],Rotas[#All],5,FALSE)),"",VLOOKUP(BMVT[[#This Row],[Rota]],Rotas[#All],5,FALSE)) -> Intermunicipal | K16: =IF(ISERROR(VLOOKUP(BMVT[[#This Row],[Rota]],Rotas[#All],6,FALSE)),"",VLOOKUP(BMVT[[#This Row],[Rota]],Rotas[#All],6,FALSE)) -> Metropasse | L16: 2 | M16: 2 | N16: 42 | O16: =BMVT[[#This Row],[Quant. Apur.]] -> 42 | P16: 21 | Q16: =IF(ISERROR(VLOOKUP(BMVT[[#This Row],[Rota]],Rotas[#All],7,FALSE)),0,VLOOKUP(BMVT[[#This Row],[Rota]],Rotas[#All],7,FALSE)) -> 3.3 | R16: 138.6 | U16: =IF(ISERROR(BMVT[[#This Row],[Origem]]&" - "&BMVT[[#This Row],[Destino]]),"",BMVT[[#This Row],[Origem]]&" - "&BMVT[[#This Row],[Destino]]) -> Lauro de Freitas - Salvador | W16: Novembro | X16: 2016-11-01 | Y16: 2016-11-30 | Z16: 2016-11-02 | AA16: 2016-11-15 | AB16: 2016-11-14 | AE16: =NETWORKDAYS(X16,Y16,Z16:AD16) -> 19 | AF16: 1
A17: 000.012 | B17: =IF(ISERROR(VLOOKUP(BMVT[[#This Row],[Matrícula]],Usuarios[#All],2,FALSE)),"",VLOOKUP(BMVT[[#This Row],[Matrícula]],Usuarios[#All],2,FALSE)) -> Ricardo | C17: =IF(ISERROR(VLOOKUP(BMVT[[#This Row],[Matrícula]],Usuarios[#All],3,FALSE)),"",VLOOKUP(BMVT[[#This Row],[Matrícula]],Usuarios[#All],3,FALSE)) -> Empregado | D17: =IF(ISERROR(VLOOKUP(BMVT[[#This Row],[Matrícula]],Usuarios[#All],4,FALSE)),"",VLOOKUP(BMVT[[#This Row],[Matrícula]],Usuarios[#All],4,FALSE)) -> Salvador | E17: =IF(ISERROR(VLOOKUP(BMVT[[#This Row],[Matrícula]],Usuarios[#All],5,FALSE)),"",VLOOKUP(BMVT[[#This Row],[Matrícula]],Usuarios[#All],5,FALSE)) -> COMERCIAL | F17: 23170-I | G17: Regular | H17: =IF(ISERROR(VLOOKUP(BMVT[[#This Row],[Rota]],Rotas[#All],3,FALSE)),"",VLOOKUP(BMVT[[#This Row],[Rota]],Rotas[#All],3,FALSE)) -> Aracaju | I17: =IF(ISERROR(VLOOKUP(BMVT[[#This Row],[Rota]],Rotas[#All],4,FALSE)),"",VLOOKUP(BMVT[[#This Row],[Rota]],Rotas[#All],4,FALSE)) -> Aracaju | J17: =IF(ISERROR(VLOOKUP(BMVT[[#This Row],[Rota]],Rotas[#All],5,FALSE)),"",VLOOKUP(BMVT[[#This Row],[Rota]],Rotas[#All],5,FALSE)) -> Urbano | K17: =IF(ISERROR(VLOOKUP(BMVT[[#This Row],[Rota]],Rotas[#All],6,FALSE)),"",VLOOKUP(BMVT[[#This Row],[Rota]],Rotas[#All],6,FALSE)) -> Aracaju Card | L17: 2 | M17: 2 | N17: 42 | O17: =BMVT[[#This Row],[Quant. Apur.]]+12 -> 54 | P17: 27 | Q17: =IF(ISERROR(VLOOKUP(BMVT[[#This Row],[Rota]],Rotas[#All],7,FALSE)),0,VLOOKUP(BMVT[[#This Row],[Rota]],Rotas[#All],7,FALSE)) -> 3.1 | R17: 167.4 | U17: =IF(ISERROR(BMVT[[#This Row],[Origem]]&" - "&BMVT[[#This Row],[Destino]]),"",BMVT[[#This Row],[Origem]]&" - "&BMVT[[#This Row],[Destino]]) -> Aracaju - Aracaju
A18: 000.013 | B18: =IF(ISERROR(VLOOKUP(BMVT[[#This Row],[Matrícula]],Usuarios[#All],2,FALSE)),"",VLOOKUP(BMVT[[#This Row],[Matrícula]],Usuarios[#All],2,FALSE)) -> Jose | C18: =IF(ISERROR(VLOOKUP(BMVT[[#This Row],[Matrícula]],Usuarios[#All],3,FALSE)),"",VLOOKUP(BMVT[[#This Row],[Matrícula]],Usuarios[#All],3,FALSE)) -> Empregado | D18: =IF(ISERROR(VLOOKUP(BMVT[[#This Row],[Matrícula]],Usuarios[#All],4,FALSE)),"",VLOOKUP(BMVT[[#This Row],[Matrícula]],Usuarios[#All],4,FALSE)) -> Salvador | E18: =IF(ISERROR(VLOOKUP(BMVT[[#This Row],[Matrícula]],Usuarios[#All],5,FALSE)),"",VLOOKUP(BMVT[[#This Row],[Matrícula]],Usuarios[#All],5,FALSE)) -> COMERCIAL | F18: xxxxx-Y (Pool) | G18: Regular | H18: =IF(ISERROR(VLOOKUP(BMVT[[#This Row],[Rota]],Rotas[#All],3,FALSE)),"",VLOOKUP(BMVT[[#This Row],[Rota]],Rotas[#All],3,FALSE)) -> Feira de Santana | I18: =IF(ISERROR(VLOOKUP(BMVT[[#This Row],[Rota]],Rotas[#All],4,FALSE)),"",VLOOKUP(BMVT[[#This Row],[Rota]],Rotas[#All],4,FALSE)) -> Camaçari | J18: =IF(ISERROR(VLOOKUP(BMVT[[#This Row],[Rota]],Rotas[#All],5,FALSE)),"",VLOOKUP(BMVT[[#This Row],[Rota]],Rotas[#All],5,FALSE)) -> Intermunicipal | K18: =IF(ISERROR(VLOOKUP(BMVT[[#This Row],[Rota]],Rotas[#All],6,FALSE)),"",VLOOKUP(BMVT[[#This Row],[Rota]],Rotas[#All],6,FALSE)) -> Lis Transportes | L18: 2 | M18: =L18 -> 2 | N18: 42 | O18: 10 | P18: 5 | Q18: =IF(ISERROR(VLOOKUP(BMVT[[#This Row],[Rota]],Rotas[#All],7,FALSE)),0,VLOOKUP(BMVT[[#This Row],[Rota]],Rotas[#All],7,FALSE)) -> 650 | R18: =Q18 -> 650 | U18: =IF(ISERROR(BMVT[[#This Row],[Origem]]&" - "&BMVT[[#This Row],[Destino]]),"",BMVT[[#This Row],[Origem]]&" - "&BMVT[[#This Row],[Destino]]) -> Feira de Santana - Camaçari
A19: 000.014 | B19: =IF(ISERROR(VLOOKUP(BMVT[[#This Row],[Matrícula]],Usuarios[#All],2,FALSE)),"",VLOOKUP(BMVT[[#This Row],[Matrícula]],Usuarios[#All],2,FALSE)) -> Felipe | C19: =IF(ISERROR(VLOOKUP(BMVT[[#This Row],[Matrícula]],Usuarios[#All],3,FALSE)),"",VLOOKUP(BMVT[[#This Row],[Matrícula]],Usuarios[#All],3,FALSE)) -> Empregado | D19: =IF(ISERROR(VLOOKUP(BMVT[[#This Row],[Matrícula]],Usuarios[#All],4,FALSE)),"",VLOOKUP(BMVT[[#This Row],[Matrícula]],Usuarios[#All],4,FALSE)) -> Salvador | E19: =IF(ISERROR(VLOOKUP(BMVT[[#This Row],[Matrícula]],Usuarios[#All],5,FALSE)),"",VLOOKUP(BMVT[[#This Row],[Matrícula]],Usuarios[#All],5,FALSE)) -> COMERCIAL | F19: 23182 | G19: Regular | H19: =IF(ISERROR(VLOOKUP(BMVT[[#This Row],[Rota]],Rotas[#All],3,FALSE)),"",VLOOKUP(BMVT[[#This Row],[Rota]],Rotas[#All],3,FALSE)) -> Amélia Rodrigues | I19: =IF(ISERROR(VLOOKUP(BMVT[[#This Row],[Rota]],Rotas[#All],4,FALSE)),"",VLOOKUP(BMVT[[#This Row],[Rota]],Rotas[#All],4,FALSE)) -> Governador Mangabeira | J19: =IF(ISERROR(VLOOKUP(BMVT[[#This Row],[Rota]],Rotas[#All],5,FALSE)),"",VLOOKUP(BMVT[[#This Row],[Rota]],Rotas[#All],5,FALSE)) -> Intermunicipal | K19: =IF(ISERROR(VLOOKUP(BMVT[[#This Row],[Rota]],Rotas[#All],6,FALSE)),"",VLOOKUP(BMVT[[#This Row],[Rota]],Rotas[#All],6,FALSE)) -> RD Transportes | L19: 2 | M19: 2 | N19: 42 | O19: 25 | P19: 12.5 | Q19: 10.06 | R19: =O19*Q19 -> 251.5 | U19: =IF(ISERROR(BMVT[[#This Row],[Origem]]&" - "&BMVT[[#This Row],[Destino]]),"",BMVT[[#This Row],[Origem]]&" - "&BMVT[[#This Row],[Destino]]) -> Amélia Rodrigues - Governador Mangabeira
A20: 000.015 | B20: =IF(ISERROR(VLOOKUP(BMVT[[#This Row],[Matrícula]],Usuarios[#All],2,FALSE)),"",VLOOKUP(BMVT[[#This Row],[Matrícula]],Usuarios[#All],2,FALSE)) -> Julio | C20: =IF(ISERROR(VLOOKUP(BMVT[[#This Row],[Matrícula]],Usuarios[#All],3,FALSE)),"",VLOOKUP(BMVT[[#This Row],[Matrícula]],Usuarios[#All],3,FALSE)) -> Empregado | D20: =IF(ISERROR(VLOOKUP(BMVT[[#This Row],[Matrícula]],Usuarios[#All],4,FALSE)),"",VLOOKUP(BMVT[[#This Row],[Matrícula]],Usuarios[#All],4,FALSE)) -> Salvador | E20: =IF(ISERROR(VLOOKUP(BMVT[[#This Row],[Matrícula]],Usuarios[#All],5,FALSE)),"",VLOOKUP(BMVT[[#This Row],[Matrícula]],Usuarios[#All],5,FALSE)) -> COMERCIAL | F20: 23101-A (09096) | G20: Regular | H20: =IF(ISERROR(VLOOKUP(BMVT[[#This Row],[Rota]],Rotas[#All],3,FALSE)),"",VLOOKUP(BMVT[[#This Row],[Rota]],Rotas[#All],3,FALSE)) -> Salvador | I20: =IF(ISERROR(VLOOKUP(BMVT[[#This Row],[Rota]],Rotas[#All],4,FALSE)),"",VLOOKUP(BMVT[[#This Row],[Rota]],Rotas[#All],4,FALSE)) -> Salvador | J20: =IF(ISERROR(VLOOKUP(BMVT[[#This Row],[Rota]],Rotas[#All],5,FALSE)),"",VLOOKUP(BMVT[[#This Row],[Rota]],Rotas[#All],5,FALSE)) -> Urbano | K20: =IF(ISERROR(VLOOKUP(BMVT[[#This Row],[Rota]],Rotas[#All],6,FALSE)),"",VLOOKUP(BMVT[[#This Row],[Rota]],Rotas[#All],6,FALSE)) -> Salvador Card | L20: 2 | M20: 4 | N20: =L20*$G$1 -> 42 | O20: =BMVT[[#This Row],[Quant. Apur.]] -> 42 | P20: 10.5 | Q20: =IF(ISERROR(VLOOKUP(BMVT[[#This Row],[Rota]],Rotas[#All],7,FALSE)),0,VLOOKUP(BMVT[[#This Row],[Rota]],Rotas[#All],7,FALSE)) -> 3.3 | R20: 138.6 | U20: =IF(ISERROR(BMVT[[#This Row],[Origem]]&" - "&BMVT[[#This Row],[Destino]]),"",BMVT[[#This Row],[Origem]]&" - "&BMVT[[#This Row],[Destino]]) -> Salvador - Salvador
A21: 000.016 | B21: =IF(ISERROR(VLOOKUP(BMVT[[#This Row],[Matrícula]],Usuarios[#All],2,FALSE)),"",VLOOKUP(BMVT[[#This Row],[Matrícula]],Usuarios[#All],2,FALSE)) -> Lucia | C21: =IF(ISERROR(VLOOKUP(BMVT[[#This Row],[Matrícula]],Usuarios[#All],3,FALSE)),"",VLOOKUP(BMVT[[#This Row],[Matrícula]],Usuarios[#All],3,FALSE)) -> Empregado | D21: =IF(ISERROR(VLOOKUP(BMVT[[#This Row],[Matrícula]],Usuarios[#All],4,FALSE)),"",VLOOKUP(BMVT[[#This Row],[Matrícula]],Usuarios[#All],4,FALSE)) -> Salvador | E21: =IF(ISERROR(VLOOKUP(BMVT[[#This Row],[Matrícula]],Usuarios[#All],5,FALSE)),"",VLOOKUP(BMVT[[#This Row],[Matrícula]],Usuarios[#All],5,FALSE)) -> PESSOAL | F21: 23101-A (09096) | G21: Regular | H21: =IF(ISERROR(VLOOKUP(BMVT[[#This Row],[Rota]],Rotas[#All],3,FALSE)),"",VLOOKUP(BMVT[[#This Row],[Rota]],Rotas[#All],3,FALSE)) -> Salvador | I21: =IF(ISERROR(VLOOKUP(BMVT[[#This Row],[Rota]],Rotas[#All],4,FALSE)),"",VLOOKUP(BMVT[[#This Row],[Rota]],Rotas[#All],4,FALSE)) -> Salvador | J21: =IF(ISERROR(VLOOKUP(BMVT[[#This Row],[Rota]],Rotas[#All],5,FALSE)),"",VLOOKUP(BMVT[[#This Row],[Rota]],Rotas[#All],5,FALSE)) -> Urbano | K21: =IF(ISERROR(VLOOKUP(BMVT[[#This Row],[Rota]],Rotas[#All],6,FALSE)),"",VLOOKUP(BMVT[[#This Row],[Rota]],Rotas[#All],6,FALSE)) -> Salvador Card | L21: 2 | M21: 2 | N21: 42 | O21: =BMVT[[#This Row],[Quant. Apur.]]+2 -> 44 | P21: 22 | Q21: =IF(ISERROR(VLOOKUP(BMVT[[#This Row],[Rota]],Rotas[#All],7,FALSE)),0,VLOOKUP(BMVT[[#This Row],[Rota]],Rotas[#All],7,FALSE)) -> 3.3 | R21: 145.2 | U21: =IF(ISERROR(BMVT[[#This Row],[Origem]]&" - "&BMVT[[#This Row],[Destino]]),"",BMVT[[#This Row],[Origem]]&" - "&BMVT[[#This Row],[Destino]]) -> Salvador - Salvador
A22: 000.017 | B22: =IF(ISERROR(VLOOKUP(BMVT[[#This Row],[Matrícula]],Usuarios[#All],2,FALSE)),"",VLOOKUP(BMVT[[#This Row],[Matrícula]],Usuarios[#All],2,FALSE)) -> Luciano | C22: =IF(ISERROR(VLOOKUP(BMVT[[#This Row],[Matrícula]],Usuarios[#All],3,FALSE)),"",VLOOKUP(BMVT[[#This Row],[Matrícula]],Usuarios[#All],3,FALSE)) -> Empregado | D22: =IF(ISERROR(VLOOKUP(BMVT[[#This Row],[Matrícula]],Usuarios[#All],4,FALSE)),"",VLOOKUP(BMVT[[#This Row],[Matrícula]],Usuarios[#All],4,FALSE)) -> Salvador | E22: =IF(ISERROR(VLOOKUP(BMVT[[#This Row],[Matrícula]],Usuarios[#All],5,FALSE)),"",VLOOKUP(BMVT[[#This Row],[Matrícula]],Usuarios[#All],5,FALSE)) -> PESSOAL | F22: 23101-A (09096) | G22: Regular | H22: =IF(ISERROR(VLOOKUP(BMVT[[#This Row],[Rota]],Rotas[#All],3,FALSE)),"",VLOOKUP(BMVT[[#This Row],[Rota]],Rotas[#All],3,FALSE)) -> Salvador | I22: =IF(ISERROR(VLOOKUP(BMVT[[#This Row],[Rota]],Rotas[#All],4,FALSE)),"",VLOOKUP(BMVT[[#This Row],[Rota]],Rotas[#All],4,FALSE)) -> Salvador | J22: =IF(ISERROR(VLOOKUP(BMVT[[#This Row],[Rota]],Rotas[#All],5,FALSE)),"",VLOOKUP(BMVT[[#This Row],[Rota]],Rotas[#All],5,FALSE)) -> Urbano | K22: =IF(ISERROR(VLOOKUP(BMVT[[#This Row],[Rota]],Rotas[#All],6,FALSE)),"",VLOOKUP(BMVT[[#This Row],[Rota]],Rotas[#All],6,FALSE)) -> Salvador Card | L22: 0 | M22: 0 | N22: 0 | O22: =BMVT[[#This Row],[Quant. Apur.]] -> 0 | P22: 0 | Q22: =IF(ISERROR(VLOOKUP(BMVT[[#This Row],[Rota]],Rotas[#All],7,FALSE)),0,VLOOKUP(BMVT[[#This Row],[Rota]],Rotas[#All],7,FALSE)) -> 3.3 | R22: 0 | U22: =IF(ISERROR(BMVT[[#This Row],[Origem]]&" - "&BMVT[[#This Row],[Destino]]),"",BMVT[[#This Row],[Origem]]&" - "&BMVT[[#This Row],[Destino]]) -> Salvador - Salvador
A23: 000.018 | B23: =IF(ISERROR(VLOOKUP(BMVT[[#This Row],[Matrícula]],Usuarios[#All],2,FALSE)),"",VLOOKUP(BMVT[[#This Row],[Matrícula]],Usuarios[#All],2,FALSE)) -> Bruno | C23: =IF(ISERROR(VLOOKUP(BMVT[[#This Row],[Matrícula]],Usuarios[#All],3,FALSE)),"",VLOOKUP(BMVT[[#This Row],[Matrícula]],Usuarios[#All],3,FALSE)) -> Empregado | D23: =IF(ISERROR(VLOOKUP(BMVT[[#This Row],[Matrícula]],Usuarios[#All],4,FALSE)),"",VLOOKUP(BMVT[[#This Row],[Matrícula]],Usuarios[#All],4,FALSE)) -> Salvador | E23: =IF(ISERROR(VLOOKUP(BMVT[[#This Row],[Matrícula]],Usuarios[#All],5,FALSE)),"",VLOOKUP(BMVT[[#This Row],[Matrícula]],Usuarios[#All],5,FALSE)) -> PESSOAL | F23: 23101-A (09096) | G23: Regular | H23: =IF(ISERROR(VLOOKUP(BMVT[[#This Row],[Rota]],Rotas[#All],3,FALSE)),"",VLOOKUP(BMVT[[#This Row],[Rota]],Rotas[#All],3,FALSE)) -> Salvador | I23: =IF(ISERROR(VLOOKUP(BMVT[[#This Row],[Rota]],Rotas[#All],4,FALSE)),"",VLOOKUP(BMVT[[#This Row],[Rota]],Rotas[#All],4,FALSE)) -> Salvador | J23: =IF(ISERROR(VLOOKUP(BMVT[[#This Row],[Rota]],Rotas[#All],5,FALSE)),"",VLOOKUP(BMVT[[#This Row],[Rota]],Rotas[#All],5,FALSE)) -> Urbano | K23: =IF(ISERROR(VLOOKUP(BMVT[[#This Row],[Rota]],Rotas[#All],6,FALSE)),"",VLOOKUP(BMVT[[#This Row],[Rota]],Rotas[#All],6,FALSE)) -> Salvador Card | L23: 2 | M23: =L23 -> 2 | N23: =L23*$G$1 -> 42 | O23: =BMVT[[#This Row],[Quant. Apur.]] -> 42 | P23: =IF(ISERROR(O23/M23),0,O23/M23) -> 21 | Q23: =IF(ISERROR(VLOOKUP(BMVT[[#This Row],[Rota]],Rotas[#All],7,FALSE)),0,VLOOKUP(BMVT[[#This Row],[Rota]],Rotas[#All],7,FALSE)) -> 3.3 | R23: =O23*Q23 -> 138.6 | U23: =IF(ISERROR(BMVT[[#This Row],[Origem]]&" - "&BMVT[[#This Row],[Destino]]),"",BMVT[[#This Row],[Origem]]&" - "&BMVT[[#This Row],[Destino]]) -> Salvador - Salvador
A24: 000.019 | B24: =IF(ISERROR(VLOOKUP(BMVT[[#This Row],[Matrícula]],Usuarios[#All],2,FALSE)),"",VLOOKUP(BMVT[[#This Row],[Matrícula]],Usuarios[#All],2,FALSE)) -> Vinicius | C24: =IF(ISERROR(VLOOKUP(BMVT[[#This Row],[Matrícula]],Usuarios[#All],3,FALSE)),"",VLOOKUP(BMVT[[#This Row],[Matrícula]],Usuarios[#All],3,FALSE)) -> Anistiado | D24: =IF(ISERROR(VLOOKUP(BMVT[[#This Row],[Matrícula]],Usuarios[#All],4,FALSE)),"",VLOOKUP(BMVT[[#This Row],[Matrícula]],Usuarios[#All],4,FALSE)) -> Salvador | E24: =IF(ISERROR(VLOOKUP(BMVT[[#This Row],[Matrícula]],Usuarios[#All],5,FALSE)),"",VLOOKUP(BMVT[[#This Row],[Matrícula]],Usuarios[#All],5,FALSE)) -> PESSOAL | F24: 23101-A (09096) | G24: Regular | H24: =IF(ISERROR(VLOOKUP(BMVT[[#This Row],[Rota]],Rotas[#All],3,FALSE)),"",VLOOKUP(BMVT[[#This Row],[Rota]],Rotas[#All],3,FALSE)) -> Salvador | I24: =IF(ISERROR(VLOOKUP(BMVT[[#This Row],[Rota]],Rotas[#All],4,FALSE)),"",VLOOKUP(BMVT[[#This Row],[Rota]],Rotas[#All],4,FALSE)) -> Salvador | J24: =IF(ISERROR(VLOOKUP(BMVT[[#This Row],[Rota]],Rotas[#All],5,FALSE)),"",VLOOKUP(BMVT[[#This Row],[Rota]],Rotas[#All],5,FALSE)) -> Urbano | K24: =IF(ISERROR(VLOOKUP(BMVT[[#This Row],[Rota]],Rotas[#All],6,FALSE)),"",VLOOKUP(BMVT[[#This Row],[Rota]],Rotas[#All],6,FALSE)) -> Salvador Card | L24: 2 | M24: 2 | N24: 42 | O24: =BMVT[[#This Row],[Quant. Apur.]] -> 42 | P24: 21 | Q24: =IF(ISERROR(VLOOKUP(BMVT[[#This Row],[Rota]],Rotas[#All],7,FALSE)),0,VLOOKUP(BMVT[[#This Row],[Rota]],Rotas[#All],7,FALSE)) -> 3.3 | R24: 138.6
A25: 000.020 | B25: =IF(ISERROR(VLOOKUP(BMVT[[#This Row],[Matrícula]],Usuarios[#All],2,FALSE)),"",VLOOKUP(BMVT[[#This Row],[Matrícula]],Usuarios[#All],2,FALSE)) -> José Carlos | C25: =IF(ISERROR(VLOOKUP(BMVT[[#This Row],[Matrícula]],Usuarios[#All],3,FALSE)),"",VLOOKUP(BMVT[[#This Row],[Matrícula]],Usuarios[#All],3,FALSE)) -> Empregado | D25: =IF(ISERROR(VLOOKUP(BMVT[[#This Row],[Matrícula]],Usuarios[#All],4,FALSE)),"",VLOOKUP(BMVT[[#This Row],[Matrícula]],Usuarios[#All],4,FALSE)) -> Salvador | E25: =IF(ISERROR(VLOOKUP(BMVT[[#This Row],[Matrícula]],Usuarios[#All],5,FALSE)),"",VLOOKUP(BMVT[[#This Row],[Matrícula]],Usuarios[#All],5,FALSE)) -> LOGISTICA | F25: 23101-A (09096) | G25: Regular | H25: =IF(ISERROR(VLOOKUP(BMVT[[#This Row],[Rota]],Rotas[#All],3,FALSE)),"",VLOOKUP(BMVT[[#This Row],[Rota]],Rotas[#All],3,FALSE)) -> Salvador | I25: =IF(ISERROR(VLOOKUP(BMVT[[#This Row],[Rota]],Rotas[#All],4,FALSE)),"",VLOOKUP(BMVT[[#This Row],[Rota]],Rotas[#All],4,FALSE)) -> Salvador | J25: =IF(ISERROR(VLOOKUP(BMVT[[#This Row],[Rota]],Rotas[#All],5,FALSE)),"",VLOOKUP(BMVT[[#This Row],[Rota]],Rotas[#All],5,FALSE)) -> Urbano | K25: =IF(ISERROR(VLOOKUP(BMVT[[#This Row],[Rota]],Rotas[#All],6,FALSE)),"",VLOOKUP(BMVT[[#This Row],[Rota]],Rotas[#All],6,FALSE)) -> Salvador Card | L25: 2 | M25: 2 | N25: 42 | O25: =BMVT[[#This Row],[Quant. Apur.]] -> 42 | P25: 21 | Q25: =IF(ISERROR(VLOOKUP(BMVT[[#This Row],[Rota]],Rotas[#All],7,FALSE)),0,VLOOKUP(BMVT[[#This Row],[Rota]],Rotas[#All],7,FALSE)) -> 3.3 | R25: 138.6 | U25: =IF(ISERROR(BMVT[[#This Row],[Origem]]&" - "&BMVT[[#This Row],[Destino]]),"",BMVT[[#This Row],[Origem]]&" - "&BMVT[[#This Row],[Destino]]) -> Salvador - Salvador
A26: 000.021 | B26: =IF(ISERROR(VLOOKUP(BMVT[[#This Row],[Matrícula]],Usuarios[#All],2,FALSE)),"",VLOOKUP(BMVT[[#This Row],[Matrícula]],Usuarios[#All],2,FALSE)) -> Carlos | C26: =IF(ISERROR(VLOOKUP(BMVT[[#This Row],[Matrícula]],Usuarios[#All],3,FALSE)),"",VLOOKUP(BMVT[[#This Row],[Matrícula]],Usuarios[#All],3,FALSE)) -> Empregado | D26: =IF(ISERROR(VLOOKUP(BMVT[[#This Row],[Matrícula]],Usuarios[#All],4,FALSE)),"",VLOOKUP(BMVT[[#This Row],[Matrícula]],Usuarios[#All],4,FALSE)) -> Salvador | E26: =IF(ISERROR(VLOOKUP(BMVT[[#This Row],[Matrícula]],Usuarios[#All],5,FALSE)),"",VLOOKUP(BMVT[[#This Row],[Matrícula]],Usuarios[#All],5,FALSE)) -> LOGISTICA | F26: 23101-A (09096) | G26: Regular | H26: =IF(ISERROR(VLOOKUP(BMVT[[#This Row],[Rota]],Rotas[#All],3,FALSE)),"",VLOOKUP(BMVT[[#This Row],[Rota]],Rotas[#All],3,FALSE)) -> Salvador | I26: =IF(ISERROR(VLOOKUP(BMVT[[#This Row],[Rota]],Rotas[#All],4,FALSE)),"",VLOOKUP(BMVT[[#This Row],[Rota]],Rotas[#All],4,FALSE)) -> Salvador | J26: =IF(ISERROR(VLOOKUP(BMVT[[#This Row],[Rota]],Rotas[#All],5,FALSE)),"",VLOOKUP(BMVT[[#This Row],[Rota]],Rotas[#All],5,FALSE)) -> Urbano | K26: =IF(ISERROR(VLOOKUP(BMVT[[#This Row],[Rota]],Rotas[#All],6,FALSE)),"",VLOOKUP(BMVT[[#This Row],[Rota]],Rotas[#All],6,FALSE)) -> Salvador Card | L26: 2 | M26: 2 | N26: 42 | O26: =BMVT[[#This Row],[Quant. Apur.]] -> 42 | P26: 21 | Q26: =IF(ISERROR(VLOOKUP(BMVT[[#This Row],[Rota]],Rotas[#All],7,FALSE)),0,VLOOKUP(BMVT[[#This Row],[Rota]],Rotas[#All],7,FALSE)) -> 3.3 | R26: 138.6 | U26: =IF(ISERROR(BMVT[[#This Row],[Origem]]&" - "&BMVT[[#This Row],[Destino]]),"",BMVT[[#This Row],[Origem]]&" - "&BMVT[[#This Row],[Destino]]) -> Salvador - Salvador
A27: 000.022 | B27: =IF(ISERROR(VLOOKUP(BMVT[[#This Row],[Matrícula]],Usuarios[#All],2,FALSE)),"",VLOOKUP(BMVT[[#This Row],[Matrícula]],Usuarios[#All],2,FALSE)) -> Miguel | C27: =IF(ISERROR(VLOOKUP(BMVT[[#This Row],[Matrícula]],Usuarios[#All],3,FALSE)),"",VLOOKUP(BMVT[[#This Row],[Matrícula]],Usuarios[#All],3,FALSE)) -> Empregado | D27: =IF(ISERROR(VLOOKUP(BMVT[[#This Row],[Matrícula]],Usuarios[#All],4,FALSE)),"",VLOOKUP(BMVT[[#This Row],[Matrícula]],Usuarios[#All],4,FALSE)) -> Salvador | E27: =IF(ISERROR(VLOOKUP(BMVT[[#This Row],[Matrícula]],Usuarios[#All],5,FALSE)),"",VLOOKUP(BMVT[[#This Row],[Matrícula]],Usuarios[#All],5,FALSE)) -> LOGISTICA | F27: 23101-A (09096) | G27: Regular | H27: =IF(ISERROR(VLOOKUP(BMVT[[#This Row],[Rota]],Rotas[#All],3,FALSE)),"",VLOOKUP(BMVT[[#This Row],[Rota]],Rotas[#All],3,FALSE)) -> Salvador | I27: =IF(ISERROR(VLOOKUP(BMVT[[#This Row],[Rota]],Rotas[#All],4,FALSE)),"",VLOOKUP(BMVT[[#This Row],[Rota]],Rotas[#All],4,FALSE)) -> Salvador | J27: =IF(ISERROR(VLOOKUP(BMVT[[#This Row],[Rota]],Rotas[#All],5,FALSE)),"",VLOOKUP(BMVT[[#This Row],[Rota]],Rotas[#All],5,FALSE)) -> Urbano | K27: =IF(ISERROR(VLOOKUP(BMVT[[#This Row],[Rota]],Rotas[#All],6,FALSE)),"",VLOOKUP(BMVT[[#This Row],[Rota]],Rotas[#All],6,FALSE)) -> Salvador Card | L27: 2 | M27: 2 | N27: 42 | O27: =BMVT[[#This Row],[Quant. Apur.]] -> 42 | P27: 21 | Q27: =IF(ISERROR(VLOOKUP(BMVT[[#This Row],[Rota]],Rotas[#All],7,FALSE)),0,VLOOKUP(BMVT[[#This Row],[Rota]],Rotas[#All],7,FALSE)) -> 3.3 | R27: 138.6 | U27: =IF(ISERROR(BMVT[[#This Row],[Origem]]&" - "&BMVT[[#This Row],[Destino]]),"",BMVT[[#This Row],[Origem]]&" - "&BMVT[[#This Row],[Destino]]) -> Salvador - Salvador
A28: 000.023 | B28: =IF(ISERROR(VLOOKUP(BMVT[[#This Row],[Matrícula]],Usuarios[#All],2,FALSE)),"",VLOOKUP(BMVT[[#This Row],[Matrícula]],Usuarios[#All],2,FALSE)) -> Gustavo | C28: =IF(ISERROR(VLOOKUP(BMVT[[#This Row],[Matrícula]],Usuarios[#All],3,FALSE)),"",VLOOKUP(BMVT[[#This Row],[Matrícula]],Usuarios[#All],3,FALSE)) -> Empregado | D28: =IF(ISERROR(VLOOKUP(BMVT[[#This Row],[Matrícula]],Usuarios[#All],4,FALSE)),"",VLOOKUP(BMVT[[#This Row],[Matrícula]],Usuarios[#All],4,FALSE)) -> Salvador | E28: =IF(ISERROR(VLOOKUP(BMVT[[#This Row],[Matrícula]],Usuarios[#All],5,FALSE)),"",VLOOKUP(BMVT[[#This Row],[Matrícula]],Usuarios[#All],5,FALSE)) -> FINANCEIRO | F28: 23101-A (09096) | G28: Regular | H28: =IF(ISERROR(VLOOKUP(BMVT[[#This Row],[Rota]],Rotas[#All],3,FALSE)),"",VLOOKUP(BMVT[[#This Row],[Rota]],Rotas[#All],3,FALSE)) -> Salvador | I28: =IF(ISERROR(VLOOKUP(BMVT[[#This Row],[Rota]],Rotas[#All],4,FALSE)),"",VLOOKUP(BMVT[[#This Row],[Rota]],Rotas[#All],4,FALSE)) -> Salvador | J28: =IF(ISERROR(VLOOKUP(BMVT[[#This Row],[Rota]],Rotas[#All],5,FALSE)),"",VLOOKUP(BMVT[[#This Row],[Rota]],Rotas[#All],5,FALSE)) -> Urbano | K28: =IF(ISERROR(VLOOKUP(BMVT[[#This Row],[Rota]],Rotas[#All],6,FALSE)),"",VLOOKUP(BMVT[[#This Row],[Rota]],Rotas[#All],6,FALSE)) -> Salvador Card | L28: 4 | M28: 4 | N28: 84 | O28: =BMVT[[#This Row],[Quant. Apur.]] -> 84 | P28: 21 | Q28: =IF(ISERROR(VLOOKUP(BMVT[[#This Row],[Rota]],Rotas[#All],7,FALSE)),0,VLOOKUP(BMVT[[#This Row],[Rota]],Rotas[#All],7,FALSE)) -> 3.3 | R28: 277.2 | U28: =IF(ISERROR(BMVT[[#This Row],[Origem]]&" - "&BMVT[[#This Row],[Destino]]),"",BMVT[[#This Row],[Origem]]&" - "&BMVT[[#This Row],[Destino]]) -> Salvador - Salvador
A29: 000.024 | B29: =IF(ISERROR(VLOOKUP(BMVT[[#This Row],[Matrícula]],Usuarios[#All],2,FALSE)),"",VLOOKUP(BMVT[[#This Row],[Matrícula]],Usuarios[#All],2,FALSE)) -> Guilherme | C29: =IF(ISERROR(VLOOKUP(BMVT[[#This Row],[Matrícula]],Usuarios[#All],3,FALSE)),"",VLOOKUP(BMVT[[#This Row],[Matrícula]],Usuarios[#All],3,FALSE)) -> Empregado | D29: =IF(ISERROR(VLOOKUP(BMVT[[#This Row],[Matrícula]],Usuarios[#All],4,FALSE)),"",VLOOKUP(BMVT[[#This Row],[Matrícula]],Usuarios[#All],4,FALSE)) -> Salvador | E29: =IF(ISERROR(VLOOKUP(BMVT[[#This Row],[Matrícula]],Usuarios[#All],5,FALSE)),"",VLOOKUP(BMVT[[#This Row],[Matrícula]],Usuarios[#All],5,FALSE)) -> FINANCEIRO | F29: 23101-A (09096) | G29: Irregular | H29: =IF(ISERROR(VLOOKUP(BMVT[[#This Row],[Rota]],Rotas[#All],3,FALSE)),"",VLOOKUP(BMVT[[#This Row],[Rota]],Rotas[#All],3,FALSE)) -> Salvador | I29: =IF(ISERROR(VLOOKUP(BMVT[[#This Row],[Rota]],Rotas[#All],4,FALSE)),"",VLOOKUP(BMVT[[#This Row],[Rota]],Rotas[#All],4,FALSE)) -> Salvador | J29: =IF(ISERROR(VLOOKUP(BMVT[[#This Row],[Rota]],Rotas[#All],5,FALSE)),"",VLOOKUP(BMVT[[#This Row],[Rota]],Rotas[#All],5,FALSE)) -> Urbano | K29: =IF(ISERROR(VLOOKUP(BMVT[[#This Row],[Rota]],Rotas[#All],6,FALSE)),"",VLOOKUP(BMVT[[#This Row],[Rota]],Rotas[#All],6,FALSE)) -> Salvador Card | L29: 0 | M29: 0 | N29: 0 | O29: =BMVT[[#This Row],[Quant. Apur.]] -> 0 | P29: 0 | Q29: =IF(ISERROR(VLOOKUP(BMVT[[#This Row],[Rota]],Rotas[#All],7,FALSE)),0,VLOOKUP(BMVT[[#This Row],[Rota]],Rotas[#All],7,FALSE)) -> 3.3 | R29: 0 | U29: =IF(ISERROR(BMVT[[#This Row],[Origem]]&" - "&BMVT[[#This Row],[Destino]]),"",BMVT[[#This Row],[Origem]]&" - "&BMVT[[#This Row],[Destino]]) -> Salvador - Salvador
A30: 000.025 | B30: =IF(ISERROR(VLOOKUP(BMVT[[#This Row],[Matrícula]],Usuarios[#All],2,FALSE)),"",VLOOKUP(BMVT[[#This Row],[Matrícula]],Usuarios[#All],2,FALSE)) -> Bruno Brito | C30: =IF(ISERROR(VLOOKUP(BMVT[[#This Row],[Matrícula]],Usuarios[#All],3,FALSE)),"",VLOOKUP(BMVT[[#This Row],[Matrícula]],Usuarios[#All],3,FALSE)) -> Empregado | D30: =IF(ISERROR(VLOOKUP(BMVT[[#This Row],[Matrícula]],Usuarios[#All],4,FALSE)),"",VLOOKUP(BMVT[[#This Row],[Matrícula]],Usuarios[#All],4,FALSE)) -> Salvador | E30: =IF(ISERROR(VLOOKUP(BMVT[[#This Row],[Matrícula]],Usuarios[#All],5,FALSE)),"",VLOOKUP(BMVT[[#This Row],[Matrícula]],Usuarios[#All],5,FALSE)) -> FINANCEIRO | F30: 23101-A (09096) | G30: Regular | H30: =IF(ISERROR(VLOOKUP(BMVT[[#This Row],[Rota]],Rotas[#All],3,FALSE)),"",VLOOKUP(BMVT[[#This Row],[Rota]],Rotas[#All],3,FALSE)) -> Salvador | I30: =IF(ISERROR(VLOOKUP(BMVT[[#This Row],[Rota]],Rotas[#All],4,FALSE)),"",VLOOKUP(BMVT[[#This Row],[Rota]],Rotas[#All],4,FALSE)) -> Salvador | J30: =IF(ISERROR(VLOOKUP(BMVT[[#This Row],[Rota]],Rotas[#All],5,FALSE)),"",VLOOKUP(BMVT[[#This Row],[Rota]],Rotas[#All],5,FALSE)) -> Urbano | K30: =IF(ISERROR(VLOOKUP(BMVT[[#This Row],[Rota]],Rotas[#All],6,FALSE)),"",VLOOKUP(BMVT[[#This Row],[Rota]],Rotas[#All],6,FALSE)) -> Salvador Card | L30: 2 | M30: 2 | N30: 42 | O30: 14 | P30: 7 | Q30: =IF(ISERROR(VLOOKUP(BMVT[[#This Row],[Rota]],Rotas[#All],7,FALSE)),0,VLOOKUP(BMVT[[#This Row],[Rota]],Rotas[#All],7,FALSE)) -> 3.3 | R30: 46.2 | U30: =IF(ISERROR(BMVT[[#This Row],[Origem]]&" - "&BMVT[[#This Row],[Destino]]),"",BMVT[[#This Row],[Origem]]&" - "&BMVT[[#This Row],[Destino]]) -> Salvador - Salvador
B31: =IF(ISERROR(VLOOKUP(BMVT[[#This Row],[Matrícula]],Usuarios[#All],2,FALSE)),"",VLOOKUP(BMVT[[#This Row],[Matrícula]],Usuarios[#All],2,FALSE)) ->  | C31: =IF(ISERROR(VLOOKUP(BMVT[[#This Row],[Matrícula]],Usuarios[#All],3,FALSE)),"",VLOOKUP(BMVT[[#This Row],[Matrícula]],Usuarios[#All],3,FALSE)) ->  | D31: =IF(ISERROR(VLOOKUP(BMVT[[#This Row],[Matrícula]],Usuarios[#All],4,FALSE)),"",VLOOKUP(BMVT[[#This Row],[Matrícula]],Usuarios[#All],4,FALSE)) ->  | E31: =IF(ISERROR(VLOOKUP(BMVT[[#This Row],[Matrícula]],Usuarios[#All],5,FALSE)),"",VLOOKUP(BMVT[[#This Row],[Matrícula]],Usuarios[#All],5,FALSE)) ->  | H31: =IF(ISERROR(VLOOKUP(BMVT[[#This Row],[Rota]],Rotas[#All],3,FALSE)),"",VLOOKUP(BMVT[[#This Row],[Rota]],Rotas[#All],3,FALSE)) ->  | I31: =IF(ISERROR(VLOOKUP(BMVT[[#This Row],[Rota]],Rotas[#All],4,FALSE)),"",VLOOKUP(BMVT[[#This Row],[Rota]],Rotas[#All],4,FALSE)) ->  | J31: =IF(ISERROR(VLOOKUP(BMVT[[#This Row],[Rota]],Rotas[#All],5,FALSE)),"",VLOOKUP(BMVT[[#This Row],[Rota]],Rotas[#All],5,FALSE)) ->  | K31: =IF(ISERROR(VLOOKUP(BMVT[[#This Row],[Rota]],Rotas[#All],6,FALSE)),"",VLOOKUP(BMVT[[#This Row],[Rota]],Rotas[#All],6,FALSE)) ->  | M31: 0 | N31: 0 | O31: =BMVT[[#This Row],[Quant. Apur.]] -> 0 | P31: 0 | Q31: =IF(ISERROR(VLOOKUP(BMVT[[#This Row],[Rota]],Rotas[#All],7,FALSE)),0,VLOOKUP(BMVT[[#This Row],[Rota]],Rotas[#All],7,FALSE)) -> 0 | R31: 0 | U31: =IF(ISERROR(BMVT[[#This Row],[Origem]]&" - "&BMVT[[#This Row],[Destino]]),"",BMVT[[#This Row],[Origem]]&" - "&BMVT[[#This Row],[Destino]]) -> -
B32: =IF(ISERROR(VLOOKUP(BMVT[[#This Row],[Matrícula]],Usuarios[#All],2,FALSE)),"",VLOOKUP(BMVT[[#This Row],[Matrícula]],Usuarios[#All],2,FALSE)) ->  | C32: =IF(ISERROR(VLOOKUP(BMVT[[#This Row],[Matrícula]],Usuarios[#All],3,FALSE)),"",VLOOKUP(BMVT[[#This Row],[Matrícula]],Usuarios[#All],3,FALSE)) ->  | D32: =IF(ISERROR(VLOOKUP(BMVT[[#This Row],[Matrícula]],Usuarios[#All],4,FALSE)),"",VLOOKUP(BMVT[[#This Row],[Matrícula]],Usuarios[#All],4,FALSE)) ->  | E32: =IF(ISERROR(VLOOKUP(BMVT[[#This Row],[Matrícula]],Usuarios[#All],5,FALSE)),"",VLOOKUP(BMVT[[#This Row],[Matrícula]],Usuarios[#All],5,FALSE)) ->  | H32: =IF(ISERROR(VLOOKUP(BMVT[[#This Row],[Rota]],Rotas[#All],3,FALSE)),"",VLOOKUP(BMVT[[#This Row],[Rota]],Rotas[#All],3,FALSE)) ->  | I32: =IF(ISERROR(VLOOKUP(BMVT[[#This Row],[Rota]],Rotas[#All],4,FALSE)),"",VLOOKUP(BMVT[[#This Row],[Rota]],Rotas[#All],4,FALSE)) ->  | J32: =IF(ISERROR(VLOOKUP(BMVT[[#This Row],[Rota]],Rotas[#All],5,FALSE)),"",VLOOKUP(BMVT[[#This Row],[Rota]],Rotas[#All],5,FALSE)) ->  | K32: =IF(ISERROR(VLOOKUP(BMVT[[#This Row],[Rota]],Rotas[#All],6,FALSE)),"",VLOOKUP(BMVT[[#This Row],[Rota]],Rotas[#All],6,FALSE)) ->  | M32: 0 | N32: 0 | O32: =BMVT[[#This Row],[Quant. Apur.]] -> 0 | P32: 0 | Q32: =IF(ISERROR(VLOOKUP(BMVT[[#This Row],[Rota]],Rotas[#All],7,FALSE)),0,VLOOKUP(BMVT[[#This Row],[Rota]],Rotas[#All],7,FALSE)) -> 0 | R32: 0 | U32: =IF(ISERROR(BMVT[[#This Row],[Origem]]&" - "&BMVT[[#This Row],[Destino]]),"",BMVT[[#This Row],[Origem]]&" - "&BMVT[[#This Row],[Destino]]) -> -
B33: =IF(ISERROR(VLOOKUP(BMVT[[#This Row],[Matrícula]],Usuarios[#All],2,FALSE)),"",VLOOKUP(BMVT[[#This Row],[Matrícula]],Usuarios[#All],2,FALSE)) ->  | C33: =IF(ISERROR(VLOOKUP(BMVT[[#This Row],[Matrícula]],Usuarios[#All],3,FALSE)),"",VLOOKUP(BMVT[[#This Row],[Matrícula]],Usuarios[#All],3,FALSE)) ->  | D33: =IF(ISERROR(VLOOKUP(BMVT[[#This Row],[Matrícula]],Usuarios[#All],4,FALSE)),"",VLOOKUP(BMVT[[#This Row],[Matrícula]],Usuarios[#All],4,FALSE)) ->  | E33: =IF(ISERROR(VLOOKUP(BMVT[[#This Row],[Matrícula]],Usuarios[#All],5,FALSE)),"",VLOOKUP(BMVT[[#This Row],[Matrícula]],Usuarios[#All],5,FALSE)) ->  | H33: =IF(ISERROR(VLOOKUP(BMVT[[#This Row],[Rota]],Rotas[#All],3,FALSE)),"",VLOOKUP(BMVT[[#This Row],[Rota]],Rotas[#All],3,FALSE)) ->  | I33: =IF(ISERROR(VLOOKUP(BMVT[[#This Row],[Rota]],Rotas[#All],4,FALSE)),"",VLOOKUP(BMVT[[#This Row],[Rota]],Rotas[#All],4,FALSE)) ->  | J33: =IF(ISERROR(VLOOKUP(BMVT[[#This Row],[Rota]],Rotas[#All],5,FALSE)),"",VLOOKUP(BMVT[[#This Row],[Rota]],Rotas[#All],5,FALSE)) ->  | K33: =IF(ISERROR(VLOOKUP(BMVT[[#This Row],[Rota]],Rotas[#All],6,FALSE)),"",VLOOKUP(BMVT[[#This Row],[Rota]],Rotas[#All],6,FALSE)) ->  | M33: 0 | N33: 0 | O33: =BMVT[[#This Row],[Quant. Apur.]] -> 0 | P33: 0 | Q33: =IF(ISERROR(VLOOKUP(BMVT[[#This Row],[Rota]],Rotas[#All],7,FALSE)),0,VLOOKUP(BMVT[[#This Row],[Rota]],Rotas[#All],7,FALSE)) -> 0 | R33: 0 | U33: =IF(ISERROR(BMVT[[#This Row],[Origem]]&" - "&BMVT[[#This Row],[Destino]]),"",BMVT[[#This Row],[Origem]]&" - "&BMVT[[#This Row],[Destino]]) -> -
B34: =IF(ISERROR(VLOOKUP(BMVT[[#This Row],[Matrícula]],Usuarios[#All],2,FALSE)),"",VLOOKUP(BMVT[[#This Row],[Matrícula]],Usuarios[#All],2,FALSE)) ->  | C34: =IF(ISERROR(VLOOKUP(BMVT[[#This Row],[Matrícula]],Usuarios[#All],3,FALSE)),"",VLOOKUP(BMVT[[#This Row],[Matrícula]],Usuarios[#All],3,FALSE)) ->  | D34: =IF(ISERROR(VLOOKUP(BMVT[[#This Row],[Matrícula]],Usuarios[#All],4,FALSE)),"",VLOOKUP(BMVT[[#This Row],[Matrícula]],Usuarios[#All],4,FALSE)) ->  | E34: =IF(ISERROR(VLOOKUP(BMVT[[#This Row],[Matrícula]],Usuarios[#All],5,FALSE)),"",VLOOKUP(BMVT[[#This Row],[Matrícula]],Usuarios[#All],5,FALSE)) ->  | H34: =IF(ISERROR(VLOOKUP(BMVT[[#This Row],[Rota]],Rotas[#All],3,FALSE)),"",VLOOKUP(BMVT[[#This Row],[Rota]],Rotas[#All],3,FALSE)) ->  | I34: =IF(ISERROR(VLOOKUP(BMVT[[#This Row],[Rota]],Rotas[#All],4,FALSE)),"",VLOOKUP(BMVT[[#This Row],[Rota]],Rotas[#All],4,FALSE)) ->  | J34: =IF(ISERROR(VLOOKUP(BMVT[[#This Row],[Rota]],Rotas[#All],5,FALSE)),"",VLOOKUP(BMVT[[#This Row],[Rota]],Rotas[#All],5,FALSE)) ->  | K34: =IF(ISERROR(VLOOKUP(BMVT[[#This Row],[Rota]],Rotas[#All],6,FALSE)),"",VLOOKUP(BMVT[[#This Row],[Rota]],Rotas[#All],6,FALSE)) ->  | M34: 0 | N34: 0 | O34: =BMVT[[#This Row],[Quant. Apur.]] -> 0 | P34: =IF(ISERROR(O34/M34),0,O34/M34) -> 0 | Q34: =IF(ISERROR(VLOOKUP(BMVT[[#This Row],[Rota]],Rotas[#All],7,FALSE)),0,VLOOKUP(BMVT[[#This Row],[Rota]],Rotas[#All],7,FALSE)) -> 0 | R34: 0 | U34: =IF(ISERROR(BMVT[[#This Row],[Origem]]&" - "&BMVT[[#This Row],[Destino]]),"",BMVT[[#This Row],[Origem]]&" - "&BMVT[[#This Row],[Destino]]) -> -
B35: =IF(ISERROR(VLOOKUP(BMVT[[#This Row],[Matrícula]],Usuarios[#All],2,FALSE)),"",VLOOKUP(BMVT[[#This Row],[Matrícula]],Usuarios[#All],2,FALSE)) ->  | C35: =IF(ISERROR(VLOOKUP(BMVT[[#This Row],[Matrícula]],Usuarios[#All],3,FALSE)),"",VLOOKUP(BMVT[[#This Row],[Matrícula]],Usuarios[#All],3,FALSE)) ->  | D35: =IF(ISERROR(VLOOKUP(BMVT[[#This Row],[Matrícula]],Usuarios[#All],4,FALSE)),"",VLOOKUP(BMVT[[#This Row],[Matrícula]],Usuarios[#All],4,FALSE)) ->  | E35: =IF(ISERROR(VLOOKUP(BMVT[[#This Row],[Matrícula]],Usuarios[#All],5,FALSE)),"",VLOOKUP(BMVT[[#This Row],[Matrícula]],Usuarios[#All],5,FALSE)) ->  | H35: =IF(ISERROR(VLOOKUP(BMVT[[#This Row],[Rota]],Rotas[#All],3,FALSE)),"",VLOOKUP(BMVT[[#This Row],[Rota]],Rotas[#All],3,FALSE)) ->  | I35: =IF(ISERROR(VLOOKUP(BMVT[[#This Row],[Rota]],Rotas[#All],4,FALSE)),"",VLOOKUP(BMVT[[#This Row],[Rota]],Rotas[#All],4,FALSE)) ->  | J35: =IF(ISERROR(VLOOKUP(BMVT[[#This Row],[Rota]],Rotas[#All],5,FALSE)),"",VLOOKUP(BMVT[[#This Row],[Rota]],Rotas[#All],5,FALSE)) ->  | K35: =IF(ISERROR(VLOOKUP(BMVT[[#This Row],[Rota]],Rotas[#All],6,FALSE)),"",VLOOKUP(BMVT[[#This Row],[Rota]],Rotas[#All],6,FALSE)) ->  | M35: 0 | N35: 0 | O35: 0 | P35: =IF(ISERROR(O35/M35),0,O35/M35) -> 0 | Q35: =IF(ISERROR(VLOOKUP(BMVT[[#This Row],[Rota]],Rotas[#All],7,FALSE)),0,VLOOKUP(BMVT[[#This Row],[Rota]],Rotas[#All],7,FALSE)) -> 0 | R35: 0 | U35: =IF(ISERROR(BMVT[[#This Row],[Origem]]&" - "&BMVT[[#This Row],[Destino]]),"",BMVT[[#This Row],[Origem]]&" - "&BMVT[[#This Row],[Destino]]) -> -
B36: =IF(ISERROR(VLOOKUP(BMVT[[#This Row],[Matrícula]],Usuarios[#All],2,FALSE)),"",VLOOKUP(BMVT[[#This Row],[Matrícula]],Usuarios[#All],2,FALSE)) ->  | C36: =IF(ISERROR(VLOOKUP(BMVT[[#This Row],[Matrícula]],Usuarios[#All],3,FALSE)),"",VLOOKUP(BMVT[[#This Row],[Matrícula]],Usuarios[#All],3,FALSE)) ->  | D36: =IF(ISERROR(VLOOKUP(BMVT[[#This Row],[Matrícula]],Usuarios[#All],4,FALSE)),"",VLOOKUP(BMVT[[#This Row],[Matrícula]],Usuarios[#All],4,FALSE)) ->  | E36: =IF(ISERROR(VLOOKUP(BMVT[[#This Row],[Matrícula]],Usuarios[#All],5,FALSE)),"",VLOOKUP(BMVT[[#This Row],[Matrícula]],Usuarios[#All],5,FALSE)) ->  | H36: =IF(ISERROR(VLOOKUP(BMVT[[#This Row],[Rota]],Rotas[#All],3,FALSE)),"",VLOOKUP(BMVT[[#This Row],[Rota]],Rotas[#All],3,FALSE)) ->  | I36: =IF(ISERROR(VLOOKUP(BMVT[[#This Row],[Rota]],Rotas[#All],4,FALSE)),"",VLOOKUP(BMVT[[#This Row],[Rota]],Rotas[#All],4,FALSE)) ->  | J36: =IF(ISERROR(VLOOKUP(BMVT[[#This Row],[Rota]],Rotas[#All],5,FALSE)),"",VLOOKUP(BMVT[[#This Row],[Rota]],Rotas[#All],5,FALSE)) ->  | K36: =IF(ISERROR(VLOOKUP(BMVT[[#This Row],[Rota]],Rotas[#All],6,FALSE)),"",VLOOKUP(BMVT[[#This Row],[Rota]],Rotas[#All],6,FALSE)) ->  | M36: 0 | N36: 0 | O36: =BMVT[[#This Row],[Quant. Apur.]] -> 0 | P36: 0 | Q36: =IF(ISERROR(VLOOKUP(BMVT[[#This Row],[Rota]],Rotas[#All],7,FALSE)),0,VLOOKUP(BMVT[[#This Row],[Rota]],Rotas[#All],7,FALSE)) -> 0 | R36: 0 | U36: =IF(ISERROR(BMVT[[#This Row],[Origem]]&" - "&BMVT[[#This Row],[Destino]]),"",BMVT[[#This Row],[Origem]]&" - "&BMVT[[#This Row],[Destino]]) -> -
B37: =IF(ISERROR(VLOOKUP(BMVT[[#This Row],[Matrícula]],Usuarios[#All],2,FALSE)),"",VLOOKUP(BMVT[[#This Row],[Matrícula]],Usuarios[#All],2,FALSE)) ->  | C37: =IF(ISERROR(VLOOKUP(BMVT[[#This Row],[Matrícula]],Usuarios[#All],3,FALSE)),"",VLOOKUP(BMVT[[#This Row],[Matrícula]],Usuarios[#All],3,FALSE)) ->  | D37: =IF(ISERROR(VLOOKUP(BMVT[[#This Row],[Matrícula]],Usuarios[#All],4,FALSE)),"",VLOOKUP(BMVT[[#This Row],[Matrícula]],Usuarios[#All],4,FALSE)) ->  | E37: =IF(ISERROR(VLOOKUP(BMVT[[#This Row],[Matrícula]],Usuarios[#All],5,FALSE)),"",VLOOKUP(BMVT[[#This Row],[Matrícula]],Usuarios[#All],5,FALSE)) ->  | H37: =IF(ISERROR(VLOOKUP(BMVT[[#This Row],[Rota]],Rotas[#All],3,FALSE)),"",VLOOKUP(BMVT[[#This Row],[Rota]],Rotas[#All],3,FALSE)) ->  | I37: =IF(ISERROR(VLOOKUP(BMVT[[#This Row],[Rota]],Rotas[#All],4,FALSE)),"",VLOOKUP(BMVT[[#This Row],[Rota]],Rotas[#All],4,FALSE)) ->  | J37: =IF(ISERROR(VLOOKUP(BMVT[[#This Row],[Rota]],Rotas[#All],5,FALSE)),"",VLOOKUP(BMVT[[#This Row],[Rota]],Rotas[#All],5,FALSE)) ->  | K37: =IF(ISERROR(VLOOKUP(BMVT[[#This Row],[Rota]],Rotas[#All],6,FALSE)),"",VLOOKUP(BMVT[[#This Row],[Rota]],Rotas[#All],6,FALSE)) ->  | M37: 0 | N37: 0 | O37: =BMVT[[#This Row],[Quant. Apur.]] -> 0 | P37: 0 | Q37: =IF(ISERROR(VLOOKUP(BMVT[[#This Row],[Rota]],Rotas[#All],7,FALSE)),0,VLOOKUP(BMVT[[#This Row],[Rota]],Rotas[#All],7,FALSE)) -> 0 | R37: 0 | U37: =IF(ISERROR(BMVT[[#This Row],[Origem]]&" - "&BMVT[[#This Row],[Destino]]),"",BMVT[[#This Row],[Origem]]&" - "&BMVT[[#This Row],[Destino]]) -> -
B38: =IF(ISERROR(VLOOKUP(BMVT[[#This Row],[Matrícula]],Usuarios[#All],2,FALSE)),"",VLOOKUP(BMVT[[#This Row],[Matrícula]],Usuarios[#All],2,FALSE)) ->  | C38: =IF(ISERROR(VLOOKUP(BMVT[[#This Row],[Matrícula]],Usuarios[#All],3,FALSE)),"",VLOOKUP(BMVT[[#This Row],[Matrícula]],Usuarios[#All],3,FALSE)) ->  | D38: =IF(ISERROR(VLOOKUP(BMVT[[#This Row],[Matrícula]],Usuarios[#All],4,FALSE)),"",VLOOKUP(BMVT[[#This Row],[Matrícula]],Usuarios[#All],4,FALSE)) ->  | E38: =IF(ISERROR(VLOOKUP(BMVT[[#This Row],[Matrícula]],Usuarios[#All],5,FALSE)),"",VLOOKUP(BMVT[[#This Row],[Matrícula]],Usuarios[#All],5,FALSE)) ->  | H38: =IF(ISERROR(VLOOKUP(BMVT[[#This Row],[Rota]],Rotas[#All],3,FALSE)),"",VLOOKUP(BMVT[[#This Row],[Rota]],Rotas[#All],3,FALSE)) ->  | I38: =IF(ISERROR(VLOOKUP(BMVT[[#This Row],[Rota]],Rotas[#All],4,FALSE)),"",VLOOKUP(BMVT[[#This Row],[Rota]],Rotas[#All],4,FALSE)) ->  | J38: =IF(ISERROR(VLOOKUP(BMVT[[#This Row],[Rota]],Rotas[#All],5,FALSE)),"",VLOOKUP(BMVT[[#This Row],[Rota]],Rotas[#All],5,FALSE)) ->  | K38: =IF(ISERROR(VLOOKUP(BMVT[[#This Row],[Rota]],Rotas[#All],6,FALSE)),"",VLOOKUP(BMVT[[#This Row],[Rota]],Rotas[#All],6,FALSE)) ->  | M38: 0 | N38: 0 | O38: =BMVT[[#This Row],[Quant. Apur.]] -> 0 | P38: 0 | Q38: =IF(ISERROR(VLOOKUP(BMVT[[#This Row],[Rota]],Rotas[#All],7,FALSE)),0,VLOOKUP(BMVT[[#This Row],[Rota]],Rotas[#All],7,FALSE)) -> 0 | R38: 0 | U38: =IF(ISERROR(BMVT[[#This Row],[Origem]]&" - "&BMVT[[#This Row],[Destino]]),"",BMVT[[#This Row],[Origem]]&" - "&BMVT[[#This Row],[Destino]]) -> -
B39: =IF(ISERROR(VLOOKUP(BMVT[[#This Row],[Matrícula]],Usuarios[#All],2,FALSE)),"",VLOOKUP(BMVT[[#This Row],[Matrícula]],Usuarios[#All],2,FALSE)) ->  | C39: =IF(ISERROR(VLOOKUP(BMVT[[#This Row],[Matrícula]],Usuarios[#All],3,FALSE)),"",VLOOKUP(BMVT[[#This Row],[Matrícula]],Usuarios[#All],3,FALSE)) ->  | D39: =IF(ISERROR(VLOOKUP(BMVT[[#This Row],[Matrícula]],Usuarios[#All],4,FALSE)),"",VLOOKUP(BMVT[[#This Row],[Matrícula]],Usuarios[#All],4,FALSE)) ->  | E39: =IF(ISERROR(VLOOKUP(BMVT[[#This Row],[Matrícula]],Usuarios[#All],5,FALSE)),"",VLOOKUP(BMVT[[#This Row],[Matrícula]],Usuarios[#All],5,FALSE)) ->  | H39: =IF(ISERROR(VLOOKUP(BMVT[[#This Row],[Rota]],Rotas[#All],3,FALSE)),"",VLOOKUP(BMVT[[#This Row],[Rota]],Rotas[#All],3,FALSE)) ->  | I39: =IF(ISERROR(VLOOKUP(BMVT[[#This Row],[Rota]],Rotas[#All],4,FALSE)),"",VLOOKUP(BMVT[[#This Row],[Rota]],Rotas[#All],4,FALSE)) ->  | J39: =IF(ISERROR(VLOOKUP(BMVT[[#This Row],[Rota]],Rotas[#All],5,FALSE)),"",VLOOKUP(BMVT[[#This Row],[Rota]],Rotas[#All],5,FALSE)) ->  | K39: =IF(ISERROR(VLOOKUP(BMVT[[#This Row],[Rota]],Rotas[#All],6,FALSE)),"",VLOOKUP(BMVT[[#This Row],[Rota]],Rotas[#All],6,FALSE)) ->  | M39: 0 | N39: 0 | O39: =BMVT[[#This Row],[Quant. Apur.]] -> 0 | P39: 0 | Q39: =IF(ISERROR(VLOOKUP(BMVT[[#This Row],[Rota]],Rotas[#All],7,FALSE)),0,VLOOKUP(BMVT[[#This Row],[Rota]],Rotas[#All],7,FALSE)) -> 0 | R39: =O39*Q39 -> 0 | U39: =IF(ISERROR(BMVT[[#This Row],[Origem]]&" - "&BMVT[[#This Row],[Destino]]),"",BMVT[[#This Row],[Origem]]&" - "&BMVT[[#This Row],[Destino]]) -> -
B40: =IF(ISERROR(VLOOKUP(BMVT[[#This Row],[Matrícula]],Usuarios[#All],2,FALSE)),"",VLOOKUP(BMVT[[#This Row],[Matrícula]],Usuarios[#All],2,FALSE)) ->  | C40: =IF(ISERROR(VLOOKUP(BMVT[[#This Row],[Matrícula]],Usuarios[#All],3,FALSE)),"",VLOOKUP(BMVT[[#This Row],[Matrícula]],Usuarios[#All],3,FALSE)) ->  | D40: =IF(ISERROR(VLOOKUP(BMVT[[#This Row],[Matrícula]],Usuarios[#All],4,FALSE)),"",VLOOKUP(BMVT[[#This Row],[Matrícula]],Usuarios[#All],4,FALSE)) ->  | E40: =IF(ISERROR(VLOOKUP(BMVT[[#This Row],[Matrícula]],Usuarios[#All],5,FALSE)),"",VLOOKUP(BMVT[[#This Row],[Matrícula]],Usuarios[#All],5,FALSE)) ->  | H40: =IF(ISERROR(VLOOKUP(BMVT[[#This Row],[Rota]],Rotas[#All],3,FALSE)),"",VLOOKUP(BMVT[[#This Row],[Rota]],Rotas[#All],3,FALSE)) ->  | I40: =IF(ISERROR(VLOOKUP(BMVT[[#This Row],[Rota]],Rotas[#All],4,FALSE)),"",VLOOKUP(BMVT[[#This Row],[Rota]],Rotas[#All],4,FALSE)) ->  | J40: =IF(ISERROR(VLOOKUP(BMVT[[#This Row],[Rota]],Rotas[#All],5,FALSE)),"",VLOOKUP(BMVT[[#This Row],[Rota]],Rotas[#All],5,FALSE)) ->  | K40: =IF(ISERROR(VLOOKUP(BMVT[[#This Row],[Rota]],Rotas[#All],6,FALSE)),"",VLOOKUP(BMVT[[#This Row],[Rota]],Rotas[#All],6,FALSE)) ->  | M40: 0 | N40: 0 | O40: =BMVT[[#This Row],[Quant. Apur.]] -> 0 | P40: 0 | Q40: =IF(ISERROR(VLOOKUP(BMVT[[#This Row],[Rota]],Rotas[#All],7,FALSE)),0,VLOOKUP(BMVT[[#This Row],[Rota]],Rotas[#All],7,FALSE)) -> 0 | R40: 0 | U40: =IF(ISERROR(BMVT[[#This Row],[Origem]]&" - "&BMVT[[#This Row],[Destino]]),"",BMVT[[#This Row],[Origem]]&" - "&BMVT[[#This Row],[Destino]]) -> -
B41: =IF(ISERROR(VLOOKUP(BMVT[[#This Row],[Matrícula]],Usuarios[#All],2,FALSE)),"",VLOOKUP(BMVT[[#This Row],[Matrícula]],Usuarios[#All],2,FALSE)) ->  | C41: =IF(ISERROR(VLOOKUP(BMVT[[#This Row],[Matrícula]],Usuarios[#All],3,FALSE)),"",VLOOKUP(BMVT[[#This Row],[Matrícula]],Usuarios[#All],3,FALSE)) ->  | D41: =IF(ISERROR(VLOOKUP(BMVT[[#This Row],[Matrícula]],Usuarios[#All],4,FALSE)),"",VLOOKUP(BMVT[[#This Row],[Matrícula]],Usuarios[#All],4,FALSE)) ->  | E41: =IF(ISERROR(VLOOKUP(BMVT[[#This Row],[Matrícula]],Usuarios[#All],5,FALSE)),"",VLOOKUP(BMVT[[#This Row],[Matrícula]],Usuarios[#All],5,FALSE)) ->  | H41: =IF(ISERROR(VLOOKUP(BMVT[[#This Row],[Rota]],Rotas[#All],3,FALSE)),"",VLOOKUP(BMVT[[#This Row],[Rota]],Rotas[#All],3,FALSE)) ->  | I41: =IF(ISERROR(VLOOKUP(BMVT[[#This Row],[Rota]],Rotas[#All],4,FALSE)),"",VLOOKUP(BMVT[[#This Row],[Rota]],Rotas[#All],4,FALSE)) ->  | J41: =IF(ISERROR(VLOOKUP(BMVT[[#This Row],[Rota]],Rotas[#All],5,FALSE)),"",VLOOKUP(BMVT[[#This Row],[Rota]],Rotas[#All],5,FALSE)) ->  | K41: =IF(ISERROR(VLOOKUP(BMVT[[#This Row],[Rota]],Rotas[#All],6,FALSE)),"",VLOOKUP(BMVT[[#This Row],[Rota]],Rotas[#All],6,FALSE)) ->  | M41: 0 | N41: 0 | O41: 0 | P41: 0 | Q41: =IF(ISERROR(VLOOKUP(BMVT[[#This Row],[Rota]],Rotas[#All],7,FALSE)),0,VLOOKUP(BMVT[[#This Row],[Rota]],Rotas[#All],7,FALSE)) -> 0 | R41: 0 | U41: =IF(ISERROR(BMVT[[#This Row],[Origem]]&" - "&BMVT[[#This Row],[Destino]]),"",BMVT[[#This Row],[Origem]]&" - "&BMVT[[#This Row],[Destino]]) -> -
B42: =IF(ISERROR(VLOOKUP(BMVT[[#This Row],[Matrícula]],Usuarios[#All],2,FALSE)),"",VLOOKUP(BMVT[[#This Row],[Matrícula]],Usuarios[#All],2,FALSE)) ->  | C42: =IF(ISERROR(VLOOKUP(BMVT[[#This Row],[Matrícula]],Usuarios[#All],3,FALSE)),"",VLOOKUP(BMVT[[#This Row],[Matrícula]],Usuarios[#All],3,FALSE)) ->  | D42: =IF(ISERROR(VLOOKUP(BMVT[[#This Row],[Matrícula]],Usuarios[#All],4,FALSE)),"",VLOOKUP(BMVT[[#This Row],[Matrícula]],Usuarios[#All],4,FALSE)) ->  | E42: =IF(ISERROR(VLOOKUP(BMVT[[#This Row],[Matrícula]],Usuarios[#All],5,FALSE)),"",VLOOKUP(BMVT[[#This Row],[Matrícula]],Usuarios[#All],5,FALSE)) ->  | H42: =IF(ISERROR(VLOOKUP(BMVT[[#This Row],[Rota]],Rotas[#All],3,FALSE)),"",VLOOKUP(BMVT[[#This Row],[Rota]],Rotas[#All],3,FALSE)) ->  | I42: =IF(ISERROR(VLOOKUP(BMVT[[#This Row],[Rota]],Rotas[#All],4,FALSE)),"",VLOOKUP(BMVT[[#This Row],[Rota]],Rotas[#All],4,FALSE)) ->  | J42: =IF(ISERROR(VLOOKUP(BMVT[[#This Row],[Rota]],Rotas[#All],5,FALSE)),"",VLOOKUP(BMVT[[#This Row],[Rota]],Rotas[#All],5,FALSE)) ->  | K42: =IF(ISERROR(VLOOKUP(BMVT[[#This Row],[Rota]],Rotas[#All],6,FALSE)),"",VLOOKUP(BMVT[[#This Row],[Rota]],Rotas[#All],6,FALSE)) ->  | M42: 0 | N42: 0 | O42: =BMVT[[#This Row],[Quant. Apur.]] -> 0 | P42: 0 | Q42: =IF(ISERROR(VLOOKUP(BMVT[[#This Row],[Rota]],Rotas[#All],7,FALSE)),0,VLOOKUP(BMVT[[#This Row],[Rota]],Rotas[#All],7,FALSE)) -> 0 | R42: 0 | U42: =IF(ISERROR(BMVT[[#This Row],[Origem]]&" - "&BMVT[[#This Row],[Destino]]),"",BMVT[[#This Row],[Origem]]&" - "&BMVT[[#This Row],[Destino]]) -> -
B43: =IF(ISERROR(VLOOKUP(BMVT[[#This Row],[Matrícula]],Usuarios[#All],2,FALSE)),"",VLOOKUP(BMVT[[#This Row],[Matrícula]],Usuarios[#All],2,FALSE)) ->  | C43: =IF(ISERROR(VLOOKUP(BMVT[[#This Row],[Matrícula]],Usuarios[#All],3,FALSE)),"",VLOOKUP(BMVT[[#This Row],[Matrícula]],Usuarios[#All],3,FALSE)) ->  | D43: =IF(ISERROR(VLOOKUP(BMVT[[#This Row],[Matrícula]],Usuarios[#All],4,FALSE)),"",VLOOKUP(BMVT[[#This Row],[Matrícula]],Usuarios[#All],4,FALSE)) ->  | E43: =IF(ISERROR(VLOOKUP(BMVT[[#This Row],[Matrícula]],Usuarios[#All],5,FALSE)),"",VLOOKUP(BMVT[[#This Row],[Matrícula]],Usuarios[#All],5,FALSE)) ->  | H43: =IF(ISERROR(VLOOKUP(BMVT[[#This Row],[Rota]],Rotas[#All],3,FALSE)),"",VLOOKUP(BMVT[[#This Row],[Rota]],Rotas[#All],3,FALSE)) ->  | I43: =IF(ISERROR(VLOOKUP(BMVT[[#This Row],[Rota]],Rotas[#All],4,FALSE)),"",VLOOKUP(BMVT[[#This Row],[Rota]],Rotas[#All],4,FALSE)) ->  | J43: =IF(ISERROR(VLOOKUP(BMVT[[#This Row],[Rota]],Rotas[#All],5,FALSE)),"",VLOOKUP(BMVT[[#This Row],[Rota]],Rotas[#All],5,FALSE)) ->  | K43: =IF(ISERROR(VLOOKUP(BMVT[[#This Row],[Rota]],Rotas[#All],6,FALSE)),"",VLOOKUP(BMVT[[#This Row],[Rota]],Rotas[#All],6,FALSE)) ->  | M43: 0 | N43: 0 | O43: =BMVT[[#This Row],[Quant. Apur.]] -> 0 | P43: 0 | Q43: =IF(ISERROR(VLOOKUP(BMVT[[#This Row],[Rota]],Rotas[#All],7,FALSE)),0,VLOOKUP(BMVT[[#This Row],[Rota]],Rotas[#All],7,FALSE)) -> 0 | R43: 0 | U43: =IF(ISERROR(BMVT[[#This Row],[Origem]]&" - "&BMVT[[#This Row],[Destino]]),"",BMVT[[#This Row],[Origem]]&" - "&BMVT[[#This Row],[Destino]]) -> -
B44: =IF(ISERROR(VLOOKUP(BMVT[[#This Row],[Matrícula]],Usuarios[#All],2,FALSE)),"",VLOOKUP(BMVT[[#This Row],[Matrícula]],Usuarios[#All],2,FALSE)) ->  | C44: =IF(ISERROR(VLOOKUP(BMVT[[#This Row],[Matrícula]],Usuarios[#All],3,FALSE)),"",VLOOKUP(BMVT[[#This Row],[Matrícula]],Usuarios[#All],3,FALSE)) ->  | D44: =IF(ISERROR(VLOOKUP(BMVT[[#This Row],[Matrícula]],Usuarios[#All],4,FALSE)),"",VLOOKUP(BMVT[[#This Row],[Matrícula]],Usuarios[#All],4,FALSE)) ->  | E44: =IF(ISERROR(VLOOKUP(BMVT[[#This Row],[Matrícula]],Usuarios[#All],5,FALSE)),"",VLOOKUP(BMVT[[#This Row],[Matrícula]],Usuarios[#All],5,FALSE)) ->  | H44: =IF(ISERROR(VLOOKUP(BMVT[[#This Row],[Rota]],Rotas[#All],3,FALSE)),"",VLOOKUP(BMVT[[#This Row],[Rota]],Rotas[#All],3,FALSE)) ->  | I44: =IF(ISERROR(VLOOKUP(BMVT[[#This Row],[Rota]],Rotas[#All],4,FALSE)),"",VLOOKUP(BMVT[[#This Row],[Rota]],Rotas[#All],4,FALSE)) ->  | J44: =IF(ISERROR(VLOOKUP(BMVT[[#This Row],[Rota]],Rotas[#All],5,FALSE)),"",VLOOKUP(BMVT[[#This Row],[Rota]],Rotas[#All],5,FALSE)) ->  | K44: =IF(ISERROR(VLOOKUP(BMVT[[#This Row],[Rota]],Rotas[#All],6,FALSE)),"",VLOOKUP(BMVT[[#This Row],[Rota]],Rotas[#All],6,FALSE)) ->  | M44: 0 | N44: =L44*$G$1 -> 0 | O44: =BMVT[[#This Row],[Quant. Apur.]] -> 0 | P44: 0 | Q44: =IF(ISERROR(VLOOKUP(BMVT[[#This Row],[Rota]],Rotas[#All],7,FALSE)),0,VLOOKUP(BMVT[[#This Row],[Rota]],Rotas[#All],7,FALSE)) -> 0 | R44: 0 | U44: =IF(ISERROR(BMVT[[#This Row],[Origem]]&" - "&BMVT[[#This Row],[Destino]]),"",BMVT[[#This Row],[Origem]]&" - "&BMVT[[#This Row],[Destino]]) -> -
B45: =IF(ISERROR(VLOOKUP(BMVT[[#This Row],[Matrícula]],Usuarios[#All],2,FALSE)),"",VLOOKUP(BMVT[[#This Row],[Matrícula]],Usuarios[#All],2,FALSE)) ->  | C45: =IF(ISERROR(VLOOKUP(BMVT[[#This Row],[Matrícula]],Usuarios[#All],3,FALSE)),"",VLOOKUP(BMVT[[#This Row],[Matrícula]],Usuarios[#All],3,FALSE)) ->  | D45: =IF(ISERROR(VLOOKUP(BMVT[[#This Row],[Matrícula]],Usuarios[#All],4,FALSE)),"",VLOOKUP(BMVT[[#This Row],[Matrícula]],Usuarios[#All],4,FALSE)) ->  | E45: =IF(ISERROR(VLOOKUP(BMVT[[#This Row],[Matrícula]],Usuarios[#All],5,FALSE)),"",VLOOKUP(BMVT[[#This Row],[Matrícula]],Usuarios[#All],5,FALSE)) ->  | H45: =IF(ISERROR(VLOOKUP(BMVT[[#This Row],[Rota]],Rotas[#All],3,FALSE)),"",VLOOKUP(BMVT[[#This Row],[Rota]],Rotas[#All],3,FALSE)) ->  | I45: =IF(ISERROR(VLOOKUP(BMVT[[#This Row],[Rota]],Rotas[#All],4,FALSE)),"",VLOOKUP(BMVT[[#This Row],[Rota]],Rotas[#All],4,FALSE)) ->  | J45: =IF(ISERROR(VLOOKUP(BMVT[[#This Row],[Rota]],Rotas[#All],5,FALSE)),"",VLOOKUP(BMVT[[#This Row],[Rota]],Rotas[#All],5,FALSE)) ->  | K45: =IF(ISERROR(VLOOKUP(BMVT[[#This Row],[Rota]],Rotas[#All],6,FALSE)),"",VLOOKUP(BMVT[[#This Row],[Rota]],Rotas[#All],6,FALSE)) ->  | M45: 0 | N45: 0 | O45: =BMVT[[#This Row],[Quant. Apur.]] -> 0 | P45: 0 | Q45: =IF(ISERROR(VLOOKUP(BMVT[[#This Row],[Rota]],Rotas[#All],7,FALSE)),0,VLOOKUP(BMVT[[#This Row],[Rota]],Rotas[#All],7,FALSE)) -> 0 | R45: 0 | U45: =IF(ISERROR(BMVT[[#This Row],[Origem]]&" - "&BMVT[[#This Row],[Destino]]),"",BMVT[[#This Row],[Origem]]&" - "&BMVT[[#This Row],[Destino]]) -> -
B46: =IF(ISERROR(VLOOKUP(BMVT[[#This Row],[Matrícula]],Usuarios[#All],2,FALSE)),"",VLOOKUP(BMVT[[#This Row],[Matrícula]],Usuarios[#All],2,FALSE)) ->  | C46: =IF(ISERROR(VLOOKUP(BMVT[[#This Row],[Matrícula]],Usuarios[#All],3,FALSE)),"",VLOOKUP(BMVT[[#This Row],[Matrícula]],Usuarios[#All],3,FALSE)) ->  | D46: =IF(ISERROR(VLOOKUP(BMVT[[#This Row],[Matrícula]],Usuarios[#All],4,FALSE)),"",VLOOKUP(BMVT[[#This Row],[Matrícula]],Usuarios[#All],4,FALSE)) ->  | E46: =IF(ISERROR(VLOOKUP(BMVT[[#This Row],[Matrícula]],Usuarios[#All],5,FALSE)),"",VLOOKUP(BMVT[[#This Row],[Matrícula]],Usuarios[#All],5,FALSE)) ->  | H46: =IF(ISERROR(VLOOKUP(BMVT[[#This Row],[Rota]],Rotas[#All],3,FALSE)),"",VLOOKUP(BMVT[[#This Row],[Rota]],Rotas[#All],3,FALSE)) ->  | I46: =IF(ISERROR(VLOOKUP(BMVT[[#This Row],[Rota]],Rotas[#All],4,FALSE)),"",VLOOKUP(BMVT[[#This Row],[Rota]],Rotas[#All],4,FALSE)) ->  | J46: =IF(ISERROR(VLOOKUP(BMVT[[#This Row],[Rota]],Rotas[#All],5,FALSE)),"",VLOOKUP(BMVT[[#This Row],[Rota]],Rotas[#All],5,FALSE)) ->  | K46: =IF(ISERROR(VLOOKUP(BMVT[[#This Row],[Rota]],Rotas[#All],6,FALSE)),"",VLOOKUP(BMVT[[#This Row],[Rota]],Rotas[#All],6,FALSE)) ->  | M46: 0 | N46: 0 | O46: =BMVT[[#This Row],[Quant. Apur.]] -> 0 | P46: 0 | Q46: =IF(ISERROR(VLOOKUP(BMVT[[#This Row],[Rota]],Rotas[#All],7,FALSE)),0,VLOOKUP(BMVT[[#This Row],[Rota]],Rotas[#All],7,FALSE)) -> 0 | R46: 0 | U46: =IF(ISERROR(BMVT[[#This Row],[Origem]]&" - "&BMVT[[#This Row],[Destino]]),"",BMVT[[#This Row],[Origem]]&" - "&BMVT[[#This Row],[Destino]]) -> -
B47: =IF(ISERROR(VLOOKUP(BMVT[[#This Row],[Matrícula]],Usuarios[#All],2,FALSE)),"",VLOOKUP(BMVT[[#This Row],[Matrícula]],Usuarios[#All],2,FALSE)) ->  | C47: =IF(ISERROR(VLOOKUP(BMVT[[#This Row],[Matrícula]],Usuarios[#All],3,FALSE)),"",VLOOKUP(BMVT[[#This Row],[Matrícula]],Usuarios[#All],3,FALSE)) ->  | D47: =IF(ISERROR(VLOOKUP(BMVT[[#This Row],[Matrícula]],Usuarios[#All],4,FALSE)),"",VLOOKUP(BMVT[[#This Row],[Matrícula]],Usuarios[#All],4,FALSE)) ->  | E47: =IF(ISERROR(VLOOKUP(BMVT[[#This Row],[Matrícula]],Usuarios[#All],5,FALSE)),"",VLOOKUP(BMVT[[#This Row],[Matrícula]],Usuarios[#All],5,FALSE)) ->  | H47: =IF(ISERROR(VLOOKUP(BMVT[[#This Row],[Rota]],Rotas[#All],3,FALSE)),"",VLOOKUP(BMVT[[#This Row],[Rota]],Rotas[#All],3,FALSE)) ->  | I47: =IF(ISERROR(VLOOKUP(BMVT[[#This Row],[Rota]],Rotas[#All],4,FALSE)),"",VLOOKUP(BMVT[[#This Row],[Rota]],Rotas[#All],4,FALSE)) ->  | J47: =IF(ISERROR(VLOOKUP(BMVT[[#This Row],[Rota]],Rotas[#All],5,FALSE)),"",VLOOKUP(BMVT[[#This Row],[Rota]],Rotas[#All],5,FALSE)) ->  | K47: =IF(ISERROR(VLOOKUP(BMVT[[#This Row],[Rota]],Rotas[#All],6,FALSE)),"",VLOOKUP(BMVT[[#This Row],[Rota]],Rotas[#All],6,FALSE)) ->  | M47: 0 | N47: 0 | O47: =BMVT[[#This Row],[Quant. Apur.]] -> 0 | P47: 0 | Q47: =IF(ISERROR(VLOOKUP(BMVT[[#This Row],[Rota]],Rotas[#All],7,FALSE)),0,VLOOKUP(BMVT[[#This Row],[Rota]],Rotas[#All],7,FALSE)) -> 0 | R47: 0 | U47: =IF(ISERROR(BMVT[[#This Row],[Origem]]&" - "&BMVT[[#This Row],[Destino]]),"",BMVT[[#This Row],[Origem]]&" - "&BMVT[[#This Row],[Destino]]) -> -
B48: =IF(ISERROR(VLOOKUP(BMVT[[#This Row],[Matrícula]],Usuarios[#All],2,FALSE)),"",VLOOKUP(BMVT[[#This Row],[Matrícula]],Usuarios[#All],2,FALSE)) ->  | C48: =IF(ISERROR(VLOOKUP(BMVT[[#This Row],[Matrícula]],Usuarios[#All],3,FALSE)),"",VLOOKUP(BMVT[[#This Row],[Matrícula]],Usuarios[#All],3,FALSE)) ->  | D48: =IF(ISERROR(VLOOKUP(BMVT[[#This Row],[Matrícula]],Usuarios[#All],4,FALSE)),"",VLOOKUP(BMVT[[#This Row],[Matrícula]],Usuarios[#All],4,FALSE)) ->  | E48: =IF(ISERROR(VLOOKUP(BMVT[[#This Row],[Matrícula]],Usuarios[#All],5,FALSE)),"",VLOOKUP(BMVT[[#This Row],[Matrícula]],Usuarios[#All],5,FALSE)) ->  | H48: =IF(ISERROR(VLOOKUP(BMVT[[#This Row],[Rota]],Rotas[#All],3,FALSE)),"",VLOOKUP(BMVT[[#This Row],[Rota]],Rotas[#All],3,FALSE)) ->  | I48: =IF(ISERROR(VLOOKUP(BMVT[[#This Row],[Rota]],Rotas[#All],4,FALSE)),"",VLOOKUP(BMVT[[#This Row],[Rota]],Rotas[#All],4,FALSE)) ->  | J48: =IF(ISERROR(VLOOKUP(BMVT[[#This Row],[Rota]],Rotas[#All],5,FALSE)),"",VLOOKUP(BMVT[[#This Row],[Rota]],Rotas[#All],5,FALSE)) ->  | K48: =IF(ISERROR(VLOOKUP(BMVT[[#This Row],[Rota]],Rotas[#All],6,FALSE)),"",VLOOKUP(BMVT[[#This Row],[Rota]],Rotas[#All],6,FALSE)) ->  | M48: 0 | N48: 0 | O48: =BMVT[[#This Row],[Quant. Apur.]] -> 0 | P48: 0 | Q48: =IF(ISERROR(VLOOKUP(BMVT[[#This Row],[Rota]],Rotas[#All],7,FALSE)),0,VLOOKUP(BMVT[[#This Row],[Rota]],Rotas[#All],7,FALSE)) -> 0 | R48: 0 | U48: =IF(ISERROR(BMVT[[#This Row],[Origem]]&" - "&BMVT[[#This Row],[Destino]]),"",BMVT[[#This Row],[Origem]]&" - "&BMVT[[#This Row],[Destino]]) -> -
B49: =IF(ISERROR(VLOOKUP(BMVT[[#This Row],[Matrícula]],Usuarios[#All],2,FALSE)),"",VLOOKUP(BMVT[[#This Row],[Matrícula]],Usuarios[#All],2,FALSE)) ->  | C49: =IF(ISERROR(VLOOKUP(BMVT[[#This Row],[Matrícula]],Usuarios[#All],3,FALSE)),"",VLOOKUP(BMVT[[#This Row],[Matrícula]],Usuarios[#All],3,FALSE)) ->  | D49: =IF(ISERROR(VLOOKUP(BMVT[[#This Row],[Matrícula]],Usuarios[#All],4,FALSE)),"",VLOOKUP(BMVT[[#This Row],[Matrícula]],Usuarios[#All],4,FALSE)) ->  | E49: =IF(ISERROR(VLOOKUP(BMVT[[#This Row],[Matrícula]],Usuarios[#All],5,FALSE)),"",VLOOKUP(BMVT[[#This Row],[Matrícula]],Usuarios[#All],5,FALSE)) ->  | H49: =IF(ISERROR(VLOOKUP(BMVT[[#This Row],[Rota]],Rotas[#All],3,FALSE)),"",VLOOKUP(BMVT[[#This Row],[Rota]],Rotas[#All],3,FALSE)) ->  | I49: =IF(ISERROR(VLOOKUP(BMVT[[#This Row],[Rota]],Rotas[#All],4,FALSE)),"",VLOOKUP(BMVT[[#This Row],[Rota]],Rotas[#All],4,FALSE)) ->  | J49: =IF(ISERROR(VLOOKUP(BMVT[[#This Row],[Rota]],Rotas[#All],5,FALSE)),"",VLOOKUP(BMVT[[#This Row],[Rota]],Rotas[#All],5,FALSE)) ->  | K49: =IF(ISERROR(VLOOKUP(BMVT[[#This Row],[Rota]],Rotas[#All],6,FALSE)),"",VLOOKUP(BMVT[[#This Row],[Rota]],Rotas[#All],6,FALSE)) ->  | M49: 0 | N49: 0 | O49: =BMVT[[#This Row],[Quant. Apur.]] -> 0 | P49: 0 | Q49: =IF(ISERROR(VLOOKUP(BMVT[[#This Row],[Rota]],Rotas[#All],7,FALSE)),0,VLOOKUP(BMVT[[#This Row],[Rota]],Rotas[#All],7,FALSE)) -> 0 | R49: 0 | U49: =IF(ISERROR(BMVT[[#This Row],[Origem]]&" - "&BMVT[[#This Row],[Destino]]),"",BMVT[[#This Row],[Origem]]&" - "&BMVT[[#This Row],[Destino]]) -> -
B50: =IF(ISERROR(VLOOKUP(BMVT[[#This Row],[Matrícula]],Usuarios[#All],2,FALSE)),"",VLOOKUP(BMVT[[#This Row],[Matrícula]],Usuarios[#All],2,FALSE)) ->  | C50: =IF(ISERROR(VLOOKUP(BMVT[[#This Row],[Matrícula]],Usuarios[#All],3,FALSE)),"",VLOOKUP(BMVT[[#This Row],[Matrícula]],Usuarios[#All],3,FALSE)) ->  | D50: =IF(ISERROR(VLOOKUP(BMVT[[#This Row],[Matrícula]],Usuarios[#All],4,FALSE)),"",VLOOKUP(BMVT[[#This Row],[Matrícula]],Usuarios[#All],4,FALSE)) ->  | E50: =IF(ISERROR(VLOOKUP(BMVT[[#This Row],[Matrícula]],Usuarios[#All],5,FALSE)),"",VLOOKUP(BMVT[[#This Row],[Matrícula]],Usuarios[#All],5,FALSE)) ->  | H50: =IF(ISERROR(VLOOKUP(BMVT[[#This Row],[Rota]],Rotas[#All],3,FALSE)),"",VLOOKUP(BMVT[[#This Row],[Rota]],Rotas[#All],3,FALSE)) ->  | I50: =IF(ISERROR(VLOOKUP(BMVT[[#This Row],[Rota]],Rotas[#All],4,FALSE)),"",VLOOKUP(BMVT[[#This Row],[Rota]],Rotas[#All],4,FALSE)) ->  | J50: =IF(ISERROR(VLOOKUP(BMVT[[#This Row],[Rota]],Rotas[#All],5,FALSE)),"",VLOOKUP(BMVT[[#This Row],[Rota]],Rotas[#All],5,FALSE)) ->  | K50: =IF(ISERROR(VLOOKUP(BMVT[[#This Row],[Rota]],Rotas[#All],6,FALSE)),"",VLOOKUP(BMVT[[#This Row],[Rota]],Rotas[#All],6,FALSE)) ->  | M50: 0 | N50: 0 | O50: =BMVT[[#This Row],[Quant. Apur.]] -> 0 | P50: 0 | Q50: =IF(ISERROR(VLOOKUP(BMVT[[#This Row],[Rota]],Rotas[#All],7,FALSE)),0,VLOOKUP(BMVT[[#This Row],[Rota]],Rotas[#All],7,FALSE)) -> 0 | R50: 0 | U50: =IF(ISERROR(BMVT[[#This Row],[Origem]]&" - "&BMVT[[#This Row],[Destino]]),"",BMVT[[#This Row],[Origem]]&" - "&BMVT[[#This Row],[Destino]]) -> -
B51: =IF(ISERROR(VLOOKUP(BMVT[[#This Row],[Matrícula]],Usuarios[#All],2,FALSE)),"",VLOOKUP(BMVT[[#This Row],[Matrícula]],Usuarios[#All],2,FALSE)) ->  | C51: =IF(ISERROR(VLOOKUP(BMVT[[#This Row],[Matrícula]],Usuarios[#All],3,FALSE)),"",VLOOKUP(BMVT[[#This Row],[Matrícula]],Usuarios[#All],3,FALSE)) ->  | D51: =IF(ISERROR(VLOOKUP(BMVT[[#This Row],[Matrícula]],Usuarios[#All],4,FALSE)),"",VLOOKUP(BMVT[[#This Row],[Matrícula]],Usuarios[#All],4,FALSE)) ->  | E51: =IF(ISERROR(VLOOKUP(BMVT[[#This Row],[Matrícula]],Usuarios[#All],5,FALSE)),"",VLOOKUP(BMVT[[#This Row],[Matrícula]],Usuarios[#All],5,FALSE)) ->  | H51: =IF(ISERROR(VLOOKUP(BMVT[[#This Row],[Rota]],Rotas[#All],3,FALSE)),"",VLOOKUP(BMVT[[#This Row],[Rota]],Rotas[#All],3,FALSE)) ->  | I51: =IF(ISERROR(VLOOKUP(BMVT[[#This Row],[Rota]],Rotas[#All],4,FALSE)),"",VLOOKUP(BMVT[[#This Row],[Rota]],Rotas[#All],4,FALSE)) ->  | J51: =IF(ISERROR(VLOOKUP(BMVT[[#This Row],[Rota]],Rotas[#All],5,FALSE)),"",VLOOKUP(BMVT[[#This Row],[Rota]],Rotas[#All],5,FALSE)) ->  | K51: =IF(ISERROR(VLOOKUP(BMVT[[#This Row],[Rota]],Rotas[#All],6,FALSE)),"",VLOOKUP(BMVT[[#This Row],[Rota]],Rotas[#All],6,FALSE)) ->  | M51: 0 | N51: 0 | O51: =BMVT[[#This Row],[Quant. Apur.]] -> 0 | P51: 0 | Q51: =IF(ISERROR(VLOOKUP(BMVT[[#This Row],[Rota]],Rotas[#All],7,FALSE)),0,VLOOKUP(BMVT[[#This Row],[Rota]],Rotas[#All],7,FALSE)) -> 0 | R51: 0 | U51: =IF(ISERROR(BMVT[[#This Row],[Origem]]&" - "&BMVT[[#This Row],[Destino]]),"",BMVT[[#This Row],[Origem]]&" - "&BMVT[[#This Row],[Destino]]) -> -
B52: =IF(ISERROR(VLOOKUP(BMVT[[#This Row],[Matrícula]],Usuarios[#All],2,FALSE)),"",VLOOKUP(BMVT[[#This Row],[Matrícula]],Usuarios[#All],2,FALSE)) ->  | C52: =IF(ISERROR(VLOOKUP(BMVT[[#This Row],[Matrícula]],Usuarios[#All],3,FALSE)),"",VLOOKUP(BMVT[[#This Row],[Matrícula]],Usuarios[#All],3,FALSE)) ->  | D52: =IF(ISERROR(VLOOKUP(BMVT[[#This Row],[Matrícula]],Usuarios[#All],4,FALSE)),"",VLOOKUP(BMVT[[#This Row],[Matrícula]],Usuarios[#All],4,FALSE)) ->  | E52: =IF(ISERROR(VLOOKUP(BMVT[[#This Row],[Matrícula]],Usuarios[#All],5,FALSE)),"",VLOOKUP(BMVT[[#This Row],[Matrícula]],Usuarios[#All],5,FALSE)) ->  | H52: =IF(ISERROR(VLOOKUP(BMVT[[#This Row],[Rota]],Rotas[#All],3,FALSE)),"",VLOOKUP(BMVT[[#This Row],[Rota]],Rotas[#All],3,FALSE)) ->  | I52: =IF(ISERROR(VLOOKUP(BMVT[[#This Row],[Rota]],Rotas[#All],4,FALSE)),"",VLOOKUP(BMVT[[#This Row],[Rota]],Rotas[#All],4,FALSE)) ->  | J52: =IF(ISERROR(VLOOKUP(BMVT[[#This Row],[Rota]],Rotas[#All],5,FALSE)),"",VLOOKUP(BMVT[[#This Row],[Rota]],Rotas[#All],5,FALSE)) ->  | K52: =IF(ISERROR(VLOOKUP(BMVT[[#This Row],[Rota]],Rotas[#All],6,FALSE)),"",VLOOKUP(BMVT[[#This Row],[Rota]],Rotas[#All],6,FALSE)) ->  | M52: 0 | N52: 0 | O52: =BMVT[[#This Row],[Quant. Apur.]] -> 0 | P52: 0 | Q52: =IF(ISERROR(VLOOKUP(BMVT[[#This Row],[Rota]],Rotas[#All],7,FALSE)),0,VLOOKUP(BMVT[[#This Row],[Rota]],Rotas[#All],7,FALSE)) -> 0 | R52: 0 | U52: =IF(ISERROR(BMVT[[#This Row],[Origem]]&" - "&BMVT[[#This Row],[Destino]]),"",BMVT[[#This Row],[Origem]]&" - "&BMVT[[#This Row],[Destino]]) -> -
B53: =IF(ISERROR(VLOOKUP(BMVT[[#This Row],[Matrícula]],Usuarios[#All],2,FALSE)),"",VLOOKUP(BMVT[[#This Row],[Matrícula]],Usuarios[#All],2,FALSE)) ->  | C53: =IF(ISERROR(VLOOKUP(BMVT[[#This Row],[Matrícula]],Usuarios[#All],3,FALSE)),"",VLOOKUP(BMVT[[#This Row],[Matrícula]],Usuarios[#All],3,FALSE)) ->  | D53: =IF(ISERROR(VLOOKUP(BMVT[[#This Row],[Matrícula]],Usuarios[#All],4,FALSE)),"",VLOOKUP(BMVT[[#This Row],[Matrícula]],Usuarios[#All],4,FALSE)) ->  | E53: =IF(ISERROR(VLOOKUP(BMVT[[#This Row],[Matrícula]],Usuarios[#All],5,FALSE)),"",VLOOKUP(BMVT[[#This Row],[Matrícula]],Usuarios[#All],5,FALSE)) ->  | H53: =IF(ISERROR(VLOOKUP(BMVT[[#This Row],[Rota]],Rotas[#All],3,FALSE)),"",VLOOKUP(BMVT[[#This Row],[Rota]],Rotas[#All],3,FALSE)) ->  | I53: =IF(ISERROR(VLOOKUP(BMVT[[#This Row],[Rota]],Rotas[#All],4,FALSE)),"",VLOOKUP(BMVT[[#This Row],[Rota]],Rotas[#All],4,FALSE)) ->  | J53: =IF(ISERROR(VLOOKUP(BMVT[[#This Row],[Rota]],Rotas[#All],5,FALSE)),"",VLOOKUP(BMVT[[#This Row],[Rota]],Rotas[#All],5,FALSE)) ->  | K53: =IF(ISERROR(VLOOKUP(BMVT[[#This Row],[Rota]],Rotas[#All],6,FALSE)),"",VLOOKUP(BMVT[[#This Row],[Rota]],Rotas[#All],6,FALSE)) ->  | M53: 0 | N53: 0 | O53: =BMVT[[#This Row],[Quant. Apur.]] -> 0 | P53: 0 | Q53: =IF(ISERROR(VLOOKUP(BMVT[[#This Row],[Rota]],Rotas[#All],7,FALSE)),0,VLOOKUP(BMVT[[#This Row],[Rota]],Rotas[#All],7,FALSE)) -> 0 | R53: =O53*Q53 -> 0 | U53: =IF(ISERROR(BMVT[[#This Row],[Origem]]&" - "&BMVT[[#This Row],[Destino]]),"",BMVT[[#This Row],[Origem]]&" - "&BMVT[[#This Row],[Destino]]) -> -
B54: =IF(ISERROR(VLOOKUP(BMVT[[#This Row],[Matrícula]],Usuarios[#All],2,FALSE)),"",VLOOKUP(BMVT[[#This Row],[Matrícula]],Usuarios[#All],2,FALSE)) ->  | C54: =IF(ISERROR(VLOOKUP(BMVT[[#This Row],[Matrícula]],Usuarios[#All],3,FALSE)),"",VLOOKUP(BMVT[[#This Row],[Matrícula]],Usuarios[#All],3,FALSE)) ->  | D54: =IF(ISERROR(VLOOKUP(BMVT[[#This Row],[Matrícula]],Usuarios[#All],4,FALSE)),"",VLOOKUP(BMVT[[#This Row],[Matrícula]],Usuarios[#All],4,FALSE)) ->  | E54: =IF(ISERROR(VLOOKUP(BMVT[[#This Row],[Matrícula]],Usuarios[#All],5,FALSE)),"",VLOOKUP(BMVT[[#This Row],[Matrícula]],Usuarios[#All],5,FALSE)) ->  | H54: =IF(ISERROR(VLOOKUP(BMVT[[#This Row],[Rota]],Rotas[#All],3,FALSE)),"",VLOOKUP(BMVT[[#This Row],[Rota]],Rotas[#All],3,FALSE)) ->  | I54: =IF(ISERROR(VLOOKUP(BMVT[[#This Row],[Rota]],Rotas[#All],4,FALSE)),"",VLOOKUP(BMVT[[#This Row],[Rota]],Rotas[#All],4,FALSE)) ->  | J54: =IF(ISERROR(VLOOKUP(BMVT[[#This Row],[Rota]],Rotas[#All],5,FALSE)),"",VLOOKUP(BMVT[[#This Row],[Rota]],Rotas[#All],5,FALSE)) ->  | K54: =IF(ISERROR(VLOOKUP(BMVT[[#This Row],[Rota]],Rotas[#All],6,FALSE)),"",VLOOKUP(BMVT[[#This Row],[Rota]],Rotas[#All],6,FALSE)) ->  | M54: 0 | N54: 0 | O54: =BMVT[[#This Row],[Quant. Apur.]] -> 0 | P54: 0 | Q54: =IF(ISERROR(VLOOKUP(BMVT[[#This Row],[Rota]],Rotas[#All],7,FALSE)),0,VLOOKUP(BMVT[[#This Row],[Rota]],Rotas[#All],7,FALSE)) -> 0 | R54: 0 | U54: =IF(ISERROR(BMVT[[#This Row],[Origem]]&" - "&BMVT[[#This Row],[Destino]]),"",BMVT[[#This Row],[Origem]]&" - "&BMVT[[#This Row],[Destino]]) -> -
B55: =IF(ISERROR(VLOOKUP(BMVT[[#This Row],[Matrícula]],Usuarios[#All],2,FALSE)),"",VLOOKUP(BMVT[[#This Row],[Matrícula]],Usuarios[#All],2,FALSE)) ->  | C55: =IF(ISERROR(VLOOKUP(BMVT[[#This Row],[Matrícula]],Usuarios[#All],3,FALSE)),"",VLOOKUP(BMVT[[#This Row],[Matrícula]],Usuarios[#All],3,FALSE)) ->  | D55: =IF(ISERROR(VLOOKUP(BMVT[[#This Row],[Matrícula]],Usuarios[#All],4,FALSE)),"",VLOOKUP(BMVT[[#This Row],[Matrícula]],Usuarios[#All],4,FALSE)) ->  | E55: =IF(ISERROR(VLOOKUP(BMVT[[#This Row],[Matrícula]],Usuarios[#All],5,FALSE)),"",VLOOKUP(BMVT[[#This Row],[Matrícula]],Usuarios[#All],5,FALSE)) ->  | H55: =IF(ISERROR(VLOOKUP(BMVT[[#This Row],[Rota]],Rotas[#All],3,FALSE)),"",VLOOKUP(BMVT[[#This Row],[Rota]],Rotas[#All],3,FALSE)) ->  | I55: =IF(ISERROR(VLOOKUP(BMVT[[#This Row],[Rota]],Rotas[#All],4,FALSE)),"",VLOOKUP(BMVT[[#This Row],[Rota]],Rotas[#All],4,FALSE)) ->  | J55: =IF(ISERROR(VLOOKUP(BMVT[[#This Row],[Rota]],Rotas[#All],5,FALSE)),"",VLOOKUP(BMVT[[#This Row],[Rota]],Rotas[#All],5,FALSE)) ->  | K55: =IF(ISERROR(VLOOKUP(BMVT[[#This Row],[Rota]],Rotas[#All],6,FALSE)),"",VLOOKUP(BMVT[[#This Row],[Rota]],Rotas[#All],6,FALSE)) ->  | M55: 0 | N55: 0 | O55: =BMVT[[#This Row],[Quant. Apur.]] -> 0 | P55: 0 | Q55: =IF(ISERROR(VLOOKUP(BMVT[[#This Row],[Rota]],Rotas[#All],7,FALSE)),0,VLOOKUP(BMVT[[#This Row],[Rota]],Rotas[#All],7,FALSE)) -> 0 | R55: 0 | U55: =IF(ISERROR(BMVT[[#This Row],[Origem]]&" - "&BMVT[[#This Row],[Destino]]),"",BMVT[[#This Row],[Origem]]&" - "&BMVT[[#This Row],[Destino]]) -> -
B56: =IF(ISERROR(VLOOKUP(BMVT[[#This Row],[Matrícula]],Usuarios[#All],2,FALSE)),"",VLOOKUP(BMVT[[#This Row],[Matrícula]],Usuarios[#All],2,FALSE)) ->  | C56: =IF(ISERROR(VLOOKUP(BMVT[[#This Row],[Matrícula]],Usuarios[#All],3,FALSE)),"",VLOOKUP(BMVT[[#This Row],[Matrícula]],Usuarios[#All],3,FALSE)) ->  | D56: =IF(ISERROR(VLOOKUP(BMVT[[#This Row],[Matrícula]],Usuarios[#All],4,FALSE)),"",VLOOKUP(BMVT[[#This Row],[Matrícula]],Usuarios[#All],4,FALSE)) ->  | E56: =IF(ISERROR(VLOOKUP(BMVT[[#This Row],[Matrícula]],Usuarios[#All],5,FALSE)),"",VLOOKUP(BMVT[[#This Row],[Matrícula]],Usuarios[#All],5,FALSE)) ->  | H56: =IF(ISERROR(VLOOKUP(BMVT[[#This Row],[Rota]],Rotas[#All],3,FALSE)),"",VLOOKUP(BMVT[[#This Row],[Rota]],Rotas[#All],3,FALSE)) ->  | I56: =IF(ISERROR(VLOOKUP(BMVT[[#This Row],[Rota]],Rotas[#All],4,FALSE)),"",VLOOKUP(BMVT[[#This Row],[Rota]],Rotas[#All],4,FALSE)) ->  | J56: =IF(ISERROR(VLOOKUP(BMVT[[#This Row],[Rota]],Rotas[#All],5,FALSE)),"",VLOOKUP(BMVT[[#This Row],[Rota]],Rotas[#All],5,FALSE)) ->  | K56: =IF(ISERROR(VLOOKUP(BMVT[[#This Row],[Rota]],Rotas[#All],6,FALSE)),"",VLOOKUP(BMVT[[#This Row],[Rota]],Rotas[#All],6,FALSE)) ->  | M56: 0 | N56: 0 | O56: =BMVT[[#This Row],[Quant. Apur.]] -> 0 | P56: 0 | Q56: =IF(ISERROR(VLOOKUP(BMVT[[#This Row],[Rota]],Rotas[#All],7,FALSE)),0,VLOOKUP(BMVT[[#This Row],[Rota]],Rotas[#All],7,FALSE)) -> 0 | R56: 0 | U56: =IF(ISERROR(BMVT[[#This Row],[Origem]]&" - "&BMVT[[#This Row],[Destino]]),"",BMVT[[#This Row],[Origem]]&" - "&BMVT[[#This Row],[Destino]]) -> -
B57: =IF(ISERROR(VLOOKUP(BMVT[[#This Row],[Matrícula]],Usuarios[#All],2,FALSE)),"",VLOOKUP(BMVT[[#This Row],[Matrícula]],Usuarios[#All],2,FALSE)) ->  | C57: =IF(ISERROR(VLOOKUP(BMVT[[#This Row],[Matrícula]],Usuarios[#All],3,FALSE)),"",VLOOKUP(BMVT[[#This Row],[Matrícula]],Usuarios[#All],3,FALSE)) ->  | D57: =IF(ISERROR(VLOOKUP(BMVT[[#This Row],[Matrícula]],Usuarios[#All],4,FALSE)),"",VLOOKUP(BMVT[[#This Row],[Matrícula]],Usuarios[#All],4,FALSE)) ->  | E57: =IF(ISERROR(VLOOKUP(BMVT[[#This Row],[Matrícula]],Usuarios[#All],5,FALSE)),"",VLOOKUP(BMVT[[#This Row],[Matrícula]],Usuarios[#All],5,FALSE)) ->  | H57: =IF(ISERROR(VLOOKUP(BMVT[[#This Row],[Rota]],Rotas[#All],3,FALSE)),"",VLOOKUP(BMVT[[#This Row],[Rota]],Rotas[#All],3,FALSE)) ->  | I57: =IF(ISERROR(VLOOKUP(BMVT[[#This Row],[Rota]],Rotas[#All],4,FALSE)),"",VLOOKUP(BMVT[[#This Row],[Rota]],Rotas[#All],4,FALSE)) ->  | J57: =IF(ISERROR(VLOOKUP(BMVT[[#This Row],[Rota]],Rotas[#All],5,FALSE)),"",VLOOKUP(BMVT[[#This Row],[Rota]],Rotas[#All],5,FALSE)) ->  | K57: =IF(ISERROR(VLOOKUP(BMVT[[#This Row],[Rota]],Rotas[#All],6,FALSE)),"",VLOOKUP(BMVT[[#This Row],[Rota]],Rotas[#All],6,FALSE)) ->  | M57: 0 | N57: 0 | O57: =BMVT[[#This Row],[Quant. Apur.]] -> 0 | P57: 0 | Q57: =IF(ISERROR(VLOOKUP(BMVT[[#This Row],[Rota]],Rotas[#All],7,FALSE)),0,VLOOKUP(BMVT[[#This Row],[Rota]],Rotas[#All],7,FALSE)) -> 0 | R57: 0 | U57: =IF(ISERROR(BMVT[[#This Row],[Origem]]&" - "&BMVT[[#This Row],[Destino]]),"",BMVT[[#This Row],[Origem]]&" - "&BMVT[[#This Row],[Destino]]) -> -
B58: =IF(ISERROR(VLOOKUP(BMVT[[#This Row],[Matrícula]],Usuarios[#All],2,FALSE)),"",VLOOKUP(BMVT[[#This Row],[Matrícula]],Usuarios[#All],2,FALSE)) ->  | C58: =IF(ISERROR(VLOOKUP(BMVT[[#This Row],[Matrícula]],Usuarios[#All],3,FALSE)),"",VLOOKUP(BMVT[[#This Row],[Matrícula]],Usuarios[#All],3,FALSE)) ->  | D58: =IF(ISERROR(VLOOKUP(BMVT[[#This Row],[Matrícula]],Usuarios[#All],4,FALSE)),"",VLOOKUP(BMVT[[#This Row],[Matrícula]],Usuarios[#All],4,FALSE)) ->  | E58: =IF(ISERROR(VLOOKUP(BMVT[[#This Row],[Matrícula]],Usuarios[#All],5,FALSE)),"",VLOOKUP(BMVT[[#This Row],[Matrícula]],Usuarios[#All],5,FALSE)) ->  | H58: =IF(ISERROR(VLOOKUP(BMVT[[#This Row],[Rota]],Rotas[#All],3,FALSE)),"",VLOOKUP(BMVT[[#This Row],[Rota]],Rotas[#All],3,FALSE)) ->  | I58: =IF(ISERROR(VLOOKUP(BMVT[[#This Row],[Rota]],Rotas[#All],4,FALSE)),"",VLOOKUP(BMVT[[#This Row],[Rota]],Rotas[#All],4,FALSE)) ->  | J58: =IF(ISERROR(VLOOKUP(BMVT[[#This Row],[Rota]],Rotas[#All],5,FALSE)),"",VLOOKUP(BMVT[[#This Row],[Rota]],Rotas[#All],5,FALSE)) ->  | K58: =IF(ISERROR(VLOOKUP(BMVT[[#This Row],[Rota]],Rotas[#All],6,FALSE)),"",VLOOKUP(BMVT[[#This Row],[Rota]],Rotas[#All],6,FALSE)) ->  | M58: 0 | N58: 0 | O58: =BMVT[[#This Row],[Quant. Apur.]] -> 0 | P58: 0 | Q58: =IF(ISERROR(VLOOKUP(BMVT[[#This Row],[Rota]],Rotas[#All],7,FALSE)),0,VLOOKUP(BMVT[[#This Row],[Rota]],Rotas[#All],7,FALSE)) -> 0 | R58: 0 | U58: =IF(ISERROR(BMVT[[#This Row],[Origem]]&" - "&BMVT[[#This Row],[Destino]]),"",BMVT[[#This Row],[Origem]]&" - "&BMVT[[#This Row],[Destino]]) -> -
B59: =IF(ISERROR(VLOOKUP(BMVT[[#This Row],[Matrícula]],Usuarios[#All],2,FALSE)),"",VLOOKUP(BMVT[[#This Row],[Matrícula]],Usuarios[#All],2,FALSE)) ->  | C59: =IF(ISERROR(VLOOKUP(BMVT[[#This Row],[Matrícula]],Usuarios[#All],3,FALSE)),"",VLOOKUP(BMVT[[#This Row],[Matrícula]],Usuarios[#All],3,FALSE)) ->  | D59: =IF(ISERROR(VLOOKUP(BMVT[[#This Row],[Matrícula]],Usuarios[#All],4,FALSE)),"",VLOOKUP(BMVT[[#This Row],[Matrícula]],Usuarios[#All],4,FALSE)) ->  | E59: =IF(ISERROR(VLOOKUP(BMVT[[#This Row],[Matrícula]],Usuarios[#All],5,FALSE)),"",VLOOKUP(BMVT[[#This Row],[Matrícula]],Usuarios[#All],5,FALSE)) ->  | H59: =IF(ISERROR(VLOOKUP(BMVT[[#This Row],[Rota]],Rotas[#All],3,FALSE)),"",VLOOKUP(BMVT[[#This Row],[Rota]],Rotas[#All],3,FALSE)) ->  | I59: =IF(ISERROR(VLOOKUP(BMVT[[#This Row],[Rota]],Rotas[#All],4,FALSE)),"",VLOOKUP(BMVT[[#This Row],[Rota]],Rotas[#All],4,FALSE)) ->  | J59: =IF(ISERROR(VLOOKUP(BMVT[[#This Row],[Rota]],Rotas[#All],5,FALSE)),"",VLOOKUP(BMVT[[#This Row],[Rota]],Rotas[#All],5,FALSE)) ->  | K59: =IF(ISERROR(VLOOKUP(BMVT[[#This Row],[Rota]],Rotas[#All],6,FALSE)),"",VLOOKUP(BMVT[[#This Row],[Rota]],Rotas[#All],6,FALSE)) ->  | M59: 0 | N59: 0 | O59: =BMVT[[#This Row],[Quant. Apur.]] -> 0 | P59: 0 | Q59: =IF(ISERROR(VLOOKUP(BMVT[[#This Row],[Rota]],Rotas[#All],7,FALSE)),0,VLOOKUP(BMVT[[#This Row],[Rota]],Rotas[#All],7,FALSE)) -> 0 | R59: =O59*Q59 -> 0 | U59: =IF(ISERROR(BMVT[[#This Row],[Origem]]&" - "&BMVT[[#This Row],[Destino]]),"",BMVT[[#This Row],[Origem]]&" - "&BMVT[[#This Row],[Destino]]) -> -
B60: =IF(ISERROR(VLOOKUP(BMVT[[#This Row],[Matrícula]],Usuarios[#All],2,FALSE)),"",VLOOKUP(BMVT[[#This Row],[Matrícula]],Usuarios[#All],2,FALSE)) ->  | C60: =IF(ISERROR(VLOOKUP(BMVT[[#This Row],[Matrícula]],Usuarios[#All],3,FALSE)),"",VLOOKUP(BMVT[[#This Row],[Matrícula]],Usuarios[#All],3,FALSE)) ->  | D60: =IF(ISERROR(VLOOKUP(BMVT[[#This Row],[Matrícula]],Usuarios[#All],4,FALSE)),"",VLOOKUP(BMVT[[#This Row],[Matrícula]],Usuarios[#All],4,FALSE)) ->  | E60: =IF(ISERROR(VLOOKUP(BMVT[[#This Row],[Matrícula]],Usuarios[#All],5,FALSE)),"",VLOOKUP(BMVT[[#This Row],[Matrícula]],Usuarios[#All],5,FALSE)) ->  | H60: =IF(ISERROR(VLOOKUP(BMVT[[#This Row],[Rota]],Rotas[#All],3,FALSE)),"",VLOOKUP(BMVT[[#This Row],[Rota]],Rotas[#All],3,FALSE)) ->  | I60: =IF(ISERROR(VLOOKUP(BMVT[[#This Row],[Rota]],Rotas[#All],4,FALSE)),"",VLOOKUP(BMVT[[#This Row],[Rota]],Rotas[#All],4,FALSE)) ->  | J60: =IF(ISERROR(VLOOKUP(BMVT[[#This Row],[Rota]],Rotas[#All],5,FALSE)),"",VLOOKUP(BMVT[[#This Row],[Rota]],Rotas[#All],5,FALSE)) ->  | K60: =IF(ISERROR(VLOOKUP(BMVT[[#This Row],[Rota]],Rotas[#All],6,FALSE)),"",VLOOKUP(BMVT[[#This Row],[Rota]],Rotas[#All],6,FALSE)) ->  | M60: 0 | N60: 0 | O60: =BMVT[[#This Row],[Quant. Apur.]] -> 0 | P60: 0 | Q60: =IF(ISERROR(VLOOKUP(BMVT[[#This Row],[Rota]],Rotas[#All],7,FALSE)),0,VLOOKUP(BMVT[[#This Row],[Rota]],Rotas[#All],7,FALSE)) -> 0 | R60: 0 | U60: =IF(ISERROR(BMVT[[#This Row],[Origem]]&" - "&BMVT[[#This Row],[Destino]]),"",BMVT[[#This Row],[Origem]]&" - "&BMVT[[#This Row],[Destino]]) -> -
B61: =IF(ISERROR(VLOOKUP(BMVT[[#This Row],[Matrícula]],Usuarios[#All],2,FALSE)),"",VLOOKUP(BMVT[[#This Row],[Matrícula]],Usuarios[#All],2,FALSE)) ->  | C61: =IF(ISERROR(VLOOKUP(BMVT[[#This Row],[Matrícula]],Usuarios[#All],3,FALSE)),"",VLOOKUP(BMVT[[#This Row],[Matrícula]],Usuarios[#All],3,FALSE)) ->  | D61: =IF(ISERROR(VLOOKUP(BMVT[[#This Row],[Matrícula]],Usuarios[#All],4,FALSE)),"",VLOOKUP(BMVT[[#This Row],[Matrícula]],Usuarios[#All],4,FALSE)) ->  | E61: =IF(ISERROR(VLOOKUP(BMVT[[#This Row],[Matrícula]],Usuarios[#All],5,FALSE)),"",VLOOKUP(BMVT[[#This Row],[Matrícula]],Usuarios[#All],5,FALSE)) ->  | H61: =IF(ISERROR(VLOOKUP(BMVT[[#This Row],[Rota]],Rotas[#All],3,FALSE)),"",VLOOKUP(BMVT[[#This Row],[Rota]],Rotas[#All],3,FALSE)) ->  | I61: =IF(ISERROR(VLOOKUP(BMVT[[#This Row],[Rota]],Rotas[#All],4,FALSE)),"",VLOOKUP(BMVT[[#This Row],[Rota]],Rotas[#All],4,FALSE)) ->  | J61: =IF(ISERROR(VLOOKUP(BMVT[[#This Row],[Rota]],Rotas[#All],5,FALSE)),"",VLOOKUP(BMVT[[#This Row],[Rota]],Rotas[#All],5,FALSE)) ->  | K61: =IF(ISERROR(VLOOKUP(BMVT[[#This Row],[Rota]],Rotas[#All],6,FALSE)),"",VLOOKUP(BMVT[[#This Row],[Rota]],Rotas[#All],6,FALSE)) ->  | M61: 0 | N61: 0 | O61: =BMVT[[#This Row],[Quant. Apur.]] -> 0 | P61: 0 | Q61: =IF(ISERROR(VLOOKUP(BMVT[[#This Row],[Rota]],Rotas[#All],7,FALSE)),0,VLOOKUP(BMVT[[#This Row],[Rota]],Rotas[#All],7,FALSE)) -> 0 | R61: 0 | U61: =IF(ISERROR(BMVT[[#This Row],[Origem]]&" - "&BMVT[[#This Row],[Destino]]),"",BMVT[[#This Row],[Origem]]&" - "&BMVT[[#This Row],[Destino]]) -> -
B62: =IF(ISERROR(VLOOKUP(BMVT[[#This Row],[Matrícula]],Usuarios[#All],2,FALSE)),"",VLOOKUP(BMVT[[#This Row],[Matrícula]],Usuarios[#All],2,FALSE)) ->  | C62: =IF(ISERROR(VLOOKUP(BMVT[[#This Row],[Matrícula]],Usuarios[#All],3,FALSE)),"",VLOOKUP(BMVT[[#This Row],[Matrícula]],Usuarios[#All],3,FALSE)) ->  | D62: =IF(ISERROR(VLOOKUP(BMVT[[#This Row],[Matrícula]],Usuarios[#All],4,FALSE)),"",VLOOKUP(BMVT[[#This Row],[Matrícula]],Usuarios[#All],4,FALSE)) ->  | E62: =IF(ISERROR(VLOOKUP(BMVT[[#This Row],[Matrícula]],Usuarios[#All],5,FALSE)),"",VLOOKUP(BMVT[[#This Row],[Matrícula]],Usuarios[#All],5,FALSE)) ->  | H62: =IF(ISERROR(VLOOKUP(BMVT[[#This Row],[Rota]],Rotas[#All],3,FALSE)),"",VLOOKUP(BMVT[[#This Row],[Rota]],Rotas[#All],3,FALSE)) ->  | I62: =IF(ISERROR(VLOOKUP(BMVT[[#This Row],[Rota]],Rotas[#All],4,FALSE)),"",VLOOKUP(BMVT[[#This Row],[Rota]],Rotas[#All],4,FALSE)) ->  | J62: =IF(ISERROR(VLOOKUP(BMVT[[#This Row],[Rota]],Rotas[#All],5,FALSE)),"",VLOOKUP(BMVT[[#This Row],[Rota]],Rotas[#All],5,FALSE)) ->  | K62: =IF(ISERROR(VLOOKUP(BMVT[[#This Row],[Rota]],Rotas[#All],6,FALSE)),"",VLOOKUP(BMVT[[#This Row],[Rota]],Rotas[#All],6,FALSE)) ->  | M62: 0 | N62: 0 | O62: =BMVT[[#This Row],[Quant. Apur.]] -> 0 | P62: 0 | Q62: =IF(ISERROR(VLOOKUP(BMVT[[#This Row],[Rota]],Rotas[#All],7,FALSE)),0,VLOOKUP(BMVT[[#This Row],[Rota]],Rotas[#All],7,FALSE)) -> 0 | R62: 0 | U62: =IF(ISERROR(BMVT[[#This Row],[Origem]]&" - "&BMVT[[#This Row],[Destino]]),"",BMVT[[#This Row],[Origem]]&" - "&BMVT[[#This Row],[Destino]]) -> -
B63: =IF(ISERROR(VLOOKUP(BMVT[[#This Row],[Matrícula]],Usuarios[#All],2,FALSE)),"",VLOOKUP(BMVT[[#This Row],[Matrícula]],Usuarios[#All],2,FALSE)) ->  | C63: =IF(ISERROR(VLOOKUP(BMVT[[#This Row],[Matrícula]],Usuarios[#All],3,FALSE)),"",VLOOKUP(BMVT[[#This Row],[Matrícula]],Usuarios[#All],3,FALSE)) ->  | D63: =IF(ISERROR(VLOOKUP(BMVT[[#This Row],[Matrícula]],Usuarios[#All],4,FALSE)),"",VLOOKUP(BMVT[[#This Row],[Matrícula]],Usuarios[#All],4,FALSE)) ->  | E63: =IF(ISERROR(VLOOKUP(BMVT[[#This Row],[Matrícula]],Usuarios[#All],5,FALSE)),"",VLOOKUP(BMVT[[#This Row],[Matrícula]],Usuarios[#All],5,FALSE)) ->  | H63: =IF(ISERROR(VLOOKUP(BMVT[[#This Row],[Rota]],Rotas[#All],3,FALSE)),"",VLOOKUP(BMVT[[#This Row],[Rota]],Rotas[#All],3,FALSE)) ->  | I63: =IF(ISERROR(VLOOKUP(BMVT[[#This Row],[Rota]],Rotas[#All],4,FALSE)),"",VLOOKUP(BMVT[[#This Row],[Rota]],Rotas[#All],4,FALSE)) ->  | J63: =IF(ISERROR(VLOOKUP(BMVT[[#This Row],[Rota]],Rotas[#All],5,FALSE)),"",VLOOKUP(BMVT[[#This Row],[Rota]],Rotas[#All],5,FALSE)) ->  | K63: =IF(ISERROR(VLOOKUP(BMVT[[#This Row],[Rota]],Rotas[#All],6,FALSE)),"",VLOOKUP(BMVT[[#This Row],[Rota]],Rotas[#All],6,FALSE)) ->  | M63: 0 | N63: 0 | O63: =BMVT[[#This Row],[Quant. Apur.]] -> 0 | P63: =IF(ISERROR(O63/M63),0,O63/M63) -> 0 | Q63: =IF(ISERROR(VLOOKUP(BMVT[[#This Row],[Rota]],Rotas[#All],7,FALSE)),0,VLOOKUP(BMVT[[#This Row],[Rota]],Rotas[#All],7,FALSE)) -> 0 | R63: 0 | U63: =IF(ISERROR(BMVT[[#This Row],[Origem]]&" - "&BMVT[[#This Row],[Destino]]),"",BMVT[[#This Row],[Origem]]&" - "&BMVT[[#This Row],[Destino]]) -> -
B64: =IF(ISERROR(VLOOKUP(BMVT[[#This Row],[Matrícula]],Usuarios[#All],2,FALSE)),"",VLOOKUP(BMVT[[#This Row],[Matrícula]],Usuarios[#All],2,FALSE)) ->  | C64: =IF(ISERROR(VLOOKUP(BMVT[[#This Row],[Matrícula]],Usuarios[#All],3,FALSE)),"",VLOOKUP(BMVT[[#This Row],[Matrícula]],Usuarios[#All],3,FALSE)) ->  | D64: =IF(ISERROR(VLOOKUP(BMVT[[#This Row],[Matrícula]],Usuarios[#All],4,FALSE)),"",VLOOKUP(BMVT[[#This Row],[Matrícula]],Usuarios[#All],4,FALSE)) ->  | E64: =IF(ISERROR(VLOOKUP(BMVT[[#This Row],[Matrícula]],Usuarios[#All],5,FALSE)),"",VLOOKUP(BMVT[[#This Row],[Matrícula]],Usuarios[#All],5,FALSE)) ->  | H64: =IF(ISERROR(VLOOKUP(BMVT[[#This Row],[Rota]],Rotas[#All],3,FALSE)),"",VLOOKUP(BMVT[[#This Row],[Rota]],Rotas[#All],3,FALSE)) ->  | I64: =IF(ISERROR(VLOOKUP(BMVT[[#This Row],[Rota]],Rotas[#All],4,FALSE)),"",VLOOKUP(BMVT[[#This Row],[Rota]],Rotas[#All],4,FALSE)) ->  | J64: =IF(ISERROR(VLOOKUP(BMVT[[#This Row],[Rota]],Rotas[#All],5,FALSE)),"",VLOOKUP(BMVT[[#This Row],[Rota]],Rotas[#All],5,FALSE)) ->  | K64: =IF(ISERROR(VLOOKUP(BMVT[[#This Row],[Rota]],Rotas[#All],6,FALSE)),"",VLOOKUP(BMVT[[#This Row],[Rota]],Rotas[#All],6,FALSE)) ->  | M64: 0 | N64: =L64*$G$1 -> 0 | O64: =BMVT[[#This Row],[Quant. Apur.]] -> 0 | P64: 0 | Q64: =IF(ISERROR(VLOOKUP(BMVT[[#This Row],[Rota]],Rotas[#All],7,FALSE)),0,VLOOKUP(BMVT[[#This Row],[Rota]],Rotas[#All],7,FALSE)) -> 0 | R64: 0 | U64: =IF(ISERROR(BMVT[[#This Row],[Origem]]&" - "&BMVT[[#This Row],[Destino]]),"",BMVT[[#This Row],[Origem]]&" - "&BMVT[[#This Row],[Destino]]) -> -
B65: =IF(ISERROR(VLOOKUP(BMVT[[#This Row],[Matrícula]],Usuarios[#All],2,FALSE)),"",VLOOKUP(BMVT[[#This Row],[Matrícula]],Usuarios[#All],2,FALSE)) ->  | C65: =IF(ISERROR(VLOOKUP(BMVT[[#This Row],[Matrícula]],Usuarios[#All],3,FALSE)),"",VLOOKUP(BMVT[[#This Row],[Matrícula]],Usuarios[#All],3,FALSE)) ->  | D65: =IF(ISERROR(VLOOKUP(BMVT[[#This Row],[Matrícula]],Usuarios[#All],4,FALSE)),"",VLOOKUP(BMVT[[#This Row],[Matrícula]],Usuarios[#All],4,FALSE)) ->  | E65: =IF(ISERROR(VLOOKUP(BMVT[[#This Row],[Matrícula]],Usuarios[#All],5,FALSE)),"",VLOOKUP(BMVT[[#This Row],[Matrícula]],Usuarios[#All],5,FALSE)) ->  | H65: =IF(ISERROR(VLOOKUP(BMVT[[#This Row],[Rota]],Rotas[#All],3,FALSE)),"",VLOOKUP(BMVT[[#This Row],[Rota]],Rotas[#All],3,FALSE)) ->  | I65: =IF(ISERROR(VLOOKUP(BMVT[[#This Row],[Rota]],Rotas[#All],4,FALSE)),"",VLOOKUP(BMVT[[#This Row],[Rota]],Rotas[#All],4,FALSE)) ->  | J65: =IF(ISERROR(VLOOKUP(BMVT[[#This Row],[Rota]],Rotas[#All],5,FALSE)),"",VLOOKUP(BMVT[[#This Row],[Rota]],Rotas[#All],5,FALSE)) ->  | K65: =IF(ISERROR(VLOOKUP(BMVT[[#This Row],[Rota]],Rotas[#All],6,FALSE)),"",VLOOKUP(BMVT[[#This Row],[Rota]],Rotas[#All],6,FALSE)) ->  | M65: 0 | N65: 0 | O65: =BMVT[[#This Row],[Quant. Apur.]] -> 0 | P65: 0 | Q65: =IF(ISERROR(VLOOKUP(BMVT[[#This Row],[Rota]],Rotas[#All],7,FALSE)),0,VLOOKUP(BMVT[[#This Row],[Rota]],Rotas[#All],7,FALSE)) -> 0 | R65: 0 | U65: =IF(ISERROR(BMVT[[#This Row],[Origem]]&" - "&BMVT[[#This Row],[Destino]]),"",BMVT[[#This Row],[Origem]]&" - "&BMVT[[#This Row],[Destino]]) -> -
B66: =IF(ISERROR(VLOOKUP(BMVT[[#This Row],[Matrícula]],Usuarios[#All],2,FALSE)),"",VLOOKUP(BMVT[[#This Row],[Matrícula]],Usuarios[#All],2,FALSE)) ->  | C66: =IF(ISERROR(VLOOKUP(BMVT[[#This Row],[Matrícula]],Usuarios[#All],3,FALSE)),"",VLOOKUP(BMVT[[#This Row],[Matrícula]],Usuarios[#All],3,FALSE)) ->  | D66: =IF(ISERROR(VLOOKUP(BMVT[[#This Row],[Matrícula]],Usuarios[#All],4,FALSE)),"",VLOOKUP(BMVT[[#This Row],[Matrícula]],Usuarios[#All],4,FALSE)) ->  | E66: =IF(ISERROR(VLOOKUP(BMVT[[#This Row],[Matrícula]],Usuarios[#All],5,FALSE)),"",VLOOKUP(BMVT[[#This Row],[Matrícula]],Usuarios[#All],5,FALSE)) ->  | H66: =IF(ISERROR(VLOOKUP(BMVT[[#This Row],[Rota]],Rotas[#All],3,FALSE)),"",VLOOKUP(BMVT[[#This Row],[Rota]],Rotas[#All],3,FALSE)) ->  | I66: =IF(ISERROR(VLOOKUP(BMVT[[#This Row],[Rota]],Rotas[#All],4,FALSE)),"",VLOOKUP(BMVT[[#This Row],[Rota]],Rotas[#All],4,FALSE)) ->  | J66: =IF(ISERROR(VLOOKUP(BMVT[[#This Row],[Rota]],Rotas[#All],5,FALSE)),"",VLOOKUP(BMVT[[#This Row],[Rota]],Rotas[#All],5,FALSE)) ->  | K66: =IF(ISERROR(VLOOKUP(BMVT[[#This Row],[Rota]],Rotas[#All],6,FALSE)),"",VLOOKUP(BMVT[[#This Row],[Rota]],Rotas[#All],6,FALSE)) ->  | M66: =L66 -> 0 | N66: 0 | O66: =BMVT[[#This Row],[Quant. Apur.]] -> 0 | P66: 0 | Q66: =IF(ISERROR(VLOOKUP(BMVT[[#This Row],[Rota]],Rotas[#All],7,FALSE)),0,VLOOKUP(BMVT[[#This Row],[Rota]],Rotas[#All],7,FALSE)) -> 0 | R66: 0 | U66: =IF(ISERROR(BMVT[[#This Row],[Origem]]&" - "&BMVT[[#This Row],[Destino]]),"",BMVT[[#This Row],[Origem]]&" - "&BMVT[[#This Row],[Destino]]) -> -
B67: =IF(ISERROR(VLOOKUP(BMVT[[#This Row],[Matrícula]],Usuarios[#All],2,FALSE)),"",VLOOKUP(BMVT[[#This Row],[Matrícula]],Usuarios[#All],2,FALSE)) ->  | C67: =IF(ISERROR(VLOOKUP(BMVT[[#This Row],[Matrícula]],Usuarios[#All],3,FALSE)),"",VLOOKUP(BMVT[[#This Row],[Matrícula]],Usuarios[#All],3,FALSE)) ->  | D67: =IF(ISERROR(VLOOKUP(BMVT[[#This Row],[Matrícula]],Usuarios[#All],4,FALSE)),"",VLOOKUP(BMVT[[#This Row],[Matrícula]],Usuarios[#All],4,FALSE)) ->  | E67: =IF(ISERROR(VLOOKUP(BMVT[[#This Row],[Matrícula]],Usuarios[#All],5,FALSE)),"",VLOOKUP(BMVT[[#This Row],[Matrícula]],Usuarios[#All],5,FALSE)) ->  | H67: =IF(ISERROR(VLOOKUP(BMVT[[#This Row],[Rota]],Rotas[#All],3,FALSE)),"",VLOOKUP(BMVT[[#This Row],[Rota]],Rotas[#All],3,FALSE)) ->  | I67: =IF(ISERROR(VLOOKUP(BMVT[[#This Row],[Rota]],Rotas[#All],4,FALSE)),"",VLOOKUP(BMVT[[#This Row],[Rota]],Rotas[#All],4,FALSE)) ->  | J67: =IF(ISERROR(VLOOKUP(BMVT[[#This Row],[Rota]],Rotas[#All],5,FALSE)),"",VLOOKUP(BMVT[[#This Row],[Rota]],Rotas[#All],5,FALSE)) ->  | K67: =IF(ISERROR(VLOOKUP(BMVT[[#This Row],[Rota]],Rotas[#All],6,FALSE)),"",VLOOKUP(BMVT[[#This Row],[Rota]],Rotas[#All],6,FALSE)) ->  | M67: 0 | N67: 0 | O67: =BMVT[[#This Row],[Quant. Apur.]] -> 0 | P67: 0 | Q67: =IF(ISERROR(VLOOKUP(BMVT[[#This Row],[Rota]],Rotas[#All],7,FALSE)),0,VLOOKUP(BMVT[[#This Row],[Rota]],Rotas[#All],7,FALSE)) -> 0 | R67: 0 | U67: =IF(ISERROR(BMVT[[#This Row],[Origem]]&" - "&BMVT[[#This Row],[Destino]]),"",BMVT[[#This Row],[Origem]]&" - "&BMVT[[#This Row],[Destino]]) -> -
B68: =IF(ISERROR(VLOOKUP(BMVT[[#This Row],[Matrícula]],Usuarios[#All],2,FALSE)),"",VLOOKUP(BMVT[[#This Row],[Matrícula]],Usuarios[#All],2,FALSE)) ->  | C68: =IF(ISERROR(VLOOKUP(BMVT[[#This Row],[Matrícula]],Usuarios[#All],3,FALSE)),"",VLOOKUP(BMVT[[#This Row],[Matrícula]],Usuarios[#All],3,FALSE)) ->  | D68: =IF(ISERROR(VLOOKUP(BMVT[[#This Row],[Matrícula]],Usuarios[#All],4,FALSE)),"",VLOOKUP(BMVT[[#This Row],[Matrícula]],Usuarios[#All],4,FALSE)) ->  | E68: =IF(ISERROR(VLOOKUP(BMVT[[#This Row],[Matrícula]],Usuarios[#All],5,FALSE)),"",VLOOKUP(BMVT[[#This Row],[Matrícula]],Usuarios[#All],5,FALSE)) ->  | H68: =IF(ISERROR(VLOOKUP(BMVT[[#This Row],[Rota]],Rotas[#All],3,FALSE)),"",VLOOKUP(BMVT[[#This Row],[Rota]],Rotas[#All],3,FALSE)) ->  | I68: =IF(ISERROR(VLOOKUP(BMVT[[#This Row],[Rota]],Rotas[#All],4,FALSE)),"",VLOOKUP(BMVT[[#This Row],[Rota]],Rotas[#All],4,FALSE)) ->  | J68: =IF(ISERROR(VLOOKUP(BMVT[[#This Row],[Rota]],Rotas[#All],5,FALSE)),"",VLOOKUP(BMVT[[#This Row],[Rota]],Rotas[#All],5,FALSE)) ->  | K68: =IF(ISERROR(VLOOKUP(BMVT[[#This Row],[Rota]],Rotas[#All],6,FALSE)),"",VLOOKUP(BMVT[[#This Row],[Rota]],Rotas[#All],6,FALSE)) ->  | M68: 0 | N68: 0 | O68: =BMVT[[#This Row],[Quant. Apur.]] -> 0 | P68: 0 | Q68: =IF(ISERROR(VLOOKUP(BMVT[[#This Row],[Rota]],Rotas[#All],7,FALSE)),0,VLOOKUP(BMVT[[#This Row],[Rota]],Rotas[#All],7,FALSE)) -> 0 | R68: 0 | U68: =IF(ISERROR(BMVT[[#This Row],[Origem]]&" - "&BMVT[[#This Row],[Destino]]),"",BMVT[[#This Row],[Origem]]&" - "&BMVT[[#This Row],[Destino]]) -> -
B69: =IF(ISERROR(VLOOKUP(BMVT[[#This Row],[Matrícula]],Usuarios[#All],2,FALSE)),"",VLOOKUP(BMVT[[#This Row],[Matrícula]],Usuarios[#All],2,FALSE)) ->  | C69: =IF(ISERROR(VLOOKUP(BMVT[[#This Row],[Matrícula]],Usuarios[#All],3,FALSE)),"",VLOOKUP(BMVT[[#This Row],[Matrícula]],Usuarios[#All],3,FALSE)) ->  | D69: =IF(ISERROR(VLOOKUP(BMVT[[#This Row],[Matrícula]],Usuarios[#All],4,FALSE)),"",VLOOKUP(BMVT[[#This Row],[Matrícula]],Usuarios[#All],4,FALSE)) ->  | E69: =IF(ISERROR(VLOOKUP(BMVT[[#This Row],[Matrícula]],Usuarios[#All],5,FALSE)),"",VLOOKUP(BMVT[[#This Row],[Matrícula]],Usuarios[#All],5,FALSE)) ->  | H69: =IF(ISERROR(VLOOKUP(BMVT[[#This Row],[Rota]],Rotas[#All],3,FALSE)),"",VLOOKUP(BMVT[[#This Row],[Rota]],Rotas[#All],3,FALSE)) ->  | I69: =IF(ISERROR(VLOOKUP(BMVT[[#This Row],[Rota]],Rotas[#All],4,FALSE)),"",VLOOKUP(BMVT[[#This Row],[Rota]],Rotas[#All],4,FALSE)) ->  | J69: =IF(ISERROR(VLOOKUP(BMVT[[#This Row],[Rota]],Rotas[#All],5,FALSE)),"",VLOOKUP(BMVT[[#This Row],[Rota]],Rotas[#All],5,FALSE)) ->  | K69: =IF(ISERROR(VLOOKUP(BMVT[[#This Row],[Rota]],Rotas[#All],6,FALSE)),"",VLOOKUP(BMVT[[#This Row],[Rota]],Rotas[#All],6,FALSE)) ->  | M69: 0 | N69: 0 | O69: =BMVT[[#This Row],[Quant. Apur.]] -> 0 | P69: 0 | Q69: =IF(ISERROR(VLOOKUP(BMVT[[#This Row],[Rota]],Rotas[#All],7,FALSE)),0,VLOOKUP(BMVT[[#This Row],[Rota]],Rotas[#All],7,FALSE)) -> 0 | R69: 0 | U69: =IF(ISERROR(BMVT[[#This Row],[Origem]]&" - "&BMVT[[#This Row],[Destino]]),"",BMVT[[#This Row],[Origem]]&" - "&BMVT[[#This Row],[Destino]]) -> -
B70: =IF(ISERROR(VLOOKUP(BMVT[[#This Row],[Matrícula]],Usuarios[#All],2,FALSE)),"",VLOOKUP(BMVT[[#This Row],[Matrícula]],Usuarios[#All],2,FALSE)) ->  | C70: =IF(ISERROR(VLOOKUP(BMVT[[#This Row],[Matrícula]],Usuarios[#All],3,FALSE)),"",VLOOKUP(BMVT[[#This Row],[Matrícula]],Usuarios[#All],3,FALSE)) ->  | D70: =IF(ISERROR(VLOOKUP(BMVT[[#This Row],[Matrícula]],Usuarios[#All],4,FALSE)),"",VLOOKUP(BMVT[[#This Row],[Matrícula]],Usuarios[#All],4,FALSE)) ->  | E70: =IF(ISERROR(VLOOKUP(BMVT[[#This Row],[Matrícula]],Usuarios[#All],5,FALSE)),"",VLOOKUP(BMVT[[#This Row],[Matrícula]],Usuarios[#All],5,FALSE)) ->  | H70: =IF(ISERROR(VLOOKUP(BMVT[[#This Row],[Rota]],Rotas[#All],3,FALSE)),"",VLOOKUP(BMVT[[#This Row],[Rota]],Rotas[#All],3,FALSE)) ->  | I70: =IF(ISERROR(VLOOKUP(BMVT[[#This Row],[Rota]],Rotas[#All],4,FALSE)),"",VLOOKUP(BMVT[[#This Row],[Rota]],Rotas[#All],4,FALSE)) ->  | J70: =IF(ISERROR(VLOOKUP(BMVT[[#This Row],[Rota]],Rotas[#All],5,FALSE)),"",VLOOKUP(BMVT[[#This Row],[Rota]],Rotas[#All],5,FALSE)) ->  | K70: =IF(ISERROR(VLOOKUP(BMVT[[#This Row],[Rota]],Rotas[#All],6,FALSE)),"",VLOOKUP(BMVT[[#This Row],[Rota]],Rotas[#All],6,FALSE)) ->  | M70: 0 | N70: 0 | O70: =BMVT[[#This Row],[Quant. Apur.]] -> 0 | P70: 0 | Q70: =IF(ISERROR(VLOOKUP(BMVT[[#This Row],[Rota]],Rotas[#All],7,FALSE)),0,VLOOKUP(BMVT[[#This Row],[Rota]],Rotas[#All],7,FALSE)) -> 0 | R70: 0 | U70: =IF(ISERROR(BMVT[[#This Row],[Origem]]&" - "&BMVT[[#This Row],[Destino]]),"",BMVT[[#This Row],[Origem]]&" - "&BMVT[[#This Row],[Destino]]) -> -
B71: =IF(ISERROR(VLOOKUP(BMVT[[#This Row],[Matrícula]],Usuarios[#All],2,FALSE)),"",VLOOKUP(BMVT[[#This Row],[Matrícula]],Usuarios[#All],2,FALSE)) ->  | C71: =IF(ISERROR(VLOOKUP(BMVT[[#This Row],[Matrícula]],Usuarios[#All],3,FALSE)),"",VLOOKUP(BMVT[[#This Row],[Matrícula]],Usuarios[#All],3,FALSE)) ->  | D71: =IF(ISERROR(VLOOKUP(BMVT[[#This Row],[Matrícula]],Usuarios[#All],4,FALSE)),"",VLOOKUP(BMVT[[#This Row],[Matrícula]],Usuarios[#All],4,FALSE)) ->  | E71: =IF(ISERROR(VLOOKUP(BMVT[[#This Row],[Matrícula]],Usuarios[#All],5,FALSE)),"",VLOOKUP(BMVT[[#This Row],[Matrícula]],Usuarios[#All],5,FALSE)) ->  | H71: =IF(ISERROR(VLOOKUP(BMVT[[#This Row],[Rota]],Rotas[#All],3,FALSE)),"",VLOOKUP(BMVT[[#This Row],[Rota]],Rotas[#All],3,FALSE)) ->  | I71: =IF(ISERROR(VLOOKUP(BMVT[[#This Row],[Rota]],Rotas[#All],4,FALSE)),"",VLOOKUP(BMVT[[#This Row],[Rota]],Rotas[#All],4,FALSE)) ->  | J71: =IF(ISERROR(VLOOKUP(BMVT[[#This Row],[Rota]],Rotas[#All],5,FALSE)),"",VLOOKUP(BMVT[[#This Row],[Rota]],Rotas[#All],5,FALSE)) ->  | K71: =IF(ISERROR(VLOOKUP(BMVT[[#This Row],[Rota]],Rotas[#All],6,FALSE)),"",VLOOKUP(BMVT[[#This Row],[Rota]],Rotas[#All],6,FALSE)) ->  | M71: 0 | N71: =L71*$G$1 -> 0 | O71: =BMVT[[#This Row],[Quant. Apur.]] -> 0 | P71: =IF(ISERROR(O71/M71),0,O71/M71) -> 0 | Q71: =IF(ISERROR(VLOOKUP(BMVT[[#This Row],[Rota]],Rotas[#All],7,FALSE)),0,VLOOKUP(BMVT[[#This Row],[Rota]],Rotas[#All],7,FALSE)) -> 0 | R71: =O71*Q71 -> 0 | U71: =IF(ISERROR(BMVT[[#This Row],[Origem]]&" - "&BMVT[[#This Row],[Destino]]),"",BMVT[[#This Row],[Origem]]&" - "&BMVT[[#This Row],[Destino]]) -> -
B72: =IF(ISERROR(VLOOKUP(BMVT[[#This Row],[Matrícula]],Usuarios[#All],2,FALSE)),"",VLOOKUP(BMVT[[#This Row],[Matrícula]],Usuarios[#All],2,FALSE)) ->  | C72: =IF(ISERROR(VLOOKUP(BMVT[[#This Row],[Matrícula]],Usuarios[#All],3,FALSE)),"",VLOOKUP(BMVT[[#This Row],[Matrícula]],Usuarios[#All],3,FALSE)) ->  | D72: =IF(ISERROR(VLOOKUP(BMVT[[#This Row],[Matrícula]],Usuarios[#All],4,FALSE)),"",VLOOKUP(BMVT[[#This Row],[Matrícula]],Usuarios[#All],4,FALSE)) ->  | E72: =IF(ISERROR(VLOOKUP(BMVT[[#This Row],[Matrícula]],Usuarios[#All],5,FALSE)),"",VLOOKUP(BMVT[[#This Row],[Matrícula]],Usuarios[#All],5,FALSE)) ->  | H72: =IF(ISERROR(VLOOKUP(BMVT[[#This Row],[Rota]],Rotas[#All],3,FALSE)),"",VLOOKUP(BMVT[[#This Row],[Rota]],Rotas[#All],3,FALSE)) ->  | I72: =IF(ISERROR(VLOOKUP(BMVT[[#This Row],[Rota]],Rotas[#All],4,FALSE)),"",VLOOKUP(BMVT[[#This Row],[Rota]],Rotas[#All],4,FALSE)) ->  | J72: =IF(ISERROR(VLOOKUP(BMVT[[#This Row],[Rota]],Rotas[#All],5,FALSE)),"",VLOOKUP(BMVT[[#This Row],[Rota]],Rotas[#All],5,FALSE)) ->  | K72: =IF(ISERROR(VLOOKUP(BMVT[[#This Row],[Rota]],Rotas[#All],6,FALSE)),"",VLOOKUP(BMVT[[#This Row],[Rota]],Rotas[#All],6,FALSE)) ->  | M72: 0 | N72: =L72*$G$1 -> 0 | O72: =BMVT[[#This Row],[Quant. Apur.]] -> 0 | P72: =IF(ISERROR(O72/M72),0,O72/M72) -> 0 | Q72: =IF(ISERROR(VLOOKUP(BMVT[[#This Row],[Rota]],Rotas[#All],7,FALSE)),0,VLOOKUP(BMVT[[#This Row],[Rota]],Rotas[#All],7,FALSE)) -> 0 | R72: =O72*Q72 -> 0 | U72: =IF(ISERROR(BMVT[[#This Row],[Origem]]&" - "&BMVT[[#This Row],[Destino]]),"",BMVT[[#This Row],[Origem]]&" - "&BMVT[[#This Row],[Destino]]) -> -
A73: Total | M73: =SUBTOTAL(109,BMVT[Chipagem]) -> 50 | N73: =SUBTOTAL(109,BMVT[Quant. Apur.]) -> 1008 | O73: =SUBTOTAL(109,BMVT[Qtd. Solic.]) -> 835 | P73: =SUBTOTAL(109,BMVT[Dias Lanc Sist.]) -> 386 | R73: =SUBTOTAL(109,BMVT[Vlr. Total]) -> 5932.16 | U73: =IF(ISERROR(BMVT[[#This Row],[Origem]]&" - "&BMVT[[#This Row],[Destino]]),"",BMVT[[#This Row],[Origem]]&" - "&BMVT[[#This Row],[Destino]]) -> 
U74: =IF(ISERROR(BMVT[[#This Row],[Origem]]&" - "&BMVT[[#This Row],[Destino]]),"",BMVT[[#This Row],[Origem]]&" - "&BMVT[[#This Row],[Destino]]) -> 
U75: =IF(ISERROR(BMVT[[#This Row],[Origem]]&" - "&BMVT[[#This Row],[Destino]]),"",BMVT[[#This Row],[Origem]]&" - "&BMVT[[#This Row],[Destino]]) -> 
U76: =IF(ISERROR(BMVT[[#This Row],[Origem]]&" - "&BMVT[[#This Row],[Destino]]),"",BMVT[[#This Row],[Origem]]&" - "&BMVT[[#This Row],[Destino]]) -> 
A77: ="Salvador, "&TEXT(TODAY(),"dd/mm/aaaa") -> Salvador, 29/06/2016 | G77: =A77 -> Salvador, 29/06/2016 | U77: =IF(ISERROR(BMVT[[#This Row],[Origem]]&" - "&BMVT[[#This Row],[Destino]]),"",BMVT[[#This Row],[Origem]]&" - "&BMVT[[#This Row],[Destino]]) -> 
U78: =IF(ISERROR(BMVT[[#This Row],[Origem]]&" - "&BMVT[[#This Row],[Destino]]),"",BMVT[[#This Row],[Origem]]&" - "&BMVT[[#This Row],[Destino]]) -> 
U79: =IF(ISERROR(BMVT[[#This Row],[Origem]]&" - "&BMVT[[#This Row],[Destino]]),"",BMVT[[#This Row],[Origem]]&" - "&BMVT[[#This Row],[Destino]]) -> 
A81: Responsável pelo Boletim de Medição | G81: Gerente Serviço de Pessoal de Salvador -SSPE

Sheet Recibo
F2: 14
A3: =LOOKUP(9.99999999999999E+307,$A$5:A97) -> 0
B4: Empresa | C4: =VLOOKUP(INDEX(Empresas!$A$4:$J$17,Recibo!$F$2,1),Empresas!$A$4:$J$17,2,FALSE) -> Vera Cruz Transportes
A5: 0 | B5: CNPJ | C5: =VLOOKUP(INDEX(Empresas!$A$4:$J$17,Recibo!$F$2,1),Empresas!$A$4:$J$17,6,FALSE) -> 00.613.277/0001-90 | Q5: Trechos
A6: =IF(ISNUMBER(MATCH(BMVT[[#This Row],[Empresa]],$C$4,0)),LOOKUP(9.99999999999999E+307,$A$5:A5)+1,"") ->  | B6: Endereço | C6: =VLOOKUP(INDEX(Empresas!$A$4:$J$17,Recibo!$F$2,1),Empresas!$A$4:$J$17,3,FALSE) -> Rua José Eloi, 14, Jaburu | Q6: =IF(COUNTA($A$6:A6)>$A$3,"",LOOKUP(COUNTA($A$6:A6),A6:$A$80,BMVT!U6:$U$78)) -> 
A7: =IF(ISNUMBER(MATCH(BMVT[[#This Row],[Empresa]],$C$4,0)),LOOKUP(9.99999999999999E+307,$A$5:A6)+1,"") ->  | B7: Cidade | C7: =VLOOKUP(INDEX(Empresas!$A$4:$J$17,Recibo!$F$2,1),Empresas!$A$4:$J$17,4,FALSE) -> Vera Cruz | Q7: =IF(COUNTA($A$6:A7)>$A$3,"",LOOKUP(COUNTA($A$6:A7),A7:$A$80,BMVT!U7:$U$78)) -> 
A8: =IF(ISNUMBER(MATCH(BMVT[[#This Row],[Empresa]],$C$4,0)),LOOKUP(9.99999999999999E+307,$A$5:A7)+1,"") ->  | B8: UF | C8: =VLOOKUP(INDEX(Empresas!$A$4:$J$17,Recibo!$F$2,1),Empresas!$A$4:$J$17,5,FALSE) -> Bahia | Q8: =IF(COUNTA($A$6:A8)>$A$3,"",LOOKUP(COUNTA($A$6:A8),A8:$A$80,BMVT!U8:$U$78)) -> 
A9: =IF(ISNUMBER(MATCH(BMVT[[#This Row],[Empresa]],$C$4,0)),LOOKUP(9.99999999999999E+307,$A$5:A8)+1,"") ->  | Q9: =IF(COUNTA($A$6:A9)>$A$3,"",LOOKUP(COUNTA($A$6:A9),A9:$A$80,BMVT!U9:$U$78)) -> 
A10: =IF(ISNUMBER(MATCH(BMVT[[#This Row],[Empresa]],$C$4,0)),LOOKUP(9.99999999999999E+307,$A$5:A9)+1,"") ->  | Q10: =IF(COUNTA($A$6:A10)>$A$3,"",LOOKUP(COUNTA($A$6:A10),A10:$A$80,BMVT!U10:$U$78)) -> 
A11: =IF(ISNUMBER(MATCH(BMVT[[#This Row],[Empresa]],$C$4,0)),LOOKUP(9.99999999999999E+307,$A$5:A10)+1,"") ->  | B11: Recibo Provisório | Q11: =IF(COUNTA($A$6:A11)>$A$3,"",LOOKUP(COUNTA($A$6:A11),A11:$A$80,BMVT!U11:$U$78)) -> 
A12: =IF(ISNUMBER(MATCH(BMVT[[#This Row],[Empresa]],$C$4,0)),LOOKUP(9.99999999999999E+307,$A$5:A11)+1,"") ->  | Q12: =IF(COUNTA($A$6:A12)>$A$3,"",LOOKUP(COUNTA($A$6:A12),A12:$A$80,BMVT!U12:$U$78)) -> 
A13: =IF(ISNUMBER(MATCH(BMVT[[#This Row],[Empresa]],$C$4,0)),LOOKUP(9.99999999999999E+307,$A$5:A12)+1,"") ->  | Q13: =IF(COUNTA($A$6:A13)>$A$3,"",LOOKUP(COUNTA($A$6:A13),A13:$A$80,BMVT!U13:$U$78)) -> 
A14: =IF(ISNUMBER(MATCH(BMVT[[#This Row],[Empresa]],$C$4,0)),LOOKUP(9.99999999999999E+307,$A$5:A13)+1,"") ->  | B14: A receber de: | Q14: =IF(COUNTA($A$6:A14)>$A$3,"",LOOKUP(COUNTA($A$6:A14),A14:$A$80,BMVT!U14:$U$78)) -> 
A15: =IF(ISNUMBER(MATCH(BMVT[[#This Row],[Empresa]],$C$4,0)),LOOKUP(9.99999999999999E+307,$A$5:A14)+1,"") ->  | Q15: =IF(COUNTA($A$6:A15)>$A$3,"",LOOKUP(COUNTA($A$6:A15),A15:$A$80,BMVT!U15:$U$78)) -> 
A16: =IF(ISNUMBER(MATCH(BMVT[[#This Row],[Empresa]],$C$4,0)),LOOKUP(9.99999999999999E+307,$A$5:A15)+1,"") ->  | B16: ="Companhia Hidro Elétrica do São Francisco - Chesf, situada na Avenida São Rafael s/n, bairro de São Marcos, inscrita sob o CNPJ 33.541.368.0004/69, a importância equivalente a "&TEXT(B76,"R$ #.##0,00")&" ("&Extenso_Valor(SUMIF(BMVT[[#All],[Empresa]],C4,BMVT[[#All],[Vlr. Total]]))&") referente a compra de "&SUMIF(BMVT[[#All],[Empresa]],C4,BMVT[[#All],[Qtd. Solic.]])&" vales destinados ao mês de "&TEXT(BMVT!D2,"mmmm/aaaa")&" "&YEAR(TODAY())&" para as seguintes linhas:" -> Companhia Hidro Elétrica do São Francisco - Chesf, situada na Avenida São Rafael s/n, bairro de São Marcos, inscrita sob o CNPJ 33.541.368.0004/69, a importância equivalente a R$ 0,00 () referente a compra de 0 vales destinados ao mês de Julho 2016 para as seguintes linhas: | Q16: =IF(COUNTA($A$6:A16)>$A$3,"",LOOKUP(COUNTA($A$6:A16),A16:$A$80,BMVT!U16:$U$78)) -> 
A17: =IF(ISNUMBER(MATCH(BMVT[[#This Row],[Empresa]],$C$4,0)),LOOKUP(9.99999999999999E+307,$A$5:A16)+1,"") ->  | Q17: =IF(COUNTA($A$6:A17)>$A$3,"",LOOKUP(COUNTA($A$6:A17),A17:$A$80,BMVT!U17:$U$78)) -> 
A18: =IF(ISNUMBER(MATCH(BMVT[[#This Row],[Empresa]],$C$4,0)),LOOKUP(9.99999999999999E+307,$A$5:A17)+1,"") ->  | Q18: =IF(COUNTA($A$6:A18)>$A$3,"",LOOKUP(COUNTA($A$6:A18),A18:$A$80,BMVT!U17:$U$78)) -> 
A19: =IF(ISNUMBER(MATCH(BMVT[[#This Row],[Empresa]],$C$4,0)),LOOKUP(9.99999999999999E+307,$A$5:A18)+1,"") ->  | Q19: =IF(COUNTA($A$6:A19)>$A$3,"",LOOKUP(COUNTA($A$6:A19),A19:$A$80,BMVT!U18:$U$78)) -> 
A20: =IF(ISNUMBER(MATCH(BMVT[[#This Row],[Empresa]],$C$4,0)),LOOKUP(9.99999999999999E+307,$A$5:A19)+1,"") ->  | B20: Origem - Destino | O20: =IF(ISNUMBER(MATCH(BMVT[[#This Row],[Empresa]],$C$4,0)),LOOKUP(9.99999999999999E+307,$A$6:A16)+1,"") ->  | Q20: =IF(COUNTA($A$6:A20)>$A$3,"",LOOKUP(COUNTA($A$6:A20),A20:$A$80,BMVT!U19:$U$78)) -> 
A21: =IF(ISNUMBER(MATCH(BMVT[[#This Row],[Empresa]],$C$4,0)),LOOKUP(9.99999999999999E+307,$A$5:A20)+1,"") ->  | B21: =IFERROR(INDEX($Q$6:$Q$80, MATCH(0, COUNTIF($B$20:B20, $Q$6:$Q$80), 0)),"") ->  | O21: =IF(ISNUMBER(MATCH(BMVT[[#This Row],[Empresa]],$C$4,0)),LOOKUP(9.99999999999999E+307,$A$6:A17)+1,"") ->  | P21: =IF(COUNTA($A$6:A6)>$A$4,"",LOOKUP(COUNTA($A$6:A6),A6:$A$21,BMVT!T6:$T$19)) ->  | Q21: =IF(COUNTA($A$6:A21)>$A$3,"",LOOKUP(COUNTA($A$6:A21),A21:$A$80,BMVT!U20:$U$78)) -> 
A22: =IF(ISNUMBER(MATCH(BMVT[[#This Row],[Empresa]],$C$4,0)),LOOKUP(9.99999999999999E+307,$A$5:A21)+1,"") ->  | B22: =IFERROR(INDEX($Q$6:$Q$80, MATCH(0, COUNTIF($B$20:B21, $Q$6:$Q$80), 0)),"") ->  | O22: =IF(ISNUMBER(MATCH(BMVT[[#This Row],[Empresa]],$C$4,0)),LOOKUP(9.99999999999999E+307,$A$6:A18)+1,"") ->  | P22: =IF(COUNTA($A$6:A7)>$A$4,"",LOOKUP(COUNTA($A$6:A7),A7:$A$21,BMVT!T7:$T$19)) ->  | Q22: =IF(COUNTA($A$6:A22)>$A$3,"",LOOKUP(COUNTA($A$6:A22),A22:$A$80,BMVT!U21:$U$78)) -> 
A23: =IF(ISNUMBER(MATCH(BMVT[[#This Row],[Empresa]],$C$4,0)),LOOKUP(9.99999999999999E+307,$A$5:A22)+1,"") ->  | B23: =IFERROR(INDEX($Q$6:$Q$80, MATCH(0, COUNTIF($B$20:B22, $Q$6:$Q$80), 0)),"") ->  | O23: =IF(ISNUMBER(MATCH(BMVT[[#This Row],[Empresa]],$C$4,0)),LOOKUP(9.99999999999999E+307,$A$6:A19)+1,"") ->  | P23: =IF(COUNTA($A$6:A8)>$A$4,"",LOOKUP(COUNTA($A$6:A8),A8:$A$21,BMVT!T8:$T$19)) ->  | Q23: =IF(COUNTA($A$6:A23)>$A$3,"",LOOKUP(COUNTA($A$6:A23),A23:$A$80,BMVT!U22:$U$78)) -> 
A24: =IF(ISNUMBER(MATCH(BMVT[[#This Row],[Empresa]],$C$4,0)),LOOKUP(9.99999999999999E+307,$A$5:A23)+1,"") ->  | B24: =IFERROR(INDEX($Q$6:$Q$80, MATCH(0, COUNTIF($B$20:B23, $Q$6:$Q$80), 0)),"") ->  | O24: =IF(ISNUMBER(MATCH(BMVT[[#This Row],[Empresa]],$C$4,0)),LOOKUP(9.99999999999999E+307,$A$6:A20)+1,"") ->  | P24: =IF(COUNTA($A$6:A9)>$A$4,"",LOOKUP(COUNTA($A$6:A9),A9:$A$21,BMVT!T9:$T$19)) ->  | Q24: =IF(COUNTA($A$6:A24)>$A$3,"",LOOKUP(COUNTA($A$6:A24),A24:$A$80,BMVT!U23:$U$78)) -> 
A25: =IF(ISNUMBER(MATCH(BMVT[[#This Row],[Empresa]],$C$4,0)),LOOKUP(9.99999999999999E+307,$A$5:A24)+1,"") ->  | B25: =IFERROR(INDEX($Q$6:$Q$80, MATCH(0, COUNTIF($B$20:B24, $Q$6:$Q$80), 0)),"") ->  | O25: =IF(ISNUMBER(MATCH(BMVT[[#This Row],[Empresa]],$C$4,0)),LOOKUP(9.99999999999999E+307,$A$6:A21)+1,"") ->  | P25: =IF(COUNTA($A$6:A10)>$A$4,"",LOOKUP(COUNTA($A$6:A10),A10:$A$21,BMVT!T10:$T$19)) ->  | Q25: =IF(COUNTA($A$6:A25)>$A$3,"",LOOKUP(COUNTA($A$6:A25),A25:$A$80,BMVT!U24:$U$78)) -> 
A26: =IF(ISNUMBER(MATCH(BMVT[[#This Row],[Empresa]],$C$4,0)),LOOKUP(9.99999999999999E+307,$A$5:A25)+1,"") ->  | B26: =IFERROR(INDEX($Q$6:$Q$80, MATCH(0, COUNTIF($B$20:B25, $Q$6:$Q$80), 0)),"") ->  | D26: =IF(COUNTA($A$6:A11)>$A$4,"",LOOKUP(COUNTA($A$6:A11),A11:$A$21,BMVT!I9:$I$17)) ->  | O26: =IF(ISNUMBER(MATCH(BMVT[[#This Row],[Empresa]],$C$4,0)),LOOKUP(9.99999999999999E+307,$A$6:A22)+1,"") ->  | P26: =IF(COUNTA($A$6:A11)>$A$4,"",LOOKUP(COUNTA($A$6:A11),A11:$A$21,BMVT!T11:$T$19)) ->  | Q26: =IF(COUNTA($A$6:A26)>$A$3,"",LOOKUP(COUNTA($A$6:A26),A26:$A$80,BMVT!U25:$U$78)) -> 
A27: =IF(ISNUMBER(MATCH(BMVT[[#This Row],[Empresa]],$C$4,0)),LOOKUP(9.99999999999999E+307,$A$5:A26)+1,"") ->  | B27: =IFERROR(INDEX($Q$6:$Q$80, MATCH(0, COUNTIF($B$20:B26, $Q$6:$Q$80), 0)),"") ->  | D27: =IF(COUNTA($A$6:A12)>$A$4,"",LOOKUP(COUNTA($A$6:A12),A12:$A$21,BMVT!I10:$I$17)) ->  | O27: =IF(ISNUMBER(MATCH(BMVT[[#This Row],[Empresa]],$C$4,0)),LOOKUP(9.99999999999999E+307,$A$6:A23)+1,"") ->  | P27: =IF(COUNTA($A$6:A12)>$A$4,"",LOOKUP(COUNTA($A$6:A12),A12:$A$21,BMVT!T12:$T$19)) ->  | Q27: =IF(COUNTA($A$6:A27)>$A$3,"",LOOKUP(COUNTA($A$6:A27),A27:$A$80,BMVT!U26:$U$78)) -> 
A28: =IF(ISNUMBER(MATCH(BMVT[[#This Row],[Empresa]],$C$4,0)),LOOKUP(9.99999999999999E+307,$A$5:A27)+1,"") ->  | B28: O pagamento deverá ser efetuado através de depósito bancário na conta corrente descrita | Q28: =IF(COUNTA($A$6:A28)>$A$3,"",LOOKUP(COUNTA($A$6:A28),A28:$A$80,BMVT!U27:$U$78)) -> 
A29: =IF(ISNUMBER(MATCH(BMVT[[#This Row],[Empresa]],$C$4,0)),LOOKUP(9.99999999999999E+307,$A$5:A28)+1,"") ->  | B29: abaixo: | Q29: =IF(COUNTA($A$6:A29)>$A$3,"",LOOKUP(COUNTA($A$6:A29),A29:$A$80,BMVT!U28:$U$78)) -> 
A30: =IF(ISNUMBER(MATCH(BMVT[[#This Row],[Empresa]],$C$4,0)),LOOKUP(9.99999999999999E+307,$A$5:A29)+1,"") ->  | B30: Titular | C30: =VLOOKUP(INDEX(Empresas!$A$4:$J$17,Recibo!$F$2,1),Empresas!$A$4:$J$17,7,FALSE) -> Vera Cruz Transportes e Serviços Marítimos Ltda | Q30: =IF(COUNTA($A$6:A30)>$A$3,"",LOOKUP(COUNTA($A$6:A30),A30:$A$80,BMVT!U29:$U$78)) -> 
A31: =IF(ISNUMBER(MATCH(BMVT[[#This Row],[Empresa]],$C$4,0)),LOOKUP(9.99999999999999E+307,$A$5:A30)+1,"") ->  | B31: Banco | C31: =VLOOKUP(INDEX(Empresas!$A$4:$J$17,Recibo!$F$2,1),Empresas!$A$4:$J$17,8,FALSE) -> Banco do Brasil | Q31: =IF(COUNTA($A$6:A31)>$A$3,"",LOOKUP(COUNTA($A$6:A31),A31:$A$80,BMVT!U30:$U$78)) -> 
A32: =IF(ISNUMBER(MATCH(BMVT[[#This Row],[Empresa]],$C$4,0)),LOOKUP(9.99999999999999E+307,$A$5:A31)+1,"") ->  | B32: Agência | C32: =VLOOKUP(INDEX(Empresas!$A$4:$J$17,Recibo!$F$2,1),Empresas!$A$4:$J$17,9,FALSE) -> 3921-7 | Q32: =IF(COUNTA($A$6:A32)>$A$3,"",LOOKUP(COUNTA($A$6:A32),A32:$A$80,BMVT!U31:$U$78)) -> 
A33: =IF(ISNUMBER(MATCH(BMVT[[#This Row],[Empresa]],$C$4,0)),LOOKUP(9.99999999999999E+307,$A$5:A32)+1,"") ->  | B33: C/C | C33: =VLOOKUP(INDEX(Empresas!$A$4:$J$17,Recibo!$F$2,1),Empresas!$A$4:$J$17,10,FALSE) -> 5738-X | Q33: =IF(COUNTA($A$6:A33)>$A$3,"",LOOKUP(COUNTA($A$6:A33),A33:$A$80,BMVT!U32:$U$78)) -> 
A34: =IF(ISNUMBER(MATCH(BMVT[[#This Row],[Empresa]],$C$4,0)),LOOKUP(9.99999999999999E+307,$A$5:A33)+1,"") ->  | Q34: =IF(COUNTA($A$6:A34)>$A$3,"",LOOKUP(COUNTA($A$6:A34),A34:$A$80,BMVT!U33:$U$78)) -> 
A35: =IF(ISNUMBER(MATCH(BMVT[[#This Row],[Empresa]],$C$4,0)),LOOKUP(9.99999999999999E+307,$A$5:A34)+1,"") ->  | B35: Obs.O recibo definitivo será retirado quando da comprovação de efetivo pagamento. | Q35: =IF(COUNTA($A$6:A35)>$A$3,"",LOOKUP(COUNTA($A$6:A35),A35:$A$80,BMVT!U34:$U$78)) -> 
A36: =IF(ISNUMBER(MATCH(BMVT[[#This Row],[Empresa]],$C$4,0)),LOOKUP(9.99999999999999E+307,$A$5:A35)+1,"") ->  | Q36: =IF(COUNTA($A$6:A36)>$A$3,"",LOOKUP(COUNTA($A$6:A36),A36:$A$80,BMVT!U35:$U$78)) -> 
A37: =IF(ISNUMBER(MATCH(BMVT[[#This Row],[Empresa]],$C$4,0)),LOOKUP(9.99999999999999E+307,$A$5:A36)+1,"") ->  | Q37: =IF(COUNTA($A$6:A37)>$A$3,"",LOOKUP(COUNTA($A$6:A37),A37:$A$80,BMVT!U36:$U$78)) -> 
A38: =IF(ISNUMBER(MATCH(BMVT[[#This Row],[Empresa]],$C$4,0)),LOOKUP(9.99999999999999E+307,$A$5:A37)+1,"") ->  | Q38: =IF(COUNTA($A$6:A38)>$A$3,"",LOOKUP(COUNTA($A$6:A38),A38:$A$80,BMVT!U37:$U$78)) -> 
A39: =IF(ISNUMBER(MATCH(BMVT[[#This Row],[Empresa]],$C$4,0)),LOOKUP(9.99999999999999E+307,$A$5:A38)+1,"") ->  | B39: Salvador, | C39: =TODAY() -> 2016-06-29 | Q39: =IF(COUNTA($A$6:A39)>$A$3,"",LOOKUP(COUNTA($A$6:A39),A39:$A$80,BMVT!U38:$U$78)) -> 
A40: =IF(ISNUMBER(MATCH(BMVT[[#This Row],[Empresa]],$C$4,0)),LOOKUP(9.99999999999999E+307,$A$5:A39)+1,"") ->  | Q40: =IF(COUNTA($A$6:A40)>$A$3,"",LOOKUP(COUNTA($A$6:A40),A40:$A$80,BMVT!U39:$U$78)) -> 
A41: =IF(ISNUMBER(MATCH(BMVT[[#This Row],[Empresa]],$C$4,0)),LOOKUP(9.99999999999999E+307,$A$5:A40)+1,"") ->  | Q41: =IF(COUNTA($A$6:A41)>$A$3,"",LOOKUP(COUNTA($A$6:A41),A41:$A$80,BMVT!U40:$U$78)) -> 
A42: =IF(ISNUMBER(MATCH(BMVT[[#This Row],[Empresa]],$C$4,0)),LOOKUP(9.99999999999999E+307,$A$5:A41)+1,"") ->  | Q42: =IF(COUNTA($A$6:A42)>$A$3,"",LOOKUP(COUNTA($A$6:A42),A42:$A$80,BMVT!U41:$U$78)) -> 
A43: =IF(ISNUMBER(MATCH(BMVT[[#This Row],[Empresa]],$C$4,0)),LOOKUP(9.99999999999999E+307,$A$5:A42)+1,"") ->  | B43: Responsável pelo Boletim de Medição | E43: Gerente Serviço de Pessoal de Salvador -SSPE | Q43: =IF(COUNTA($A$6:A43)>$A$3,"",LOOKUP(COUNTA($A$6:A43),A43:$A$80,BMVT!U42:$U$78)) -> 
A44: =IF(ISNUMBER(MATCH(BMVT[[#This Row],[Empresa]],$C$4,0)),LOOKUP(9.99999999999999E+307,$A$5:A43)+1,"") ->  | Q44: =IF(COUNTA($A$6:A44)>$A$3,"",LOOKUP(COUNTA($A$6:A44),A44:$A$80,BMVT!U43:$U$78)) -> 
A45: =IF(ISNUMBER(MATCH(BMVT[[#This Row],[Empresa]],$C$4,0)),LOOKUP(9.99999999999999E+307,$A$5:A44)+1,"") ->  | Q45: =IF(COUNTA($A$6:A45)>$A$3,"",LOOKUP(COUNTA($A$6:A45),A45:$A$80,BMVT!U44:$U$78)) -> 
A46: =IF(ISNUMBER(MATCH(BMVT[[#This Row],[Empresa]],$C$4,0)),LOOKUP(9.99999999999999E+307,$A$5:A45)+1,"") ->  | Q46: =IF(COUNTA($A$6:A46)>$A$3,"",LOOKUP(COUNTA($A$6:A46),A46:$A$80,BMVT!U45:$U$78)) -> 
A47: =IF(ISNUMBER(MATCH(BMVT[[#This Row],[Empresa]],$C$4,0)),LOOKUP(9.99999999999999E+307,$A$5:A46)+1,"") ->  | Q47: =IF(COUNTA($A$6:A47)>$A$3,"",LOOKUP(COUNTA($A$6:A47),A47:$A$80,BMVT!U46:$U$78)) -> 
A48: =IF(ISNUMBER(MATCH(BMVT[[#This Row],[Empresa]],$C$4,0)),LOOKUP(9.99999999999999E+307,$A$5:A47)+1,"") ->  | Q48: =IF(COUNTA($A$6:A48)>$A$3,"",LOOKUP(COUNTA($A$6:A48),A48:$A$80,BMVT!U47:$U$78)) -> 
A49: =IF(ISNUMBER(MATCH(BMVT[[#This Row],[Empresa]],$C$4,0)),LOOKUP(9.99999999999999E+307,$A$5:A48)+1,"") ->  | Q49: =IF(COUNTA($A$6:A49)>$A$3,"",LOOKUP(COUNTA($A$6:A49),A49:$A$80,BMVT!U48:$U$78)) -> 
A50: =IF(ISNUMBER(MATCH(BMVT[[#This Row],[Empresa]],$C$4,0)),LOOKUP(9.99999999999999E+307,$A$5:A49)+1,"") ->  | Q50: =IF(COUNTA($A$6:A50)>$A$3,"",LOOKUP(COUNTA($A$6:A50),A50:$A$80,BMVT!U49:$U$78)) -> 
A51: =IF(ISNUMBER(MATCH(BMVT[[#This Row],[Empresa]],$C$4,0)),LOOKUP(9.99999999999999E+307,$A$5:A50)+1,"") ->  | B51: À | Q51: =IF(COUNTA($A$6:A51)>$A$3,"",LOOKUP(COUNTA($A$6:A51),A51:$A$80,BMVT!U50:$U$78)) -> 
A52: =IF(ISNUMBER(MATCH(BMVT[[#This Row],[Empresa]],$C$4,0)),LOOKUP(9.99999999999999E+307,$A$5:A51)+1,"") ->  | B52: ASV | Q52: =IF(COUNTA($A$6:A52)>$A$3,"",LOOKUP(COUNTA($A$6:A52),A52:$A$80,BMVT!U51:$U$78)) -> 
A53: =IF(ISNUMBER(MATCH(BMVT[[#This Row],[Empresa]],$C$4,0)),LOOKUP(9.99999999999999E+307,$A$5:A52)+1,"") ->  | B53: ="Pagamento de vales transportes da Rota "&(B21)&" para Empregado da Regional Sul, mês de "&BMVT!D2&" "&YEAR(TODAY())&", conforme BMM anexo" -> Pagamento de vales transportes da Rota para Empregado da Regional Sul, mês de Julho 2016, conforme BMM anexo | Q53: =IF(COUNTA($A$6:A53)>$A$3,"",LOOKUP(COUNTA($A$6:A53),A53:$A$80,BMVT!U52:$U$78)) -> 
A54: =IF(ISNUMBER(MATCH(BMVT[[#This Row],[Empresa]],$C$4,0)),LOOKUP(9.99999999999999E+307,$A$5:A53)+1,"") ->  | B54: IO – SSPE | Q54: =IF(COUNTA($A$6:A54)>$A$3,"",LOOKUP(COUNTA($A$6:A54),A54:$A$80,BMVT!U53:$U$78)) -> 
A55: =IF(ISNUMBER(MATCH(BMVT[[#This Row],[Empresa]],$C$4,0)),LOOKUP(9.99999999999999E+307,$A$5:A54)+1,"") ->  | B55: CC – 157 | Q55: =IF(COUNTA($A$6:A55)>$A$3,"",LOOKUP(COUNTA($A$6:A55),A55:$A$80,BMVT!U54:$U$78)) -> 
A56: =IF(ISNUMBER(MATCH(BMVT[[#This Row],[Empresa]],$C$4,0)),LOOKUP(9.99999999999999E+307,$A$5:A55)+1,"") ->  | B56: NO - 06020000 | Q56: =IF(COUNTA($A$6:A56)>$A$3,"",LOOKUP(COUNTA($A$6:A56),A56:$A$80,BMVT!U55:$U$78)) -> 
A57: =IF(ISNUMBER(MATCH(BMVT[[#This Row],[Empresa]],$C$4,0)),LOOKUP(9.99999999999999E+307,$A$5:A56)+1,"") ->  | Q57: =IF(COUNTA($A$6:A57)>$A$3,"",LOOKUP(COUNTA($A$6:A57),A57:$A$80,BMVT!U56:$U$78)) -> 
A58: =IF(ISNUMBER(MATCH(BMVT[[#This Row],[Empresa]],$C$4,0)),LOOKUP(9.99999999999999E+307,$A$5:A57)+1,"") ->  | Q58: =IF(COUNTA($A$6:A58)>$A$3,"",LOOKUP(COUNTA($A$6:A58),A58:$A$80,BMVT!U57:$U$78)) -> 
A59: =IF(ISNUMBER(MATCH(BMVT[[#This Row],[Empresa]],$C$4,0)),LOOKUP(9.99999999999999E+307,$A$5:A58)+1,"") ->  | Q59: =IF(COUNTA($A$6:A59)>$A$3,"",LOOKUP(COUNTA($A$6:A59),A59:$A$80,BMVT!U58:$U$78)) -> 
A60: =IF(ISNUMBER(MATCH(BMVT[[#This Row],[Empresa]],$C$4,0)),LOOKUP(9.99999999999999E+307,$A$5:A59)+1,"") ->  | Q60: =IF(COUNTA($A$6:A60)>$A$3,"",LOOKUP(COUNTA($A$6:A60),A60:$A$80,BMVT!U59:$U$78)) -> 
A61: =IF(ISNUMBER(MATCH(BMVT[[#This Row],[Empresa]],$C$4,0)),LOOKUP(9.99999999999999E+307,$A$5:A60)+1,"") ->  | Q61: =IF(COUNTA($A$6:A61)>$A$3,"",LOOKUP(COUNTA($A$6:A61),A61:$A$80,BMVT!U60:$U$78)) -> 
A62: =IF(ISNUMBER(MATCH(BMVT[[#This Row],[Empresa]],$C$4,0)),LOOKUP(9.99999999999999E+307,$A$5:A61)+1,"") ->  | Q62: =IF(COUNTA($A$6:A62)>$A$3,"",LOOKUP(COUNTA($A$6:A62),A62:$A$80,BMVT!U61:$U$78)) -> 
A63: =IF(ISNUMBER(MATCH(BMVT[[#This Row],[Empresa]],$C$4,0)),LOOKUP(9.99999999999999E+307,$A$5:A62)+1,"") ->  | Q63: =IF(COUNTA($A$6:A63)>$A$3,"",LOOKUP(COUNTA($A$6:A63),A63:$A$80,BMVT!U62:$U$78)) -> 
A64: =IF(ISNUMBER(MATCH(BMVT[[#This Row],[Empresa]],$C$4,0)),LOOKUP(9.99999999999999E+307,$A$5:A63)+1,"") ->  | Q64: =IF(COUNTA($A$6:A64)>$A$3,"",LOOKUP(COUNTA($A$6:A64),A64:$A$80,BMVT!U63:$U$78)) -> 
A65: =IF(ISNUMBER(MATCH(BMVT[[#This Row],[Empresa]],$C$4,0)),LOOKUP(9.99999999999999E+307,$A$5:A64)+1,"") ->  | Q65: =IF(COUNTA($A$6:A65)>$A$3,"",LOOKUP(COUNTA($A$6:A65),A65:$A$80,BMVT!U64:$U$78)) -> 
A66: =IF(ISNUMBER(MATCH(BMVT[[#This Row],[Empresa]],$C$4,0)),LOOKUP(9.99999999999999E+307,$A$5:A65)+1,"") ->  | Q66: =IF(COUNTA($A$6:A66)>$A$3,"",LOOKUP(COUNTA($A$6:A66),A66:$A$80,BMVT!U65:$U$78)) -> 
A67: =IF(ISNUMBER(MATCH(BMVT[[#This Row],[Empresa]],$C$4,0)),LOOKUP(9.99999999999999E+307,$A$5:A66)+1,"") ->  | Q67: =IF(COUNTA($A$6:A67)>$A$3,"",LOOKUP(COUNTA($A$6:A67),A67:$A$80,BMVT!U66:$U$78)) -> 
A68: =IF(ISNUMBER(MATCH(BMVT[[#This Row],[Empresa]],$C$4,0)),LOOKUP(9.99999999999999E+307,$A$5:A67)+1,"") ->  | Q68: =IF(COUNTA($A$6:A68)>$A$3,"",LOOKUP(COUNTA($A$6:A68),A68:$A$80,BMVT!U67:$U$78)) -> 
A69: =IF(ISNUMBER(MATCH(BMVT[[#This Row],[Empresa]],$C$4,0)),LOOKUP(9.99999999999999E+307,$A$5:A68)+1,"") ->  | Q69: =IF(COUNTA($A$6:A69)>$A$3,"",LOOKUP(COUNTA($A$6:A69),A69:$A$80,BMVT!U68:$U$78)) -> 
A70: =IF(ISNUMBER(MATCH(BMVT[[#This Row],[Empresa]],$C$4,0)),LOOKUP(9.99999999999999E+307,$A$5:A69)+1,"") ->  | Q70: =IF(COUNTA($A$6:A70)>$A$3,"",LOOKUP(COUNTA($A$6:A70),A70:$A$80,BMVT!U69:$U$78)) -> 
A71: =IF(ISNUMBER(MATCH(BMVT[[#This Row],[Empresa]],$C$4,0)),LOOKUP(9.99999999999999E+307,$A$5:A70)+1,"") ->  | Q71: =IF(COUNTA($A$6:A71)>$A$3,"",LOOKUP(COUNTA($A$6:A71),A71:$A$80,BMVT!U70:$U$78)) -> 
A72: =IF(ISNUMBER(MATCH(BMVT[[#This Row],[Empresa]],$C$4,0)),LOOKUP(9.99999999999999E+307,$A$5:A71)+1,"") ->  | Q72: =IF(COUNTA($A$6:A72)>$A$3,"",LOOKUP(COUNTA($A$6:A72),A72:$A$80,BMVT!U71:$U$78)) -> 
A73: =IF(ISNUMBER(MATCH(BMVT[[#This Row],[Empresa]],$C$4,0)),LOOKUP(9.99999999999999E+307,$A$5:A72)+1,"") ->  | Q73: =IF(COUNTA($A$6:A73)>$A$3,"",LOOKUP(COUNTA($A$6:A73),A73:$A$80,BMVT!U72:$U$78)) -> 
A74: =IF(ISNUMBER(MATCH(BMVT[[#This Row],[Empresa]],$C$4,0)),LOOKUP(9.99999999999999E+307,$A$5:A73)+1,"") ->  | Q74: =IF(COUNTA($A$6:A74)>$A$3,"",LOOKUP(COUNTA($A$6:A74),A74:$A$80,BMVT!U73:$U$78)) -> 
A75: =IF(ISNUMBER(MATCH(BMVT[[#This Row],[Empresa]],$C$4,0)),LOOKUP(9.99999999999999E+307,$A$5:A74)+1,"") ->  | Q75: =IF(COUNTA($A$6:A75)>$A$3,"",LOOKUP(COUNTA($A$6:A75),A75:$A$80,BMVT!U74:$U$78)) -> 
A76: =IF(ISNUMBER(MATCH(BMVT[[#This Row],[Empresa]],$C$4,0)),LOOKUP(9.99999999999999E+307,$A$5:A75)+1,"") ->  | B76: =SUMIF(BMVT[[#All],[Empresa]],C4,BMVT[[#All],[Vlr. Total]]) -> 0 | Q76: =IF(COUNTA($A$6:A76)>$A$3,"",LOOKUP(COUNTA($A$6:A76),A76:$A$80,BMVT!U75:$U$78)) -> 
A77: =IF(ISNUMBER(MATCH(BMVT[[#This Row],[Empresa]],$C$4,0)),LOOKUP(9.99999999999999E+307,$A$5:A76)+1,"") ->  | Q77: =IF(COUNTA($A$6:A77)>$A$3,"",LOOKUP(COUNTA($A$6:A77),A77:$A$80,BMVT!U76:$U$78)) -> 
A78: =IF(ISNUMBER(MATCH(BMVT[[#This Row],[Empresa]],$C$4,0)),LOOKUP(9.99999999999999E+307,$A$5:A77)+1,"") ->  | Q78: =IF(COUNTA($A$6:A78)>$A$3,"",LOOKUP(COUNTA($A$6:A78),A78:$A$80,BMVT!U77:$U$78)) -> 
A79: =IF(ISNUMBER(MATCH(BMVT[[#This Row],[Empresa]],$C$4,0)),LOOKUP(9.99999999999999E+307,$A$5:A78)+1,"") ->  | Q79: =IF(COUNTA($A$6:A79)>$A$3,"",LOOKUP(COUNTA($A$6:A79),A79:$A$80,BMVT!U78:$U$78)) -> 
A80: =IF(ISNUMBER(MATCH(BMVT[[#This Row],[Empresa]],$C$4,0)),LOOKUP(9.99999999999999E+307,$A$5:A79)+1,"") ->  | Q80: =IF(COUNTA($A$6:A80)>$A$3,"",LOOKUP(COUNTA($A$6:A80),A80:$A$80,BMVT!U$78:$U79)) -> 
Q81: =IF(COUNTA($A$6:A66)>$A$3,"",LOOKUP(COUNTA($A$6:A66),A$20:$A66,BMVT!U65:$U$78)) -> 
Q82: =IF(COUNTA($A$6:A67)>$A$3,"",LOOKUP(COUNTA($A$6:A67),A$20:$A67,BMVT!U66:$U$78)) -> 
Q83: =IF(COUNTA($A$6:A68)>$A$3,"",LOOKUP(COUNTA($A$6:A68),A$20:$A68,BMVT!U67:$U$78)) -> 
Q84: =IF(COUNTA($A$6:A69)>$A$3,"",LOOKUP(COUNTA($A$6:A69),A$20:$A69,BMVT!U68:$U$78)) -> 
Q85: =IF(COUNTA($A$6:A70)>$A$3,"",LOOKUP(COUNTA($A$6:A70),A$20:$A70,BMVT!U69:$U$78)) -> 
Q86: =IF(COUNTA($A$6:A71)>$A$3,"",LOOKUP(COUNTA($A$6:A71),A$20:$A71,BMVT!U70:$U$78)) -> 
Q87: =IF(COUNTA($A$6:A72)>$A$3,"",LOOKUP(COUNTA($A$6:A72),A$20:$A72,BMVT!U71:$U$78)) -> 
Q88: =IF(COUNTA($A$6:A73)>$A$3,"",LOOKUP(COUNTA($A$6:A73),A$20:$A73,BMVT!U72:$U$78)) -> 
Q89: =IF(COUNTA($A$6:A74)>$A$3,"",LOOKUP(COUNTA($A$6:A74),A$20:$A74,BMVT!U73:$U$78)) -> 
Q90: =IF(COUNTA($A$6:A75)>$A$3,"",LOOKUP(COUNTA($A$6:A75),A$20:$A75,BMVT!U74:$U$78)) -> 
Q91: =IF(COUNTA($A$6:A76)>$A$3,"",LOOKUP(COUNTA($A$6:A76),A$20:$A76,BMVT!U75:$U$78)) -> 
Q92: =IF(COUNTA($A$6:A77)>$A$3,"",LOOKUP(COUNTA($A$6:A77),A$20:$A77,BMVT!U76:$U$78)) -> 
Q93: =IF(COUNTA($A$6:A78)>$A$3,"",LOOKUP(COUNTA($A$6:A78),A$20:$A78,BMVT!U77:$U$78)) -> 
Q94: =IF(COUNTA($A$6:A79)>$A$3,"",LOOKUP(COUNTA($A$6:A79),A$20:$A79,BMVT!U78:$U$78)) -> 
Q95: =IF(COUNTA($A$6:A80)>$A$3,"",LOOKUP(COUNTA($A$6:A80),A$20:$A80,BMVT!U$78:$U79)) -> 
Q96: =IF(COUNTA($A$6:A81)>$A$3,"",LOOKUP(COUNTA($A$6:A81),A$20:$A81,BMVT!U$78:$U80)) -> 
Q97: =IF(COUNTA($A$6:A82)>$A$3,"",LOOKUP(COUNTA($A$6:A82),A$20:$A82,BMVT!U$78:$U81)) -> 
Q98: =IF(COUNTA($A$6:A83)>$A$3,"",LOOKUP(COUNTA($A$6:A83),A$20:$A83,BMVT!U$78:$U82)) -> 
Q99: =IF(COUNTA($A$6:A84)>$A$3,"",LOOKUP(COUNTA($A$6:A84),A$20:$A84,BMVT!U$78:$U83)) -> 

Sheet Julho
A1: Boletim Mensal de Vales Transporte | D1: Competência: | F1: Dias Úteis (Mês): | G1: =VLOOKUP(INDEX($W$6:$AF$16,$W$5,1),$W$6:$AF$16,9,FALSE) -> 21 | I1: SC (Empregado): | J1: 0 | K1: =(SUMIFS(BMVT9[Vlr. Total],BMVT9[Vínculo],"<>Aprendiz",BMVT9[Empresa], "Salvador Card"))-J1 -> 1300.2 | N1: Qtd Usuários | O1: =SUMPRODUCT(SUBTOTAL(3,OFFSET(BMVT9[Matrícula],ROW(BMVT9[Matrícula])-ROW(A6),0,1)),--(BMVT9[Situação]="Regular")) -> 24
D2: =VLOOKUP(INDEX($W$6:$AF$16,$W$5,1),$W$6:$AF$16,1,FALSE) -> Julho | F2: Compesações: | G2: =VLOOKUP(INDEX($W$6:$AF$16,$W$5,1),$W$6:$AF$16,10,FALSE) -> 0 | I2: SC (Aprendiz): | J2: 0 | K2: =(SUMIFS(BMVT9[Vlr. Total],BMVT9[Vínculo],"Aprendiz",BMVT9[Empresa],"Salvador Card"))-J2 -> 0 | N2: Qtd VT : | O2: =SUMPRODUCT(SUBTOTAL(9,OFFSET(BMVT9[Qtd. Solic.],ROW(BMVT9[Qtd. Solic.])-ROW(O6),0,1)),--(BMVT9[Situação]="Regular")) -> 835
F3: Desconto : | G3: 0 | I3: Metropasse: | J3: 132 | K3: =(SUMIF(BMVT9[Empresa],"Metropasse",BMVT9[Vlr. Total]))-J3 -> 283.8 | N3: Valor Total: | O3: =SUMPRODUCT(SUBTOTAL(9,OFFSET(BMVT9[Vlr. Total],ROW(BMVT9[Vlr. Total])-ROW(R6),0,1)),--(BMVT9[Situação]="Regular")) -> 5932.16
A5: Matrícula | B5: Empregado | C5: Vínculo | D5: Lotação | E5: Setor | F5: Rota | G5: Situação | H5: Origem | I5: Destino | J5: Tipo | K5: Empresa | L5: Vales/Trecho | M5: Chipagem | N5: Quant. Apur. | O5: Qtd. Solic. | P5: Dias Lanc Sist. | Q5: Vlr. Unit. | R5: Vlr. Total | U5: Trechos | W5: 7 | X5: Período | Z5: Feriados | AB5: Compensações | AE5: DU
A6: 000.001 | B6: João | C6: Anistiado | D6: Salvador | E6: ADMINISTRATIVO | F6: xxxxx-Y | G6: Regular | H6: Dias D'Ávila | I6: Camaçari | J6: Intermunicipal | K6: Cidade das Águas | L6: 2 | M6: 2 | N6: 42 | O6: 42 | P6: 21 | Q6: 2.8 | R6: 117.6 | U6: =IF(ISERROR(BMVT9[[#This Row],[Origem]]&" - "&BMVT9[[#This Row],[Destino]]),"",BMVT9[[#This Row],[Origem]]&" - "&BMVT9[[#This Row],[Destino]]) -> Dias D'Ávila - Camaçari | W6: Janeiro | X6: 2016-01-01 | Y6: 2016-01-31 | Z6: 2016-01-01 | AE6: =NETWORKDAYS(X6,Y6,Z6:AD6) -> 20 | AF6: =COUNTA(AB6:AD6) -> 0
A7: 000.002 | B7: Maria | C7: Anistiado | D7: Salvador | E7: ADMINISTRATIVO | F7: 23196 | G7: Regular | H7: Alagoinhas | I7: Salvador | J7: Intermunicipal | K7: Cidade Sol | L7: 2 | M7: 2 | N7: 42 | O7: 42 | P7: 21 | Q7: 28.35 | R7: 1190.7 | U7: =IF(ISERROR(BMVT9[[#This Row],[Origem]]&" - "&BMVT9[[#This Row],[Destino]]),"",BMVT9[[#This Row],[Origem]]&" - "&BMVT9[[#This Row],[Destino]]) -> Alagoinhas - Salvador | W7: Fevereiro | X7: 2016-02-01 | Y7: 2016-02-29 | Z7: 2016-02-08 | AB7: 2016-02-09 | AC7: 2016-02-10 | AE7: =NETWORKDAYS(X7,Y7,Z7:AD7) -> 18 | AF7: =COUNTA(AB7:AD7) -> 2
A8: 000.003 | B8: Francisco | C8: Anistiado | D8: Salvador | E8: ADMINISTRATIVO | F8: 23184 | G8: Regular | H8: Jequié | I8: Ipiaú | J8: Intermunicipal | K8: Cidade Sol | L8: 2 | M8: 2 | N8: 42 | O8: 48 | P8: 24 | Q8: 10.65 | R8: 511.2 | U8: =IF(ISERROR(BMVT9[[#This Row],[Origem]]&" - "&BMVT9[[#This Row],[Destino]]),"",BMVT9[[#This Row],[Origem]]&" - "&BMVT9[[#This Row],[Destino]]) -> Jequié - Ipiaú | W8: Março | X8: 2016-03-01 | Y8: 2016-03-31 | Z8: 2016-03-25 | AB8: 2016-03-24 | AE8: =NETWORKDAYS(X8,Y8,Z8:AD8) -> 21 | AF8: 1
A9: 000.004 | B9: Ricardo | C9: Empregado | D9: Salvador | E9: ADMINISTRATIVO | F9: 23183 | G9: Regular | H9: Feira de Santana | I9: Feira de Santana | J9: Urbano | K9: Via Feira | L9: 2 | M9: 2 | N9: 42 | O9: 0 | P9: 0 | Q9: 3.1 | R9: 0 | U9: =IF(ISERROR(BMVT9[[#This Row],[Origem]]&" - "&BMVT9[[#This Row],[Destino]]),"",BMVT9[[#This Row],[Origem]]&" - "&BMVT9[[#This Row],[Destino]]) -> Feira de Santana - Feira de Santana | W9: Abril | X9: 2016-04-01 | Y9: 2016-04-30 | Z9: 2016-04-21 | AB9: 2016-01-22 | AE9: 20 | AF9: 1
A10: 000.005 | B10: Mauro | C10: Empregado | D10: Salvador | E10: ADMINISTRATIVO | F10: 23183 | G10: Regular | H10: Feira de Santana | I10: Feira de Santana | J10: Urbano | K10: Via Feira | L10: 2 | M10: 2 | N10: 42 | O10: 42 | P10: 21 | Q10: 3.1 | R10: 130.2 | U10: =IF(ISERROR(BMVT9[[#This Row],[Origem]]&" - "&BMVT9[[#This Row],[Destino]]),"",BMVT9[[#This Row],[Origem]]&" - "&BMVT9[[#This Row],[Destino]]) -> Feira de Santana - Feira de Santana | W10: Maio | X10: 2016-05-01 | Y10: 2016-05-31 | Z10: 2016-05-26 | AB10: 2016-05-27 | AE10: 20 | AF10: 1
A11: 000.006 | B11: Marcio | C11: Empregado | D11: Salvador | E11: ADMINISTRATIVO | F11: 23125-M | G11: Regular | H11: Conceição de Feira | I11: Salvador | J11: Intermunicipal | K11: Viação Jauá | L11: 2 | M11: 2 | N11: 42 | O11: 10 | P11: 5 | Q11: 23.03 | R11: 230.3 | U11: =IF(ISERROR(BMVT9[[#This Row],[Origem]]&" - "&BMVT9[[#This Row],[Destino]]),"",BMVT9[[#This Row],[Origem]]&" - "&BMVT9[[#This Row],[Destino]]) -> Conceição de Feira - Salvador | W11: Junho | X11: 2016-06-01 | Y11: 2016-06-30 | AE11: 22 | AF11: 0
A12: 000.007 | B12: Carla | C12: Empregado | D12: Salvador | E12: ADMINISTRATIVO | F12: 23125-M | G12: Regular | H12: Conceição de Feira | I12: Salvador | J12: Intermunicipal | K12: Viação Jauá | L12: 2 | M12: 2 | N12: 42 | O12: 42 | P12: 21 | Q12: 23.03 | R12: 967.26 | U12: =IF(ISERROR(BMVT9[[#This Row],[Origem]]&" - "&BMVT9[[#This Row],[Destino]]),"",BMVT9[[#This Row],[Origem]]&" - "&BMVT9[[#This Row],[Destino]]) -> Conceição de Feira - Salvador | W12: Julho | X12: 2016-07-01 | Y12: 2016-07-31 | AE12: 21 | AF12: 0
A13: 000.008 | B13: Caroline | C13: Empregado | D13: Salvador | E13: COMERCIAL | F13: 23190-V | G13: Regular | H13: Lauro de Freitas | I13: Salvador | J13: Intermunicipal | K13: Metropasse | L13: 2 | M13: 2 | N13: 42 | O13: 42 | P13: 21 | Q13: 3.3 | R13: 138.6 | U13: =IF(ISERROR(BMVT9[[#This Row],[Origem]]&" - "&BMVT9[[#This Row],[Destino]]),"",BMVT9[[#This Row],[Origem]]&" - "&BMVT9[[#This Row],[Destino]]) -> Lauro de Freitas - Salvador | W13: Agosto | X13: 2016-08-01 | Y13: 2016-08-31 | AE13: 23 | AF13: 0
A14: 000.009 | B14: Pedro | C14: Empregado | D14: Salvador | E14: COMERCIAL | F14: 23190-V | G14: Regular | H14: Lauro de Freitas | I14: Salvador | J14: Intermunicipal | K14: Metropasse | L14: 2 | M14: 2 | N14: 42 | O14: 0 | P14: 0 | Q14: 3.3 | R14: 0 | U14: =IF(ISERROR(BMVT9[[#This Row],[Origem]]&" - "&BMVT9[[#This Row],[Destino]]),"",BMVT9[[#This Row],[Origem]]&" - "&BMVT9[[#This Row],[Destino]]) -> Lauro de Freitas - Salvador | W14: Setembro | X14: 2016-09-01 | Y14: 2016-09-30 | Z14: 2016-09-07 | AE14: 21 | AF14: 0
A15: 000.010 | B15: Paulo | C15: Empregado | D15: Salvador | E15: COMERCIAL | F15: 23190-V | G15: Regular | H15: Lauro de Freitas | I15: Salvador | J15: Intermunicipal | K15: Metropasse | L15: 2 | M15: 2 | N15: 42 | O15: 42 | P15: 21 | Q15: 3.3 | R15: 138.6 | U15: =IF(ISERROR(BMVT9[[#This Row],[Origem]]&" - "&BMVT9[[#This Row],[Destino]]),"",BMVT9[[#This Row],[Origem]]&" - "&BMVT9[[#This Row],[Destino]]) -> Lauro de Freitas - Salvador | W15: Outubro | X15: 2016-10-01 | Y15: 2016-10-31 | Z15: 2016-10-12 | AE15: 20 | AF15: 0
A16: 000.011 | B16: Rafael | C16: Empregado | D16: Salvador | E16: COMERCIAL | F16: 23190-V | G16: Regular | H16: Lauro de Freitas | I16: Salvador | J16: Intermunicipal | K16: Metropasse | L16: 2 | M16: 2 | N16: 42 | O16: 42 | P16: 21 | Q16: 3.3 | R16: 138.6 | U16: =IF(ISERROR(BMVT9[[#This Row],[Origem]]&" - "&BMVT9[[#This Row],[Destino]]),"",BMVT9[[#This Row],[Origem]]&" - "&BMVT9[[#This Row],[Destino]]) -> Lauro de Freitas - Salvador | W16: Novembro | X16: 2016-11-01 | Y16: 2016-11-30 | Z16: 2016-11-02 | AA16: 2016-11-15 | AB16: 2016-11-14 | AE16: =NETWORKDAYS(X16,Y16,Z16:AD16) -> 19 | AF16: 1
A17: 000.012 | B17: Ricardo | C17: Empregado | D17: Salvador | E17: COMERCIAL | F17: 23170-I | G17: Regular | H17: Aracaju | I17: Aracaju | J17: Urbano | K17: Aracaju Card | L17: 2 | M17: 2 | N17: 42 | O17: 54 | P17: 27 | Q17: 3.1 | R17: 167.4 | U17: =IF(ISERROR(BMVT9[[#This Row],[Origem]]&" - "&BMVT9[[#This Row],[Destino]]),"",BMVT9[[#This Row],[Origem]]&" - "&BMVT9[[#This Row],[Destino]]) -> Aracaju - Aracaju
A18: 000.013 | B18: Jose | C18: Empregado | D18: Salvador | E18: COMERCIAL | F18: xxxxx-Y (Pool) | G18: Regular | H18: Feira de Santana | I18: Camaçari | J18: Intermunicipal | K18: Lis Transportes | L18: 2 | M18: 2 | N18: 42 | O18: 10 | P18: 5 | Q18: 650 | R18: 650 | U18: =IF(ISERROR(BMVT9[[#This Row],[Origem]]&" - "&BMVT9[[#This Row],[Destino]]),"",BMVT9[[#This Row],[Origem]]&" - "&BMVT9[[#This Row],[Destino]]) -> Feira de Santana - Camaçari
A19: 000.014 | B19: Felipe | C19: Empregado | D19: Salvador | E19: COMERCIAL | F19: 23182 | G19: Regular | H19: Amélia Rodrigues | I19: Governador Mangabeira | J19: Intermunicipal | K19: RD Transportes | L19: 2 | M19: 2 | N19: 42 | O19: 25 | P19: 12.5 | Q19: 10.06 | R19: 251.5 | U19: =IF(ISERROR(BMVT9[[#This Row],[Origem]]&" - "&BMVT9[[#This Row],[Destino]]),"",BMVT9[[#This Row],[Origem]]&" - "&BMVT9[[#This Row],[Destino]]) -> Amélia Rodrigues - Governador Mangabeira
A20: 000.015 | B20: Julio | C20: Empregado | D20: Salvador | E20: COMERCIAL | F20: 23101-A (09096) | G20: Regular | H20: Salvador | I20: Salvador | J20: Urbano | K20: Salvador Card | L20: 2 | M20: 4 | N20: 42 | O20: 42 | P20: 10.5 | Q20: 3.3 | R20: 138.6 | U20: =IF(ISERROR(BMVT9[[#This Row],[Origem]]&" - "&BMVT9[[#This Row],[Destino]]),"",BMVT9[[#This Row],[Origem]]&" - "&BMVT9[[#This Row],[Destino]]) -> Salvador - Salvador
A21: 000.016 | B21: Lucia | C21: Empregado | D21: Salvador | E21: PESSOAL | F21: 23101-A (09096) | G21: Regular | H21: Salvador | I21: Salvador | J21: Urbano | K21: Salvador Card | L21: 2 | M21: 2 | N21: 42 | O21: 44 | P21: 22 | Q21: 3.3 | R21: 145.2 | U21: =IF(ISERROR(BMVT9[[#This Row],[Origem]]&" - "&BMVT9[[#This Row],[Destino]]),"",BMVT9[[#This Row],[Origem]]&" - "&BMVT9[[#This Row],[Destino]]) -> Salvador - Salvador
A22: 000.017 | B22: Luciano | C22: Empregado | D22: Salvador | E22: PESSOAL | F22: 23101-A (09096) | G22: Regular | H22: Salvador | I22: Salvador | J22: Urbano | K22: Salvador Card | L22: 0 | M22: 0 | N22: 0 | O22: 0 | P22: 0 | Q22: 3.3 | R22: 0 | U22: =IF(ISERROR(BMVT9[[#This Row],[Origem]]&" - "&BMVT9[[#This Row],[Destino]]),"",BMVT9[[#This Row],[Origem]]&" - "&BMVT9[[#This Row],[Destino]]) -> Salvador - Salvador
A23: 000.018 | B23: Bruno | C23: Empregado | D23: Salvador | E23: PESSOAL | F23: 23101-A (09096) | G23: Regular | H23: Salvador | I23: Salvador | J23: Urbano | K23: Salvador Card | L23: 2 | M23: 2 | N23: 42 | O23: 42 | P23: 21 | Q23: 3.3 | R23: 138.6 | U23: =IF(ISERROR(BMVT9[[#This Row],[Origem]]&" - "&BMVT9[[#This Row],[Destino]]),"",BMVT9[[#This Row],[Origem]]&" - "&BMVT9[[#This Row],[Destino]]) -> Salvador - Salvador
A24: 000.019 | B24: Vinicius | C24: Anistiado | D24: Salvador | E24: PESSOAL | F24: 23101-A (09096) | G24: Regular | H24: Salvador | I24: Salvador | J24: Urbano | K24: Salvador Card | L24: 2 | M24: 2 | N24: 42 | O24: 42 | P24: 21 | Q24: 3.3 | R24: 138.6
A25: 000.020 | B25: José Carlos | C25: Empregado | D25: Salvador | E25: LOGISTICA | F25: 23101-A (09096) | G25: Regular | H25: Salvador | I25: Salvador | J25: Urbano | K25: Salvador Card | L25: 2 | M25: 2 | N25: 42 | O25: 42 | P25: 21 | Q25: 3.3 | R25: 138.6 | U25: =IF(ISERROR(BMVT9[[#This Row],[Origem]]&" - "&BMVT9[[#This Row],[Destino]]),"",BMVT9[[#This Row],[Origem]]&" - "&BMVT9[[#This Row],[Destino]]) -> Salvador - Salvador
A26: 000.021 | B26: Carlos | C26: Empregado | D26: Salvador | E26: LOGISTICA | F26: 23101-A (09096) | G26: Regular | H26: Salvador | I26: Salvador | J26: Urbano | K26: Salvador Card | L26: 2 | M26: 2 | N26: 42 | O26: 42 | P26: 21 | Q26: 3.3 | R26: 138.6 | U26: =IF(ISERROR(BMVT9[[#This Row],[Origem]]&" - "&BMVT9[[#This Row],[Destino]]),"",BMVT9[[#This Row],[Origem]]&" - "&BMVT9[[#This Row],[Destino]]) -> Salvador - Salvador
A27: 000.022 | B27: Miguel | C27: Empregado | D27: Salvador | E27: LOGISTICA | F27: 23101-A (09096) | G27: Regular | H27: Salvador | I27: Salvador | J27: Urbano | K27: Salvador Card | L27: 2 | M27: 2 | N27: 42 | O27: 42 | P27: 21 | Q27: 3.3 | R27: 138.6 | U27: =IF(ISERROR(BMVT9[[#This Row],[Origem]]&" - "&BMVT9[[#This Row],[Destino]]),"",BMVT9[[#This Row],[Origem]]&" - "&BMVT9[[#This Row],[Destino]]) -> Salvador - Salvador
A28: 000.023 | B28: Gustavo | C28: Empregado | D28: Salvador | E28: FINANCEIRO | F28: 23101-A (09096) | G28: Regular | H28: Salvador | I28: Salvador | J28: Urbano | K28: Salvador Card | L28: 4 | M28: 4 | N28: 84 | O28: 84 | P28: 21 | Q28: 3.3 | R28: 277.2 | U28: =IF(ISERROR(BMVT9[[#This Row],[Origem]]&" - "&BMVT9[[#This Row],[Destino]]),"",BMVT9[[#This Row],[Origem]]&" - "&BMVT9[[#This Row],[Destino]]) -> Salvador - Salvador
A29: 000.024 | B29: Guilherme | C29: Empregado | D29: Salvador | E29: FINANCEIRO | F29: 23101-A (09096) | G29: Irregular | H29: Salvador | I29: Salvador | J29: Urbano | K29: Salvador Card | L29: 0 | M29: 0 | N29: 0 | O29: 0 | P29: 0 | Q29: 3.3 | R29: 0 | U29: =IF(ISERROR(BMVT9[[#This Row],[Origem]]&" - "&BMVT9[[#This Row],[Destino]]),"",BMVT9[[#This Row],[Origem]]&" - "&BMVT9[[#This Row],[Destino]]) -> Salvador - Salvador
A30: 000.025 | B30: Bruno Brito | C30: Empregado | D30: Salvador | E30: FINANCEIRO | F30: 23101-A (09096) | G30: Regular | H30: Salvador | I30: Salvador | J30: Urbano | K30: Salvador Card | L30: 2 | M30: 2 | N30: 42 | O30: 14 | P30: 7 | Q30: 3.3 | R30: 46.2 | U30: =IF(ISERROR(BMVT9[[#This Row],[Origem]]&" - "&BMVT9[[#This Row],[Destino]]),"",BMVT9[[#This Row],[Origem]]&" - "&BMVT9[[#This Row],[Destino]]) -> Salvador - Salvador
M31: 0 | N31: 0 | O31: 0 | P31: 0 | Q31: 0 | R31: 0 | U31: =IF(ISERROR(BMVT9[[#This Row],[Origem]]&" - "&BMVT9[[#This Row],[Destino]]),"",BMVT9[[#This Row],[Origem]]&" - "&BMVT9[[#This Row],[Destino]]) -> -
M32: 0 | N32: 0 | O32: 0 | P32: 0 | Q32: 0 | R32: 0 | U32: =IF(ISERROR(BMVT9[[#This Row],[Origem]]&" - "&BMVT9[[#This Row],[Destino]]),"",BMVT9[[#This Row],[Origem]]&" - "&BMVT9[[#This Row],[Destino]]) -> -
M33: 0 | N33: 0 | O33: 0 | P33: 0 | Q33: 0 | R33: 0 | U33: =IF(ISERROR(BMVT9[[#This Row],[Origem]]&" - "&BMVT9[[#This Row],[Destino]]),"",BMVT9[[#This Row],[Origem]]&" - "&BMVT9[[#This Row],[Destino]]) -> -
M34: 0 | N34: 0 | O34: 0 | P34: 0 | Q34: 0 | R34: 0 | U34: =IF(ISERROR(BMVT9[[#This Row],[Origem]]&" - "&BMVT9[[#This Row],[Destino]]),"",BMVT9[[#This Row],[Origem]]&" - "&BMVT9[[#This Row],[Destino]]) -> -
M35: 0 | N35: 0 | O35: 0 | P35: 0 | Q35: 0 | R35: 0 | U35: =IF(ISERROR(BMVT9[[#This Row],[Origem]]&" - "&BMVT9[[#This Row],[Destino]]),"",BMVT9[[#This Row],[Origem]]&" - "&BMVT9[[#This Row],[Destino]]) -> -
M36: 0 | N36: 0 | O36: 0 | P36: 0 | Q36: 0 | R36: 0 | U36: =IF(ISERROR(BMVT9[[#This Row],[Origem]]&" - "&BMVT9[[#This Row],[Destino]]),"",BMVT9[[#This Row],[Origem]]&" - "&BMVT9[[#This Row],[Destino]]) -> -
M37: 0 | N37: 0 | O37: 0 | P37: 0 | Q37: 0 | R37: 0 | U37: =IF(ISERROR(BMVT9[[#This Row],[Origem]]&" - "&BMVT9[[#This Row],[Destino]]),"",BMVT9[[#This Row],[Origem]]&" - "&BMVT9[[#This Row],[Destino]]) -> -
M38: 0 | N38: 0 | O38: 0 | P38: 0 | Q38: 0 | R38: 0 | U38: =IF(ISERROR(BMVT9[[#This Row],[Origem]]&" - "&BMVT9[[#This Row],[Destino]]),"",BMVT9[[#This Row],[Origem]]&" - "&BMVT9[[#This Row],[Destino]]) -> -
M39: 0 | N39: 0 | O39: 0 | P39: 0 | Q39: 0 | R39: 0 | U39: =IF(ISERROR(BMVT9[[#This Row],[Origem]]&" - "&BMVT9[[#This Row],[Destino]]),"",BMVT9[[#This Row],[Origem]]&" - "&BMVT9[[#This Row],[Destino]]) -> -
M40: 0 | N40: 0 | O40: 0 | P40: 0 | Q40: 0 | R40: 0 | U40: =IF(ISERROR(BMVT9[[#This Row],[Origem]]&" - "&BMVT9[[#This Row],[Destino]]),"",BMVT9[[#This Row],[Origem]]&" - "&BMVT9[[#This Row],[Destino]]) -> -
M41: 0 | N41: 0 | O41: 0 | P41: 0 | Q41: 0 | R41: 0 | U41: =IF(ISERROR(BMVT9[[#This Row],[Origem]]&" - "&BMVT9[[#This Row],[Destino]]),"",BMVT9[[#This Row],[Origem]]&" - "&BMVT9[[#This Row],[Destino]]) -> -
M42: 0 | N42: 0 | O42: 0 | P42: 0 | Q42: 0 | R42: 0 | U42: =IF(ISERROR(BMVT9[[#This Row],[Origem]]&" - "&BMVT9[[#This Row],[Destino]]),"",BMVT9[[#This Row],[Origem]]&" - "&BMVT9[[#This Row],[Destino]]) -> -
M43: 0 | N43: 0 | O43: 0 | P43: 0 | Q43: 0 | R43: 0 | U43: =IF(ISERROR(BMVT9[[#This Row],[Origem]]&" - "&BMVT9[[#This Row],[Destino]]),"",BMVT9[[#This Row],[Origem]]&" - "&BMVT9[[#This Row],[Destino]]) -> -
M44: 0 | N44: 0 | O44: 0 | P44: 0 | Q44: 0 | R44: 0 | U44: =IF(ISERROR(BMVT9[[#This Row],[Origem]]&" - "&BMVT9[[#This Row],[Destino]]),"",BMVT9[[#This Row],[Origem]]&" - "&BMVT9[[#This Row],[Destino]]) -> -
M45: 0 | N45: 0 | O45: 0 | P45: 0 | Q45: 0 | R45: 0 | U45: =IF(ISERROR(BMVT9[[#This Row],[Origem]]&" - "&BMVT9[[#This Row],[Destino]]),"",BMVT9[[#This Row],[Origem]]&" - "&BMVT9[[#This Row],[Destino]]) -> -
M46: 0 | N46: 0 | O46: 0 | P46: 0 | Q46: 0 | R46: 0 | U46: =IF(ISERROR(BMVT9[[#This Row],[Origem]]&" - "&BMVT9[[#This Row],[Destino]]),"",BMVT9[[#This Row],[Origem]]&" - "&BMVT9[[#This Row],[Destino]]) -> -
M47: 0 | N47: 0 | O47: 0 | P47: 0 | Q47: 0 | R47: 0 | U47: =IF(ISERROR(BMVT9[[#This Row],[Origem]]&" - "&BMVT9[[#This Row],[Destino]]),"",BMVT9[[#This Row],[Origem]]&" - "&BMVT9[[#This Row],[Destino]]) -> -
M48: 0 | N48: 0 | O48: 0 | P48: 0 | Q48: 0 | R48: 0 | U48: =IF(ISERROR(BMVT9[[#This Row],[Origem]]&" - "&BMVT9[[#This Row],[Destino]]),"",BMVT9[[#This Row],[Origem]]&" - "&BMVT9[[#This Row],[Destino]]) -> -
M49: 0 | N49: 0 | O49: 0 | P49: 0 | Q49: 0 | R49: 0 | U49: =IF(ISERROR(BMVT9[[#This Row],[Origem]]&" - "&BMVT9[[#This Row],[Destino]]),"",BMVT9[[#This Row],[Origem]]&" - "&BMVT9[[#This Row],[Destino]]) -> -
M50: 0 | N50: 0 | O50: 0 | P50: 0 | Q50: 0 | R50: 0 | U50: =IF(ISERROR(BMVT9[[#This Row],[Origem]]&" - "&BMVT9[[#This Row],[Destino]]),"",BMVT9[[#This Row],[Origem]]&" - "&BMVT9[[#This Row],[Destino]]) -> -
M51: 0 | N51: 0 | O51: 0 | P51: 0 | Q51: 0 | R51: 0 | U51: =IF(ISERROR(BMVT9[[#This Row],[Origem]]&" - "&BMVT9[[#This Row],[Destino]]),"",BMVT9[[#This Row],[Origem]]&" - "&BMVT9[[#This Row],[Destino]]) -> -
M52: 0 | N52: 0 | O52: 0 | P52: 0 | Q52: 0 | R52: 0 | U52: =IF(ISERROR(BMVT9[[#This Row],[Origem]]&" - "&BMVT9[[#This Row],[Destino]]),"",BMVT9[[#This Row],[Origem]]&" - "&BMVT9[[#This Row],[Destino]]) -> -
M53: 0 | N53: 0 | O53: 0 | P53: 0 | Q53: 0 | R53: 0 | U53: =IF(ISERROR(BMVT9[[#This Row],[Origem]]&" - "&BMVT9[[#This Row],[Destino]]),"",BMVT9[[#This Row],[Origem]]&" - "&BMVT9[[#This Row],[Destino]]) -> -
M54: 0 | N54: 0 | O54: 0 | P54: 0 | Q54: 0 | R54: 0 | U54: =IF(ISERROR(BMVT9[[#This Row],[Origem]]&" - "&BMVT9[[#This Row],[Destino]]),"",BMVT9[[#This Row],[Origem]]&" - "&BMVT9[[#This Row],[Destino]]) -> -
M55: 0 | N55: 0 | O55: 0 | P55: 0 | Q55: 0 | R55: 0 | U55: =IF(ISERROR(BMVT9[[#This Row],[Origem]]&" - "&BMVT9[[#This Row],[Destino]]),"",BMVT9[[#This Row],[Origem]]&" - "&BMVT9[[#This Row],[Destino]]) -> -
M56: 0 | N56: 0 | O56: 0 | P56: 0 | Q56: 0 | R56: 0 | U56: =IF(ISERROR(BMVT9[[#This Row],[Origem]]&" - "&BMVT9[[#This Row],[Destino]]),"",BMVT9[[#This Row],[Origem]]&" - "&BMVT9[[#This Row],[Destino]]) -> -
M57: 0 | N57: 0 | O57: 0 | P57: 0 | Q57: 0 | R57: 0 | U57: =IF(ISERROR(BMVT9[[#This Row],[Origem]]&" - "&BMVT9[[#This Row],[Destino]]),"",BMVT9[[#This Row],[Origem]]&" - "&BMVT9[[#This Row],[Destino]]) -> -
M58: 0 | N58: 0 | O58: 0 | P58: 0 | Q58: 0 | R58: 0 | U58: =IF(ISERROR(BMVT9[[#This Row],[Origem]]&" - "&BMVT9[[#This Row],[Destino]]),"",BMVT9[[#This Row],[Origem]]&" - "&BMVT9[[#This Row],[Destino]]) -> -
M59: 0 | N59: 0 | O59: 0 | P59: 0 | Q59: 0 | R59: 0 | U59: =IF(ISERROR(BMVT9[[#This Row],[Origem]]&" - "&BMVT9[[#This Row],[Destino]]),"",BMVT9[[#This Row],[Origem]]&" - "&BMVT9[[#This Row],[Destino]]) -> -
M60: 0 | N60: 0 | O60: 0 | P60: 0 | Q60: 0 | R60: 0 | U60: =IF(ISERROR(BMVT9[[#This Row],[Origem]]&" - "&BMVT9[[#This Row],[Destino]]),"",BMVT9[[#This Row],[Origem]]&" - "&BMVT9[[#This Row],[Destino]]) -> -
M61: 0 | N61: 0 | O61: 0 | P61: 0 | Q61: 0 | R61: 0 | U61: =IF(ISERROR(BMVT9[[#This Row],[Origem]]&" - "&BMVT9[[#This Row],[Destino]]),"",BMVT9[[#This Row],[Origem]]&" - "&BMVT9[[#This Row],[Destino]]) -> -
M62: 0 | N62: 0 | O62: 0 | P62: 0 | Q62: 0 | R62: 0 | U62: =IF(ISERROR(BMVT9[[#This Row],[Origem]]&" - "&BMVT9[[#This Row],[Destino]]),"",BMVT9[[#This Row],[Origem]]&" - "&BMVT9[[#This Row],[Destino]]) -> -
M63: 0 | N63: 0 | O63: 0 | P63: 0 | Q63: 0 | R63: 0 | U63: =IF(ISERROR(BMVT9[[#This Row],[Origem]]&" - "&BMVT9[[#This Row],[Destino]]),"",BMVT9[[#This Row],[Origem]]&" - "&BMVT9[[#This Row],[Destino]]) -> -
M64: 0 | N64: 0 | O64: 0 | P64: 0 | Q64: 0 | R64: 0 | U64: =IF(ISERROR(BMVT9[[#This Row],[Origem]]&" - "&BMVT9[[#This Row],[Destino]]),"",BMVT9[[#This Row],[Origem]]&" - "&BMVT9[[#This Row],[Destino]]) -> -
M65: 0 | N65: 0 | O65: 0 | P65: 0 | Q65: 0 | R65: 0 | U65: =IF(ISERROR(BMVT9[[#This Row],[Origem]]&" - "&BMVT9[[#This Row],[Destino]]),"",BMVT9[[#This Row],[Origem]]&" - "&BMVT9[[#This Row],[Destino]]) -> -
M66: 0 | N66: 0 | O66: 0 | P66: 0 | Q66: 0 | R66: 0 | U66: =IF(ISERROR(BMVT9[[#This Row],[Origem]]&" - "&BMVT9[[#This Row],[Destino]]),"",BMVT9[[#This Row],[Origem]]&" - "&BMVT9[[#This Row],[Destino]]) -> -
M67: 0 | N67: 0 | O67: 0 | P67: 0 | Q67: 0 | R67: 0 | U67: =IF(ISERROR(BMVT9[[#This Row],[Origem]]&" - "&BMVT9[[#This Row],[Destino]]),"",BMVT9[[#This Row],[Origem]]&" - "&BMVT9[[#This Row],[Destino]]) -> -
M68: 0 | N68: 0 | O68: 0 | P68: 0 | Q68: 0 | R68: 0 | U68: =IF(ISERROR(BMVT9[[#This Row],[Origem]]&" - "&BMVT9[[#This Row],[Destino]]),"",BMVT9[[#This Row],[Origem]]&" - "&BMVT9[[#This Row],[Destino]]) -> -
M69: 0 | N69: 0 | O69: 0 | P69: 0 | Q69: 0 | R69: 0 | U69: =IF(ISERROR(BMVT9[[#This Row],[Origem]]&" - "&BMVT9[[#This Row],[Destino]]),"",BMVT9[[#This Row],[Origem]]&" - "&BMVT9[[#This Row],[Destino]]) -> -
M70: 0 | N70: 0 | O70: 0 | P70: 0 | Q70: 0 | R70: 0 | U70: =IF(ISERROR(BMVT9[[#This Row],[Origem]]&" - "&BMVT9[[#This Row],[Destino]]),"",BMVT9[[#This Row],[Origem]]&" - "&BMVT9[[#This Row],[Destino]]) -> -
M71: 0 | N71: 0 | O71: 0 | P71: 0 | Q71: 0 | R71: 0 | U71: =IF(ISERROR(BMVT9[[#This Row],[Origem]]&" - "&BMVT9[[#This Row],[Destino]]),"",BMVT9[[#This Row],[Origem]]&" - "&BMVT9[[#This Row],[Destino]]) -> -
M72: 0 | N72: 0 | O72: 0 | P72: 0 | Q72: 0 | R72: 0 | U72: =IF(ISERROR(BMVT9[[#This Row],[Origem]]&" - "&BMVT9[[#This Row],[Destino]]),"",BMVT9[[#This Row],[Origem]]&" - "&BMVT9[[#This Row],[Destino]]) -> -
M73: 0 | N73: 0 | O73: 0 | P73: 0 | Q73: 0 | R73: 0 | U73: =IF(ISERROR(BMVT9[[#This Row],[Origem]]&" - "&BMVT9[[#This Row],[Destino]]),"",BMVT9[[#This Row],[Origem]]&" - "&BMVT9[[#This Row],[Destino]]) -> -
A74: Total | M74: =SUBTOTAL(109,BMVT9[Chipagem]) -> 50 | N74: =SUBTOTAL(109,BMVT9[Quant. Apur.]) -> 1008 | O74: =SUBTOTAL(109,BMVT9[Qtd. Solic.]) -> 835 | P74: =SUBTOTAL(109,BMVT9[Dias Lanc Sist.]) -> 386 | R74: =SUBTOTAL(109,BMVT9[Vlr. Total]) -> 5932.16 | U74: =IF(ISERROR(BMVT9[[#This Row],[Origem]]&" - "&BMVT9[[#This Row],[Destino]]),"",BMVT9[[#This Row],[Origem]]&" - "&BMVT9[[#This Row],[Destino]]) -> 
U75: =IF(ISERROR(BMVT9[[#This Row],[Origem]]&" - "&BMVT9[[#This Row],[Destino]]),"",BMVT9[[#This Row],[Origem]]&" - "&BMVT9[[#This Row],[Destino]]) -> 
U76: =IF(ISERROR(BMVT9[[#This Row],[Origem]]&" - "&BMVT9[[#This Row],[Destino]]),"",BMVT9[[#This Row],[Origem]]&" - "&BMVT9[[#This Row],[Destino]]) -> 
U77: =IF(ISERROR(BMVT9[[#This Row],[Origem]]&" - "&BMVT9[[#This Row],[Destino]]),"",BMVT9[[#This Row],[Origem]]&" - "&BMVT9[[#This Row],[Destino]]) -> 
A78: ="Salvador, "&TEXT(TODAY(),"dd/mm/aaaa") -> Salvador, 29/06/2016 | G78: =A78 -> Salvador, 29/06/2016 | U78: =IF(ISERROR(BMVT9[[#This Row],[Origem]]&" - "&BMVT9[[#This Row],[Destino]]),"",BMVT9[[#This Row],[Origem]]&" - "&BMVT9[[#This Row],[Destino]]) -> 
U79: =IF(ISERROR(BMVT9[[#This Row],[Origem]]&" - "&BMVT9[[#This Row],[Destino]]),"",BMVT9[[#This Row],[Origem]]&" - "&BMVT9[[#This Row],[Destino]]) -> 
A82: Responsável pelo Boletim de Medição | G82: Gerente Serviço de Pessoal de Salvador -SSPE

Sheet Junho
A1: Boletim Mensal de Vales Transporte | D1: Competência: | F1: Dias Úteis (Mês): | G1: =VLOOKUP(INDEX($W$6:$AF$16,$W$5,1),$W$6:$AF$16,9,FALSE) -> 21 | I1: SC (Empregado): | J1: 0 | K1: =(SUMIFS(BMVT11[Vlr. Total],BMVT11[Vínculo],"<>Aprendiz",BMVT11[Empresa], "Salvador Card"))-J1 -> 1300.2 | N1: Qtd Usuários | O1: =SUMPRODUCT(SUBTOTAL(3,OFFSET(BMVT11[Matrícula],ROW(BMVT11[Matrícula])-ROW(A6),0,1)),--(BMVT11[Situação]="Regular")) -> 24
D2: =VLOOKUP(INDEX($W$6:$AF$16,$W$5,1),$W$6:$AF$16,1,FALSE) -> Junho | F2: Compesações: | G2: =VLOOKUP(INDEX($W$6:$AF$16,$W$5,1),$W$6:$AF$16,10,FALSE) -> 1 | I2: SC (Aprendiz): | J2: 0 | K2: =(SUMIFS(BMVT11[Vlr. Total],BMVT11[Vínculo],"Aprendiz",BMVT11[Empresa],"Salvador Card"))-J2 -> 0 | N2: Qtd VT : | O2: =SUMPRODUCT(SUBTOTAL(9,OFFSET(BMVT11[Qtd. Solic.],ROW(BMVT11[Qtd. Solic.])-ROW(O6),0,1)),--(BMVT11[Situação]="Regular")) -> 835
F3: Desconto : | G3: 0 | I3: Metropasse: | J3: 250.8 | K3: =(SUMIF(BMVT11[Empresa],"Metropasse",BMVT11[Vlr. Total]))-J3 -> 165 | N3: Valor Total: | O3: =SUMPRODUCT(SUBTOTAL(9,OFFSET(BMVT11[Vlr. Total],ROW(BMVT11[Vlr. Total])-ROW(R6),0,1)),--(BMVT11[Situação]="Regular")) -> 5932.16
A5: Matrícula | B5: Empregado | C5: Vínculo | D5: Lotação | E5: Setor | F5: Rota | G5: Situação | H5: Origem | I5: Destino | J5: Tipo | K5: Empresa | L5: Vales/Trecho | M5: Chipagem | N5: Quant. Apur. | O5: Qtd. Solic. | P5: Dias Lanc Sist. | Q5: Vlr. Unit. | R5: Vlr. Total | U5: Trechos | W5: 6 | X5: Período | Z5: Feriados | AB5: Compensações | AE5: DU
A6: 000.001 | B6: João | C6: Anistiado | D6: Salvador | E6: ADMINISTRATIVO | F6: xxxxx-Y | G6: Regular | H6: Dias D'Ávila | I6: Camaçari | J6: Intermunicipal | K6: Cidade das Águas | L6: 2 | M6: 2 | N6: 42 | O6: 42 | P6: 21 | Q6: 2.8 | R6: 117.6 | U6: =IF(ISERROR(BMVT11[[#This Row],[Origem]]&" - "&BMVT11[[#This Row],[Destino]]),"",BMVT11[[#This Row],[Origem]]&" - "&BMVT11[[#This Row],[Destino]]) -> Dias D'Ávila - Camaçari | W6: Janeiro | X6: 2016-01-01 | Y6: 2016-01-31 | Z6: 2016-01-01 | AE6: =NETWORKDAYS(X6,Y6,Z6:AD6) -> 20 | AF6: =COUNTA(AB6:AD6) -> 0
A7: 000.002 | B7: Maria | C7: Anistiado | D7: Salvador | E7: ADMINISTRATIVO | F7: 23196 | G7: Regular | H7: Alagoinhas | I7: Salvador | J7: Intermunicipal | K7: Cidade Sol | L7: 2 | M7: 2 | N7: 42 | O7: 42 | P7: 21 | Q7: 28.35 | R7: 1190.7 | U7: =IF(ISERROR(BMVT11[[#This Row],[Origem]]&" - "&BMVT11[[#This Row],[Destino]]),"",BMVT11[[#This Row],[Origem]]&" - "&BMVT11[[#This Row],[Destino]]) -> Alagoinhas - Salvador | W7: Fevereiro | X7: 2016-02-01 | Y7: 2016-02-29 | Z7: 2016-02-08 | AB7: 2016-02-09 | AC7: 2016-02-10 | AE7: =NETWORKDAYS(X7,Y7,Z7:AD7) -> 18 | AF7: =COUNTA(AB7:AD7) -> 2
A8: 000.003 | B8: Francisco | C8: Anistiado | D8: Salvador | E8: ADMINISTRATIVO | F8: 23184 | G8: Regular | H8: Jequié | I8: Ipiaú | J8: Intermunicipal | K8: Cidade Sol | L8: 2 | M8: 2 | N8: 42 | O8: 48 | P8: 24 | Q8: 10.65 | R8: 511.2 | U8: =IF(ISERROR(BMVT11[[#This Row],[Origem]]&" - "&BMVT11[[#This Row],[Destino]]),"",BMVT11[[#This Row],[Origem]]&" - "&BMVT11[[#This Row],[Destino]]) -> Jequié - Ipiaú | W8: Março | X8: 2016-03-01 | Y8: 2016-03-31 | Z8: 2016-03-25 | AB8: 2016-03-24 | AE8: =NETWORKDAYS(X8,Y8,Z8:AD8) -> 21 | AF8: 1
A9: 000.004 | B9: Ricardo | C9: Empregado | D9: Salvador | E9: ADMINISTRATIVO | F9: 23183 | G9: Regular | H9: Feira de Santana | I9: Feira de Santana | J9: Urbano | K9: Via Feira | L9: 2 | M9: 2 | N9: 42 | O9: 0 | P9: 0 | Q9: 3.1 | R9: 0 | U9: =IF(ISERROR(BMVT11[[#This Row],[Origem]]&" - "&BMVT11[[#This Row],[Destino]]),"",BMVT11[[#This Row],[Origem]]&" - "&BMVT11[[#This Row],[Destino]]) -> Feira de Santana - Feira de Santana | W9: Abril | X9: 2016-04-01 | Y9: 2016-04-30 | Z9: 2016-04-21 | AB9: 2016-01-22 | AE9: 20 | AF9: 1
A10: 000.005 | B10: Mauro | C10: Empregado | D10: Salvador | E10: ADMINISTRATIVO | F10: 23183 | G10: Regular | H10: Feira de Santana | I10: Feira de Santana | J10: Urbano | K10: Via Feira | L10: 2 | M10: 2 | N10: 42 | O10: 42 | P10: 21 | Q10: 3.1 | R10: 130.2 | U10: =IF(ISERROR(BMVT11[[#This Row],[Origem]]&" - "&BMVT11[[#This Row],[Destino]]),"",BMVT11[[#This Row],[Origem]]&" - "&BMVT11[[#This Row],[Destino]]) -> Feira de Santana - Feira de Santana | W10: Maio | X10: 2016-05-01 | Y10: 2016-05-31 | Z10: 2016-05-26 | AB10: 2016-05-27 | AE10: 20 | AF10: 1
A11: 000.006 | B11: Marcio | C11: Empregado | D11: Salvador | E11: ADMINISTRATIVO | F11: 23125-M | G11: Regular | H11: Conceição de Feira | I11: Salvador | J11: Intermunicipal | K11: Viação Jauá | L11: 2 | M11: 2 | N11: 42 | O11: 10 | P11: 5 | Q11: 23.03 | R11: 230.3 | U11: =IF(ISERROR(BMVT11[[#This Row],[Origem]]&" - "&BMVT11[[#This Row],[Destino]]),"",BMVT11[[#This Row],[Origem]]&" - "&BMVT11[[#This Row],[Destino]]) -> Conceição de Feira - Salvador | W11: Junho | X11: 2016-06-01 | Y11: 2016-06-30 | AB11: 2016-06-24 | AE11: 21 | AF11: 1
A12: 000.007 | B12: Carla | C12: Empregado | D12: Salvador | E12: ADMINISTRATIVO | F12: 23125-M | G12: Regular | H12: Conceição de Feira | I12: Salvador | J12: Intermunicipal | K12: Viação Jauá | L12: 2 | M12: 2 | N12: 42 | O12: 42 | P12: 21 | Q12: 23.03 | R12: 967.26 | U12: =IF(ISERROR(BMVT11[[#This Row],[Origem]]&" - "&BMVT11[[#This Row],[Destino]]),"",BMVT11[[#This Row],[Origem]]&" - "&BMVT11[[#This Row],[Destino]]) -> Conceição de Feira - Salvador | W12: Julho | X12: 2016-07-01 | Y12: 2016-07-31 | AE12: 21 | AF12: 0
A13: 000.008 | B13: Caroline | C13: Empregado | D13: Salvador | E13: COMERCIAL | F13: 23190-V | G13: Regular | H13: Lauro de Freitas | I13: Salvador | J13: Intermunicipal | K13: Metropasse | L13: 2 | M13: 2 | N13: 42 | O13: 42 | P13: 21 | Q13: 3.3 | R13: 138.6 | U13: =IF(ISERROR(BMVT11[[#This Row],[Origem]]&" - "&BMVT11[[#This Row],[Destino]]),"",BMVT11[[#This Row],[Origem]]&" - "&BMVT11[[#This Row],[Destino]]) -> Lauro de Freitas - Salvador | W13: Agosto | X13: 2016-08-01 | Y13: 2016-08-31 | AE13: 23 | AF13: 0
A14: 000.009 | B14: Pedro | C14: Empregado | D14: Salvador | E14: COMERCIAL | F14: 23190-V | G14: Regular | H14: Lauro de Freitas | I14: Salvador | J14: Intermunicipal | K14: Metropasse | L14: 2 | M14: 2 | N14: 42 | O14: 0 | P14: 0 | Q14: 3.3 | R14: 0 | U14: =IF(ISERROR(BMVT11[[#This Row],[Origem]]&" - "&BMVT11[[#This Row],[Destino]]),"",BMVT11[[#This Row],[Origem]]&" - "&BMVT11[[#This Row],[Destino]]) -> Lauro de Freitas - Salvador | W14: Setembro | X14: 2016-09-01 | Y14: 2016-09-30 | Z14: 2016-09-07 | AE14: 21 | AF14: 0
A15: 000.010 | B15: Paulo | C15: Empregado | D15: Salvador | E15: COMERCIAL | F15: 23190-V | G15: Regular | H15: Lauro de Freitas | I15: Salvador | J15: Intermunicipal | K15: Metropasse | L15: 2 | M15: 2 | N15: 42 | O15: 42 | P15: 21 | Q15: 3.3 | R15: 138.6 | U15: =IF(ISERROR(BMVT11[[#This Row],[Origem]]&" - "&BMVT11[[#This Row],[Destino]]),"",BMVT11[[#This Row],[Origem]]&" - "&BMVT11[[#This Row],[Destino]]) -> Lauro de Freitas - Salvador | W15: Outubro | X15: 2016-10-01 | Y15: 2016-10-31 | Z15: 2016-10-12 | AE15: 20 | AF15: 0
A16: 000.011 | B16: Rafael | C16: Empregado | D16: Salvador | E16: COMERCIAL | F16: 23190-V | G16: Regular | H16: Lauro de Freitas | I16: Salvador | J16: Intermunicipal | K16: Metropasse | L16: 2 | M16: 2 | N16: 42 | O16: 42 | P16: 21 | Q16: 3.3 | R16: 138.6 | U16: =IF(ISERROR(BMVT11[[#This Row],[Origem]]&" - "&BMVT11[[#This Row],[Destino]]),"",BMVT11[[#This Row],[Origem]]&" - "&BMVT11[[#This Row],[Destino]]) -> Lauro de Freitas - Salvador | W16: Novembro | X16: 2016-11-01 | Y16: 2016-11-30 | Z16: 2016-11-02 | AA16: 2016-11-15 | AB16: 2016-11-14 | AE16: =NETWORKDAYS(X16,Y16,Z16:AD16) -> 19 | AF16: 1
A17: 000.012 | B17: Ricardo | C17: Empregado | D17: Salvador | E17: COMERCIAL | F17: 23170-I | G17: Regular | H17: Aracaju | I17: Aracaju | J17: Urbano | K17: Aracaju Card | L17: 2 | M17: 2 | N17: 42 | O17: 54 | P17: 27 | Q17: 3.1 | R17: 167.4 | U17: =IF(ISERROR(BMVT11[[#This Row],[Origem]]&" - "&BMVT11[[#This Row],[Destino]]),"",BMVT11[[#This Row],[Origem]]&" - "&BMVT11[[#This Row],[Destino]]) -> Aracaju - Aracaju
A18: 000.013 | B18: Jose | C18: Empregado | D18: Salvador | E18: COMERCIAL | F18: xxxxx-Y (Pool) | G18: Regular | H18: Feira de Santana | I18: Camaçari | J18: Intermunicipal | K18: Lis Transportes | L18: 2 | M18: 2 | N18: 42 | O18: 10 | P18: 5 | Q18: 650 | R18: 650 | U18: =IF(ISERROR(BMVT11[[#This Row],[Origem]]&" - "&BMVT11[[#This Row],[Destino]]),"",BMVT11[[#This Row],[Origem]]&" - "&BMVT11[[#This Row],[Destino]]) -> Feira de Santana - Camaçari
A19: 000.014 | B19: Felipe | C19: Empregado | D19: Salvador | E19: COMERCIAL | F19: 23182 | G19: Regular | H19: Amélia Rodrigues | I19: Governador Mangabeira | J19: Intermunicipal | K19: RD Transportes | L19: 2 | M19: 2 | N19: 42 | O19: 25 | P19: 12.5 | Q19: 10.06 | R19: 251.5 | U19: =IF(ISERROR(BMVT11[[#This Row],[Origem]]&" - "&BMVT11[[#This Row],[Destino]]),"",BMVT11[[#This Row],[Origem]]&" - "&BMVT11[[#This Row],[Destino]]) -> Amélia Rodrigues - Governador Mangabeira
A20: 000.015 | B20: Julio | C20: Empregado | D20: Salvador | E20: COMERCIAL | F20: 23101-A (09096) | G20: Regular | H20: Salvador | I20: Salvador | J20: Urbano | K20: Salvador Card | L20: 2 | M20: 4 | N20: 42 | O20: 42 | P20: 10.5 | Q20: 3.3 | R20: 138.6 | U20: =IF(ISERROR(BMVT11[[#This Row],[Origem]]&" - "&BMVT11[[#This Row],[Destino]]),"",BMVT11[[#This Row],[Origem]]&" - "&BMVT11[[#This Row],[Destino]]) -> Salvador - Salvador
A21: 000.016 | B21: Lucia | C21: Empregado | D21: Salvador | E21: PESSOAL | F21: 23101-A (09096) | G21: Regular | H21: Salvador | I21: Salvador | J21: Urbano | K21: Salvador Card | L21: 2 | M21: 2 | N21: 42 | O21: 44 | P21: 22 | Q21: 3.3 | R21: 145.2 | U21: =IF(ISERROR(BMVT11[[#This Row],[Origem]]&" - "&BMVT11[[#This Row],[Destino]]),"",BMVT11[[#This Row],[Origem]]&" - "&BMVT11[[#This Row],[Destino]]) -> Salvador - Salvador
A22: 000.017 | B22: Luciano | C22: Empregado | D22: Salvador | E22: PESSOAL | F22: 23101-A (09096) | G22: Regular | H22: Salvador | I22: Salvador | J22: Urbano | K22: Salvador Card | L22: 0 | M22: 0 | N22: 0 | O22: 0 | P22: 0 | Q22: 3.3 | R22: 0 | U22: =IF(ISERROR(BMVT11[[#This Row],[Origem]]&" - "&BMVT11[[#This Row],[Destino]]),"",BMVT11[[#This Row],[Origem]]&" - "&BMVT11[[#This Row],[Destino]]) -> Salvador - Salvador
A23: 000.018 | B23: Bruno | C23: Empregado | D23: Salvador | E23: PESSOAL | F23: 23101-A (09096) | G23: Regular | H23: Salvador | I23: Salvador | J23: Urbano | K23: Salvador Card | L23: 2 | M23: 2 | N23: 42 | O23: 42 | P23: 21 | Q23: 3.3 | R23: 138.6 | U23: =IF(ISERROR(BMVT11[[#This Row],[Origem]]&" - "&BMVT11[[#This Row],[Destino]]),"",BMVT11[[#This Row],[Origem]]&" - "&BMVT11[[#This Row],[Destino]]) -> Salvador - Salvador
A24: 000.019 | B24: Vinicius | C24: Anistiado | D24: Salvador | E24: PESSOAL | F24: 23101-A (09096) | G24: Regular | H24: Salvador | I24: Salvador | J24: Urbano | K24: Salvador Card | L24: 2 | M24: 2 | N24: 42 | O24: 42 | P24: 21 | Q24: 3.3 | R24: 138.6
A25: 000.020 | B25: José Carlos | C25: Empregado | D25: Salvador | E25: LOGISTICA | F25: 23101-A (09096) | G25: Regular | H25: Salvador | I25: Salvador | J25: Urbano | K25: Salvador Card | L25: 2 | M25: 2 | N25: 42 | O25: 42 | P25: 21 | Q25: 3.3 | R25: 138.6 | U25: =IF(ISERROR(BMVT11[[#This Row],[Origem]]&" - "&BMVT11[[#This Row],[Destino]]),"",BMVT11[[#This Row],[Origem]]&" - "&BMVT11[[#This Row],[Destino]]) -> Salvador - Salvador
A26: 000.021 | B26: Carlos | C26: Empregado | D26: Salvador | E26: LOGISTICA | F26: 23101-A (09096) | G26: Regular | H26: Salvador | I26: Salvador | J26: Urbano | K26: Salvador Card | L26: 2 | M26: 2 | N26: 42 | O26: 42 | P26: 21 | Q26: 3.3 | R26: 138.6 | U26: =IF(ISERROR(BMVT11[[#This Row],[Origem]]&" - "&BMVT11[[#This Row],[Destino]]),"",BMVT11[[#This Row],[Origem]]&" - "&BMVT11[[#This Row],[Destino]]) -> Salvador - Salvador
A27: 000.022 | B27: Miguel | C27: Empregado | D27: Salvador | E27: LOGISTICA | F27: 23101-A (09096) | G27: Regular | H27: Salvador | I27: Salvador | J27: Urbano | K27: Salvador Card | L27: 2 | M27: 2 | N27: 42 | O27: 42 | P27: 21 | Q27: 3.3 | R27: 138.6 | U27: =IF(ISERROR(BMVT11[[#This Row],[Origem]]&" - "&BMVT11[[#This Row],[Destino]]),"",BMVT11[[#This Row],[Origem]]&" - "&BMVT11[[#This Row],[Destino]]) -> Salvador - Salvador
A28: 000.023 | B28: Gustavo | C28: Empregado | D28: Salvador | E28: FINANCEIRO | F28: 23101-A (09096) | G28: Regular | H28: Salvador | I28: Salvador | J28: Urbano | K28: Salvador Card | L28: 4 | M28: 4 | N28: 84 | O28: 84 | P28: 21 | Q28: 3.3 | R28: 277.2 | U28: =IF(ISERROR(BMVT11[[#This Row],[Origem]]&" - "&BMVT11[[#This Row],[Destino]]),"",BMVT11[[#This Row],[Origem]]&" - "&BMVT11[[#This Row],[Destino]]) -> Salvador - Salvador
A29: 000.024 | B29: Guilherme | C29: Empregado | D29: Salvador | E29: FINANCEIRO | F29: 23101-A (09096) | G29: Irregular | H29: Salvador | I29: Salvador | J29: Urbano | K29: Salvador Card | L29: 0 | M29: 0 | N29: 0 | O29: 0 | P29: 0 | Q29: 3.3 | R29: 0 | U29: =IF(ISERROR(BMVT11[[#This Row],[Origem]]&" - "&BMVT11[[#This Row],[Destino]]),"",BMVT11[[#This Row],[Origem]]&" - "&BMVT11[[#This Row],[Destino]]) -> Salvador - Salvador
A30: 000.025 | B30: Bruno Brito | C30: Empregado | D30: Salvador | E30: FINANCEIRO | F30: 23101-A (09096) | G30: Regular | H30: Salvador | I30: Salvador | J30: Urbano | K30: Salvador Card | L30: 2 | M30: 2 | N30: 42 | O30: 14 | P30: 7 | Q30: 3.3 | R30: 46.2 | U30: =IF(ISERROR(BMVT11[[#This Row],[Origem]]&" - "&BMVT11[[#This Row],[Destino]]),"",BMVT11[[#This Row],[Origem]]&" - "&BMVT11[[#This Row],[Destino]]) -> Salvador - Salvador
M31: 0 | N31: 0 | O31: 0 | P31: 0 | Q31: 0 | R31: 0 | U31: =IF(ISERROR(BMVT11[[#This Row],[Origem]]&" - "&BMVT11[[#This Row],[Destino]]),"",BMVT11[[#This Row],[Origem]]&" - "&BMVT11[[#This Row],[Destino]]) -> -
M32: 0 | N32: 0 | O32: 0 | P32: 0 | Q32: 0 | R32: 0 | U32: =IF(ISERROR(BMVT11[[#This Row],[Origem]]&" - "&BMVT11[[#This Row],[Destino]]),"",BMVT11[[#This Row],[Origem]]&" - "&BMVT11[[#This Row],[Destino]]) -> -
M33: 0 | N33: 0 | O33: 0 | P33: 0 | Q33: 0 | R33: 0 | U33: =IF(ISERROR(BMVT11[[#This Row],[Origem]]&" - "&BMVT11[[#This Row],[Destino]]),"",BMVT11[[#This Row],[Origem]]&" - "&BMVT11[[#This Row],[Destino]]) -> -
M34: 0 | N34: 0 | O34: 0 | P34: 0 | Q34: 0 | R34: 0 | U34: =IF(ISERROR(BMVT11[[#This Row],[Origem]]&" - "&BMVT11[[#This Row],[Destino]]),"",BMVT11[[#This Row],[Origem]]&" - "&BMVT11[[#This Row],[Destino]]) -> -
M35: 0 | N35: 0 | O35: 0 | P35: 0 | Q35: 0 | R35: 0 | U35: =IF(ISERROR(BMVT11[[#This Row],[Origem]]&" - "&BMVT11[[#This Row],[Destino]]),"",BMVT11[[#This Row],[Origem]]&" - "&BMVT11[[#This Row],[Destino]]) -> -
M36: 0 | N36: 0 | O36: 0 | P36: 0 | Q36: 0 | R36: 0 | U36: =IF(ISERROR(BMVT11[[#This Row],[Origem]]&" - "&BMVT11[[#This Row],[Destino]]),"",BMVT11[[#This Row],[Origem]]&" - "&BMVT11[[#This Row],[Destino]]) -> -
M37: 0 | N37: 0 | O37: 0 | P37: 0 | Q37: 0 | R37: 0 | U37: =IF(ISERROR(BMVT11[[#This Row],[Origem]]&" - "&BMVT11[[#This Row],[Destino]]),"",BMVT11[[#This Row],[Origem]]&" - "&BMVT11[[#This Row],[Destino]]) -> -
M38: 0 | N38: 0 | O38: 0 | P38: 0 | Q38: 0 | R38: 0 | U38: =IF(ISERROR(BMVT11[[#This Row],[Origem]]&" - "&BMVT11[[#This Row],[Destino]]),"",BMVT11[[#This Row],[Origem]]&" - "&BMVT11[[#This Row],[Destino]]) -> -
M39: 0 | N39: 0 | O39: 0 | P39: 0 | Q39: 0 | R39: 0 | U39: =IF(ISERROR(BMVT11[[#This Row],[Origem]]&" - "&BMVT11[[#This Row],[Destino]]),"",BMVT11[[#This Row],[Origem]]&" - "&BMVT11[[#This Row],[Destino]]) -> -
M40: 0 | N40: 0 | O40: 0 | P40: 0 | Q40: 0 | R40: 0 | U40: =IF(ISERROR(BMVT11[[#This Row],[Origem]]&" - "&BMVT11[[#This Row],[Destino]]),"",BMVT11[[#This Row],[Origem]]&" - "&BMVT11[[#This Row],[Destino]]) -> -
M41: 0 | N41: 0 | O41: 0 | P41: 0 | Q41: 0 | R41: 0 | U41: =IF(ISERROR(BMVT11[[#This Row],[Origem]]&" - "&BMVT11[[#This Row],[Destino]]),"",BMVT11[[#This Row],[Origem]]&" - "&BMVT11[[#This Row],[Destino]]) -> -
M42: 0 | N42: 0 | O42: 0 | P42: 0 | Q42: 0 | R42: 0 | U42: =IF(ISERROR(BMVT11[[#This Row],[Origem]]&" - "&BMVT11[[#This Row],[Destino]]),"",BMVT11[[#This Row],[Origem]]&" - "&BMVT11[[#This Row],[Destino]]) -> -
M43: 0 | N43: 0 | O43: 0 | P43: 0 | Q43: 0 | R43: 0 | U43: =IF(ISERROR(BMVT11[[#This Row],[Origem]]&" - "&BMVT11[[#This Row],[Destino]]),"",BMVT11[[#This Row],[Origem]]&" - "&BMVT11[[#This Row],[Destino]]) -> -
M44: 0 | N44: 0 | O44: 0 | P44: 0 | Q44: 0 | R44: 0 | U44: =IF(ISERROR(BMVT11[[#This Row],[Origem]]&" - "&BMVT11[[#This Row],[Destino]]),"",BMVT11[[#This Row],[Origem]]&" - "&BMVT11[[#This Row],[Destino]]) -> -
M45: 0 | N45: 0 | O45: 0 | P45: 0 | Q45: 0 | R45: 0 | U45: =IF(ISERROR(BMVT11[[#This Row],[Origem]]&" - "&BMVT11[[#This Row],[Destino]]),"",BMVT11[[#This Row],[Origem]]&" - "&BMVT11[[#This Row],[Destino]]) -> -
M46: 0 | N46: 0 | O46: 0 | P46: 0 | Q46: 0 | R46: 0 | U46: =IF(ISERROR(BMVT11[[#This Row],[Origem]]&" - "&BMVT11[[#This Row],[Destino]]),"",BMVT11[[#This Row],[Origem]]&" - "&BMVT11[[#This Row],[Destino]]) -> -
M47: 0 | N47: 0 | O47: 0 | P47: 0 | Q47: 0 | R47: 0 | U47: =IF(ISERROR(BMVT11[[#This Row],[Origem]]&" - "&BMVT11[[#This Row],[Destino]]),"",BMVT11[[#This Row],[Origem]]&" - "&BMVT11[[#This Row],[Destino]]) -> -
M48: 0 | N48: 0 | O48: 0 | P48: 0 | Q48: 0 | R48: 0 | U48: =IF(ISERROR(BMVT11[[#This Row],[Origem]]&" - "&BMVT11[[#This Row],[Destino]]),"",BMVT11[[#This Row],[Origem]]&" - "&BMVT11[[#This Row],[Destino]]) -> -
M49: 0 | N49: 0 | O49: 0 | P49: 0 | Q49: 0 | R49: 0 | U49: =IF(ISERROR(BMVT11[[#This Row],[Origem]]&" - "&BMVT11[[#This Row],[Destino]]),"",BMVT11[[#This Row],[Origem]]&" - "&BMVT11[[#This Row],[Destino]]) -> -
M50: 0 | N50: 0 | O50: 0 | P50: 0 | Q50: 0 | R50: 0 | U50: =IF(ISERROR(BMVT11[[#This Row],[Origem]]&" - "&BMVT11[[#This Row],[Destino]]),"",BMVT11[[#This Row],[Origem]]&" - "&BMVT11[[#This Row],[Destino]]) -> -
M51: 0 | N51: 0 | O51: 0 | P51: 0 | Q51: 0 | R51: 0 | U51: =IF(ISERROR(BMVT11[[#This Row],[Origem]]&" - "&BMVT11[[#This Row],[Destino]]),"",BMVT11[[#This Row],[Origem]]&" - "&BMVT11[[#This Row],[Destino]]) -> -
M52: 0 | N52: 0 | O52: 0 | P52: 0 | Q52: 0 | R52: 0 | U52: =IF(ISERROR(BMVT11[[#This Row],[Origem]]&" - "&BMVT11[[#This Row],[Destino]]),"",BMVT11[[#This Row],[Origem]]&" - "&BMVT11[[#This Row],[Destino]]) -> -
M53: 0 | N53: 0 | O53: 0 | P53: 0 | Q53: 0 | R53: 0 | U53: =IF(ISERROR(BMVT11[[#This Row],[Origem]]&" - "&BMVT11[[#This Row],[Destino]]),"",BMVT11[[#This Row],[Origem]]&" - "&BMVT11[[#This Row],[Destino]]) -> -
M54: 0 | N54: 0 | O54: 0 | P54: 0 | Q54: 0 | R54: 0 | U54: =IF(ISERROR(BMVT11[[#This Row],[Origem]]&" - "&BMVT11[[#This Row],[Destino]]),"",BMVT11[[#This Row],[Origem]]&" - "&BMVT11[[#This Row],[Destino]]) -> -
M55: 0 | N55: 0 | O55: 0 | P55: 0 | Q55: 0 | R55: 0 | U55: =IF(ISERROR(BMVT11[[#This Row],[Origem]]&" - "&BMVT11[[#This Row],[Destino]]),"",BMVT11[[#This Row],[Origem]]&" - "&BMVT11[[#This Row],[Destino]]) -> -
M56: 0 | N56: 0 | O56: 0 | P56: 0 | Q56: 0 | R56: 0 | U56: =IF(ISERROR(BMVT11[[#This Row],[Origem]]&" - "&BMVT11[[#This Row],[Destino]]),"",BMVT11[[#This Row],[Origem]]&" - "&BMVT11[[#This Row],[Destino]]) -> -
M57: 0 | N57: 0 | O57: 0 | P57: 0 | Q57: 0 | R57: 0 | U57: =IF(ISERROR(BMVT11[[#This Row],[Origem]]&" - "&BMVT11[[#This Row],[Destino]]),"",BMVT11[[#This Row],[Origem]]&" - "&BMVT11[[#This Row],[Destino]]) -> -
M58: 0 | N58: 0 | O58: 0 | P58: 0 | Q58: 0 | R58: 0 | U58: =IF(ISERROR(BMVT11[[#This Row],[Origem]]&" - "&BMVT11[[#This Row],[Destino]]),"",BMVT11[[#This Row],[Origem]]&" - "&BMVT11[[#This Row],[Destino]]) -> -
M59: 0 | N59: 0 | O59: 0 | P59: 0 | Q59: 0 | R59: 0 | U59: =IF(ISERROR(BMVT11[[#This Row],[Origem]]&" - "&BMVT11[[#This Row],[Destino]]),"",BMVT11[[#This Row],[Origem]]&" - "&BMVT11[[#This Row],[Destino]]) -> -
M60: 0 | N60: 0 | O60: 0 | P60: 0 | Q60: 0 | R60: 0 | U60: =IF(ISERROR(BMVT11[[#This Row],[Origem]]&" - "&BMVT11[[#This Row],[Destino]]),"",BMVT11[[#This Row],[Origem]]&" - "&BMVT11[[#This Row],[Destino]]) -> -
M61: 0 | N61: 0 | O61: 0 | P61: 0 | Q61: 0 | R61: 0 | U61: =IF(ISERROR(BMVT11[[#This Row],[Origem]]&" - "&BMVT11[[#This Row],[Destino]]),"",BMVT11[[#This Row],[Origem]]&" - "&BMVT11[[#This Row],[Destino]]) -> -
M62: 0 | N62: 0 | O62: 0 | P62: 0 | Q62: 0 | R62: 0 | U62: =IF(ISERROR(BMVT11[[#This Row],[Origem]]&" - "&BMVT11[[#This Row],[Destino]]),"",BMVT11[[#This Row],[Origem]]&" - "&BMVT11[[#This Row],[Destino]]) -> -
M63: 0 | N63: 0 | O63: 0 | P63: 0 | Q63: 0 | R63: 0 | U63: =IF(ISERROR(BMVT11[[#This Row],[Origem]]&" - "&BMVT11[[#This Row],[Destino]]),"",BMVT11[[#This Row],[Origem]]&" - "&BMVT11[[#This Row],[Destino]]) -> -
M64: 0 | N64: 0 | O64: 0 | P64: 0 | Q64: 0 | R64: 0 | U64: =IF(ISERROR(BMVT11[[#This Row],[Origem]]&" - "&BMVT11[[#This Row],[Destino]]),"",BMVT11[[#This Row],[Origem]]&" - "&BMVT11[[#This Row],[Destino]]) -> -
M65: 0 | N65: 0 | O65: 0 | P65: 0 | Q65: 0 | R65: 0 | U65: =IF(ISERROR(BMVT11[[#This Row],[Origem]]&" - "&BMVT11[[#This Row],[Destino]]),"",BMVT11[[#This Row],[Origem]]&" - "&BMVT11[[#This Row],[Destino]]) -> -
M66: 0 | N66: 0 | O66: 0 | P66: 0 | Q66: 0 | R66: 0 | U66: =IF(ISERROR(BMVT11[[#This Row],[Origem]]&" - "&BMVT11[[#This Row],[Destino]]),"",BMVT11[[#This Row],[Origem]]&" - "&BMVT11[[#This Row],[Destino]]) -> -
M67: 0 | N67: 0 | O67: 0 | P67: 0 | Q67: 0 | R67: 0 | U67: =IF(ISERROR(BMVT11[[#This Row],[Origem]]&" - "&BMVT11[[#This Row],[Destino]]),"",BMVT11[[#This Row],[Origem]]&" - "&BMVT11[[#This Row],[Destino]]) -> -
M68: 0 | N68: 0 | O68: 0 | P68: 0 | Q68: 0 | R68: 0 | U68: =IF(ISERROR(BMVT11[[#This Row],[Origem]]&" - "&BMVT11[[#This Row],[Destino]]),"",BMVT11[[#This Row],[Origem]]&" - "&BMVT11[[#This Row],[Destino]]) -> -
M69: 0 | N69: 0 | O69: 0 | P69: 0 | Q69: 0 | R69: 0 | U69: =IF(ISERROR(BMVT11[[#This Row],[Origem]]&" - "&BMVT11[[#This Row],[Destino]]),"",BMVT11[[#This Row],[Origem]]&" - "&BMVT11[[#This Row],[Destino]]) -> -
M70: 0 | N70: 0 | O70: 0 | P70: 0 | Q70: 0 | R70: 0 | U70: =IF(ISERROR(BMVT11[[#This Row],[Origem]]&" - "&BMVT11[[#This Row],[Destino]]),"",BMVT11[[#This Row],[Origem]]&" - "&BMVT11[[#This Row],[Destino]]) -> -
M71: 0 | N71: 0 | O71: 0 | P71: 0 | Q71: 0 | R71: 0 | U71: =IF(ISERROR(BMVT11[[#This Row],[Origem]]&" - "&BMVT11[[#This Row],[Destino]]),"",BMVT11[[#This Row],[Origem]]&" - "&BMVT11[[#This Row],[Destino]]) -> -
M72: 0 | N72: 0 | O72: 0 | P72: 0 | Q72: 0 | R72: 0 | U72: =IF(ISERROR(BMVT11[[#This Row],[Origem]]&" - "&BMVT11[[#This Row],[Destino]]),"",BMVT11[[#This Row],[Origem]]&" - "&BMVT11[[#This Row],[Destino]]) -> -
A73: Total | M73: =SUBTOTAL(109,BMVT11[Chipagem]) -> 50 | N73: =SUBTOTAL(109,BMVT11[Quant. Apur.]) -> 1008 | O73: =SUBTOTAL(109,BMVT11[Qtd. Solic.]) -> 835 | P73: =SUBTOTAL(109,BMVT11[Dias Lanc Sist.]) -> 386 | R73: =SUBTOTAL(109,BMVT11[Vlr. Total]) -> 5932.16 | U73: =IF(ISERROR(BMVT11[[#This Row],[Origem]]&" - "&BMVT11[[#This Row],[Destino]]),"",BMVT11[[#This Row],[Origem]]&" - "&BMVT11[[#This Row],[Destino]]) -> 
U74: =IF(ISERROR(BMVT11[[#This Row],[Origem]]&" - "&BMVT11[[#This Row],[Destino]]),"",BMVT11[[#This Row],[Origem]]&" - "&BMVT11[[#This Row],[Destino]]) -> 
U75: =IF(ISERROR(BMVT11[[#This Row],[Origem]]&" - "&BMVT11[[#This Row],[Destino]]),"",BMVT11[[#This Row],[Origem]]&" - "&BMVT11[[#This Row],[Destino]]) -> 
U76: =IF(ISERROR(BMVT11[[#This Row],[Origem]]&" - "&BMVT11[[#This Row],[Destino]]),"",BMVT11[[#This Row],[Origem]]&" - "&BMVT11[[#This Row],[Destino]]) -> 
A77: ="Salvador, "&TEXT(TODAY(),"dd/mm/aaaa") -> Salvador, 29/06/2016 | G77: =A77 -> Salvador, 29/06/2016 | U77: =IF(ISERROR(BMVT11[[#This Row],[Origem]]&" - "&BMVT11[[#This Row],[Destino]]),"",BMVT11[[#This Row],[Origem]]&" - "&BMVT11[[#This Row],[Destino]]) -> 
U78: =IF(ISERROR(BMVT11[[#This Row],[Origem]]&" - "&BMVT11[[#This Row],[Destino]]),"",BMVT11[[#This Row],[Origem]]&" - "&BMVT11[[#This Row],[Destino]]) -> 
U79: =IF(ISERROR(BMVT11[[#This Row],[Origem]]&" - "&BMVT11[[#This Row],[Destino]]),"",BMVT11[[#This Row],[Origem]]&" - "&BMVT11[[#This Row],[Destino]]) -> 
A81: Responsável pelo Boletim de Medição | G81: Gerente Serviço de Pessoal de Salvador -SSPE

Sheet Maio
A1: Boletim Mensal de Vales Transporte | D1: Competência: | F1: Dias Úteis (Mês): | G1: =VLOOKUP(INDEX($W$6:$AF$17,$W$5,1),$W$6:$AF$17,9,FALSE) -> 20 | I1: SC (Empregado): | J1: 0 | K1: =(SUMIFS(BMVT16[Vlr. Total],BMVT16[Vínculo],"<>Aprendiz",BMVT16[Empresa], "Salvador Card"))-J1 -> 1240.8 | N1: Qtd Usuários | O1: =SUMPRODUCT(SUBTOTAL(3,OFFSET(BMVT16[Matrícula],ROW(BMVT16[Matrícula])-ROW(A6),0,1)),--(BMVT16[Situação]="Regular")) -> 24
D2: =VLOOKUP(INDEX($W$6:$AF$17,$W$5,1),$W$6:$AF$17,1,FALSE) -> Maio | F2: Compesações: | G2: =VLOOKUP(INDEX($W$6:$AF$17,$W$5,1),$W$6:$AF$17,10,FALSE) -> 1 | I2: SC (Aprendiz): | J2: 0 | K2: =(SUMIFS(BMVT16[Vlr. Total],BMVT16[Vínculo],"Aprendiz",BMVT16[Empresa],"Salvador Card"))-J2 -> 0 | N2: Qtd VT : | O2: =SUMPRODUCT(SUBTOTAL(9,OFFSET(BMVT16[Qtd. Solic.],ROW(BMVT16[Qtd. Solic.])-ROW(A6),0,1)),--(BMVT16[Situação]="Regular")) -> 801
F3: Desconto : | G3: 0 | I3: Metropasse: | K3: =(SUMIF(BMVT16[Empresa],"Metropasse",BMVT16[Vlr. Total]))-J3 -> 396 | N3: Valor Total: | O3: =SUMPRODUCT(SUBTOTAL(9,OFFSET(BMVT16[Vlr. Total],ROW(BMVT16[Vlr. Total])-ROW(A6),0,1)),--(BMVT16[Situação]="Regular")) -> 5732.2
A5: Matrícula | B5: Empregado | C5: Vínculo | D5: Lotação | E5: Setor | F5: Rota | G5: Situação | H5: Origem | I5: Destino | J5: Tipo | K5: Empresa | L5: Vales/Trecho | M5: Chipagem | N5: Quant. Apur. | O5: Qtd. Solic. | P5: Dias Lanc Sist. | Q5: Vlr. Unit. | R5: Vlr. Total | W5: 5 | X5: Período | Z5: Feriados | AB5: Compensações | AE5: DU
A6: 000.001 | B6: João | C6: Anistiado | D6: Salvador | E6: ADMINISTRATIVO | F6: xxxxx-Y | G6: Regular | H6: Dias D'Ávila | I6: Camaçari | J6: Intermunicipal | K6: Cidade das Águas | L6: 2 | M6: 2 | N6: 40 | O6: 40 | P6: 20 | Q6: 2.8 | R6: 112 | W6: Janeiro | X6: 2016-01-01 | Y6: 2016-01-31 | Z6: 2016-01-01 | AE6: =NETWORKDAYS(X6,Y6,Z6:AD6) -> 20 | AF6: =COUNTA(AB6:AD6) -> 0
A7: 000.002 | B7: Maria | C7: Anistiado | D7: Salvador | E7: ADMINISTRATIVO | F7: 23196 | G7: Regular | H7: Alagoinhas | I7: Salvador | J7: Intermunicipal | K7: Cidade Sol | L7: 2 | M7: 2 | N7: 40 | O7: 40 | P7: 20 | Q7: 28.35 | R7: 1134 | W7: Fevereiro | X7: 2016-02-01 | Y7: 2016-02-29 | Z7: 2016-02-08 | AB7: 2016-02-09 | AC7: 2016-02-10 | AE7: =NETWORKDAYS(X7,Y7,Z7:AD7) -> 18 | AF7: =COUNTA(AB7:AD7) -> 2
A8: 000.003 | B8: Francisco | C8: Anistiado | D8: Salvador | E8: ADMINISTRATIVO | F8: 23184 | G8: Regular | H8: Jequié | I8: Ipiaú | J8: Intermunicipal | K8: Cidade Sol | L8: 2 | M8: 2 | N8: 40 | O8: 48 | P8: 24 | Q8: 10.65 | R8: 511.2 | W8: Março | X8: 2016-03-01 | Y8: 2016-03-31 | Z8: 2016-03-25 | AB8: 2016-03-24 | AE8: =NETWORKDAYS(X8,Y8,Z8:AD8) -> 21 | AF8: 1
A9: 000.004 | B9: Ricardo | C9: Empregado | D9: Salvador | E9: ADMINISTRATIVO | F9: 23183 | G9: Regular | H9: Feira de Santana | I9: Feira de Santana | J9: Urbano | K9: Via Feira | L9: 2 | M9: 2 | N9: 40 | O9: 0 | P9: 0 | Q9: 3.1 | R9: 0 | W9: Abril | X9: 2016-04-01 | Y9: 2016-04-30 | Z9: 2016-04-21 | AB9: 2016-01-22 | AE9: 20 | AF9: 1
A10: 000.005 | B10: Mauro | C10: Empregado | D10: Salvador | E10: ADMINISTRATIVO | F10: 23183 | G10: Regular | H10: Feira de Santana | I10: Feira de Santana | J10: Urbano | K10: Via Feira | L10: 2 | M10: 2 | N10: 40 | O10: 40 | P10: 20 | Q10: 3.1 | R10: 124 | W10: Maio | X10: 2016-05-01 | Y10: 2016-05-31 | Z10: 2016-05-26 | AB10: 2016-05-27 | AE10: 20 | AF10: 1
A11: 000.006 | B11: Marcio | C11: Empregado | D11: Salvador | E11: ADMINISTRATIVO | F11: 23125-M | G11: Regular | H11: Conceição de Feira | I11: Salvador | J11: Intermunicipal | K11: Viação Jauá | L11: 2 | M11: 2 | N11: 40 | O11: 10 | P11: 5 | Q11: 23.03 | R11: 230.3 | W11: Junho | X11: 2016-06-01 | Y11: 2016-06-30 | AE11: 22 | AF11: 0
A12: 000.007 | B12: Carla | C12: Empregado | D12: Salvador | E12: ADMINISTRATIVO | F12: 23125-M | G12: Regular | H12: Conceição de Feira | I12: Salvador | J12: Intermunicipal | K12: Viação Jauá | L12: 2 | M12: 2 | N12: 40 | O12: 40 | P12: 20 | Q12: 23.03 | R12: 921.2 | W12: Julho | X12: 2016-07-01 | Y12: 2016-07-31 | AE12: 21 | AF12: 0
A13: 000.008 | B13: Caroline | C13: Empregado | D13: Salvador | E13: COMERCIAL | F13: 23190-V | G13: Regular | H13: Lauro de Freitas | I13: Salvador | J13: Intermunicipal | K13: Metropasse | L13: 2 | M13: 2 | N13: 40 | O13: 40 | P13: 20 | Q13: 3.3 | R13: 132 | W13: Agosto | X13: 2016-08-01 | Y13: 2016-08-31 | AE13: 23 | AF13: 0
A14: 000.009 | B14: Pedro | C14: Empregado | D14: Salvador | E14: COMERCIAL | F14: 23190-V | G14: Regular | H14: Lauro de Freitas | I14: Salvador | J14: Intermunicipal | K14: Metropasse | L14: 2 | M14: 2 | N14: 40 | O14: 0 | P14: 0 | Q14: 3.3 | R14: 0 | W14: Setembro | X14: 2016-09-01 | Y14: 2016-09-30 | Z14: 2016-09-07 | AE14: 21 | AF14: 0
A15: 000.010 | B15: Paulo | C15: Empregado | D15: Salvador | E15: COMERCIAL | F15: 23190-V | G15: Regular | H15: Lauro de Freitas | I15: Salvador | J15: Intermunicipal | K15: Metropasse | L15: 2 | M15: 2 | N15: 40 | O15: 40 | P15: 20 | Q15: 3.3 | R15: 132 | W15: Outubro | X15: 2016-10-01 | Y15: 2016-10-31 | Z15: 2016-10-12 | AE15: 20 | AF15: 0
A16: 000.011 | B16: Rafael | C16: Empregado | D16: Salvador | E16: COMERCIAL | F16: 23190-V | G16: Regular | H16: Lauro de Freitas | I16: Salvador | J16: Intermunicipal | K16: Metropasse | L16: 2 | M16: 2 | N16: 40 | O16: 40 | P16: 20 | Q16: 3.3 | R16: 132 | W16: Novembro | X16: 2016-11-01 | Y16: 2016-11-30 | Z16: 2016-11-02 | AA16: 2016-11-15 | AB16: 2016-11-14 | AE16: =NETWORKDAYS(X16,Y16,Z16:AD16) -> 19 | AF16: 1
A17: 000.012 | B17: Ricardo | C17: Empregado | D17: Salvador | E17: COMERCIAL | F17: 23170-I | G17: Regular | H17: Aracaju | I17: Aracaju | J17: Urbano | K17: Aracaju Card | L17: 2 | M17: 2 | N17: 40 | O17: 52 | P17: 26 | Q17: 3.1 | R17: 161.2 | W17: Dezembro | X17: 2016-12-01 | Y17: 2016-12-31 | AE17: 22 | AF17: 0
A18: 000.013 | B18: Jose | C18: Empregado | D18: Salvador | E18: COMERCIAL | F18: xxxxx-Y (Pool) | G18: Regular | H18: Feira de Santana | I18: Camaçari | J18: Intermunicipal | K18: Lis Transportes | L18: 2 | M18: 2 | N18: 40 | O18: 10 | P18: 5 | Q18: 650 | R18: 650
A19: 000.014 | B19: Felipe | C19: Empregado | D19: Salvador | E19: COMERCIAL | F19: 23182 | G19: Regular | H19: Amélia Rodrigues | I19: Governador Mangabeira | J19: Intermunicipal | K19: RD Transportes | L19: 2 | M19: 2 | N19: 40 | O19: 25 | P19: 12.5 | Q19: 10.06 | R19: 251.5
A20: 000.015 | B20: Julio | C20: Empregado | D20: Salvador | E20: COMERCIAL | F20: 23101-A (09096) | G20: Regular | H20: Salvador | I20: Salvador | J20: Urbano | K20: Salvador Card | L20: 2 | M20: 4 | N20: 40 | O20: 40 | P20: 10 | Q20: 3.3 | R20: 132
A21: 000.016 | B21: Lucia | C21: Empregado | D21: Salvador | E21: PESSOAL | F21: 23101-A (09096) | G21: Regular | H21: Salvador | I21: Salvador | J21: Urbano | K21: Salvador Card | L21: 2 | M21: 2 | N21: 40 | O21: 42 | P21: 21 | Q21: 3.3 | R21: 138.6
A22: 000.017 | B22: Luciano | C22: Empregado | D22: Salvador | E22: PESSOAL | F22: 23101-A (09096) | G22: Regular | H22: Salvador | I22: Salvador | J22: Urbano | K22: Salvador Card | L22: 0 | M22: 0 | N22: 0 | O22: 0 | P22: 0 | Q22: 3.3 | R22: 0
A23: 000.018 | B23: Bruno | C23: Empregado | D23: Salvador | E23: PESSOAL | F23: 23101-A (09096) | G23: Regular | H23: Salvador | I23: Salvador | J23: Urbano | K23: Salvador Card | L23: 2 | M23: 2 | N23: 40 | O23: 40 | P23: 20 | Q23: 3.3 | R23: 132
A24: 000.019 | B24: Vinicius | C24: Anistiado | D24: Salvador | E24: PESSOAL | F24: 23101-A (09096) | G24: Regular | H24: Salvador | I24: Salvador | J24: Urbano | K24: Salvador Card | L24: 2 | M24: 2 | N24: 40 | O24: 40 | P24: 20 | Q24: 3.3 | R24: 132
A25: 000.020 | B25: José Carlos | C25: Empregado | D25: Salvador | E25: LOGISTICA | F25: 23101-A (09096) | G25: Regular | H25: Salvador | I25: Salvador | J25: Urbano | K25: Salvador Card | L25: 2 | M25: 2 | N25: 40 | O25: 40 | P25: 20 | Q25: 3.3 | R25: 132
A26: 000.021 | B26: Carlos | C26: Empregado | D26: Salvador | E26: LOGISTICA | F26: 23101-A (09096) | G26: Regular | H26: Salvador | I26: Salvador | J26: Urbano | K26: Salvador Card | L26: 2 | M26: 2 | N26: 40 | O26: 40 | P26: 20 | Q26: 3.3 | R26: 132
A27: 000.022 | B27: Miguel | C27: Empregado | D27: Salvador | E27: LOGISTICA | F27: 23101-A (09096) | G27: Regular | H27: Salvador | I27: Salvador | J27: Urbano | K27: Salvador Card | L27: 2 | M27: 2 | N27: 40 | O27: 40 | P27: 20 | Q27: 3.3 | R27: 132
A28: 000.023 | B28: Gustavo | C28: Empregado | D28: Salvador | E28: FINANCEIRO | F28: 23101-A (09096) | G28: Regular | H28: Salvador | I28: Salvador | J28: Urbano | K28: Salvador Card | L28: 4 | M28: 4 | N28: 80 | O28: 80 | P28: 20 | Q28: 3.3 | R28: 264
A29: 000.024 | B29: Guilherme | C29: Empregado | D29: Salvador | E29: FINANCEIRO | F29: 23101-A (09096) | G29: Irregular | H29: Salvador | I29: Salvador | J29: Urbano | K29: Salvador Card | L29: 0 | M29: 0 | N29: 0 | O29: 0 | P29: 0 | Q29: 3.3 | R29: 0
A30: 000.025 | B30: Bruno Brito | C30: Empregado | D30: Salvador | E30: FINANCEIRO | F30: 23101-A (09096) | G30: Regular | H30: Salvador | I30: Salvador | J30: Urbano | K30: Salvador Card | L30: 2 | M30: 2 | N30: 40 | O30: 14 | P30: 7 | Q30: 3.3 | R30: 46.2
M31: 0 | N31: 0 | O31: 0 | P31: 0 | Q31: 0 | R31: 0
M32: 0 | N32: 0 | O32: 0 | P32: 0 | Q32: 0 | R32: 0
M33: 0 | N33: 0 | O33: 0 | P33: 0 | Q33: 0 | R33: 0
M34: 0 | N34: 0 | O34: 0 | P34: 0 | Q34: 0 | R34: 0
M35: 0 | N35: 0 | O35: 0 | P35: 0 | Q35: 0 | R35: 0
M36: 0 | N36: 0 | O36: 0 | P36: 0 | Q36: 0 | R36: 0
M37: 0 | N37: 0 | O37: 0 | P37: 0 | Q37: 0 | R37: 0
M38: 0 | N38: 0 | O38: 0 | P38: 0 | Q38: 0 | R38: 0
M39: 0 | N39: 0 | O39: 0 | P39: 0 | Q39: 0 | R39: 0
M40: 0 | N40: 0 | O40: 0 | P40: 0 | Q40: 0 | R40: 0
M41: 0 | N41: 0 | O41: 0 | P41: 0 | Q41: 0 | R41: 0
M42: 0 | N42: 0 | O42: 0 | P42: 0 | Q42: 0 | R42: 0
M43: 0 | N43: 0 | O43: 0 | P43: 0 | Q43: 0 | R43: 0
M44: 0 | N44: 0 | O44: 0 | P44: 0 | Q44: 0 | R44: 0
M45: 0 | N45: 0 | O45: 0 | P45: 0 | Q45: 0 | R45: 0
M46: 0 | N46: 0 | O46: 0 | P46: 0 | Q46: 0 | R46: 0
M47: 0 | N47: 0 | O47: 0 | P47: 0 | Q47: 0 | R47: 0
M48: 0 | N48: 0 | O48: 0 | P48: 0 | Q48: 0 | R48: 0
M49: 0 | N49: 0 | O49: 0 | P49: 0 | Q49: 0 | R49: 0
M50: 0 | N50: 0 | O50: 0 | P50: 0 | Q50: 0 | R50: 0
M51: 0 | N51: 0 | O51: 0 | P51: 0 | Q51: 0 | R51: 0
M52: 0 | N52: 0 | O52: 0 | P52: 0 | Q52: 0 | R52: 0
M53: 0 | N53: 0 | O53: 0 | P53: 0 | Q53: 0 | R53: 0
M54: 0 | N54: 0 | O54: 0 | P54: 0 | Q54: 0 | R54: 0
M55: 0 | N55: 0 | O55: 0 | P55: 0 | Q55: 0 | R55: 0
M56: 0 | N56: 0 | O56: 0 | P56: 0 | Q56: 0 | R56: 0
M57: 0 | N57: 0 | O57: 0 | P57: 0 | Q57: 0 | R57: 0
M58: 0 | N58: 0 | O58: 0 | P58: 0 | Q58: 0 | R58: 0
M59: 0 | N59: 0 | O59: 0 | P59: 0 | Q59: 0 | R59: 0
M60: 0 | N60: 0 | O60: 0 | P60: 0 | Q60: 0 | R60: 0
M61: 0 | N61: 0 | O61: 0 | P61: 0 | Q61: 0 | R61: 0
M62: 0 | N62: 0 | O62: 0 | P62: 0 | Q62: 0 | R62: 0
M63: 0 | N63: 0 | O63: 0 | P63: 0 | Q63: 0 | R63: 0
M64: 0 | N64: 0 | O64: 0 | P64: 0 | Q64: 0 | R64: 0
M65: 0 | N65: 0 | O65: 0 | P65: 0 | Q65: 0 | R65: 0
M66: 0 | N66: 0 | O66: 0 | P66: 0 | Q66: 0 | R66: 0
M67: 0 | N67: 0 | O67: 0 | P67: 0 | Q67: 0 | R67: 0
M68: 0 | N68: 0 | O68: 0 | P68: 0 | Q68: 0 | R68: 0
M69: 0 | N69: 0 | O69: 0 | P69: 0 | Q69: 0 | R69: 0
M70: 0 | N70: 0 | O70: 0 | P70: 0 | Q70: 0 | R70: 0
M71: 0 | N71: 0 | O71: 0 | P71: 0 | Q71: 0 | R71: 0
M72: 0 | N72: 0 | O72: 0 | P72: 0 | Q72: 0 | R72: 0
M73: 0 | N73: 0 | O73: 0 | P73: 0 | Q73: 0 | R73: 0
M74: 0 | N74: 0 | O74: 0 | P74: 0 | Q74: 0 | R74: 0
M75: 0 | N75: 0 | O75: 0 | P75: 0 | Q75: 0 | R75: 0
M76: 0 | N76: 0 | O76: 0 | P76: 0 | Q76: 0 | R76: 0
M77: 0 | N77: 0 | O77: 0 | P77: 0 | Q77: 0 | R77: 0
M78: 0 | N78: 0 | O78: 0 | P78: 0 | Q78: 0 | R78: 0
M79: 0 | N79: 0 | O79: 0 | P79: 0 | Q79: 0 | R79: 0
M80: 0 | N80: 0 | O80: 0 | P80: 0 | Q80: 0 | R80: 0
A81: Total | M81: =SUBTOTAL(109,BMVT16[Chipagem]) -> 50 | N81: =SUBTOTAL(109,BMVT16[Quant. Apur.]) -> 960 | O81: =SUBTOTAL(109,BMVT16[Qtd. Solic.]) -> 801 | P81: =SUBTOTAL(109,BMVT16[Dias Lanc Sist.]) -> 370.5 | R81: =SUBTOTAL(109,BMVT16[Vlr. Total]) -> 5732.2
A85: ="Salvador, "&TEXT(TODAY(),"dd/mm/aaaa") -> Salvador, 29/06/2016 | G85: =A85 -> Salvador, 29/06/2016
A89: Responsável pelo Boletim de Medição | G89: Gerente Serviço de Pessoal de Salvador -SSPE

Sheet Abril
A1: Boletim Mensal de Vales Transporte | D1: Competência: | F1: Dias Úteis (Mês): | G1: =VLOOKUP(INDEX($W$6:$AF$17,$W$5,1),$W$6:$AF$17,9,FALSE) -> 20 | I1: SC (Empregado): | J1: 0 | K1: =(SUMIFS(BMVT13[Vlr. Total],BMVT13[Vínculo],"<>Aprendiz",BMVT13[Empresa], "Salvador Card"))-J1 -> 1240.8 | N1: Qtd Usuários | O1: =SUMPRODUCT(SUBTOTAL(3,OFFSET(BMVT13[Matrícula],ROW(BMVT13[Matrícula])-ROW(A6),0,1)),--(BMVT13[Situação]="Regular")) -> 31
D2: =VLOOKUP(INDEX($W$6:$AF$17,$W$5,1),$W$6:$AF$17,1,FALSE) -> Abril | F2: Compesações: | G2: =VLOOKUP(INDEX($W$6:$AF$17,$W$5,1),$W$6:$AF$17,10,FALSE) -> 1 | I2: SC (Aprendiz): | J2: 0 | K2: =(SUMIFS(BMVT13[Vlr. Total],BMVT13[Vínculo],"Aprendiz",BMVT13[Empresa],"Salvador Card"))-J2 -> 0 | N2: Qtd VT : | O2: =SUMPRODUCT(SUBTOTAL(9,OFFSET(BMVT13[Qtd. Solic.],ROW(BMVT13[Qtd. Solic.])-ROW(A6),0,1)),--(BMVT13[Situação]="Regular")) -> 927
F3: Desconto : | G3: 0 | I3: Metropasse: | K3: =(SUMIF(BMVT13[Empresa],"Metropasse",BMVT13[Vlr. Total]))-J3 -> 396 | N3: Valor Total: | O3: =SUMPRODUCT(SUBTOTAL(9,OFFSET(BMVT13[Vlr. Total],ROW(BMVT13[Vlr. Total])-ROW(A6),0,1)),--(BMVT13[Situação]="Regular")) -> 6200.7
A5: Matrícula | B5: Empregado | C5: Vínculo | D5: Lotação | E5: Setor | F5: Rota | G5: Situação | H5: Origem | I5: Destino | J5: Tipo | K5: Empresa | L5: Vales/Trecho | M5: Chipagem | N5: Quant. Apur. | O5: Qtd. Solic. | P5: Dias Lanc Sist. | Q5: Vlr. Unit. | R5: Vlr. Total | W5: 4 | X5: Período | Z5: Feriados | AB5: Compensações | AE5: DU
A6: 000.001 | B6: João | C6: Anistiado | D6: Salvador | E6: ADMINISTRATIVO | F6: xxxxx-Y | G6: Regular | H6: Dias D'Ávila | I6: Camaçari | J6: Intermunicipal | K6: Cidade das Águas | L6: 2 | M6: 2 | N6: 40 | O6: 40 | P6: 20 | Q6: 2.8 | R6: 112 | W6: Janeiro | X6: 2016-01-01 | Y6: 2016-01-31 | Z6: 2016-01-01 | AE6: =NETWORKDAYS(X6,Y6,Z6:AD6) -> 20 | AF6: =COUNTA(AB6:AD6) -> 0
A7: 000.002 | B7: Maria | C7: Anistiado | D7: Salvador | E7: ADMINISTRATIVO | F7: 23196 | G7: Regular | H7: Alagoinhas | I7: Salvador | J7: Intermunicipal | K7: Cidade Sol | L7: 2 | M7: 2 | N7: 40 | O7: 40 | P7: 20 | Q7: 28.35 | R7: 1134 | W7: Fevereiro | X7: 2016-02-01 | Y7: 2016-02-29 | Z7: 2016-02-08 | AB7: 2016-02-09 | AC7: 2016-02-10 | AE7: =NETWORKDAYS(X7,Y7,Z7:AD7) -> 18 | AF7: =COUNTA(AB7:AD7) -> 2
A8: 000.003 | B8: Francisco | C8: Anistiado | D8: Salvador | E8: ADMINISTRATIVO | F8: 23184 | G8: Regular | H8: Jequié | I8: Ipiaú | J8: Intermunicipal | K8: Cidade Sol | L8: 2 | M8: 2 | N8: 40 | O8: 48 | P8: 24 | Q8: 10.65 | R8: 511.2 | W8: Março | X8: 2016-03-01 | Y8: 2016-03-31 | Z8: 2016-03-25 | AB8: 2016-03-24 | AE8: =NETWORKDAYS(X8,Y8,Z8:AD8) -> 21 | AF8: 1
A9: 000.004 | B9: Ricardo | C9: Empregado | D9: Salvador | E9: ADMINISTRATIVO | F9: 23183 | G9: Regular | H9: Feira de Santana | I9: Feira de Santana | J9: Urbano | K9: Via Feira | L9: 2 | M9: 2 | N9: 40 | O9: 0 | P9: 0 | Q9: 3.1 | R9: 0 | W9: Abril | X9: 2016-04-01 | Y9: 2016-04-30 | Z9: 2016-04-21 | AB9: 2016-01-22 | AE9: 20 | AF9: 1
A10: 000.005 | B10: Mauro | C10: Empregado | D10: Salvador | E10: ADMINISTRATIVO | F10: 23183 | G10: Regular | H10: Feira de Santana | I10: Feira de Santana | J10: Urbano | K10: Via Feira | L10: 2 | M10: 2 | N10: 40 | O10: 40 | P10: 20 | Q10: 3.1 | R10: 124 | W10: Maio | X10: 2016-05-01 | Y10: 2016-05-31 | Z10: 2016-05-26 | AB10: 2016-05-27 | AE10: 20 | AF10: 1
A11: 000.006 | B11: Marcio | C11: Empregado | D11: Salvador | E11: ADMINISTRATIVO | F11: 23125-M | G11: Regular | H11: Conceição de Feira | I11: Salvador | J11: Intermunicipal | K11: Viação Jauá | L11: 2 | M11: 2 | N11: 40 | O11: 10 | P11: 5 | Q11: 23.03 | R11: 230.3 | W11: Junho | X11: 2016-06-01 | Y11: 2016-06-30 | AE11: 22 | AF11: 0
A12: 000.007 | B12: Carla | C12: Empregado | D12: Salvador | E12: ADMINISTRATIVO | F12: 23125-M | G12: Regular | H12: Conceição de Feira | I12: Salvador | J12: Intermunicipal | K12: Viação Jauá | L12: 2 | M12: 2 | N12: 40 | O12: 40 | P12: 20 | Q12: 23.03 | R12: 921.2 | W12: Julho | X12: 2016-07-01 | Y12: 2016-07-31 | AE12: 21 | AF12: 0
A13: 000.008 | B13: Caroline | C13: Empregado | D13: Salvador | E13: COMERCIAL | F13: 23190-V | G13: Regular | H13: Lauro de Freitas | I13: Salvador | J13: Intermunicipal | K13: Metropasse | L13: 2 | M13: 2 | N13: 40 | O13: 40 | P13: 20 | Q13: 3.3 | R13: 132 | W13: Agosto | X13: 2016-08-01 | Y13: 2016-08-31 | AE13: 23 | AF13: 0
A14: 000.009 | B14: Pedro | C14: Empregado | D14: Salvador | E14: COMERCIAL | F14: 23190-V | G14: Regular | H14: Lauro de Freitas | I14: Salvador | J14: Intermunicipal | K14: Metropasse | L14: 2 | M14: 2 | N14: 40 | O14: 0 | P14: 0 | Q14: 3.3 | R14: 0 | W14: Setembro | X14: 2016-09-01 | Y14: 2016-09-30 | Z14: 2016-09-07 | AE14: 21 | AF14: 0
A15: 000.010 | B15: Paulo | C15: Empregado | D15: Salvador | E15: COMERCIAL | F15: 23190-V | G15: Regular | H15: Lauro de Freitas | I15: Salvador | J15: Intermunicipal | K15: Metropasse | L15: 2 | M15: 2 | N15: 40 | O15: 40 | P15: 20 | Q15: 3.3 | R15: 132 | W15: Outubro | X15: 2016-10-01 | Y15: 2016-10-31 | Z15: 2016-10-12 | AE15: 20 | AF15: 0
A16: 000.011 | B16: Rafael | C16: Empregado | D16: Salvador | E16: COMERCIAL | F16: 23190-V | G16: Regular | H16: Lauro de Freitas | I16: Salvador | J16: Intermunicipal | K16: Metropasse | L16: 2 | M16: 2 | N16: 40 | O16: 40 | P16: 20 | Q16: 3.3 | R16: 132 | W16: Novembro | X16: 2016-11-01 | Y16: 2016-11-30 | Z16: 2016-11-02 | AA16: 2016-11-15 | AB16: 2016-11-14 | AE16: =NETWORKDAYS(X16,Y16,Z16:AD16) -> 19 | AF16: 1
A17: 000.012 | B17: Ricardo | C17: Empregado | D17: Salvador | E17: COMERCIAL | F17: 23170-I | G17: Regular | H17: Aracaju | I17: Aracaju | J17: Urbano | K17: Aracaju Card | L17: 2 | M17: 2 | N17: 40 | O17: 52 | P17: 26 | Q17: 3.1 | R17: 161.2 | W17: Dezembro | X17: 2016-12-01 | Y17: 2016-12-31 | AE17: 22 | AF17: 0
A18: 000.013 | B18: Jose | C18: Empregado | D18: Salvador | E18: COMERCIAL | F18: xxxxx-Y (Pool) | G18: Regular | H18: Feira de Santana | I18: Camaçari | J18: Intermunicipal | K18: Lis Transportes | L18: 2 | M18: 2 | N18: 40 | O18: 10 | P18: 5 | Q18: 650 | R18: 650
A19: 000.014 | B19: Felipe | C19: Empregado | D19: Salvador | E19: COMERCIAL | F19: 23182 | G19: Regular | H19: Amélia Rodrigues | I19: Governador Mangabeira | J19: Intermunicipal | K19: RD Transportes | L19: 2 | M19: 2 | N19: 40 | O19: 25 | P19: 12.5 | Q19: 10.06 | R19: 251.5
A20: 000.015 | B20: Julio | C20: Empregado | D20: Salvador | E20: COMERCIAL | F20: 23101-A (09096) | G20: Regular | H20: Salvador | I20: Salvador | J20: Urbano | K20: Salvador Card | L20: 2 | M20: 4 | N20: 40 | O20: 40 | P20: 10 | Q20: 3.3 | R20: 132
A21: 000.016 | B21: Lucia | C21: Empregado | D21: Salvador | E21: PESSOAL | F21: 23101-A (09096) | G21: Regular | H21: Salvador | I21: Salvador | J21: Urbano | K21: Salvador Card | L21: 2 | M21: 2 | N21: 40 | O21: 42 | P21: 21 | Q21: 3.3 | R21: 138.6
A22: 000.017 | B22: Luciano | C22: Empregado | D22: Salvador | E22: PESSOAL | F22: 23101-A (09096) | G22: Regular | H22: Salvador | I22: Salvador | J22: Urbano | K22: Salvador Card | L22: 0 | M22: 0 | N22: 0 | O22: 0 | P22: 0 | Q22: 3.3 | R22: 0
A23: 000.018 | B23: Bruno | C23: Empregado | D23: Salvador | E23: PESSOAL | F23: 23101-A (09096) | G23: Regular | H23: Salvador | I23: Salvador | J23: Urbano | K23: Salvador Card | L23: 2 | M23: 2 | N23: 40 | O23: 40 | P23: 20 | Q23: 3.3 | R23: 132
A24: 000.019 | B24: Vinicius | C24: Anistiado | D24: Salvador | E24: PESSOAL | F24: 23101-A (09096) | G24: Regular | H24: Salvador | I24: Salvador | J24: Urbano | K24: Salvador Card | L24: 2 | M24: 2 | N24: 40 | O24: 40 | P24: 20 | Q24: 3.3 | R24: 132
A25: 000.020 | B25: José Carlos | C25: Empregado | D25: Salvador | E25: LOGISTICA | F25: 23101-A (09096) | G25: Regular | H25: Salvador | I25: Salvador | J25: Urbano | K25: Salvador Card | L25: 2 | M25: 2 | N25: 40 | O25: 40 | P25: 20 | Q25: 3.3 | R25: 132
A26: 000.021 | B26: Carlos | C26: Empregado | D26: Salvador | E26: LOGISTICA | F26: 23101-A (09096) | G26: Regular | H26: Salvador | I26: Salvador | J26: Urbano | K26: Salvador Card | L26: 2 | M26: 2 | N26: 40 | O26: 40 | P26: 20 | Q26: 3.3 | R26: 132
A27: 000.022 | B27: Miguel | C27: Empregado | D27: Salvador | E27: LOGISTICA | F27: 23101-A (09096) | G27: Regular | H27: Salvador | I27: Salvador | J27: Urbano | K27: Salvador Card | L27: 2 | M27: 2 | N27: 40 | O27: 40 | P27: 20 | Q27: 3.3 | R27: 132
A28: 000.023 | B28: Gustavo | C28: Empregado | D28: Salvador | E28: FINANCEIRO | F28: 23101-A (09096) | G28: Regular | H28: Salvador | I28: Salvador | J28: Urbano | K28: Salvador Card | L28: 4 | M28: 4 | N28: 80 | O28: 80 | P28: 20 | Q28: 3.3 | R28: 264
A29: 000.024 | B29: Guilherme | C29: Empregado | D29: Salvador | E29: FINANCEIRO | F29: 23101-A (09096) | G29: Irregular | H29: Salvador | I29: Salvador | J29: Urbano | K29: Salvador Card | L29: 0 | M29: 0 | N29: 0 | O29: 0 | P29: 0 | Q29: 3.3 | R29: 0
A30: 000.025 | B30: Bruno Brito | C30: Empregado | D30: Salvador | E30: FINANCEIRO | F30: 23101-A (09096) | G30: Regular | H30: Salvador | I30: Salvador | J30: Urbano | K30: Salvador Card | L30: 2 | M30: 2 | N30: 40 | O30: 14 | P30: 7 | Q30: 3.3 | R30: 46.2
M31: 0 | N31: 0 | O31: 0 | P31: 0 | Q31: 0 | R31: 0
M32: 0 | N32: 0 | O32: 0 | P32: 0 | Q32: 0 | R32: 0
M33: 0 | N33: 0 | O33: 0 | P33: 0 | Q33: 0 | R33: 0
M34: 0 | N34: 0 | O34: 0 | P34: 0 | Q34: 0 | R34: 0
M35: 0 | N35: 0 | O35: 0 | P35: 0 | Q35: 0 | R35: 0
M36: 0 | N36: 0 | O36: 0 | P36: 0 | Q36: 0 | R36: 0
M37: 0 | N37: 0 | O37: 0 | P37: 0 | Q37: 0 | R37: 0
M38: 0 | N38: 0 | O38: 0 | P38: 0 | Q38: 0 | R38: 0
M39: 0 | N39: 0 | O39: 0 | P39: 0 | Q39: 0 | R39: 0
M40: 0 | N40: 0 | O40: 0 | P40: 0 | Q40: 0 | R40: 0
M41: 0 | N41: 0 | O41: 0 | P41: 0 | Q41: 0 | R41: 0
M42: 0 | N42: 0 | O42: 0 | P42: 0 | Q42: 0 | R42: 0
M43: 0 | N43: 0 | O43: 0 | P43: 0 | Q43: 0 | R43: 0
M44: 0 | N44: 0 | O44: 0 | P44: 0 | Q44: 0 | R44: 0
M45: 0 | N45: 0 | O45: 0 | P45: 0 | Q45: 0 | R45: 0
M46: 0 | N46: 0 | O46: 0 | P46: 0 | Q46: 0 | R46: 0
M47: 0 | N47: 0 | O47: 0 | P47: 0 | Q47: 0 | R47: 0
M48: 0 | N48: 0 | O48: 0 | P48: 0 | Q48: 0 | R48: 0
M49: 0 | N49: 0 | O49: 0 | P49: 0 | Q49: 0 | R49: 0
M50: 0 | N50: 0 | O50: 0 | P50: 0 | Q50: 0 | R50: 0
M51: 0 | N51: 0 | O51: 0 | P51: 0 | Q51: 0 | R51: 0
M52: 0 | N52: 0 | O52: 0 | P52: 0 | Q52: 0 | R52: 0
M53: 0 | N53: 0 | O53: 0 | P53: 0 | Q53: 0 | R53: 0
M54: 0 | N54: 0 | O54: 0 | P54: 0 | Q54: 0 | R54: 0
M55: 0 | N55: 0 | O55: 0 | P55: 0 | Q55: 0 | R55: 0
M56: 0 | N56: 0 | O56: 0 | P56: 0 | Q56: 0 | R56: 0
M57: 0 | N57: 0 | O57: 0 | P57: 0 | Q57: 0 | R57: 0
M58: 0 | N58: 0 | O58: 0 | P58: 0 | Q58: 0 | R58: 0
M59: 0 | N59: 0 | O59: 0 | P59: 0 | Q59: 0 | R59: 0
M60: 0 | N60: 0 | O60: 0 | P60: 0 | Q60: 0 | R60: 0
M61: 0 | N61: 0 | O61: 0 | P61: 0 | Q61: 0 | R61: 0
M62: 0 | N62: 0 | O62: 0 | P62: 0 | Q62: 0 | R62: 0
M63: 0 | N63: 0 | O63: 0 | P63: 0 | Q63: 0 | R63: 0
M64: 0 | N64: 0 | O64: 0 | P64: 0 | Q64: 0 | R64: 0
M65: 0 | N65: 0 | O65: 0 | P65: 0 | Q65: 0 | R65: 0
M66: 0 | N66: 0 | O66: 0 | P66: 0 | Q66: 0 | R66: 0
M67: 0 | N67: 0 | O67: 0 | P67: 0 | Q67: 0 | R67: 0
M68: 0 | N68: 0 | O68: 0 | P68: 0 | Q68: 0 | R68: 0
M69: 0 | N69: 0 | O69: 0 | P69: 0 | Q69: 0 | R69: 0
M70: 0 | N70: 0 | O70: 0 | P70: 0 | Q70: 0 | R70: 0
M71: 0 | N71: 0 | O71: 0 | P71: 0 | Q71: 0 | R71: 0
M72: 0 | N72: 0 | O72: 0 | P72: 0 | Q72: 0 | R72: 0
A73: 252069 | B73: Aleandesson Florencio Fontes | C73: Aprendiz | D73: Complexo Pituaçu | E73: DRAS | F73: 23170-I | G73: Regular | H73: Aracaju | I73: Aracaju | J73: Urbano | K73: Aracaju Card | L73: 2 | M73: 2 | N73: 38 | O73: 4 | P73: 2 | Q73: 3.1 | R73: 12.4
A74: 252077 | B74: Dinnyster Bruno Costa Santos | C74: Aprendiz | D74: Complexo Pituaçu | E74: DRAS | F74: 23170-I | G74: Regular | H74: Aracaju | I74: Aracaju | J74: Urbano | K74: Aracaju Card | L74: 2 | M74: 2 | N74: 38 | O74: 4 | P74: 2 | Q74: 3.1 | R74: 12.4
A75: 252085 | B75: Ianny Monic Santos Brasileiro | C75: Aprendiz | D75: Complexo Pituaçu | E75: DRAS | F75: 23170-I | G75: Regular | H75: Aracaju | I75: Aracaju | J75: Urbano | K75: Aracaju Card | L75: 2 | M75: 2 | N75: 38 | O75: 4 | P75: 2 | Q75: 3.1 | R75: 12.4
A76: 218510 | B76: José Leônio de Goes Guimarães | C76: Empregado | D76: Complexo Jardim | E76: SSMA | F76: 23170-I | G76: Regular | H76: Aracaju | I76: Aracaju | J76: Urbano | K76: Aracaju Card | L76: 2 | M76: 2 | N76: 38 | O76: 38 | P76: 19 | Q76: 3.1 | R76: 117.8
A77: 215856 | B77: Job Cláudio dos Santos Nascimento | C77: Empregado | D77: Jardim | E77: SSMA | F77: 23170-I | G77: Regular | H77: Aracaju | I77: Aracaju | J77: Urbano | K77: Aracaju Card | L77: 2 | M77: 2 | N77: 38 | O77: 38 | P77: 19 | Q77: 3.1 | R77: 117.8
A78: 220213 | B78: Alexsandro de Oliveira Barboza | C78: Empregado | D78: Complexo Funil | E78: SSMF | F78: 23185 | G78: Regular | H78: Itabuna | I78: Ubaitaba | J78: Intermunicipal | K78: Águia Branca | L78: 0 | M78: 0 | N78: 0 | O78: 0 | Q78: 13.47 | R78: 0
A79: 114243 | B79: Fernando Cardoso Soares | C79: Empregado | D79: Pituaçu | E79: SSTL | F79: 23195 | G79: Regular | H79: Salvador | I79: Vera Cruz (Mar Grande) | J79: Intermunicipal | K79: Vera Cruz Transportes | L79: 2 | M79: 2 | N79: 38 | O79: 38 | P79: 19 | Q79: 5.15 | R79: 195.7
A81: Total | M81: =SUBTOTAL(109,BMVT13[Chipagem]) -> 62 | N81: =SUBTOTAL(109,BMVT13[Quant. Apur.]) -> 1188 | O81: =SUBTOTAL(109,BMVT13[Qtd. Solic.]) -> 927 | P81: =SUBTOTAL(109,BMVT13[Dias Lanc Sist.]) ->  | R81: =SUBTOTAL(109,BMVT13[Vlr. Total]) -> 6200.7
A85: ="Salvador, "&TEXT(TODAY(),"dd/mm/aaaa") -> Salvador, 29/06/2016 | G85: =A85 -> Salvador, 29/06/2016
A89: Responsável pelo Boletim de Medição | G89: Gerente Serviço de Pessoal de Salvador -SSPE

Sheet Março
A1: Boletim Mensal de Vales Transporte | D1: Competência: | F1: Dias Úteis (Mês): | G1: =VLOOKUP(INDEX($W$6:$AF$17,$W$5,1),$W$6:$AF$17,9,FALSE) -> 21 | I1: SC (Empregado): | J1: 0 | K1: =(SUMIFS(BMVT12[Vlr. Total],BMVT12[Vínculo],"<>Aprendiz",BMVT12[Empresa], "Salvador Card"))-J1 -> 1300.2 | N1: Qtd Usuários | O1: =SUMPRODUCT(SUBTOTAL(3,OFFSET(BMVT12[Matrícula],ROW(BMVT12[Matrícula])-ROW(A6),0,1)),--(BMVT12[Situação]="Regular")) -> 24
D2: =VLOOKUP(INDEX($W$6:$AF$17,$W$5,1),$W$6:$AF$17,1,FALSE) -> Março | F2: Compesações: | G2: =VLOOKUP(INDEX($W$6:$AF$17,$W$5,1),$W$6:$AF$17,10,FALSE) -> 1 | I2: SC (Aprendiz): | J2: 0 | K2: =(SUMIFS(BMVT12[Vlr. Total],BMVT12[Vínculo],"Aprendiz",BMVT12[Empresa],"Salvador Card"))-J2 -> 0 | N2: Qtd VT : | O2: =SUMPRODUCT(SUBTOTAL(9,OFFSET(BMVT12[Qtd. Solic.],ROW(BMVT12[Qtd. Solic.])-ROW(A6),0,1)),--(BMVT12[Situação]="Regular")) -> 835
F3: Desconto : | G3: 0 | I3: Metropasse: | K3: =(SUMIF(BMVT12[Empresa],"Metropasse",BMVT12[Vlr. Total]))-J3 -> 415.8 | N3: Valor Total: | O3: =SUMPRODUCT(SUBTOTAL(9,OFFSET(BMVT12[Vlr. Total],ROW(BMVT12[Vlr. Total])-ROW(A6),0,1)),--(BMVT12[Situação]="Regular")) -> 5932.16
A5: Matrícula | B5: Empregado | C5: Vínculo | D5: Lotação | E5: Setor | F5: Rota | G5: Situação | H5: Origem | I5: Destino | J5: Tipo | K5: Empresa | L5: Vales/Trecho | M5: Chipagem | N5: Quant. Apur. | O5: Qtd. Solic. | P5: Dias Lanc Sist. | Q5: Vlr. Unit. | R5: Vlr. Total | W5: 3 | X5: Período | Z5: Feriados | AB5: Compensações | AE5: DU
A6: 000.001 | B6: João | C6: Anistiado | D6: Salvador | E6: ADMINISTRATIVO | F6: xxxxx-Y | G6: Regular | H6: Dias D'Ávila | I6: Camaçari | J6: Intermunicipal | K6: Cidade das Águas | L6: 2 | M6: 2 | N6: 42 | O6: 42 | P6: 21 | Q6: 2.8 | R6: 117.6 | W6: Janeiro | X6: 2016-01-01 | Y6: 2016-01-31 | Z6: 2016-01-01 | AE6: =NETWORKDAYS(X6,Y6,Z6:AD6) -> 20 | AF6: =COUNTA(AB6:AD6) -> 0
A7: 000.002 | B7: Maria | C7: Anistiado | D7: Salvador | E7: ADMINISTRATIVO | F7: 23196 | G7: Regular | H7: Alagoinhas | I7: Salvador | J7: Intermunicipal | K7: Cidade Sol | L7: 2 | M7: 2 | N7: 42 | O7: 42 | P7: 21 | Q7: 28.35 | R7: 1190.7 | W7: Fevereiro | X7: 2016-02-01 | Y7: 2016-02-29 | Z7: 2016-02-08 | AB7: 2016-02-09 | AC7: 2016-02-10 | AE7: =NETWORKDAYS(X7,Y7,Z7:AD7) -> 18 | AF7: =COUNTA(AB7:AD7) -> 2
A8: 000.003 | B8: Francisco | C8: Anistiado | D8: Salvador | E8: ADMINISTRATIVO | F8: 23184 | G8: Regular | H8: Jequié | I8: Ipiaú | J8: Intermunicipal | K8: Cidade Sol | L8: 2 | M8: 2 | N8: 42 | O8: 48 | P8: 24 | Q8: 10.65 | R8: 511.2 | W8: Março | X8: 2016-03-01 | Y8: 2016-03-31 | Z8: 2016-03-25 | AB8: 2016-03-24 | AE8: =NETWORKDAYS(X8,Y8,Z8:AD8) -> 21 | AF8: 1
A9: 000.004 | B9: Ricardo | C9: Empregado | D9: Salvador | E9: ADMINISTRATIVO | F9: 23183 | G9: Regular | H9: Feira de Santana | I9: Feira de Santana | J9: Urbano | K9: Via Feira | L9: 2 | M9: 2 | N9: 42 | O9: 0 | P9: 0 | Q9: 3.1 | R9: 0 | W9: Abril | X9: 2016-04-01 | Y9: 2016-04-30 | Z9: 2016-04-21 | AB9: 2016-01-22 | AE9: 20 | AF9: 1
A10: 000.005 | B10: Mauro | C10: Empregado | D10: Salvador | E10: ADMINISTRATIVO | F10: 23183 | G10: Regular | H10: Feira de Santana | I10: Feira de Santana | J10: Urbano | K10: Via Feira | L10: 2 | M10: 2 | N10: 42 | O10: 42 | P10: 21 | Q10: 3.1 | R10: 130.2 | W10: Maio | X10: 2016-05-01 | Y10: 2016-05-31 | Z10: 2016-05-26 | AB10: 2016-05-27 | AE10: 20 | AF10: 1
A11: 000.006 | B11: Marcio | C11: Empregado | D11: Salvador | E11: ADMINISTRATIVO | F11: 23125-M | G11: Regular | H11: Conceição de Feira | I11: Salvador | J11: Intermunicipal | K11: Viação Jauá | L11: 2 | M11: 2 | N11: 42 | O11: 10 | P11: 5 | Q11: 23.03 | R11: 230.3 | W11: Junho | X11: 2016-06-01 | Y11: 2016-06-30 | AE11: 22 | AF11: 0
A12: 000.007 | B12: Carla | C12: Empregado | D12: Salvador | E12: ADMINISTRATIVO | F12: 23125-M | G12: Regular | H12: Conceição de Feira | I12: Salvador | J12: Intermunicipal | K12: Viação Jauá | L12: 2 | M12: 2 | N12: 42 | O12: 42 | P12: 21 | Q12: 23.03 | R12: 967.26 | W12: Julho | X12: 2016-07-01 | Y12: 2016-07-31 | AE12: 21 | AF12: 0
A13: 000.008 | B13: Caroline | C13: Empregado | D13: Salvador | E13: COMERCIAL | F13: 23190-V | G13: Regular | H13: Lauro de Freitas | I13: Salvador | J13: Intermunicipal | K13: Metropasse | L13: 2 | M13: 2 | N13: 42 | O13: 42 | P13: 21 | Q13: 3.3 | R13: 138.6 | W13: Agosto | X13: 2016-08-01 | Y13: 2016-08-31 | AE13: 23 | AF13: 0
A14: 000.009 | B14: Pedro | C14: Empregado | D14: Salvador | E14: COMERCIAL | F14: 23190-V | G14: Regular | H14: Lauro de Freitas | I14: Salvador | J14: Intermunicipal | K14: Metropasse | L14: 2 | M14: 2 | N14: 42 | O14: 0 | P14: 0 | Q14: 3.3 | R14: 0 | W14: Setembro | X14: 2016-09-01 | Y14: 2016-09-30 | Z14: 2016-09-07 | AE14: 21 | AF14: 0
A15: 000.010 | B15: Paulo | C15: Empregado | D15: Salvador | E15: COMERCIAL | F15: 23190-V | G15: Regular | H15: Lauro de Freitas | I15: Salvador | J15: Intermunicipal | K15: Metropasse | L15: 2 | M15: 2 | N15: 42 | O15: 42 | P15: 21 | Q15: 3.3 | R15: 138.6 | W15: Outubro | X15: 2016-10-01 | Y15: 2016-10-31 | Z15: 2016-10-12 | AE15: 20 | AF15: 0
A16: 000.011 | B16: Rafael | C16: Empregado | D16: Salvador | E16: COMERCIAL | F16: 23190-V | G16: Regular | H16: Lauro de Freitas | I16: Salvador | J16: Intermunicipal | K16: Metropasse | L16: 2 | M16: 2 | N16: 42 | O16: 42 | P16: 21 | Q16: 3.3 | R16: 138.6 | W16: Novembro | X16: 2016-11-01 | Y16: 2016-11-30 | Z16: 2016-11-02 | AA16: 2016-11-15 | AB16: 2016-11-14 | AE16: =NETWORKDAYS(X16,Y16,Z16:AD16) -> 19 | AF16: 1
A17: 000.012 | B17: Ricardo | C17: Empregado | D17: Salvador | E17: COMERCIAL | F17: 23170-I | G17: Regular | H17: Aracaju | I17: Aracaju | J17: Urbano | K17: Aracaju Card | L17: 2 | M17: 2 | N17: 42 | O17: 54 | P17: 27 | Q17: 3.1 | R17: 167.4 | W17: Dezembro | X17: 2016-12-01 | Y17: 2016-12-31 | AE17: 22 | AF17: 0
A18: 000.013 | B18: Jose | C18: Empregado | D18: Salvador | E18: COMERCIAL | F18: xxxxx-Y (Pool) | G18: Regular | H18: Feira de Santana | I18: Camaçari | J18: Intermunicipal | K18: Lis Transportes | L18: 2 | M18: 2 | N18: 42 | O18: 10 | P18: 5 | Q18: 650 | R18: 650
A19: 000.014 | B19: Felipe | C19: Empregado | D19: Salvador | E19: COMERCIAL | F19: 23182 | G19: Regular | H19: Amélia Rodrigues | I19: Governador Mangabeira | J19: Intermunicipal | K19: RD Transportes | L19: 2 | M19: 2 | N19: 42 | O19: 25 | P19: 12.5 | Q19: 10.06 | R19: 251.5
A20: 000.015 | B20: Julio | C20: Empregado | D20: Salvador | E20: COMERCIAL | F20: 23101-A (09096) | G20: Regular | H20: Salvador | I20: Salvador | J20: Urbano | K20: Salvador Card | L20: 2 | M20: 4 | N20: 42 | O20: 42 | P20: 10.5 | Q20: 3.3 | R20: 138.6
A21: 000.016 | B21: Lucia | C21: Empregado | D21: Salvador | E21: PESSOAL | F21: 23101-A (09096) | G21: Regular | H21: Salvador | I21: Salvador | J21: Urbano | K21: Salvador Card | L21: 2 | M21: 2 | N21: 42 | O21: 44 | P21: 22 | Q21: 3.3 | R21: 145.2
A22: 000.017 | B22: Luciano | C22: Empregado | D22: Salvador | E22: PESSOAL | F22: 23101-A (09096) | G22: Regular | H22: Salvador | I22: Salvador | J22: Urbano | K22: Salvador Card | L22: 0 | M22: 0 | N22: 0 | O22: 0 | P22: 0 | Q22: 3.3 | R22: 0
A23: 000.018 | B23: Bruno | C23: Empregado | D23: Salvador | E23: PESSOAL | F23: 23101-A (09096) | G23: Regular | H23: Salvador | I23: Salvador | J23: Urbano | K23: Salvador Card | L23: 2 | M23: 2 | N23: 42 | O23: 42 | P23: 21 | Q23: 3.3 | R23: 138.6
A24: 000.019 | B24: Vinicius | C24: Anistiado | D24: Salvador | E24: PESSOAL | F24: 23101-A (09096) | G24: Regular | H24: Salvador | I24: Salvador | J24: Urbano | K24: Salvador Card | L24: 2 | M24: 2 | N24: 42 | O24: 42 | P24: 21 | Q24: 3.3 | R24: 138.6
A25: 000.020 | B25: José Carlos | C25: Empregado | D25: Salvador | E25: LOGISTICA | F25: 23101-A (09096) | G25: Regular | H25: Salvador | I25: Salvador | J25: Urbano | K25: Salvador Card | L25: 2 | M25: 2 | N25: 42 | O25: 42 | P25: 21 | Q25: 3.3 | R25: 138.6
A26: 000.021 | B26: Carlos | C26: Empregado | D26: Salvador | E26: LOGISTICA | F26: 23101-A (09096) | G26: Regular | H26: Salvador | I26: Salvador | J26: Urbano | K26: Salvador Card | L26: 2 | M26: 2 | N26: 42 | O26: 42 | P26: 21 | Q26: 3.3 | R26: 138.6
A27: 000.022 | B27: Miguel | C27: Empregado | D27: Salvador | E27: LOGISTICA | F27: 23101-A (09096) | G27: Regular | H27: Salvador | I27: Salvador | J27: Urbano | K27: Salvador Card | L27: 2 | M27: 2 | N27: 42 | O27: 42 | P27: 21 | Q27: 3.3 | R27: 138.6
A28: 000.023 | B28: Gustavo | C28: Empregado | D28: Salvador | E28: FINANCEIRO | F28: 23101-A (09096) | G28: Regular | H28: Salvador | I28: Salvador | J28: Urbano | K28: Salvador Card | L28: 4 | M28: 4 | N28: 84 | O28: 84 | P28: 21 | Q28: 3.3 | R28: 277.2
A29: 000.024 | B29: Guilherme | C29: Empregado | D29: Salvador | E29: FINANCEIRO | F29: 23101-A (09096) | G29: Irregular | H29: Salvador | I29: Salvador | J29: Urbano | K29: Salvador Card | L29: 0 | M29: 0 | N29: 0 | O29: 0 | P29: 0 | Q29: 3.3 | R29: 0
A30: 000.025 | B30: Bruno Brito | C30: Empregado | D30: Salvador | E30: FINANCEIRO | F30: 23101-A (09096) | G30: Regular | H30: Salvador | I30: Salvador | J30: Urbano | K30: Salvador Card | L30: 2 | M30: 2 | N30: 42 | O30: 14 | P30: 7 | Q30: 3.3 | R30: 46.2
M31: 0 | N31: 0 | O31: 0 | P31: 0 | Q31: 0 | R31: 0
M32: 0 | N32: 0 | O32: 0 | P32: 0 | Q32: 0 | R32: 0
M33: 0 | N33: 0 | O33: 0 | P33: 0 | Q33: 0 | R33: 0
M34: 0 | N34: 0 | O34: 0 | P34: 0 | Q34: 0 | R34: 0
M35: 0 | N35: 0 | O35: 0 | P35: 0 | Q35: 0 | R35: 0
M36: 0 | N36: 0 | O36: 0 | P36: 0 | Q36: 0 | R36: 0
M37: 0 | N37: 0 | O37: 0 | P37: 0 | Q37: 0 | R37: 0
M38: 0 | N38: 0 | O38: 0 | P38: 0 | Q38: 0 | R38: 0
M39: 0 | N39: 0 | O39: 0 | P39: 0 | Q39: 0 | R39: 0
M40: 0 | N40: 0 | O40: 0 | P40: 0 | Q40: 0 | R40: 0
M41: 0 | N41: 0 | O41: 0 | P41: 0 | Q41: 0 | R41: 0
M42: 0 | N42: 0 | O42: 0 | P42: 0 | Q42: 0 | R42: 0
M43: 0 | N43: 0 | O43: 0 | P43: 0 | Q43: 0 | R43: 0
M44: 0 | N44: 0 | O44: 0 | P44: 0 | Q44: 0 | R44: 0
M45: 0 | N45: 0 | O45: 0 | P45: 0 | Q45: 0 | R45: 0
M46: 0 | N46: 0 | O46: 0 | P46: 0 | Q46: 0 | R46: 0
M47: 0 | N47: 0 | O47: 0 | P47: 0 | Q47: 0 | R47: 0
M48: 0 | N48: 0 | O48: 0 | P48: 0 | Q48: 0 | R48: 0
M49: 0 | N49: 0 | O49: 0 | P49: 0 | Q49: 0 | R49: 0
M50: 0 | N50: 0 | O50: 0 | P50: 0 | Q50: 0 | R50: 0
M51: 0 | N51: 0 | O51: 0 | P51: 0 | Q51: 0 | R51: 0
M52: 0 | N52: 0 | O52: 0 | P52: 0 | Q52: 0 | R52: 0
M53: 0 | N53: 0 | O53: 0 | P53: 0 | Q53: 0 | R53: 0
M54: 0 | N54: 0 | O54: 0 | P54: 0 | Q54: 0 | R54: 0
M55: 0 | N55: 0 | O55: 0 | P55: 0 | Q55: 0 | R55: 0
M56: 0 | N56: 0 | O56: 0 | P56: 0 | Q56: 0 | R56: 0
M57: 0 | N57: 0 | O57: 0 | P57: 0 | Q57: 0 | R57: 0
M58: 0 | N58: 0 | O58: 0 | P58: 0 | Q58: 0 | R58: 0
M59: 0 | N59: 0 | O59: 0 | P59: 0 | Q59: 0 | R59: 0
M60: 0 | N60: 0 | O60: 0 | P60: 0 | Q60: 0 | R60: 0
M61: 0 | N61: 0 | O61: 0 | P61: 0 | Q61: 0 | R61: 0
M62: 0 | N62: 0 | O62: 0 | P62: 0 | Q62: 0 | R62: 0
M63: 0 | N63: 0 | O63: 0 | P63: 0 | Q63: 0 | R63: 0
M64: 0 | N64: 0 | O64: 0 | P64: 0 | Q64: 0 | R64: 0
M65: 0 | N65: 0 | O65: 0 | P65: 0 | Q65: 0 | R65: 0
M66: 0 | N66: 0 | O66: 0 | P66: 0 | Q66: 0 | R66: 0
M67: 0 | N67: 0 | O67: 0 | P67: 0 | Q67: 0 | R67: 0
M68: 0 | N68: 0 | O68: 0 | P68: 0 | Q68: 0 | R68: 0
M69: 0 | N69: 0 | O69: 0 | P69: 0 | Q69: 0 | R69: 0
M70: 0 | N70: 0 | O70: 0 | P70: 0 | Q70: 0 | R70: 0
M71: 0 | N71: 0 | O71: 0 | P71: 0 | Q71: 0 | R71: 0
M72: 0 | N72: 0 | O72: 0 | P72: 0 | Q72: 0 | R72: 0
M73: 0 | N73: 0 | O73: 0 | P73: 0 | Q73: 0 | R73: 0
M74: 0 | N74: 0 | O74: 0 | P74: 0 | Q74: 0 | R74: 0
M75: 0 | N75: 0 | O75: 0 | P75: 0 | Q75: 0 | R75: 0
M76: 0 | N76: 0 | O76: 0 | P76: 0 | Q76: 0 | R76: 0
M77: 0 | N77: 0 | O77: 0 | P77: 0 | Q77: 0 | R77: 0
A81: Total | M81: =SUBTOTAL(109,BMVT12[Chipagem]) -> 50 | N81: =SUBTOTAL(109,BMVT12[Quant. Apur.]) -> 1008 | O81: =SUBTOTAL(109,BMVT12[Qtd. Solic.]) -> 835 | P81: =SUBTOTAL(109,BMVT12[Dias Lanc Sist.]) -> 386 | R81: =SUBTOTAL(109,BMVT12[Vlr. Total]) -> 5932.16
A82: ="Salvador, "&TEXT(TODAY(),"dd/mm/aaaa") -> Salvador, 29/06/2016 | G82: =A82 -> Salvador, 29/06/2016
A86: Responsável pelo Boletim de Medição | G86: Gerente Serviço de Pessoal de Salvador -SSPE

Sheet Fevereiro
A1: Boletim Mensal de Vales Transporte | D1: Competência: | F1: Dias Úteis (Mês): | G1: =VLOOKUP(INDEX($W$7:$AF$18,$W$5,1),$W$7:$AF$18,9,FALSE) -> 18 | I1: SC (Empregado): | J1: 0 | K1: =(SUMIFS(BMVT15[Vlr. Total],BMVT15[Vínculo],"<>Aprendiz",BMVT15[Empresa], "Salvador Card"))-J1 -> 1122 | N1: Qtd Usuários | O1: =SUMPRODUCT(SUBTOTAL(3,OFFSET(BMVT15[Matrícula],ROW(BMVT15[Matrícula])-ROW(A6),0,1)),--(BMVT15[Situação]="Regular")) -> 24
D2: =VLOOKUP(INDEX($W$7:$AF$18,$W$5,1),$W$7:$AF$18,1,FALSE) -> Fevereiro | F2: Compesações: | G2: =VLOOKUP(INDEX($W$7:$AF$18,$W$5,1),$W$7:$AF$18,10,FALSE) -> 2 | I2: SC (Aprendiz): | J2: 0 | K2: =(SUMIFS(BMVT15[Vlr. Total],BMVT15[Vínculo],"Aprendiz",BMVT15[Empresa],"Salvador Card"))-J2 -> 0 | N2: Qtd VT : | O2: =SUMPRODUCT(SUBTOTAL(9,OFFSET(BMVT15[Qtd. Solic.],ROW(BMVT15[Qtd. Solic.])-ROW(A6),0,1)),--(BMVT15[Situação]="Regular")) -> 733
F3: Desconto : | G3: 0 | I3: Metropasse: | K3: =(SUMIF(BMVT15[Empresa],"Metropasse",BMVT15[Vlr. Total]))-J3 -> 356.4 | N3: Valor Total: | O3: =SUMPRODUCT(SUBTOTAL(9,OFFSET(BMVT15[Vlr. Total],ROW(BMVT15[Vlr. Total])-ROW(A6),0,1)),--(BMVT15[Situação]="Regular")) -> 5332.28
A5: Matrícula | B5: Empregado | C5: Vínculo | D5: Lotação | E5: Setor | F5: Rota | G5: Situação | H5: Origem | I5: Destino | J5: Tipo | K5: Empresa | L5: Vales/Trecho | M5: Chipagem | N5: Quant. Apur. | O5: Qtd. Solic. | P5: Dias Lanc Sist. | Q5: Vlr. Unit. | R5: Vlr. Total | W5: 2 | X5: Período | Z5: Feriados | AB5: Compensações | AE5: DU
A6: 000.001 | B6: João | C6: Anistiado | D6: Salvador | E6: ADMINISTRATIVO | F6: xxxxx-Y | G6: Regular | H6: Dias D'Ávila | I6: Camaçari | J6: Intermunicipal | K6: Cidade das Águas | L6: 2 | M6: 2 | N6: 36 | O6: 36 | P6: 18 | Q6: 2.8 | R6: 100.8
A7: 000.002 | B7: Maria | C7: Anistiado | D7: Salvador | E7: ADMINISTRATIVO | F7: 23196 | G7: Regular | H7: Alagoinhas | I7: Salvador | J7: Intermunicipal | K7: Cidade Sol | L7: 2 | M7: 2 | N7: 36 | O7: 36 | P7: 18 | Q7: 28.35 | R7: 1020.6 | W7: Janeiro | X7: 2016-01-01 | Y7: 2016-01-31 | Z7: 2016-01-01 | AE7: =NETWORKDAYS(X7,Y7,Z7:AD7) -> 20 | AF7: =COUNTA(AB7:AD7) -> 0
A8: 000.003 | B8: Francisco | C8: Anistiado | D8: Salvador | E8: ADMINISTRATIVO | F8: 23184 | G8: Regular | H8: Jequié | I8: Ipiaú | J8: Intermunicipal | K8: Cidade Sol | L8: 2 | M8: 2 | N8: 36 | O8: 48 | P8: 24 | Q8: 10.65 | R8: 511.2 | W8: Fevereiro | X8: 2016-02-01 | Y8: 2016-02-29 | Z8: 2016-02-08 | AB8: 2016-02-09 | AC8: 2016-02-10 | AE8: =NETWORKDAYS(X8,Y8,Z8:AD8) -> 18 | AF8: =COUNTA(AB8:AD8) -> 2
A9: 000.004 | B9: Ricardo | C9: Empregado | D9: Salvador | E9: ADMINISTRATIVO | F9: 23183 | G9: Regular | H9: Feira de Santana | I9: Feira de Santana | J9: Urbano | K9: Via Feira | L9: 2 | M9: 2 | N9: 36 | O9: 0 | P9: 0 | Q9: 3.1 | R9: 0 | W9: Março | X9: 2016-03-01 | Y9: 2016-03-31 | Z9: 2016-03-25 | AB9: 2016-03-24 | AE9: =NETWORKDAYS(X9,Y9,Z9:AD9) -> 21 | AF9: 1
A10: 000.005 | B10: Mauro | C10: Empregado | D10: Salvador | E10: ADMINISTRATIVO | F10: 23183 | G10: Regular | H10: Feira de Santana | I10: Feira de Santana | J10: Urbano | K10: Via Feira | L10: 2 | M10: 2 | N10: 36 | O10: 36 | P10: 18 | Q10: 3.1 | R10: 111.6 | W10: Abril | X10: 2016-04-01 | Y10: 2016-04-30 | Z10: 2016-04-21 | AB10: 2016-01-22 | AE10: 20 | AF10: 1
A11: 000.006 | B11: Marcio | C11: Empregado | D11: Salvador | E11: ADMINISTRATIVO | F11: 23125-M | G11: Regular | H11: Conceição de Feira | I11: Salvador | J11: Intermunicipal | K11: Viação Jauá | L11: 2 | M11: 2 | N11: 36 | O11: 10 | P11: 5 | Q11: 23.03 | R11: 230.3 | W11: Maio | X11: 2016-05-01 | Y11: 2016-05-31 | Z11: 2016-05-26 | AB11: 2016-05-27 | AE11: 20 | AF11: 1
A12: 000.007 | B12: Carla | C12: Empregado | D12: Salvador | E12: ADMINISTRATIVO | F12: 23125-M | G12: Regular | H12: Conceição de Feira | I12: Salvador | J12: Intermunicipal | K12: Viação Jauá | L12: 2 | M12: 2 | N12: 36 | O12: 36 | P12: 18 | Q12: 23.03 | R12: 829.08 | W12: Junho | X12: 2016-06-01 | Y12: 2016-06-30 | AE12: 22 | AF12: 0
A13: 000.008 | B13: Caroline | C13: Empregado | D13: Salvador | E13: COMERCIAL | F13: 23190-V | G13: Regular | H13: Lauro de Freitas | I13: Salvador | J13: Intermunicipal | K13: Metropasse | L13: 2 | M13: 2 | N13: 36 | O13: 36 | P13: 18 | Q13: 3.3 | R13: 118.8 | W13: Julho | X13: 2016-07-01 | Y13: 2016-07-31 | AE13: 21 | AF13: 0
A14: 000.009 | B14: Pedro | C14: Empregado | D14: Salvador | E14: COMERCIAL | F14: 23190-V | G14: Regular | H14: Lauro de Freitas | I14: Salvador | J14: Intermunicipal | K14: Metropasse | L14: 2 | M14: 2 | N14: 36 | O14: 0 | P14: 0 | Q14: 3.3 | R14: 0 | W14: Agosto | X14: 2016-08-01 | Y14: 2016-08-31 | AE14: 23 | AF14: 0
A15: 000.010 | B15: Paulo | C15: Empregado | D15: Salvador | E15: COMERCIAL | F15: 23190-V | G15: Regular | H15: Lauro de Freitas | I15: Salvador | J15: Intermunicipal | K15: Metropasse | L15: 2 | M15: 2 | N15: 36 | O15: 36 | P15: 18 | Q15: 3.3 | R15: 118.8 | W15: Setembro | X15: 2016-09-01 | Y15: 2016-09-30 | Z15: 2016-09-07 | AE15: 21 | AF15: 0
A16: 000.011 | B16: Rafael | C16: Empregado | D16: Salvador | E16: COMERCIAL | F16: 23190-V | G16: Regular | H16: Lauro de Freitas | I16: Salvador | J16: Intermunicipal | K16: Metropasse | L16: 2 | M16: 2 | N16: 36 | O16: 36 | P16: 18 | Q16: 3.3 | R16: 118.8 | W16: Outubro | X16: 2016-10-01 | Y16: 2016-10-31 | Z16: 2016-10-12 | AE16: 20 | AF16: 0
A17: 000.012 | B17: Ricardo | C17: Empregado | D17: Salvador | E17: COMERCIAL | F17: 23170-I | G17: Regular | H17: Aracaju | I17: Aracaju | J17: Urbano | K17: Aracaju Card | L17: 2 | M17: 2 | N17: 36 | O17: 48 | P17: 24 | Q17: 3.1 | R17: 148.8 | W17: Novembro | X17: 2016-11-01 | Y17: 2016-11-30 | Z17: 2016-11-02 | AA17: 2016-11-15 | AB17: 2016-11-14 | AE17: =NETWORKDAYS(X17,Y17,Z17:AD17) -> 19 | AF17: 1
A18: 000.013 | B18: Jose | C18: Empregado | D18: Salvador | E18: COMERCIAL | F18: xxxxx-Y (Pool) | G18: Regular | H18: Feira de Santana | I18: Camaçari | J18: Intermunicipal | K18: Lis Transportes | L18: 2 | M18: 2 | N18: 36 | O18: 10 | P18: 5 | Q18: 650 | R18: 650 | W18: Dezembro | X18: 2016-12-01 | Y18: 2016-12-31 | AE18: 22 | AF18: 0
A19: 000.014 | B19: Felipe | C19: Empregado | D19: Salvador | E19: COMERCIAL | F19: 23182 | G19: Regular | H19: Amélia Rodrigues | I19: Governador Mangabeira | J19: Intermunicipal | K19: RD Transportes | L19: 2 | M19: 2 | N19: 36 | O19: 25 | P19: 12.5 | Q19: 10.06 | R19: 251.5
A20: 000.015 | B20: Julio | C20: Empregado | D20: Salvador | E20: COMERCIAL | F20: 23101-A (09096) | G20: Regular | H20: Salvador | I20: Salvador | J20: Urbano | K20: Salvador Card | L20: 2 | M20: 4 | N20: 36 | O20: 36 | P20: 9 | Q20: 3.3 | R20: 118.8
A21: 000.016 | B21: Lucia | C21: Empregado | D21: Salvador | E21: PESSOAL | F21: 23101-A (09096) | G21: Regular | H21: Salvador | I21: Salvador | J21: Urbano | K21: Salvador Card | L21: 2 | M21: 2 | N21: 36 | O21: 38 | P21: 19 | Q21: 3.3 | R21: 125.4
A22: 000.017 | B22: Luciano | C22: Empregado | D22: Salvador | E22: PESSOAL | F22: 23101-A (09096) | G22: Regular | H22: Salvador | I22: Salvador | J22: Urbano | K22: Salvador Card | L22: 0 | M22: 0 | N22: 0 | O22: 0 | P22: 0 | Q22: 3.3 | R22: 0
A23: 000.018 | B23: Bruno | C23: Empregado | D23: Salvador | E23: PESSOAL | F23: 23101-A (09096) | G23: Regular | H23: Salvador | I23: Salvador | J23: Urbano | K23: Salvador Card | L23: 2 | M23: 2 | N23: 36 | O23: 36 | P23: 18 | Q23: 3.3 | R23: 118.8
A24: 000.019 | B24: Vinicius | C24: Anistiado | D24: Salvador | E24: PESSOAL | F24: 23101-A (09096) | G24: Regular | H24: Salvador | I24: Salvador | J24: Urbano | K24: Salvador Card | L24: 2 | M24: 2 | N24: 36 | O24: 36 | P24: 18 | Q24: 3.3 | R24: 118.8
A25: 000.020 | B25: José Carlos | C25: Empregado | D25: Salvador | E25: LOGISTICA | F25: 23101-A (09096) | G25: Regular | H25: Salvador | I25: Salvador | J25: Urbano | K25: Salvador Card | L25: 2 | M25: 2 | N25: 36 | O25: 36 | P25: 18 | Q25: 3.3 | R25: 118.8
A26: 000.021 | B26: Carlos | C26: Empregado | D26: Salvador | E26: LOGISTICA | F26: 23101-A (09096) | G26: Regular | H26: Salvador | I26: Salvador | J26: Urbano | K26: Salvador Card | L26: 2 | M26: 2 | N26: 36 | O26: 36 | P26: 18 | Q26: 3.3 | R26: 118.8
A27: 000.022 | B27: Miguel | C27: Empregado | D27: Salvador | E27: LOGISTICA | F27: 23101-A (09096) | G27: Regular | H27: Salvador | I27: Salvador | J27: Urbano | K27: Salvador Card | L27: 2 | M27: 2 | N27: 36 | O27: 36 | P27: 18 | Q27: 3.3 | R27: 118.8
A28: 000.023 | B28: Gustavo | C28: Empregado | D28: Salvador | E28: FINANCEIRO | F28: 23101-A (09096) | G28: Regular | H28: Salvador | I28: Salvador | J28: Urbano | K28: Salvador Card | L28: 4 | M28: 4 | N28: 72 | O28: 72 | P28: 18 | Q28: 3.3 | R28: 237.6
A29: 000.024 | B29: Guilherme | C29: Empregado | D29: Salvador | E29: FINANCEIRO | F29: 23101-A (09096) | G29: Irregular | H29: Salvador | I29: Salvador | J29: Urbano | K29: Salvador Card | L29: 0 | M29: 0 | N29: 0 | O29: 0 | P29: 0 | Q29: 3.3 | R29: 0
A30: 000.025 | B30: Bruno Brito | C30: Empregado | D30: Salvador | E30: FINANCEIRO | F30: 23101-A (09096) | G30: Regular | H30: Salvador | I30: Salvador | J30: Urbano | K30: Salvador Card | L30: 2 | M30: 2 | N30: 36 | O30: 14 | P30: 7 | Q30: 3.3 | R30: 46.2
M31: 0 | N31: 0 | O31: 0 | P31: 0 | Q31: 0 | R31: 0
M32: 0 | N32: 0 | O32: 0 | P32: 0 | Q32: 0 | R32: 0
M33: 0 | N33: 0 | O33: 0 | P33: 0 | Q33: 0 | R33: 0
M34: 0 | N34: 0 | O34: 0 | P34: 0 | Q34: 0 | R34: 0
M35: 0 | N35: 0 | O35: 0 | P35: 0 | Q35: 0 | R35: 0
M36: 0 | N36: 0 | O36: 0 | P36: 0 | Q36: 0 | R36: 0
M37: 0 | N37: 0 | O37: 0 | P37: 0 | Q37: 0 | R37: 0
M38: 0 | N38: 0 | O38: 0 | P38: 0 | Q38: 0 | R38: 0
M39: 0 | N39: 0 | O39: 0 | P39: 0 | Q39: 0 | R39: 0
M40: 0 | N40: 0 | O40: 0 | P40: 0 | Q40: 0 | R40: 0
M41: 0 | N41: 0 | O41: 0 | P41: 0 | Q41: 0 | R41: 0
M42: 0 | N42: 0 | O42: 0 | P42: 0 | Q42: 0 | R42: 0
M43: 0 | N43: 0 | O43: 0 | P43: 0 | Q43: 0 | R43: 0
M44: 0 | N44: 0 | O44: 0 | P44: 0 | Q44: 0 | R44: 0
M45: 0 | N45: 0 | O45: 0 | P45: 0 | Q45: 0 | R45: 0
M46: 0 | N46: 0 | O46: 0 | P46: 0 | Q46: 0 | R46: 0
M47: 0 | N47: 0 | O47: 0 | P47: 0 | Q47: 0 | R47: 0
M48: 0 | N48: 0 | O48: 0 | P48: 0 | Q48: 0 | R48: 0
M49: 0 | N49: 0 | O49: 0 | P49: 0 | Q49: 0 | R49: 0
M50: 0 | N50: 0 | O50: 0 | P50: 0 | Q50: 0 | R50: 0
M51: 0 | N51: 0 | O51: 0 | P51: 0 | Q51: 0 | R51: 0
M52: 0 | N52: 0 | O52: 0 | P52: 0 | Q52: 0 | R52: 0
M53: 0 | N53: 0 | O53: 0 | P53: 0 | Q53: 0 | R53: 0
M54: 0 | N54: 0 | O54: 0 | P54: 0 | Q54: 0 | R54: 0
M55: 0 | N55: 0 | O55: 0 | P55: 0 | Q55: 0 | R55: 0
M56: 0 | N56: 0 | O56: 0 | P56: 0 | Q56: 0 | R56: 0
M57: 0 | N57: 0 | O57: 0 | P57: 0 | Q57: 0 | R57: 0
M58: 0 | N58: 0 | O58: 0 | P58: 0 | Q58: 0 | R58: 0
M59: 0 | N59: 0 | O59: 0 | P59: 0 | Q59: 0 | R59: 0
M60: 0 | N60: 0 | O60: 0 | P60: 0 | Q60: 0 | R60: 0
M61: 0 | N61: 0 | O61: 0 | P61: 0 | Q61: 0 | R61: 0
M62: 0 | N62: 0 | O62: 0 | P62: 0 | Q62: 0 | R62: 0
M63: 0 | N63: 0 | O63: 0 | P63: 0 | Q63: 0 | R63: 0
M64: 0 | N64: 0 | O64: 0 | P64: 0 | Q64: 0 | R64: 0
M65: 0 | N65: 0 | O65: 0 | P65: 0 | Q65: 0 | R65: 0
M66: 0 | N66: 0 | O66: 0 | P66: 0 | Q66: 0 | R66: 0
M67: 0 | N67: 0 | O67: 0 | P67: 0 | Q67: 0 | R67: 0
M68: 0 | N68: 0 | O68: 0 | P68: 0 | Q68: 0 | R68: 0
M69: 0 | N69: 0 | O69: 0 | P69: 0 | Q69: 0 | R69: 0
M70: 0 | N70: 0 | O70: 0 | P70: 0 | Q70: 0 | R70: 0
M71: 0 | N71: 0 | O71: 0 | P71: 0 | Q71: 0 | R71: 0
M72: 0 | N72: 0 | O72: 0 | P72: 0 | Q72: 0 | R72: 0
M73: 0 | N73: 0 | O73: 0 | P73: 0 | Q73: 0 | R73: 0
M74: 0 | N74: 0 | O74: 0 | P74: 0 | Q74: 0 | R74: 0
M75: 0 | N75: 0 | O75: 0 | P75: 0 | Q75: 0 | R75: 0
M76: 0 | N76: 0 | O76: 0 | P76: 0 | Q76: 0 | R76: 0
M77: 0 | N77: 0 | O77: 0 | P77: 0 | Q77: 0 | R77: 0
M78: 0 | N78: 0 | O78: 0 | P78: 0 | Q78: 0 | R78: 0
A81: Total | M81: =SUBTOTAL(109,BMVT15[Chipagem]) -> 50 | N81: =SUBTOTAL(109,BMVT15[Quant. Apur.]) -> 864 | O81: =SUBTOTAL(109,BMVT15[Qtd. Solic.]) -> 733 | P81: =SUBTOTAL(109,BMVT15[Dias Lanc Sist.]) -> 339.5 | R81: =SUBTOTAL(109,BMVT15[Vlr. Total]) -> 5332.28
A82: ="Salvador, "&TEXT(TODAY(),"dd/mm/aaaa") -> Salvador, 29/06/2016 | G82: =A82 -> Salvador, 29/06/2016
A86: Responsável pelo Boletim de Medição | G86: Gerente Serviço de Pessoal de Salvador -SSPE

Sheet Janeiro
A1: Boletim Mensal de Vales Transporte | D1: Competência: | F1: Dias Úteis (Mês): | G1: =VLOOKUP(INDEX($W$6:$AF$17,$W$5,1),$W$6:$AF$17,9,FALSE) -> 20 | I1: SC (Empregado): | J1: 0 | K1: =(SUMIFS(BMVT14[Vlr. Total],BMVT14[Vínculo],"<>Aprendiz",BMVT14[Empresa], "Salvador Card"))-J1 -> 1240.8 | N1: Qtd Usuários | O1: =SUMPRODUCT(SUBTOTAL(3,OFFSET(BMVT14[Matrícula],ROW(BMVT14[Matrícula])-ROW(A6),0,1)),--(BMVT14[Situação]="Regular")) -> 24
D2: =VLOOKUP(INDEX($W$6:$AF$17,$W$5,1),$W$6:$AF$17,1,FALSE) -> Janeiro | F2: Compesações: | G2: =VLOOKUP(INDEX($W$6:$AF$17,$W$5,1),$W$6:$AF$17,10,FALSE) -> 0 | I2: SC (Aprendiz): | J2: 0 | K2: =(SUMIFS(BMVT14[Vlr. Total],BMVT14[Vínculo],"Aprendiz",BMVT14[Empresa],"Salvador Card"))-J2 -> 0 | N2: Qtd VT : | O2: =SUMPRODUCT(SUBTOTAL(9,OFFSET(BMVT14[Qtd. Solic.],ROW(BMVT14[Qtd. Solic.])-ROW(A6),0,1)),--(BMVT14[Situação]="Regular")) -> 801
F3: Desconto : | G3: 0 | I3: Metropasse: | J3: 0 | K3: =(SUMIF(BMVT14[Empresa],"Metropasse",BMVT14[Vlr. Total]))-J3 -> 396 | N3: Valor Total: | O3: =SUMPRODUCT(SUBTOTAL(9,OFFSET(BMVT14[Vlr. Total],ROW(BMVT14[Vlr. Total])-ROW(A6),0,1)),--(BMVT14[Situação]="Regular")) -> 5732.2
A5: Matrícula | B5: Empregado | C5: Vínculo | D5: Lotação | E5: Setor | F5: Rota | G5: Situação | H5: Origem | I5: Destino | J5: Tipo | K5: Empresa | L5: Vales/Trecho | M5: Chipagem | N5: Quant. Apur. | O5: Qtd. Solic. | P5: Dias Lanc Sist. | Q5: Vlr. Unit. | R5: Vlr. Total | W5: 1 | X5: Período | Z5: Feriados | AB5: Compensações | AE5: DU
A6: 000.001 | B6: João | C6: Anistiado | D6: Salvador | E6: ADMINISTRATIVO | F6: xxxxx-Y | G6: Regular | H6: Dias D'Ávila | I6: Camaçari | J6: Intermunicipal | K6: Cidade das Águas | L6: 2 | M6: 2 | N6: 40 | O6: 40 | P6: 20 | Q6: 2.8 | R6: 112 | W6: Janeiro | X6: 2016-01-01 | Y6: 2016-01-31 | Z6: 2016-01-01 | AE6: =NETWORKDAYS(X6,Y6,Z6:AD6) -> 20 | AF6: =COUNTA(AB6:AD6) -> 0
A7: 000.002 | B7: Maria | C7: Anistiado | D7: Salvador | E7: ADMINISTRATIVO | F7: 23196 | G7: Regular | H7: Alagoinhas | I7: Salvador | J7: Intermunicipal | K7: Cidade Sol | L7: 2 | M7: 2 | N7: 40 | O7: 40 | P7: 20 | Q7: 28.35 | R7: 1134 | W7: Fevereiro | X7: 2016-02-01 | Y7: 2016-02-29 | Z7: 2016-02-08 | AB7: 2016-02-09 | AC7: 2016-02-10 | AE7: =NETWORKDAYS(X7,Y7,Z7:AD7) -> 18 | AF7: =COUNTA(AB7:AD7) -> 2
A8: 000.003 | B8: Francisco | C8: Anistiado | D8: Salvador | E8: ADMINISTRATIVO | F8: 23184 | G8: Regular | H8: Jequié | I8: Ipiaú | J8: Intermunicipal | K8: Cidade Sol | L8: 2 | M8: 2 | N8: 40 | O8: 48 | P8: 24 | Q8: 10.65 | R8: 511.2 | W8: Março | X8: 2016-03-01 | Y8: 2016-03-31 | Z8: 2016-03-25 | AB8: 2016-03-24 | AE8: =NETWORKDAYS(X8,Y8,Z8:AD8) -> 21 | AF8: 1
A9: 000.004 | B9: Ricardo | C9: Empregado | D9: Salvador | E9: ADMINISTRATIVO | F9: 23183 | G9: Regular | H9: Feira de Santana | I9: Feira de Santana | J9: Urbano | K9: Via Feira | L9: 2 | M9: 2 | N9: 40 | O9: 0 | P9: 0 | Q9: 3.1 | R9: 0 | W9: Abril | X9: 2016-04-01 | Y9: 2016-04-30 | Z9: 2016-04-21 | AB9: 2016-01-22 | AE9: 20 | AF9: 1
A10: 000.005 | B10: Mauro | C10: Empregado | D10: Salvador | E10: ADMINISTRATIVO | F10: 23183 | G10: Regular | H10: Feira de Santana | I10: Feira de Santana | J10: Urbano | K10: Via Feira | L10: 2 | M10: 2 | N10: 40 | O10: 40 | P10: 20 | Q10: 3.1 | R10: 124 | W10: Maio | X10: 2016-05-01 | Y10: 2016-05-31 | Z10: 2016-05-26 | AB10: 2016-05-27 | AE10: 20 | AF10: 1
A11: 000.006 | B11: Marcio | C11: Empregado | D11: Salvador | E11: ADMINISTRATIVO | F11: 23125-M | G11: Regular | H11: Conceição de Feira | I11: Salvador | J11: Intermunicipal | K11: Viação Jauá | L11: 2 | M11: 2 | N11: 40 | O11: 10 | P11: 5 | Q11: 23.03 | R11: 230.3 | W11: Junho | X11: 2016-06-01 | Y11: 2016-06-30 | AE11: 22 | AF11: 0
A12: 000.007 | B12: Carla | C12: Empregado | D12: Salvador | E12: ADMINISTRATIVO | F12: 23125-M | G12: Regular | H12: Conceição de Feira | I12: Salvador | J12: Intermunicipal | K12: Viação Jauá | L12: 2 | M12: 2 | N12: 40 | O12: 40 | P12: 20 | Q12: 23.03 | R12: 921.2 | W12: Julho | X12: 2016-07-01 | Y12: 2016-07-31 | AE12: 21 | AF12: 0
A13: 000.008 | B13: Caroline | C13: Empregado | D13: Salvador | E13: COMERCIAL | F13: 23190-V | G13: Regular | H13: Lauro de Freitas | I13: Salvador | J13: Intermunicipal | K13: Metropasse | L13: 2 | M13: 2 | N13: 40 | O13: 40 | P13: 20 | Q13: 3.3 | R13: 132 | W13: Agosto | X13: 2016-08-01 | Y13: 2016-08-31 | AE13: 23 | AF13: 0
A14: 000.009 | B14: Pedro | C14: Empregado | D14: Salvador | E14: COMERCIAL | F14: 23190-V | G14: Regular | H14: Lauro de Freitas | I14: Salvador | J14: Intermunicipal | K14: Metropasse | L14: 2 | M14: 2 | N14: 40 | O14: 0 | P14: 0 | Q14: 3.3 | R14: 0 | W14: Setembro | X14: 2016-09-01 | Y14: 2016-09-30 | Z14: 2016-09-07 | AE14: 21 | AF14: 0
A15: 000.010 | B15: Paulo | C15: Empregado | D15: Salvador | E15: COMERCIAL | F15: 23190-V | G15: Regular | H15: Lauro de Freitas | I15: Salvador | J15: Intermunicipal | K15: Metropasse | L15: 2 | M15: 2 | N15: 40 | O15: 40 | P15: 20 | Q15: 3.3 | R15: 132 | W15: Outubro | X15: 2016-10-01 | Y15: 2016-10-31 | Z15: 2016-10-12 | AE15: 20 | AF15: 0
A16: 000.011 | B16: Rafael | C16: Empregado | D16: Salvador | E16: COMERCIAL | F16: 23190-V | G16: Regular | H16: Lauro de Freitas | I16: Salvador | J16: Intermunicipal | K16: Metropasse | L16: 2 | M16: 2 | N16: 40 | O16: 40 | P16: 20 | Q16: 3.3 | R16: 132 | W16: Novembro | X16: 2016-11-01 | Y16: 2016-11-30 | Z16: 2016-11-02 | AA16: 2016-11-15 | AB16: 2016-11-14 | AE16: =NETWORKDAYS(X16,Y16,Z16:AD16) -> 19 | AF16: 1
A17: 000.012 | B17: Ricardo | C17: Empregado | D17: Salvador | E17: COMERCIAL | F17: 23170-I | G17: Regular | H17: Aracaju | I17: Aracaju | J17: Urbano | K17: Aracaju Card | L17: 2 | M17: 2 | N17: 40 | O17: 52 | P17: 26 | Q17: 3.1 | R17: 161.2 | W17: Dezembro | X17: 2016-12-01 | Y17: 2016-12-31 | AE17: 22 | AF17: 0
A18: 000.013 | B18: Jose | C18: Empregado | D18: Salvador | E18: COMERCIAL | F18: xxxxx-Y (Pool) | G18: Regular | H18: Feira de Santana | I18: Camaçari | J18: Intermunicipal | K18: Lis Transportes | L18: 2 | M18: 2 | N18: 40 | O18: 10 | P18: 5 | Q18: 650 | R18: 650
A19: 000.014 | B19: Felipe | C19: Empregado | D19: Salvador | E19: COMERCIAL | F19: 23182 | G19: Regular | H19: Amélia Rodrigues | I19: Governador Mangabeira | J19: Intermunicipal | K19: RD Transportes | L19: 2 | M19: 2 | N19: 40 | O19: 25 | P19: 12.5 | Q19: 10.06 | R19: 251.5
A20: 000.015 | B20: Julio | C20: Empregado | D20: Salvador | E20: COMERCIAL | F20: 23101-A (09096) | G20: Regular | H20: Salvador | I20: Salvador | J20: Urbano | K20: Salvador Card | L20: 2 | M20: 4 | N20: 40 | O20: 40 | P20: 10 | Q20: 3.3 | R20: 132
A21: 000.016 | B21: Lucia | C21: Empregado | D21: Salvador | E21: PESSOAL | F21: 23101-A (09096) | G21: Regular | H21: Salvador | I21: Salvador | J21: Urbano | K21: Salvador Card | L21: 2 | M21: 2 | N21: 40 | O21: 42 | P21: 21 | Q21: 3.3 | R21: 138.6
A22: 000.017 | B22: Luciano | C22: Empregado | D22: Salvador | E22: PESSOAL | F22: 23101-A (09096) | G22: Regular | H22: Salvador | I22: Salvador | J22: Urbano | K22: Salvador Card | L22: 0 | M22: 0 | N22: 0 | O22: 0 | P22: 0 | Q22: 3.3 | R22: 0
A23: 000.018 | B23: Bruno | C23: Empregado | D23: Salvador | E23: PESSOAL | F23: 23101-A (09096) | G23: Regular | H23: Salvador | I23: Salvador | J23: Urbano | K23: Salvador Card | L23: 2 | M23: 2 | N23: 40 | O23: 40 | P23: 20 | Q23: 3.3 | R23: 132
A24: 000.019 | B24: Vinicius | C24: Anistiado | D24: Salvador | E24: PESSOAL | F24: 23101-A (09096) | G24: Regular | H24: Salvador | I24: Salvador | J24: Urbano | K24: Salvador Card | L24: 2 | M24: 2 | N24: 40 | O24: 40 | P24: 20 | Q24: 3.3 | R24: 132
A25: 000.020 | B25: José Carlos | C25: Empregado | D25: Salvador | E25: LOGISTICA | F25: 23101-A (09096) | G25: Regular | H25: Salvador | I25: Salvador | J25: Urbano | K25: Salvador Card | L25: 2 | M25: 2 | N25: 40 | O25: 40 | P25: 20 | Q25: 3.3 | R25: 132
A26: 000.021 | B26: Carlos | C26: Empregado | D26: Salvador | E26: LOGISTICA | F26: 23101-A (09096) | G26: Regular | H26: Salvador | I26: Salvador | J26: Urbano | K26: Salvador Card | L26: 2 | M26: 2 | N26: 40 | O26: 40 | P26: 20 | Q26: 3.3 | R26: 132
A27: 000.022 | B27: Miguel | C27: Empregado | D27: Salvador | E27: LOGISTICA | F27: 23101-A (09096) | G27: Regular | H27: Salvador | I27: Salvador | J27: Urbano | K27: Salvador Card | L27: 2 | M27: 2 | N27: 40 | O27: 40 | P27: 20 | Q27: 3.3 | R27: 132
A28: 000.023 | B28: Gustavo | C28: Empregado | D28: Salvador | E28: FINANCEIRO | F28: 23101-A (09096) | G28: Regular | H28: Salvador | I28: Salvador | J28: Urbano | K28: Salvador Card | L28: 4 | M28: 4 | N28: 80 | O28: 80 | P28: 20 | Q28: 3.3 | R28: 264
A29: 000.024 | B29: Guilherme | C29: Empregado | D29: Salvador | E29: FINANCEIRO | F29: 23101-A (09096) | G29: Irregular | H29: Salvador | I29: Salvador | J29: Urbano | K29: Salvador Card | L29: 0 | M29: 0 | N29: 0 | O29: 0 | P29: 0 | Q29: 3.3 | R29: 0
A30: 000.025 | B30: Bruno Brito | C30: Empregado | D30: Salvador | E30: FINANCEIRO | F30: 23101-A (09096) | G30: Regular | H30: Salvador | I30: Salvador | J30: Urbano | K30: Salvador Card | L30: 2 | M30: 2 | N30: 40 | O30: 14 | P30: 7 | Q30: 3.3 | R30: 46.2
M31: 0 | N31: 0 | O31: 0 | P31: 0 | Q31: 0 | R31: 0
M32: 0 | N32: 0 | O32: 0 | P32: 0 | Q32: 0 | R32: 0
M33: 0 | N33: 0 | O33: 0 | P33: 0 | Q33: 0 | R33: 0
M34: 0 | N34: 0 | O34: 0 | P34: 0 | Q34: 0 | R34: 0
M35: 0 | N35: 0 | O35: 0 | P35: 0 | Q35: 0 | R35: 0
M36: 0 | N36: 0 | O36: 0 | P36: 0 | Q36: 0 | R36: 0
M37: 0 | N37: 0 | O37: 0 | P37: 0 | Q37: 0 | R37: 0
M38: 0 | N38: 0 | O38: 0 | P38: 0 | Q38: 0 | R38: 0
M39: 0 | N39: 0 | O39: 0 | P39: 0 | Q39: 0 | R39: 0
M40: 0 | N40: 0 | O40: 0 | P40: 0 | Q40: 0 | R40: 0
M41: 0 | N41: 0 | O41: 0 | P41: 0 | Q41: 0 | R41: 0
M42: 0 | N42: 0 | O42: 0 | P42: 0 | Q42: 0 | R42: 0
M43: 0 | N43: 0 | O43: 0 | P43: 0 | Q43: 0 | R43: 0
M44: 0 | N44: 0 | O44: 0 | P44: 0 | Q44: 0 | R44: 0
M45: 0 | N45: 0 | O45: 0 | P45: 0 | Q45: 0 | R45: 0
M46: 0 | N46: 0 | O46: 0 | P46: 0 | Q46: 0 | R46: 0
M47: 0 | N47: 0 | O47: 0 | P47: 0 | Q47: 0 | R47: 0
M48: 0 | N48: 0 | O48: 0 | P48: 0 | Q48: 0 | R48: 0
M49: 0 | N49: 0 | O49: 0 | P49: 0 | Q49: 0 | R49: 0
M50: 0 | N50: 0 | O50: 0 | P50: 0 | Q50: 0 | R50: 0
M51: 0 | N51: 0 | O51: 0 | P51: 0 | Q51: 0 | R51: 0
M52: 0 | N52: 0 | O52: 0 | P52: 0 | Q52: 0 | R52: 0
M53: 0 | N53: 0 | O53: 0 | P53: 0 | Q53: 0 | R53: 0
M54: 0 | N54: 0 | O54: 0 | P54: 0 | Q54: 0 | R54: 0
M55: 0 | N55: 0 | O55: 0 | P55: 0 | Q55: 0 | R55: 0
M56: 0 | N56: 0 | O56: 0 | P56: 0 | Q56: 0 | R56: 0
M57: 0 | N57: 0 | O57: 0 | P57: 0 | Q57: 0 | R57: 0
M58: 0 | N58: 0 | O58: 0 | P58: 0 | Q58: 0 | R58: 0
M59: 0 | N59: 0 | O59: 0 | P59: 0 | Q59: 0 | R59: 0
M60: 0 | N60: 0 | O60: 0 | P60: 0 | Q60: 0 | R60: 0
M61: 0 | N61: 0 | O61: 0 | P61: 0 | Q61: 0 | R61: 0
M62: 0 | N62: 0 | O62: 0 | P62: 0 | Q62: 0 | R62: 0
M63: 0 | N63: 0 | O63: 0 | P63: 0 | Q63: 0 | R63: 0
M64: 0 | N64: 0 | O64: 0 | P64: 0 | Q64: 0 | R64: 0
M65: 0 | N65: 0 | O65: 0 | P65: 0 | Q65: 0 | R65: 0
M66: 0 | N66: 0 | O66: 0 | P66: 0 | Q66: 0 | R66: 0
M67: 0 | N67: 0 | O67: 0 | P67: 0 | Q67: 0 | R67: 0
M68: 0 | N68: 0 | O68: 0 | P68: 0 | Q68: 0 | R68: 0
M69: 0 | N69: 0 | O69: 0 | P69: 0 | Q69: 0 | R69: 0
M70: 0 | N70: 0 | O70: 0 | P70: 0 | Q70: 0 | R70: 0
M71: 0 | N71: 0 | O71: 0 | P71: 0 | Q71: 0 | R71: 0
M72: 0 | N72: 0 | O72: 0 | P72: 0 | Q72: 0 | R72: 0
M73: 0 | N73: 0 | O73: 0 | P73: 0 | Q73: 0 | R73: 0
M74: 0 | N74: 0 | O74: 0 | P74: 0 | Q74: 0 | R74: 0
M75: 0 | N75: 0 | O75: 0 | P75: 0 | Q75: 0 | R75: 0
M76: 0 | N76: 0 | O76: 0 | P76: 0 | Q76: 0 | R76: 0
M77: 0 | N77: 0 | O77: 0 | P77: 0 | Q77: 0 | R77: 0
A81: Total | M81: =SUBTOTAL(109,BMVT14[Chipagem]) -> 50 | N81: =SUBTOTAL(109,BMVT14[Quant. Apur.]) -> 960 | O81: =SUBTOTAL(109,BMVT14[Qtd. Solic.]) -> 801 | P81: =SUBTOTAL(109,BMVT14[Dias Lanc Sist.]) -> 370.5 | R81: =SUBTOTAL(109,BMVT14[Vlr. Total]) -> 5732.2
A82: ="Salvador, "&TEXT(TODAY(),"dd/mm/aaaa") -> Salvador, 29/06/2016 | G82: =A82 -> Salvador, 29/06/2016
A86: Responsável pelo Boletim de Medição | G86: Gerente Serviço de Pessoal de Salvador -SSPE

Sheet Relatório
A2: Relatório Gráfico Comparativo
A138: 2 | B138: =Rel_Gestao!$C$4 -> JANEIRO | C138: =Rel_Gestao!$E$4 -> FEVEREIRO | D138: =Rel_Gestao!$G$4 -> MARÇO | E138: =Rel_Gestao!$I$4 -> ABRIL | F138: =Rel_Gestao!$K$4 -> MAIO | G138: =Rel_Gestao!$M$4 -> JUNHO | H138: =Rel_Gestao!$O$4 -> JULHO | I138: =Rel_Gestao!$Q$4 -> AGOSTO | J138: =Rel_Gestao!$S$4 -> SETEMBRO | K138: =Rel_Gestao!$U$4 -> OUTUBRO | L138: =Rel_Gestao!$W$4 -> NOVEMBRO | M138: =Rel_Gestao!$Y$4 -> DEZEMBRO | N138: =Rel_Gestao!$AA$4 -> TOTAL | O138: 1º TRIM | P138: 2º TRIM | Q138: 3º TRIM | R138: 4ºTRIM | S138: 1º SEM | T138: 2º SEM | U138: ANUAL
A139: =VLOOKUP(INDEX(Rel_Gestao!A6:AB10,Relatório!A138,1),Rel_Gestao!A6:AB10,1,FALSE) -> Aprendiz | B139: =IF(ISERROR(VLOOKUP(INDEX(Rel_Gestao!A6:AB10,Relatório!A138,1),Rel_Gestao!A6:AB10,3,FALSE)),0,(VLOOKUP(INDEX(Rel_Gestao!A6:AB10,Relatório!A138,1),Rel_Gestao!A6:AB10,3,FALSE))) -> 0 | C139: =IF(ISERROR(VLOOKUP(INDEX(Rel_Gestao!A6:AB10,Relatório!A138,1),Rel_Gestao!A6:AB10,5,FALSE)),0,(VLOOKUP(INDEX(Rel_Gestao!A6:AB10,Relatório!A138,1),Rel_Gestao!A6:AB10,5,FALSE))) -> 0 | D139: =IF(ISERROR(VLOOKUP(INDEX(Rel_Gestao!A6:AB10,Relatório!A138,1),Rel_Gestao!A6:AB10,7,FALSE)),0,(VLOOKUP(INDEX(Rel_Gestao!A6:AB10,Relatório!A138,1),Rel_Gestao!A6:AB10,7,FALSE))) -> 0 | E139: =IF(ISERROR(VLOOKUP(INDEX(Rel_Gestao!A6:AB10,Relatório!A138,1),Rel_Gestao!A6:AB10,9,FALSE)),0,(VLOOKUP(INDEX(Rel_Gestao!A6:AB10,Relatório!A138,1),Rel_Gestao!A6:AB10,9,FALSE))) -> 12 | F139: =IF(ISERROR(VLOOKUP(INDEX(Rel_Gestao!A6:AB10,Relatório!A138,1),Rel_Gestao!A6:AB10,11,FALSE)),0,(VLOOKUP(INDEX(Rel_Gestao!A6:AB10,Relatório!A138,1),Rel_Gestao!A6:AB10,11,FALSE))) -> 0 | G139: =IF(ISERROR(VLOOKUP(INDEX(Rel_Gestao!A6:AB10,Relatório!A138,1),Rel_Gestao!A6:AB10,13,FALSE)),"",(VLOOKUP(INDEX(Rel_Gestao!A6:AB10,Relatório!A138,1),Rel_Gestao!A6:AB10,13,FALSE))) -> 0 | H139: =IF(ISERROR(VLOOKUP(INDEX(Rel_Gestao!A6:AB10,Relatório!A138,1),Rel_Gestao!A6:AB10,15,FALSE)),"",(VLOOKUP(INDEX(Rel_Gestao!A6:AB10,Relatório!A138,1),Rel_Gestao!A6:AB10,15,FALSE))) -> 0 | I139: =IF(ISERROR(VLOOKUP(INDEX(Rel_Gestao!A6:AB10,Relatório!A138,1),Rel_Gestao!A6:AB10,17,FALSE)),"",(VLOOKUP(INDEX(Rel_Gestao!A6:AB10,Relatório!A138,1),Rel_Gestao!A6:AB10,17,FALSE))) ->  | J139: =IF(ISERROR(VLOOKUP(INDEX(Rel_Gestao!A6:AB10,Relatório!A138,1),Rel_Gestao!A6:AB10,19,FALSE)),"",(VLOOKUP(INDEX(Rel_Gestao!A6:AB10,Relatório!A138,1),Rel_Gestao!A6:AB10,19,FALSE))) ->  | K139: =IF(ISERROR(VLOOKUP(INDEX(Rel_Gestao!A6:AB10,Relatório!A138,1),Rel_Gestao!A6:AB10,21,FALSE)),"",(VLOOKUP(INDEX(Rel_Gestao!A6:AB10,Relatório!A138,1),Rel_Gestao!A6:AB10,21,FALSE))) ->  | L139: =IF(ISERROR(VLOOKUP(INDEX(Rel_Gestao!A6:AB10,Relatório!A138,1),Rel_Gestao!A6:AB10,23,FALSE)),"",(VLOOKUP(INDEX(Rel_Gestao!A6:AB10,Relatório!A138,1),Rel_Gestao!A6:AB10,23,FALSE))) ->  | M139: =IF(ISERROR(VLOOKUP(INDEX(Rel_Gestao!A6:AB10,Relatório!A138,1),Rel_Gestao!A6:AB10,25,FALSE)),"",(VLOOKUP(INDEX(Rel_Gestao!A6:AB10,Relatório!A138,1),Rel_Gestao!A6:AB10,25,FALSE))) ->  | N139: =IF(ISERROR(VLOOKUP(INDEX(Rel_Gestao!A6:AB10,Relatório!A138,1),Rel_Gestao!A6:AB10,27,FALSE)),0,(VLOOKUP(INDEX(Rel_Gestao!A6:AB10,Relatório!A138,1),Rel_Gestao!A6:AB10,27,FALSE))) -> 12 | O139: =AVERAGE(B139,C139,D139) -> 0 | P139: =AVERAGE(E139,F139,G139) -> 4 | Q139: =AVERAGE(H139,I139,J139) -> 0 | R139: =AVERAGE(K139,L139,M139) ->  | S139: =AVERAGE(B139,C139,D139,E139,F139,G139) -> 2 | T139: =AVERAGE(H139,I139,J139,K139,L139,M139) -> 0 | U139: =AVERAGE(B139:M139) -> 1.714285714
B140: =IF(ISERROR(VLOOKUP(INDEX(Rel_Gestao!A6:AB10,Relatório!A138,1),Rel_Gestao!A6:AB10,4,FALSE)),"",(VLOOKUP(INDEX(Rel_Gestao!A6:AB10,Relatório!A138,1),Rel_Gestao!A6:AB10,4,FALSE))) -> 0 | C140: =IF(ISERROR(VLOOKUP(INDEX(Rel_Gestao!A6:AB10,Relatório!A138,1),Rel_Gestao!A6:AB10,6,FALSE)),"",(VLOOKUP(INDEX(Rel_Gestao!A6:AB10,Relatório!A138,1),Rel_Gestao!A6:AB10,6,FALSE))) -> 0 | D140: =IF(ISERROR(VLOOKUP(INDEX(Rel_Gestao!A6:AB10,Relatório!A138,1),Rel_Gestao!A6:AB10,8,FALSE)),"",(VLOOKUP(INDEX(Rel_Gestao!A6:AB10,Relatório!A138,1),Rel_Gestao!A6:AB10,8,FALSE))) -> 0 | E140: =IF(ISERROR(VLOOKUP(INDEX(Rel_Gestao!A6:AB10,Relatório!A138,1),Rel_Gestao!A6:AB10,10,FALSE)),"",(VLOOKUP(INDEX(Rel_Gestao!A6:AB10,Relatório!A138,1),Rel_Gestao!A6:AB10,10,FALSE))) -> 37.2 | F140: =IF(ISERROR(VLOOKUP(INDEX(Rel_Gestao!A6:AB10,Relatório!A138,1),Rel_Gestao!A6:AB10,12,FALSE)),"",(VLOOKUP(INDEX(Rel_Gestao!A6:AB10,Relatório!A138,1),Rel_Gestao!A6:AB10,12,FALSE))) -> 0 | G140: =IF(ISERROR(VLOOKUP(INDEX(Rel_Gestao!A6:AB10,Relatório!A138,1),Rel_Gestao!A6:AB10,14,FALSE)),"",(VLOOKUP(INDEX(Rel_Gestao!A6:AB10,Relatório!A138,1),Rel_Gestao!A6:AB10,14,FALSE))) -> 0 | H140: =IF(ISERROR(VLOOKUP(INDEX(Rel_Gestao!A6:AB10,Relatório!A138,1),Rel_Gestao!A6:AB10,16,FALSE)),"",(VLOOKUP(INDEX(Rel_Gestao!A6:AB10,Relatório!A138,1),Rel_Gestao!A6:AB10,16,FALSE))) -> 0 | I140: =IF(ISERROR(VLOOKUP(INDEX(Rel_Gestao!A6:AB10,Relatório!A138,1),Rel_Gestao!A6:AB10,18,FALSE)),"",(VLOOKUP(INDEX(Rel_Gestao!A6:AB10,Relatório!A138,1),Rel_Gestao!A6:AB10,18,FALSE))) ->  | J140: =IF(ISERROR(VLOOKUP(INDEX(Rel_Gestao!A6:AB10,Relatório!A138,1),Rel_Gestao!A6:AB10,20,FALSE)),"",(VLOOKUP(INDEX(Rel_Gestao!A6:AB10,Relatório!A138,1),Rel_Gestao!A6:AB10,20,FALSE))) ->  | K140: =IF(ISERROR(VLOOKUP(INDEX(Rel_Gestao!A6:AB10,Relatório!A138,1),Rel_Gestao!A6:AB10,22,FALSE)),"",(VLOOKUP(INDEX(Rel_Gestao!A6:AB10,Relatório!A138,1),Rel_Gestao!A6:AB10,22,FALSE))) ->  | L140: =IF(ISERROR(VLOOKUP(INDEX(Rel_Gestao!A6:AB10,Relatório!A138,1),Rel_Gestao!A6:AB10,24,FALSE)),"",(VLOOKUP(INDEX(Rel_Gestao!A6:AB10,Relatório!A138,1),Rel_Gestao!A6:AB10,24,FALSE))) ->  | M140: =IF(ISERROR(VLOOKUP(INDEX(Rel_Gestao!A6:AB10,Relatório!A138,1),Rel_Gestao!A6:AB10,26,FALSE)),"",(VLOOKUP(INDEX(Rel_Gestao!A6:AB10,Relatório!A138,1),Rel_Gestao!A6:AB10,26,FALSE))) ->  | N140: =IF(ISERROR(VLOOKUP(INDEX(Rel_Gestao!A6:AB10,Relatório!A138,1),Rel_Gestao!A6:AB10,28,FALSE)),0,(VLOOKUP(INDEX(Rel_Gestao!A6:AB10,Relatório!A138,1),Rel_Gestao!A6:AB10,28,FALSE))) -> 37.2 | O140: =AVERAGE(B140,C140,D140) -> 0 | P140: =AVERAGE(E140,F140,G140) -> 12.4 | Q140: =AVERAGE(H140,I140,J140) -> 0 | R140: =AVERAGE(K140,L140,M140) ->  | S140: =AVERAGE(B140,C140,D140,E140,F140,G140) -> 6.2 | T140: =AVERAGE(H140,I140,J140,K140,L140,M140) -> 0 | U140: =AVERAGE(B140:M140) -> 5.314285714
A141: 11 | B141: =Rel_Gestao!$C$4 -> JANEIRO | C141: =Rel_Gestao!$E$4 -> FEVEREIRO | D141: =Rel_Gestao!$G$4 -> MARÇO | E141: =Rel_Gestao!$I$4 -> ABRIL | F141: =Rel_Gestao!$K$4 -> MAIO | G141: =Rel_Gestao!$M$4 -> JUNHO | H141: =Rel_Gestao!$O$4 -> JULHO | I141: =Rel_Gestao!$Q$4 -> AGOSTO | J141: =Rel_Gestao!$S$4 -> SETEMBRO | K141: =Rel_Gestao!$U$4 -> OUTUBRO | L141: =Rel_Gestao!$W$4 -> NOVEMBRO | M141: =Rel_Gestao!$Y$4 -> DEZEMBRO | N141: =Rel_Gestao!$AA$4 -> TOTAL | O141: 1º TRIM | P141: 2º TRIM | Q141: 3º TRIM | R141: 4ºTRIM | S141: 1º SEM | T141: 2º SEM | U141: ANUAL
A142: =IF(ISERROR(VLOOKUP(INDEX(Rel_Gestao!A12:AB28,Relatório!A141,1),Rel_Gestao!A12:AB28,1,FALSE)),0,(VLOOKUP(INDEX(Rel_Gestao!A12:AB28,Relatório!A141,1),Rel_Gestao!A12:AB28,1,FALSE))) -> 23101-A (09096) | B142: =IF(ISERROR(VLOOKUP(INDEX(Rel_Gestao!A12:AB28,Relatório!A141,1),Rel_Gestao!A12:AB28,3,FALSE)),"",(VLOOKUP(INDEX(Rel_Gestao!A12:AB28,Relatório!A144,1),Rel_Gestao!A12:AB28,3,FALSE))) -> 40 | C142: =IF(ISERROR(VLOOKUP(INDEX(Rel_Gestao!A12:AB28,Relatório!A141,1),Rel_Gestao!A12:AB28,5,FALSE)),"",(VLOOKUP(INDEX(Rel_Gestao!A12:AB28,Relatório!A144,1),Rel_Gestao!A12:AB28,5,FALSE))) -> 36 | D142: =IF(ISERROR(VLOOKUP(INDEX(Rel_Gestao!A12:AB28,Relatório!A141,1),Rel_Gestao!A12:AB28,7,FALSE)),"",(VLOOKUP(INDEX(Rel_Gestao!A12:AB28,Relatório!A141,1),Rel_Gestao!A12:AB28,7,FALSE))) -> 394 | E142: =IF(ISERROR(VLOOKUP(INDEX(Rel_Gestao!A12:AB28,Relatório!A141,1),Rel_Gestao!A12:AB28,9,FALSE)),"",(VLOOKUP(INDEX(Rel_Gestao!A12:AB28,Relatório!A141,1),Rel_Gestao!A12:AB28,9,FALSE))) -> 376 | F142: =IF(ISERROR(VLOOKUP(INDEX(Rel_Gestao!A12:AB28,Relatório!A141,1),Rel_Gestao!A12:AB28,11,FALSE)),"",(VLOOKUP(INDEX(Rel_Gestao!A12:AB28,Relatório!A141,1),Rel_Gestao!A12:AB28,11,FALSE))) -> 376 | G142: =IF(ISERROR(VLOOKUP(INDEX(Rel_Gestao!A12:AB28,Relatório!A141,1),Rel_Gestao!A12:AB28,13,FALSE)),"",(VLOOKUP(INDEX(Rel_Gestao!A12:AB28,Relatório!A141,1),Rel_Gestao!A12:AB28,13,FALSE))) -> 394 | H142: =IF(ISERROR(VLOOKUP(INDEX(Rel_Gestao!A12:AB28,Relatório!A141,1),Rel_Gestao!A12:AB28,15,FALSE)),"",(VLOOKUP(INDEX(Rel_Gestao!A12:AB28,Relatório!A141,1),Rel_Gestao!A12:AB28,15,FALSE))) -> 394 | I142: =IF(ISERROR(VLOOKUP(INDEX(Rel_Gestao!A12:AB28,Relatório!A141,1),Rel_Gestao!A12:AB28,17,FALSE)),"",(VLOOKUP(INDEX(Rel_Gestao!A12:AB28,Relatório!A141,1),Rel_Gestao!A12:AB28,17,FALSE))) ->  | J142: =IF(ISERROR(VLOOKUP(INDEX(Rel_Gestao!A12:AB28,Relatório!A141,1),Rel_Gestao!A12:AB28,19,FALSE)),"",(VLOOKUP(INDEX(Rel_Gestao!A12:AB28,Relatório!A141,1),Rel_Gestao!A12:AB28,19,FALSE))) ->  | K142: =IF(ISERROR(VLOOKUP(INDEX(Rel_Gestao!A12:AB28,Relatório!A141,1),Rel_Gestao!A12:AB28,21,FALSE)),"",(VLOOKUP(INDEX(Rel_Gestao!A12:AB28,Relatório!A141,1),Rel_Gestao!A12:AB28,21,FALSE))) ->  | L142: =IF(ISERROR(VLOOKUP(INDEX(Rel_Gestao!A12:AB28,Relatório!A141,1),Rel_Gestao!A12:AB28,23,FALSE)),"",(VLOOKUP(INDEX(Rel_Gestao!A12:AB28,Relatório!A141,1),Rel_Gestao!A12:AB28,23,FALSE))) ->  | M142: =IF(ISERROR(VLOOKUP(INDEX(Rel_Gestao!A12:AB28,Relatório!A141,1),Rel_Gestao!A12:AB28,25,FALSE)),"",(VLOOKUP(INDEX(Rel_Gestao!A12:AB28,Relatório!A141,1),Rel_Gestao!A12:AB28,25,FALSE))) ->  | N142: =IF(ISERROR(VLOOKUP(INDEX(Rel_Gestao!A12:AB28,Relatório!A141,1),Rel_Gestao!A12:AB28,27,FALSE)),"",(VLOOKUP(INDEX(Rel_Gestao!A12:AB28,Relatório!A141,1),Rel_Gestao!A12:AB28,27,FALSE))) -> 2650 | O142: =AVERAGE(B142,C142,D142) -> 156.6666667 | P142: =AVERAGE(E142,F142,G142) -> 382 | Q142: =AVERAGE(H142,I142,J142) -> 394 | R142: =AVERAGE(K142,L142,M142) ->  | S142: =AVERAGE(B142,C142,D142,E142,F142,G142) -> 269.3333333 | T142: =AVERAGE(H142,I142,J142,K142,L142,M142) -> 394 | U142: =AVERAGE(B142:M142) -> 287.1428571
B143: =IF(ISERROR(VLOOKUP(INDEX(Rel_Gestao!A12:AB28,Relatório!A141,1),Rel_Gestao!A12:AB28,4,FALSE)),"",(VLOOKUP(INDEX(Rel_Gestao!A12:AB28,Relatório!A141,1),Rel_Gestao!A12:AB28,4,FALSE))) -> 1240.8 | C143: =IF(ISERROR(VLOOKUP(INDEX(Rel_Gestao!A12:AB28,Relatório!A141,1),Rel_Gestao!A12:AB28,6,FALSE)),"",(VLOOKUP(INDEX(Rel_Gestao!A12:AB28,Relatório!A141,1),Rel_Gestao!A12:AB28,6,FALSE))) -> 1122 | D143: =IF(ISERROR(VLOOKUP(INDEX(Rel_Gestao!A12:AB28,Relatório!A141,1),Rel_Gestao!A12:AB28,8,FALSE)),"",(VLOOKUP(INDEX(Rel_Gestao!A12:AB28,Relatório!A141,1),Rel_Gestao!A12:AB28,8,FALSE))) -> 1300.2 | E143: =IF(ISERROR(VLOOKUP(INDEX(Rel_Gestao!A12:AB28,Relatório!A141,1),Rel_Gestao!A12:AB28,10,FALSE)),"",(VLOOKUP(INDEX(Rel_Gestao!A12:AB28,Relatório!A141,1),Rel_Gestao!A12:AB28,10,FALSE))) -> 1240.8 | F143: =IF(ISERROR(VLOOKUP(INDEX(Rel_Gestao!A12:AB28,Relatório!A141,1),Rel_Gestao!A12:AB28,12,FALSE)),"",(VLOOKUP(INDEX(Rel_Gestao!A12:AB28,Relatório!A141,1),Rel_Gestao!A12:AB28,12,FALSE))) -> 1240.8 | G143: =IF(ISERROR(VLOOKUP(INDEX(Rel_Gestao!A12:AB28,Relatório!A141,1),Rel_Gestao!A12:AB28,14,FALSE)),"",(VLOOKUP(INDEX(Rel_Gestao!A12:AB28,Relatório!A141,1),Rel_Gestao!A12:AB28,14,FALSE))) -> 1300.2 | H143: =IF(ISERROR(VLOOKUP(INDEX(Rel_Gestao!A12:AB28,Relatório!A141,1),Rel_Gestao!A12:AB28,16,FALSE)),"",(VLOOKUP(INDEX(Rel_Gestao!A12:AB28,Relatório!A141,1),Rel_Gestao!A12:AB28,16,FALSE))) -> 1300.2 | I143: =IF(ISERROR(VLOOKUP(INDEX(Rel_Gestao!A12:AB28,Relatório!A141,1),Rel_Gestao!A12:AB28,18,FALSE)),"",(VLOOKUP(INDEX(Rel_Gestao!A12:AB28,Relatório!A141,1),Rel_Gestao!A12:AB28,16,FALSE))) ->  | J143: =IF(ISERROR(VLOOKUP(INDEX(Rel_Gestao!A12:AB28,Relatório!A141,1),Rel_Gestao!A12:AB28,20,FALSE)),"",(VLOOKUP(INDEX(Rel_Gestao!A12:AB28,Relatório!A141,1),Rel_Gestao!A12:AB28,20,FALSE))) ->  | K143: =IF(ISERROR(VLOOKUP(INDEX(Rel_Gestao!A12:AB28,Relatório!A141,1),Rel_Gestao!A12:AB28,22,FALSE)),"",(VLOOKUP(INDEX(Rel_Gestao!A12:AB28,Relatório!A141,1),Rel_Gestao!A12:AB28,22,FALSE))) ->  | L143: =IF(ISERROR(VLOOKUP(INDEX(Rel_Gestao!A12:AB28,Relatório!A141,1),Rel_Gestao!A12:AB28,24,FALSE)),"",(VLOOKUP(INDEX(Rel_Gestao!A12:AB28,Relatório!A141,1),Rel_Gestao!A12:AB28,24,FALSE))) ->  | M143: =IF(ISERROR(VLOOKUP(INDEX(Rel_Gestao!A12:AB28,Relatório!A141,1),Rel_Gestao!A12:AB28,26,FALSE)),"",(VLOOKUP(INDEX(Rel_Gestao!A12:AB28,Relatório!A141,1),Rel_Gestao!A12:AB28,26,FALSE))) ->  | N143: =IF(ISERROR(VLOOKUP(INDEX(Rel_Gestao!A12:AB28,Relatório!A141,1),Rel_Gestao!A12:AB28,28,FALSE)),"",(VLOOKUP(INDEX(Rel_Gestao!A12:AB28,Relatório!A141,1),Rel_Gestao!A12:AB28,28,FALSE))) -> 8745 | O143: =AVERAGE(B143,C143,D143) -> 1221 | P143: =AVERAGE(E143,F143,G143) -> 1260.6 | Q143: =AVERAGE(H143,I143,J143) -> 1300.2 | R143: =AVERAGE(K143,L143,M143) ->  | S143: =AVERAGE(B143,C143,D143,E143,F143,G143) -> 1240.8 | T143: =AVERAGE(H143,I143,J143,K143,L143,M143) -> 1300.2 | U143: =AVERAGE(B143:M143) -> 1249.285714
A144: 2 | B144: =Rel_Gestao!$C$4 -> JANEIRO | C144: =Rel_Gestao!$E$4 -> FEVEREIRO | D144: =Rel_Gestao!$G$4 -> MARÇO | E144: =Rel_Gestao!$I$4 -> ABRIL | F144: =Rel_Gestao!$K$4 -> MAIO | G144: =Rel_Gestao!$M$4 -> JUNHO | H144: =Rel_Gestao!$O$4 -> JULHO | I144: =Rel_Gestao!$Q$4 -> AGOSTO | J144: =Rel_Gestao!$S$4 -> SETEMBRO | K144: =Rel_Gestao!$U$4 -> OUTUBRO | L144: =Rel_Gestao!$W$4 -> NOVEMBRO | M144: =Rel_Gestao!$Y$4 -> DEZEMBRO | N144: =Rel_Gestao!$AA$4 -> TOTAL | O144: 1º TRIM | P144: 2º TRIM | Q144: 3º TRIM | R144: 4ºTRIM | S144: 1º SEM | T144: 2º SEM | U144: ANUAL
A145: =IF(ISERROR(VLOOKUP(INDEX(Rel_Gestao!A30:AB31,Relatório!A144,1),Rel_Gestao!A30:AB31,1,FALSE)),0,(VLOOKUP(INDEX(Rel_Gestao!A30:AB31,Relatório!A144,1),Rel_Gestao!A30:AB31,1,FALSE))) -> Urbano | B145: =IF(ISERROR(VLOOKUP(INDEX(Rel_Gestao!A30:AB31,Relatório!A144,1),Rel_Gestao!A30:AB31,3,FALSE)),"",(VLOOKUP(INDEX(Rel_Gestao!A30:AB31,Relatório!A144,1),Rel_Gestao!A30:AB31,3,FALSE))) -> 468 | C145: =IF(ISERROR(VLOOKUP(INDEX(Rel_Gestao!A30:AB31,Relatório!A144,1),Rel_Gestao!A30:AB31,5,FALSE)),"",(VLOOKUP(INDEX(Rel_Gestao!A30:AB31,Relatório!A144,1),Rel_Gestao!A30:AB31,5,FALSE))) -> 424 | D145: =IF(ISERROR(VLOOKUP(INDEX(Rel_Gestao!A30:AB31,Relatório!A144,1),Rel_Gestao!A30:AB31,7,FALSE)),"",(VLOOKUP(INDEX(Rel_Gestao!A30:AB31,Relatório!A144,1),Rel_Gestao!A30:AB31,7,FALSE))) -> 490 | E145: =IF(ISERROR(VLOOKUP(INDEX(Rel_Gestao!A30:AB31,Relatório!A144,1),Rel_Gestao!A30:AB31,9,FALSE)),"",(VLOOKUP(INDEX(Rel_Gestao!A30:AB31,Relatório!A144,1),Rel_Gestao!A30:AB31,9,FALSE))) -> 556 | F145: =IF(ISERROR(VLOOKUP(INDEX(Rel_Gestao!A30:AB31,Relatório!A144,1),Rel_Gestao!A30:AB31,11,FALSE)),"",(VLOOKUP(INDEX(Rel_Gestao!A30:AB31,Relatório!A144,1),Rel_Gestao!A30:AB31,11,FALSE))) -> 468 | G145: =IF(ISERROR(VLOOKUP(INDEX(Rel_Gestao!A30:AB31,Relatório!A144,1),Rel_Gestao!A30:AB31,13,FALSE)),"",(VLOOKUP(INDEX(Rel_Gestao!A30:AB31,Relatório!A144,1),Rel_Gestao!A30:AB31,13,FALSE))) -> 490 | H145: =IF(ISERROR(VLOOKUP(INDEX(Rel_Gestao!A30:AB31,Relatório!A144,1),Rel_Gestao!A30:AB31,15,FALSE)),"",(VLOOKUP(INDEX(Rel_Gestao!A30:AB31,Relatório!A144,1),Rel_Gestao!A30:AB31,15,FALSE))) -> 490 | I145: =IF(ISERROR(VLOOKUP(INDEX(Rel_Gestao!A30:AB31,Relatório!A144,1),Rel_Gestao!A30:AB31,17,FALSE)),"",(VLOOKUP(INDEX(Rel_Gestao!A30:AB31,Relatório!A144,1),Rel_Gestao!A30:AB31,17,FALSE))) ->  | J145: =IF(ISERROR(VLOOKUP(INDEX(Rel_Gestao!A30:AB31,Relatório!A144,1),Rel_Gestao!A30:AB31,19,FALSE)),"",(VLOOKUP(INDEX(Rel_Gestao!A30:AB31,Relatório!A144,1),Rel_Gestao!A30:AB31,19,FALSE))) ->  | K145: =IF(ISERROR(VLOOKUP(INDEX(Rel_Gestao!A30:AB31,Relatório!A144,1),Rel_Gestao!A30:AB31,21,FALSE)),"",(VLOOKUP(INDEX(Rel_Gestao!A30:AB31,Relatório!A144,1),Rel_Gestao!A30:AB31,21,FALSE))) ->  | L145: =IF(ISERROR(VLOOKUP(INDEX(Rel_Gestao!A30:AB31,Relatório!A144,1),Rel_Gestao!A30:AB31,23,FALSE)),"",(VLOOKUP(INDEX(Rel_Gestao!A30:AB31,Relatório!A144,1),Rel_Gestao!A30:AB31,23,FALSE))) ->  | M145: =IF(ISERROR(VLOOKUP(INDEX(Rel_Gestao!A30:AB31,Relatório!A144,1),Rel_Gestao!A30:AB31,25,FALSE)),"",(VLOOKUP(INDEX(Rel_Gestao!A30:AB31,Relatório!A144,1),Rel_Gestao!A30:AB31,25,FALSE))) ->  | N145: =IF(ISERROR(VLOOKUP(INDEX(Rel_Gestao!A30:AB31,Relatório!A144,1),Rel_Gestao!A30:AB31,27,FALSE)),"",(VLOOKUP(INDEX(Rel_Gestao!A30:AB31,Relatório!A144,1),Rel_Gestao!A30:AB31,27,FALSE))) -> 3386 | O145: =AVERAGE(B145,C145,D145) -> 460.6666667 | P145: =AVERAGE(E145,F145,G145) -> 504.6666667 | Q145: =AVERAGE(H145,I145,J145) -> 490 | R145: =AVERAGE(K145,L145,M145) ->  | S145: =AVERAGE(B145,C145,D145,E145,F145,G145) -> 482.6666667 | T145: =AVERAGE(H145,I145,J145,K145,L145,M145) -> 490 | U145: =AVERAGE(B145:M145) -> 483.7142857
B146: =IF(ISERROR(VLOOKUP(INDEX(Rel_Gestao!A30:AB31,Relatório!A144,1),Rel_Gestao!A30:AB31,4,FALSE)),"",(VLOOKUP(INDEX(Rel_Gestao!A30:AB31,Relatório!A144,1),Rel_Gestao!A30:AB31,4,FALSE))) -> 1526 | C146: =IF(ISERROR(VLOOKUP(INDEX(Rel_Gestao!A30:AB31,Relatório!A144,1),Rel_Gestao!A30:AB31,6,FALSE)),"",(VLOOKUP(INDEX(Rel_Gestao!A30:AB31,Relatório!A144,1),Rel_Gestao!A30:AB31,6,FALSE))) -> 1382.4 | D146: =IF(ISERROR(VLOOKUP(INDEX(Rel_Gestao!A30:AB31,Relatório!A144,1),Rel_Gestao!A30:AB31,8,FALSE)),"",(VLOOKUP(INDEX(Rel_Gestao!A30:AB31,Relatório!A144,1),Rel_Gestao!A30:AB31,8,FALSE))) -> 1597.8 | E146: =IF(ISERROR(VLOOKUP(INDEX(Rel_Gestao!A30:AB31,Relatório!A144,1),Rel_Gestao!A30:AB31,10,FALSE)),"",(VLOOKUP(INDEX(Rel_Gestao!A30:AB31,Relatório!A144,1),Rel_Gestao!A30:AB31,10,FALSE))) -> 1798.8 | F146: =IF(ISERROR(VLOOKUP(INDEX(Rel_Gestao!A30:AB31,Relatório!A144,1),Rel_Gestao!A30:AB31,12,FALSE)),"",(VLOOKUP(INDEX(Rel_Gestao!A30:AB31,Relatório!A144,1),Rel_Gestao!A30:AB31,12,FALSE))) -> 1526 | G146: =IF(ISERROR(VLOOKUP(INDEX(Rel_Gestao!A30:AB31,Relatório!A144,1),Rel_Gestao!A30:AB31,14,FALSE)),"",(VLOOKUP(INDEX(Rel_Gestao!A30:AB31,Relatório!A144,1),Rel_Gestao!A30:AB31,14,FALSE))) -> 1597.8 | H146: =IF(ISERROR(VLOOKUP(INDEX(Rel_Gestao!A30:AB31,Relatório!A144,1),Rel_Gestao!A30:AB31,16,FALSE)),"",(VLOOKUP(INDEX(Rel_Gestao!A30:AB31,Relatório!A144,1),Rel_Gestao!A30:AB31,16,FALSE))) -> 1597.8 | I146: =IF(ISERROR(VLOOKUP(INDEX(Rel_Gestao!A30:AB31,Relatório!A144,1),Rel_Gestao!A30:AB31,18,FALSE)),"",(VLOOKUP(INDEX(Rel_Gestao!A30:AB31,Relatório!A144,1),Rel_Gestao!A30:AB31,18,FALSE))) ->  | J146: =IF(ISERROR(VLOOKUP(INDEX(Rel_Gestao!A30:AB31,Relatório!A144,1),Rel_Gestao!A30:AB31,20,FALSE)),"",(VLOOKUP(INDEX(Rel_Gestao!A30:AB31,Relatório!A144,1),Rel_Gestao!A30:AB31,20,FALSE))) ->  | K146: =IF(ISERROR(VLOOKUP(INDEX(Rel_Gestao!A30:AB31,Relatório!A144,1),Rel_Gestao!A30:AB31,22,FALSE)),"",(VLOOKUP(INDEX(Rel_Gestao!A30:AB31,Relatório!A144,1),Rel_Gestao!A30:AB31,22,FALSE))) ->  | L146: =IF(ISERROR(VLOOKUP(INDEX(Rel_Gestao!A30:AB31,Relatório!A144,1),Rel_Gestao!A30:AB31,24,FALSE)),"",(VLOOKUP(INDEX(Rel_Gestao!A30:AB31,Relatório!A144,1),Rel_Gestao!A30:AB31,24,FALSE))) ->  | M146: =IF(ISERROR(VLOOKUP(INDEX(Rel_Gestao!A30:AB31,Relatório!A144,1),Rel_Gestao!A30:AB31,26,FALSE)),"",(VLOOKUP(INDEX(Rel_Gestao!A30:AB31,Relatório!A144,1),Rel_Gestao!A30:AB31,26,FALSE))) ->  | N146: =IF(ISERROR(VLOOKUP(INDEX(Rel_Gestao!A30:AB31,Relatório!A144,1),Rel_Gestao!A30:AB31,28,FALSE)),"",(VLOOKUP(INDEX(Rel_Gestao!A30:AB31,Relatório!A144,1),Rel_Gestao!A30:AB31,28,FALSE))) -> 11026.6 | O146: =AVERAGE(B146,C146,D146) -> 1502.066667 | P146: =AVERAGE(E146,F146,G146) -> 1640.866667 | Q146: =AVERAGE(H146,I146,J146) -> 1597.8 | R146: =AVERAGE(K146,L146,M146) ->  | S146: =AVERAGE(B146,C146,D146,E146,F146,G146) -> 1571.466667 | T146: =AVERAGE(H146,I146,J146,K146,L146,M146) -> 1597.8 | U146: =AVERAGE(B146:M146) -> 1575.228571
A147: 10 | B147: =Rel_Gestao!$C$4 -> JANEIRO | C147: =Rel_Gestao!$E$4 -> FEVEREIRO | D147: =Rel_Gestao!$G$4 -> MARÇO | E147: =Rel_Gestao!$I$4 -> ABRIL | F147: =Rel_Gestao!$K$4 -> MAIO | G147: =Rel_Gestao!$M$4 -> JUNHO | H147: =Rel_Gestao!$O$4 -> JULHO | I147: =Rel_Gestao!$Q$4 -> AGOSTO | J147: =Rel_Gestao!$S$4 -> SETEMBRO | K147: =Rel_Gestao!$U$4 -> OUTUBRO | L147: =Rel_Gestao!$W$4 -> NOVEMBRO | M147: =Rel_Gestao!$Y$4 -> DEZEMBRO | N147: =Rel_Gestao!$AA$4 -> TOTAL | O147: 1º TRIM | P147: 2º TRIM | Q147: 3º TRIM | R147: 4ºTRIM | S147: 1º SEM | T147: 2º SEM | U147: ANUAL
A148: =IF(ISERROR(VLOOKUP(INDEX(Rel_Gestao!A33:AB45,Relatório!A147,1),Rel_Gestao!A33:AB45,1,FALSE)),0,(VLOOKUP(INDEX(Rel_Gestao!A33:AB45,Relatório!A147,1),Rel_Gestao!A33:AB45,1,FALSE))) -> Salvador Card | B148: =IF(ISERROR(VLOOKUP(INDEX(Rel_Gestao!A33:AB45,Relatório!A147,1),Rel_Gestao!A33:AB45,3,FALSE)),"",(VLOOKUP(INDEX(Rel_Gestao!A33:AB45,Relatório!A147,1),Rel_Gestao!A33:AB45,3,FALSE))) -> 376 | C148: =IF(ISERROR(VLOOKUP(INDEX(Rel_Gestao!A33:AB45,Relatório!A147,1),Rel_Gestao!A33:AB45,5,FALSE)),"",(VLOOKUP(INDEX(Rel_Gestao!A33:AB45,Relatório!A147,1),Rel_Gestao!A33:AB45,5,FALSE))) -> 340 | D148: =IF(ISERROR(VLOOKUP(INDEX(Rel_Gestao!A33:AB45,Relatório!A147,1),Rel_Gestao!A33:AB45,7,FALSE)),"",(VLOOKUP(INDEX(Rel_Gestao!A33:AB45,Relatório!A147,1),Rel_Gestao!A33:AB45,7,FALSE))) -> 394 | E148: =IF(ISERROR(VLOOKUP(INDEX(Rel_Gestao!A33:AB45,Relatório!A147,1),Rel_Gestao!A33:AB45,9,FALSE)),"",(VLOOKUP(INDEX(Rel_Gestao!A33:AB45,Relatório!A147,1),Rel_Gestao!A33:AB45,9,FALSE))) -> 376 | F148: =IF(ISERROR(VLOOKUP(INDEX(Rel_Gestao!A33:AB45,Relatório!A147,1),Rel_Gestao!A33:AB45,11,FALSE)),"",(VLOOKUP(INDEX(Rel_Gestao!A33:AB45,Relatório!A147,1),Rel_Gestao!A33:AB45,11,FALSE))) -> 376 | G148: =IF(ISERROR(VLOOKUP(INDEX(Rel_Gestao!A33:AB45,Relatório!A147,1),Rel_Gestao!A33:AB45,13,FALSE)),"",(VLOOKUP(INDEX(Rel_Gestao!A33:AB45,Relatório!A147,1),Rel_Gestao!A33:AB45,13,FALSE))) -> 394 | H148: =IF(ISERROR(VLOOKUP(INDEX(Rel_Gestao!A33:AB45,Relatório!A147,1),Rel_Gestao!A33:AB45,15,FALSE)),"",(VLOOKUP(INDEX(Rel_Gestao!A33:AB45,Relatório!A147,1),Rel_Gestao!A33:AB45,15,FALSE))) -> 394 | I148: =IF(ISERROR(VLOOKUP(INDEX(Rel_Gestao!A33:AB45,Relatório!A147,1),Rel_Gestao!A33:AB45,17,FALSE)),"",(VLOOKUP(INDEX(Rel_Gestao!A33:AB45,Relatório!A147,1),Rel_Gestao!A33:AB45,17,FALSE))) ->  | J148: =IF(ISERROR(VLOOKUP(INDEX(Rel_Gestao!A33:AB45,Relatório!A147,1),Rel_Gestao!A33:AB45,19,FALSE)),"",(VLOOKUP(INDEX(Rel_Gestao!A33:AB45,Relatório!A147,1),Rel_Gestao!A33:AB45,19,FALSE))) ->  | K148: =IF(ISERROR(VLOOKUP(INDEX(Rel_Gestao!A33:AB45,Relatório!A147,1),Rel_Gestao!A33:AB45,21,FALSE)),"",(VLOOKUP(INDEX(Rel_Gestao!A33:AB45,Relatório!A147,1),Rel_Gestao!A33:AB45,21,FALSE))) ->  | L148: =IF(ISERROR(VLOOKUP(INDEX(Rel_Gestao!A33:AB45,Relatório!A147,1),Rel_Gestao!A33:AB45,23,FALSE)),"",(VLOOKUP(INDEX(Rel_Gestao!A33:AB45,Relatório!A147,1),Rel_Gestao!A33:AB45,23,FALSE))) ->  | M148: =IF(ISERROR(VLOOKUP(INDEX(Rel_Gestao!A33:AB45,Relatório!A147,1),Rel_Gestao!A33:AB45,25,FALSE)),"",(VLOOKUP(INDEX(Rel_Gestao!A33:AB45,Relatório!A147,1),Rel_Gestao!A33:AB45,25,FALSE))) ->  | N148: =IF(ISERROR(VLOOKUP(INDEX(Rel_Gestao!A33:AB45,Relatório!A147,1),Rel_Gestao!A33:AB45,27,FALSE)),"",(VLOOKUP(INDEX(Rel_Gestao!A33:AB45,Relatório!A147,1),Rel_Gestao!A33:AB45,27,FALSE))) -> 2650 | O148: =AVERAGE(B148,C148,D148) -> 370 | P148: =AVERAGE(E148,F148,G148) -> 382 | Q148: =AVERAGE(H148,I148,J148) -> 394 | R148: =AVERAGE(K148,L148,M148) ->  | S148: =AVERAGE(B148,C148,D148,E148,F148,G148) -> 376 | T148: =AVERAGE(H148,I148,J148,K148,L148,M148) -> 394 | U148: =AVERAGE(B148:M148) -> 378.5714286
B149: =IF(ISERROR(VLOOKUP(INDEX(Rel_Gestao!A33:AB45,Relatório!A147,1),Rel_Gestao!A33:AB45,4,FALSE)),"",(VLOOKUP(INDEX(Rel_Gestao!A33:AB45,Relatório!A147,1),Rel_Gestao!A33:AB45,4,FALSE))) -> 1240.8 | C149: =IF(ISERROR(VLOOKUP(INDEX(Rel_Gestao!A33:AB45,Relatório!A147,1),Rel_Gestao!A33:AB45,6,FALSE)),"",(VLOOKUP(INDEX(Rel_Gestao!A33:AB45,Relatório!A147,1),Rel_Gestao!A33:AB45,6,FALSE))) -> 1122 | D149: =IF(ISERROR(VLOOKUP(INDEX(Rel_Gestao!A33:AB45,Relatório!A147,1),Rel_Gestao!A33:AB45,8,FALSE)),"",(VLOOKUP(INDEX(Rel_Gestao!A33:AB45,Relatório!A147,1),Rel_Gestao!A33:AB45,8,FALSE))) -> 1300.2 | E149: =IF(ISERROR(VLOOKUP(INDEX(Rel_Gestao!A33:AB45,Relatório!A147,1),Rel_Gestao!A33:AB45,10,FALSE)),"",(VLOOKUP(INDEX(Rel_Gestao!A33:AB45,Relatório!A147,1),Rel_Gestao!A33:AB45,10,FALSE))) -> 1240.8 | F149: =IF(ISERROR(VLOOKUP(INDEX(Rel_Gestao!A33:AB45,Relatório!A147,1),Rel_Gestao!A33:AB45,12,FALSE)),"",(VLOOKUP(INDEX(Rel_Gestao!A33:AB45,Relatório!A147,1),Rel_Gestao!A33:AB45,12,FALSE))) -> 1240.8 | G149: =IF(ISERROR(VLOOKUP(INDEX(Rel_Gestao!A33:AB45,Relatório!A147,1),Rel_Gestao!A33:AB45,14,FALSE)),"",(VLOOKUP(INDEX(Rel_Gestao!A33:AB45,Relatório!A147,1),Rel_Gestao!A33:AB45,14,FALSE))) -> 1300.2 | H149: =IF(ISERROR(VLOOKUP(INDEX(Rel_Gestao!A33:AB45,Relatório!A147,1),Rel_Gestao!A33:AB45,16,FALSE)),"",(VLOOKUP(INDEX(Rel_Gestao!A33:AB45,Relatório!A147,1),Rel_Gestao!A33:AB45,16,FALSE))) -> 1300.2 | I149: =IF(ISERROR(VLOOKUP(INDEX(Rel_Gestao!A33:AB45,Relatório!A147,1),Rel_Gestao!A33:AB45,18,FALSE)),"",(VLOOKUP(INDEX(Rel_Gestao!A33:AB45,Relatório!A147,1),Rel_Gestao!A33:AB45,18,FALSE))) ->  | J149: =IF(ISERROR(VLOOKUP(INDEX(Rel_Gestao!A33:AB45,Relatório!A147,1),Rel_Gestao!A33:AB45,20,FALSE)),"",(VLOOKUP(INDEX(Rel_Gestao!A33:AB45,Relatório!A147,1),Rel_Gestao!A33:AB45,20,FALSE))) ->  | K149: =IF(ISERROR(VLOOKUP(INDEX(Rel_Gestao!A33:AB45,Relatório!A147,1),Rel_Gestao!A33:AB45,22,FALSE)),"",(VLOOKUP(INDEX(Rel_Gestao!A33:AB45,Relatório!A147,1),Rel_Gestao!A33:AB45,22,FALSE))) ->  | L149: =IF(ISERROR(VLOOKUP(INDEX(Rel_Gestao!A33:AB45,Relatório!A147,1),Rel_Gestao!A33:AB45,24,FALSE)),"",(VLOOKUP(INDEX(Rel_Gestao!A33:AB45,Relatório!A147,1),Rel_Gestao!A33:AB45,24,FALSE))) ->  | M149: =IF(ISERROR(VLOOKUP(INDEX(Rel_Gestao!A33:AB45,Relatório!A147,1),Rel_Gestao!A33:AB45,26,FALSE)),"",(VLOOKUP(INDEX(Rel_Gestao!A33:AB45,Relatório!A147,1),Rel_Gestao!A33:AB45,26,FALSE))) ->  | N149: =IF(ISERROR(VLOOKUP(INDEX(Rel_Gestao!A33:AB45,Relatório!A147,1),Rel_Gestao!A33:AB45,28,FALSE)),0,(VLOOKUP(INDEX(Rel_Gestao!A33:AB45,Relatório!A147,1),Rel_Gestao!A33:AB45,28,FALSE))) -> 8745 | O149: =AVERAGE(B149,C149,D149) -> 1221 | P149: =AVERAGE(E149,F149,G149) -> 1260.6 | Q149: =AVERAGE(H149,I149,J149) -> 1300.2 | R149: =AVERAGE(K149,L149,M149) ->  | S149: =AVERAGE(B149,C149,D149,E149,F149,G149) -> 1240.8 | T149: =AVERAGE(H149,I149,J149,K149,L149,M149) -> 1300.2 | U149: =AVERAGE(B149:M149) -> 1249.285714
A150: 14 | B150: =Rel_Gestao!$C$4 -> JANEIRO | C150: =Rel_Gestao!$E$4 -> FEVEREIRO | D150: =Rel_Gestao!$G$4 -> MARÇO | E150: =Rel_Gestao!$I$4 -> ABRIL | F150: =Rel_Gestao!$K$4 -> MAIO | G150: =Rel_Gestao!$M$4 -> JUNHO | H150: =Rel_Gestao!$O$4 -> JULHO | I150: =Rel_Gestao!$Q$4 -> AGOSTO | J150: =Rel_Gestao!$S$4 -> SETEMBRO | K150: =Rel_Gestao!$U$4 -> OUTUBRO | L150: =Rel_Gestao!$W$4 -> NOVEMBRO | M150: =Rel_Gestao!$Y$4 -> DEZEMBRO | N150: =Rel_Gestao!$AA$4 -> TOTAL | O150: 1º TRIM | P150: 2º TRIM | Q150: 3º TRIM | R150: 4ºTRIM | S150: 1º SEM | T150: 2º SEM | U150: ANUAL
A151: =IF(ISERROR(VLOOKUP(INDEX(Rel_Gestao!B48:AB119,Relatório!A150,1),Rel_Gestao!B48:AB119,1,FALSE)),0,(VLOOKUP(INDEX(Rel_Gestao!B48:AB119,Relatório!A150,1),Rel_Gestao!B48:AB119,1,FALSE))) -> Taiane Silva Cabral | B151: =IF(ISERROR(VLOOKUP(INDEX(Rel_Gestao!B48:AB119,Relatório!A150,1),Rel_Gestao!B48:AB119,2,FALSE)),"",(VLOOKUP(INDEX(Rel_Gestao!B48:AB119,Relatório!A150,1),Rel_Gestao!B48:AB119,2,FALSE))) -> 0 | C151: =IF(ISERROR(VLOOKUP(INDEX(Rel_Gestao!B48:AB119,Relatório!A150,1),Rel_Gestao!B48:AB119,4,FALSE)),"",(VLOOKUP(INDEX(Rel_Gestao!B48:AB119,Relatório!A150,1),Rel_Gestao!B48:AB119,4,FALSE))) -> 0 | D151: =IF(ISERROR(VLOOKUP(INDEX(Rel_Gestao!B48:AB119,Relatório!A150,1),Rel_Gestao!B48:AB119,6,FALSE)),"",(VLOOKUP(INDEX(Rel_Gestao!B48:AB119,Relatório!A150,1),Rel_Gestao!B48:AB119,6,FALSE))) -> 0 | E151: =IF(ISERROR(VLOOKUP(INDEX(Rel_Gestao!B48:AB119,Relatório!A150,1),Rel_Gestao!B48:AB119,8,FALSE)),"",(VLOOKUP(INDEX(Rel_Gestao!B48:AB119,Relatório!A150,1),Rel_Gestao!B48:AB119,8,FALSE))) -> 0 | F151: =IF(ISERROR(VLOOKUP(INDEX(Rel_Gestao!B48:AB119,Relatório!A150,1),Rel_Gestao!B48:AB119,10,FALSE)),"",(VLOOKUP(INDEX(Rel_Gestao!B48:AB119,Relatório!A150,1),Rel_Gestao!B48:AB119,10,FALSE))) -> 0 | G151: =IF(ISERROR(VLOOKUP(INDEX(Rel_Gestao!B48:AB119,Relatório!A150,1),Rel_Gestao!B48:AB119,12,FALSE)),"",(VLOOKUP(INDEX(Rel_Gestao!B48:AB119,Relatório!A150,1),Rel_Gestao!B48:AB119,12,FALSE))) -> 0 | H151: =IF(ISERROR(VLOOKUP(INDEX(Rel_Gestao!B48:AB119,Relatório!A150,1),Rel_Gestao!B48:AB119,14,FALSE)),"",(VLOOKUP(INDEX(Rel_Gestao!B48:AB119,Relatório!A150,1),Rel_Gestao!B48:AB119,14,FALSE))) -> 0 | I151: =IF(ISERROR(VLOOKUP(INDEX(Rel_Gestao!B48:AB119,Relatório!A150,1),Rel_Gestao!B48:AB119,16,FALSE)),"",(VLOOKUP(INDEX(Rel_Gestao!B48:AB119,Relatório!A150,1),Rel_Gestao!B48:AB119,16,FALSE))) ->  | J151: =IF(ISERROR(VLOOKUP(INDEX(Rel_Gestao!B48:AB119,Relatório!A150,1),Rel_Gestao!B48:AB119,18,FALSE)),"",(VLOOKUP(INDEX(Rel_Gestao!B48:AB119,Relatório!A150,1),Rel_Gestao!B48:AB119,18,FALSE))) ->  | K151: =IF(ISERROR(VLOOKUP(INDEX(Rel_Gestao!B48:AB119,Relatório!A150,1),Rel_Gestao!B48:AB119,20,FALSE)),"",(VLOOKUP(INDEX(Rel_Gestao!B48:AB119,Relatório!A150,1),Rel_Gestao!B48:AB119,20,FALSE))) ->  | L151: =IF(ISERROR(VLOOKUP(INDEX(Rel_Gestao!B48:AB119,Relatório!A150,1),Rel_Gestao!B48:AB119,22,FALSE)),"",(VLOOKUP(INDEX(Rel_Gestao!B48:AB119,Relatório!A150,1),Rel_Gestao!B48:AB119,22,FALSE))) ->  | M151: =IF(ISERROR(VLOOKUP(INDEX(Rel_Gestao!B48:AB119,Relatório!A150,1),Rel_Gestao!B48:AB119,24,FALSE)),"",(VLOOKUP(INDEX(Rel_Gestao!B48:AB119,Relatório!A150,1),Rel_Gestao!B48:AB119,24,FALSE))) ->  | N151: =IF(ISERROR(VLOOKUP(INDEX(Rel_Gestao!B48:AB119,Relatório!A150,1),Rel_Gestao!B48:AB119,26,FALSE)),"",(VLOOKUP(INDEX(Rel_Gestao!B48:AB119,Relatório!A150,1),Rel_Gestao!B48:AB119,26,FALSE))) -> 0 | O151: =AVERAGE(B151,C151,D151) -> 0 | P151: =AVERAGE(E151,F151,G151) -> 0 | Q151: =AVERAGE(H151,I151,J151) -> 0 | R151: =AVERAGE(K151,L151,M151) ->  | S151: =AVERAGE(B151,C151,D151,E151,F151,G151) -> 0 | T151: =AVERAGE(H151,I151,J151,K151,L151,M151) -> 0 | U151: =AVERAGE(B151:M151) -> 0
B152: =IF(ISERROR(VLOOKUP(INDEX(Rel_Gestao!B48:AB119,Relatório!A150,1),Rel_Gestao!B48:AB119,3,FALSE)),"",(VLOOKUP(INDEX(Rel_Gestao!B48:AB119,Relatório!A150,1),Rel_Gestao!B48:AB119,3,FALSE))) -> 0 | C152: =IF(ISERROR(VLOOKUP(INDEX(Rel_Gestao!B48:AB119,Relatório!A150,1),Rel_Gestao!B48:AB119,5,FALSE)),"",(VLOOKUP(INDEX(Rel_Gestao!B48:AB119,Relatório!A150,1),Rel_Gestao!B48:AB119,5,FALSE))) -> 0 | D152: =IF(ISERROR(VLOOKUP(INDEX(Rel_Gestao!B48:AB119,Relatório!A150,1),Rel_Gestao!B48:AB119,7,FALSE)),"",(VLOOKUP(INDEX(Rel_Gestao!B48:AB119,Relatório!A150,1),Rel_Gestao!B48:AB119,7,FALSE))) -> 0 | E152: =IF(ISERROR(VLOOKUP(INDEX(Rel_Gestao!B48:AB119,Relatório!A150,1),Rel_Gestao!B48:AB119,9,FALSE)),"",(VLOOKUP(INDEX(Rel_Gestao!B48:AB119,Relatório!A150,1),Rel_Gestao!B48:AB119,9,FALSE))) -> 0 | F152: =IF(ISERROR(VLOOKUP(INDEX(Rel_Gestao!B48:AB119,Relatório!A150,1),Rel_Gestao!B48:AB119,11,FALSE)),"",(VLOOKUP(INDEX(Rel_Gestao!B48:AB119,Relatório!A150,1),Rel_Gestao!B48:AB119,11,FALSE))) -> 0 | G152: =IF(ISERROR(VLOOKUP(INDEX(Rel_Gestao!B48:AB119,Relatório!A150,1),Rel_Gestao!B48:AB119,13,FALSE)),"",(VLOOKUP(INDEX(Rel_Gestao!B48:AB119,Relatório!A150,1),Rel_Gestao!B48:AB119,13,FALSE))) -> 0 | H152: =IF(ISERROR(VLOOKUP(INDEX(Rel_Gestao!B48:AB119,Relatório!A150,1),Rel_Gestao!B48:AB119,15,FALSE)),"",(VLOOKUP(INDEX(Rel_Gestao!B48:AB119,Relatório!A150,1),Rel_Gestao!B48:AB119,15,FALSE))) -> 0 | I152: =IF(ISERROR(VLOOKUP(INDEX(Rel_Gestao!B48:AB119,Relatório!A150,1),Rel_Gestao!B48:AB119,17,FALSE)),"",(VLOOKUP(INDEX(Rel_Gestao!B48:AB119,Relatório!A150,1),Rel_Gestao!B48:AB119,17,FALSE))) ->  | J152: =IF(ISERROR(VLOOKUP(INDEX(Rel_Gestao!B48:AB119,Relatório!A150,1),Rel_Gestao!B48:AB119,19,FALSE)),"",(VLOOKUP(INDEX(Rel_Gestao!B48:AB119,Relatório!A150,1),Rel_Gestao!B48:AB119,19,FALSE))) ->  | K152: =IF(ISERROR(VLOOKUP(INDEX(Rel_Gestao!B48:AB119,Relatório!A150,1),Rel_Gestao!B48:AB119,21,FALSE)),"",(VLOOKUP(INDEX(Rel_Gestao!B48:AB119,Relatório!A150,1),Rel_Gestao!B48:AB119,21,FALSE))) ->  | L152: =IF(ISERROR(VLOOKUP(INDEX(Rel_Gestao!B48:AB119,Relatório!A150,1),Rel_Gestao!B48:AB119,23,FALSE)),"",(VLOOKUP(INDEX(Rel_Gestao!B48:AB119,Relatório!A150,1),Rel_Gestao!B48:AB119,23,FALSE))) ->  | M152: =IF(ISERROR(VLOOKUP(INDEX(Rel_Gestao!B48:AB119,Relatório!A150,1),Rel_Gestao!B48:AB119,25,FALSE)),"",(VLOOKUP(INDEX(Rel_Gestao!B48:AB119,Relatório!A150,1),Rel_Gestao!B48:AB119,25,FALSE))) ->  | N152: =IF(ISERROR(VLOOKUP(INDEX(Rel_Gestao!B48:AB119,Relatório!A150,1),Rel_Gestao!B48:AB119,27,FALSE)),"",(VLOOKUP(INDEX(Rel_Gestao!B48:AB119,Relatório!A150,1),Rel_Gestao!B48:AB119,27,FALSE))) -> 0 | O152: =AVERAGE(B152,C152,D152) -> 0 | P152: =AVERAGE(E152,F152,G152) -> 0 | Q152: =AVERAGE(H152,I152,J152) -> 0 | R152: =AVERAGE(K152,L152,M152) ->  | S152: =AVERAGE(B152,C152,D152,E152,F152,G152) -> 0 | T152: =AVERAGE(H152,I152,J152,K152,L152,M152) -> 0 | U152: =AVERAGE(B152:M152) -> 0
B153: =Rel_Gestao!$C$4 -> JANEIRO | C153: =Rel_Gestao!$E$4 -> FEVEREIRO | D153: =Rel_Gestao!$G$4 -> MARÇO | E153: =Rel_Gestao!$I$4 -> ABRIL | F153: =Rel_Gestao!$K$4 -> MAIO | G153: =Rel_Gestao!$M$4 -> JUNHO | H153: =Rel_Gestao!$O$4 -> JULHO | I153: =Rel_Gestao!$Q$4 -> AGOSTO | J153: =Rel_Gestao!$S$4 -> SETEMBRO | K153: =Rel_Gestao!$U$4 -> OUTUBRO | L153: =Rel_Gestao!$W$4 -> NOVEMBRO | M153: =Rel_Gestao!$Y$4 -> DEZEMBRO | N153: =Rel_Gestao!$AA$4 -> TOTAL | O153: 1º TRIM | P153: 2º TRIM | Q153: 3º TRIM | R153: 4ºTRIM | S153: 1º SEM | T153: 2º SEM | U153: ANUAL
A154: Descontos | B154: =Rel_Gestao!B122 -> 0 | C154: =Rel_Gestao!C122 -> 0 | D154: =Rel_Gestao!D122 -> 0 | E154: =Rel_Gestao!E122 -> 0 | F154: =Rel_Gestao!F122 -> 0 | G154: =Rel_Gestao!G122 -> 250.8 | H154: =Rel_Gestao!H122 -> 132 | I154: =Rel_Gestao!I122 ->  | J154: =Rel_Gestao!J122 ->  | K154: =Rel_Gestao!K122 ->  | L154: =Rel_Gestao!L122 ->  | M154: =Rel_Gestao!M122 ->  | N154: =IF(ISERROR(SUM(B154:M154)),"",(SUM(B154:M154))) -> 382.8 | O154: =AVERAGE(B154,C154,D154) -> 0 | P154: =AVERAGE(E154,F154,G154) -> 83.6 | Q154: =AVERAGE(H154,I154,J154) -> 132 | R154: =AVERAGE(K154,L154,M154) ->  | S154: =AVERAGE(B154,C154,D154,E154,F154,G154) -> 41.8 | T154: =AVERAGE(H154,I154,J154,K154,L154,M154) -> 132 | U154: =AVERAGE(B154:M154) -> 54.68571429

Sheet Rel_Gestao
A2: Tabulação de Dados de Vales-Transporte
C4: JANEIRO | E4: FEVEREIRO | G4: MARÇO | I4: ABRIL | K4: MAIO | M4: JUNHO | O4: JULHO | Q4: AGOSTO | S4: SETEMBRO | U4: OUTUBRO | W4: NOVEMBRO | Y4: DEZEMBRO | AA4: TOTAL
A5: Vínculo | C5: Quant. Total | D5: Vlr. Total | E5: Quant. Total | F5: Vlr. Total | G5: Quant. Total | H5: Vlr. Total | I5: Quant. Total | J5: Vlr. Total | K5: Quant. Total | L5: Vlr. Total | M5: Quant. Total | N5: Vlr. Total | O5: Quant. Total | P5: Vlr. Total | Q5: Quant. Total | R5: Vlr. Total | S5: Quant. Total | T5: Vlr. Total | U5: Quant. Total | V5: Vlr. Total | W5: Quant. Total | X5: Vlr. Total | Y5: Quant. Total | Z5: Vlr. Total | AA5: Quant. Total | AB5: Vlr. Total
A6: Anistiado | C6: =SUMIF(Janeiro!C6:R77,A6,Janeiro!O6:O77) -> 168 | D6: =SUMIF(Janeiro!$C$6:$R$77,A6,Janeiro!$R$6:$R$77) -> 1889.2 | E6: =SUMIF(Fevereiro!$C$6:$R$77,A6,Fevereiro!$O$6:$O$77) -> 156 | F6: =SUMIF(Fevereiro!$C$6:$R$77,A6,Fevereiro!$R$6:$R$77) -> 1751.4 | G6: =SUMIF(Março!$C$6:$R$80,A6,Março!$O$6:$O$80) -> 174 | H6: =SUMIF(Março!$C$6:$R$80,A6,Março!$R$6:$R$80) -> 1958.1 | I6: =SUMIF(Abril!$C$6:$R$80,A6,Abril!$O$6:$O$80) -> 168 | J6: =SUMIF(Abril!$C$6:$R$80,A6,Abril!$R$6:$R$80) -> 1889.2 | K6: =SUMIF(Maio!$C$6:$R$80,A6,Maio!$O$6:$O$80) -> 168 | L6: =SUMIF(Maio!$C$6:$R$80,A6,Maio!$R$6:$R$80) -> 1889.2 | M6: =SUMIF(Junho!$C$6:$R$80,A6,Junho!$O$6:$O$80) -> 174 | N6: =SUMIF(Junho!$C$6:$R$80,A6,Junho!$R$6:$R$80) -> 1958.1 | O6: =SUMIF(Julho!$C$6:$R$80,A6,Julho!$O$6:$O$80) -> 174 | P6: =SUMIF(Julho!$C$6:$R$80,A6,Julho!$R$6:$R$80) -> 1958.1 | Q6: =SUMIF([1]Agosto!$C$6:$R$80,A6,[1]Agosto!$O$6:$O$80) ->  | R6: =SUMIF([1]Agosto!$C$6:$R$80,A6,[1]Agosto!$R$6:$R$80) ->  | S6: =SUMIF([2]Setembro!$C$6:$R$80,A6,[2]Setembro!$O$6:$O$80) ->  | T6: =SUMIF([3]SET!$C$6:$R$80,A6,[3]SET!$R$6:$R$80) ->  | U6: =SUMIF([4]Outubro!$C$6:$R$80,A6,[4]Outubro!$O$6:$O$80) ->  | V6: =SUMIF([4]Outubro!$C$6:$R$80,A6,[4]Outubro!$R$6:$R$80) ->  | W6: =SUMIF([5]Novembro!$C$6:$R$80,A6,[5]Novembro!$O$6:$O$80) ->  | X6: =SUMIF([5]Novembro!$C$6:$R$80,A6,[5]Novembro!$R$6:$R$80) ->  | Y6: =SUMIF([6]Dezembro!$C$6:$R$80,D6,[6]Dezembro!$O$6:$O$80) ->  | Z6: =SUMIF([6]Dezembro!$C$6:$R$80,D6,[6]Dezembro!$R$6:$R$80) ->  | AA6: =IF(ISERROR(C6),0,C6)+IF(ISERROR(E6),0,E6)+IF(ISERROR(G6),0,G6)+IF(ISERROR(I6),0,I6)+IF(ISERROR(K6),0,K6)+IF(ISERROR(M6),0,M6)+IF(ISERROR(O6),0,O6)+IF(ISERROR(Q6),0,Q6)+IF(ISERROR(S6),0,S6)+IF(ISERROR(U6),0,U6)+IF(ISERROR(W6),0,W6)+IF(ISERROR(Y6),0,Y6) -> 1182 | AB6: =IF(ISERROR(D6),0,D6)+IF(ISERROR(F6),0,F6)+IF(ISERROR(H6),0,H6)+IF(ISERROR(J6),0,J6)+IF(ISERROR(L6),0,L6)+IF(ISERROR(N6),0,N6)+IF(ISERROR(P6),0,P6)+IF(ISERROR(R6),0,R6)+IF(ISERROR(T6),0,T6)+IF(ISERROR(V6),0,V6)+IF(ISERROR(X6),0,X6)+IF(ISERROR(Z6),0,Z6) -> 13293.3
A7: Aprendiz | C7: =SUMIF(Janeiro!C7:R78,A7,Janeiro!O7:O78) -> 0 | D7: =SUMIF(Janeiro!$C$6:$R$77,A7,Janeiro!$R$6:$R$77) -> 0 | E7: =SUMIF(Fevereiro!$C$6:$R$77,A7,Fevereiro!$O$6:$O$77) -> 0 | F7: =SUMIF(Fevereiro!$C$6:$R$77,A7,Fevereiro!$R$6:$R$77) -> 0 | G7: =SUMIF(Março!$C$6:$R$80,A7,Março!$O$6:$O$80) -> 0 | H7: =SUMIF(Março!$C$6:$R$80,A7,Março!$R$6:$R$80) -> 0 | I7: =SUMIF(Abril!$C$6:$R$80,A7,Abril!$O$6:$O$80) -> 12 | J7: =SUMIF(Abril!$C$6:$R$80,A7,Abril!$R$6:$R$80) -> 37.2 | K7: =SUMIF(Maio!$C$6:$R$80,A7,Maio!$O$6:$O$80) -> 0 | L7: =SUMIF(Maio!$C$6:$R$80,A7,Maio!$R$6:$R$80) -> 0 | M7: =SUMIF(Junho!$C$6:$R$80,A7,Junho!$O$6:$O$80) -> 0 | N7: =SUMIF(Junho!$C$6:$R$80,A7,Junho!$R$6:$R$80) -> 0 | O7: =SUMIF(Julho!$C$6:$R$80,A7,Julho!$O$6:$O$80) -> 0 | P7: =SUMIF(Julho!$C$6:$R$80,A7,Julho!$R$6:$R$80) -> 0 | Q7: =SUMIF([1]Agosto!$C$6:$R$80,A7,[1]Agosto!$O$6:$O$80) ->  | R7: =SUMIF([1]Agosto!$C$6:$R$80,A7,[1]Agosto!$R$6:$R$80) ->  | S7: =SUMIF([2]Setembro!$C$6:$R$80,A7,[2]Setembro!$O$6:$O$80) ->  | T7: =SUMIF([3]SET!$C$6:$R$80,A7,[3]SET!$R$6:$R$80) ->  | U7: =SUMIF([4]Outubro!$C$6:$R$80,A7,[4]Outubro!$O$6:$O$80) ->  | V7: =SUMIF([4]Outubro!$C$6:$R$80,A7,[4]Outubro!$R$6:$R$80) ->  | W7: =SUMIF([5]Novembro!$C$6:$R$80,A7,[5]Novembro!$O$6:$O$80) ->  | X7: =SUMIF([5]Novembro!$C$6:$R$80,A7,[5]Novembro!$R$6:$R$80) ->  | Y7: =SUMIF([6]Dezembro!$C$6:$R$80,D7,[6]Dezembro!$O$6:$O$80) ->  | Z7: =SUMIF([6]Dezembro!$C$6:$R$80,D7,[6]Dezembro!$R$6:$R$80) ->  | AA7: =IF(ISERROR(C7),0,C7)+IF(ISERROR(E7),0,E7)+IF(ISERROR(G7),0,G7)+IF(ISERROR(I7),0,I7)+IF(ISERROR(K7),0,K7)+IF(ISERROR(M7),0,M7)+IF(ISERROR(O7),0,O7)+IF(ISERROR(Q7),0,Q7)+IF(ISERROR(S7),0,S7)+IF(ISERROR(U7),0,U7)+IF(ISERROR(W7),0,W7)+IF(ISERROR(Y7),0,Y7) -> 12 | AB7: =IF(ISERROR(D7),0,D7)+IF(ISERROR(F7),0,F7)+IF(ISERROR(H7),0,H7)+IF(ISERROR(J7),0,J7)+IF(ISERROR(L7),0,L7)+IF(ISERROR(N7),0,N7)+IF(ISERROR(P7),0,P7)+IF(ISERROR(R7),0,R7)+IF(ISERROR(T7),0,T7)+IF(ISERROR(V7),0,V7)+IF(ISERROR(X7),0,X7)+IF(ISERROR(Z7),0,Z7) -> 37.2
A8: Cedido | C8: =SUMIF(Janeiro!C8:R79,A8,Janeiro!O8:O79) -> 0 | D8: =SUMIF(Janeiro!$C$6:$R$77,A8,Janeiro!$R$6:$R$77) -> 0 | E8: =SUMIF(Fevereiro!$C$6:$R$77,A8,Fevereiro!$O$6:$O$77) -> 0 | F8: =SUMIF(Fevereiro!$C$6:$R$77,A8,Fevereiro!$R$6:$R$77) -> 0 | G8: =SUMIF(Março!$C$6:$R$80,A8,Março!$O$6:$O$80) -> 0 | H8: =SUMIF(Março!$C$6:$R$80,A8,Março!$R$6:$R$80) -> 0 | I8: =SUMIF(Abril!$C$6:$R$80,A8,Abril!$O$6:$O$80) -> 0 | J8: =SUMIF(Abril!$C$6:$R$80,A8,Abril!$R$6:$R$80) -> 0 | K8: =SUMIF(Maio!$C$6:$R$80,A8,Maio!$O$6:$O$80) -> 0 | L8: =SUMIF(Maio!$C$6:$R$80,A8,Maio!$R$6:$R$80) -> 0 | M8: =SUMIF(Junho!$C$6:$R$80,A8,Junho!$O$6:$O$80) -> 0 | N8: =SUMIF(Junho!$C$6:$R$80,A8,Junho!$R$6:$R$80) -> 0 | O8: =SUMIF(Julho!$C$6:$R$80,A8,Julho!$O$6:$O$80) -> 0 | P8: =SUMIF(Julho!$C$6:$R$80,A8,Julho!$R$6:$R$80) -> 0 | Q8: =SUMIF([1]Agosto!$C$6:$R$80,A8,[1]Agosto!$O$6:$O$80) ->  | R8: =SUMIF([1]Agosto!$C$6:$R$80,A8,[1]Agosto!$R$6:$R$80) ->  | S8: =SUMIF([2]Setembro!$C$6:$R$80,A8,[2]Setembro!$O$6:$O$80) ->  | T8: =SUMIF([3]SET!$C$6:$R$80,A8,[3]SET!$R$6:$R$80) ->  | U8: =SUMIF([4]Outubro!$C$6:$R$80,A8,[4]Outubro!$O$6:$O$80) ->  | V8: =SUMIF([4]Outubro!$C$6:$R$80,A8,[4]Outubro!$R$6:$R$80) ->  | W8: =SUMIF([5]Novembro!$C$6:$R$80,A8,[5]Novembro!$O$6:$O$80) ->  | X8: =SUMIF([5]Novembro!$C$6:$R$80,A8,[5]Novembro!$R$6:$R$80) ->  | Y8: =SUMIF([6]Dezembro!$C$6:$R$80,D8,[6]Dezembro!$O$6:$O$80) ->  | Z8: =SUMIF([6]Dezembro!$C$6:$R$80,D8,[6]Dezembro!$R$6:$R$80) ->  | AA8: 0 | AB8: 0
A9: Empregado | C9: =SUMIF(Janeiro!C9:R80,A9,Janeiro!O9:O80) -> 633 | D9: =SUMIF(Janeiro!$C$6:$R$77,A9,Janeiro!$R$6:$R$77) -> 3843 | E9: =SUMIF(Fevereiro!$C$6:$R$77,A9,Fevereiro!$O$6:$O$77) -> 577 | F9: =SUMIF(Fevereiro!$C$6:$R$77,A9,Fevereiro!$R$6:$R$77) -> 3580.88 | G9: =SUMIF(Março!$C$6:$R$80,A9,Março!$O$6:$O$80) -> 661 | H9: =SUMIF(Março!$C$6:$R$80,A9,Março!$R$6:$R$80) -> 3974.06 | I9: =SUMIF(Abril!$C$6:$R$80,A9,Abril!$O$6:$O$80) -> 747 | J9: =SUMIF(Abril!$C$6:$R$80,A9,Abril!$R$6:$R$80) -> 4274.3 | K9: =SUMIF(Maio!$C$6:$R$80,A9,Maio!$O$6:$O$80) -> 633 | L9: =SUMIF(Maio!$C$6:$R$80,A9,Maio!$R$6:$R$80) -> 3843 | M9: =SUMIF(Junho!$C$6:$R$80,A9,Junho!$O$6:$O$80) -> 661 | N9: =SUMIF(Junho!$C$6:$R$80,A9,Junho!$R$6:$R$80) -> 3974.06 | O9: =SUMIF(Julho!$C$6:$R$80,A9,Julho!$O$6:$O$80) -> 661 | P9: =SUMIF(Julho!$C$6:$R$80,A9,Julho!$R$6:$R$80) -> 3974.06 | Q9: =SUMIF([1]Agosto!$C$6:$R$80,A9,[1]Agosto!$O$6:$O$80) ->  | R9: =SUMIF([1]Agosto!$C$6:$R$80,A9,[1]Agosto!$R$6:$R$80) ->  | S9: =SUMIF([2]Setembro!$C$6:$R$80,A9,[2]Setembro!$O$6:$O$80) ->  | T9: =SUMIF([3]SET!$C$6:$R$80,A9,[3]SET!$R$6:$R$80) ->  | U9: =SUMIF([4]Outubro!$C$6:$R$80,A9,[4]Outubro!$O$6:$O$80) ->  | V9: =SUMIF([4]Outubro!$C$6:$R$80,A9,[4]Outubro!$R$6:$R$80) ->  | W9: =SUMIF([5]Novembro!$C$6:$R$80,A9,[5]Novembro!$O$6:$O$80) ->  | X9: =SUMIF([5]Novembro!$C$6:$R$80,A9,[5]Novembro!$R$6:$R$80) ->  | Y9: =SUMIF([6]Dezembro!$C$6:$R$80,D9,[6]Dezembro!$O$6:$O$80) ->  | Z9: =SUMIF([6]Dezembro!$C$6:$R$80,D9,[6]Dezembro!$R$6:$R$80) ->  | AA9: 4573 | AB9: 27463.36
A10: Estagiário | C10: =SUMIF(Janeiro!C10:R81,A10,Janeiro!O10:O81) -> 0 | D10: =SUMIF(Janeiro!$C$6:$R$77,A10,Janeiro!$R$6:$R$77) -> 0 | E10: =SUMIF(Fevereiro!$C$6:$R$77,A10,Fevereiro!$O$6:$O$77) -> 0 | F10: =SUMIF(Fevereiro!$C$6:$R$77,A10,Fevereiro!$R$6:$R$77) -> 0 | G10: =SUMIF(Março!$C$6:$R$80,A10,Março!$O$6:$O$80) -> 0 | H10: =SUMIF(Março!$C$6:$R$80,A10,Março!$R$6:$R$80) -> 0 | I10: =SUMIF(Abril!$C$6:$R$80,A10,Abril!$O$6:$O$80) -> 0 | J10: =SUMIF(Abril!$C$6:$R$80,A10,Abril!$R$6:$R$80) -> 0 | K10: =SUMIF(Maio!$C$6:$R$80,A10,Maio!$O$6:$O$80) -> 0 | L10: =SUMIF(Maio!$C$6:$R$80,A10,Maio!$R$6:$R$80) -> 0 | M10: =SUMIF(Junho!$C$6:$R$80,A10,Junho!$O$6:$O$80) -> 0 | N10: =SUMIF(Junho!$C$6:$R$80,A10,Junho!$R$6:$R$80) -> 0 | O10: =SUMIF(Julho!$C$6:$R$80,A10,Julho!$O$6:$O$80) -> 0 | P10: =SUMIF(Julho!$C$6:$R$80,A10,Julho!$R$6:$R$80) -> 0 | Q10: =SUMIF([1]Agosto!$C$6:$R$80,A10,[1]Agosto!$O$6:$O$80) ->  | R10: =SUMIF([1]Agosto!$C$6:$R$80,A10,[1]Agosto!$R$6:$R$80) ->  | S10: =SUMIF([2]Setembro!$C$6:$R$80,A10,[2]Setembro!$O$6:$O$80) ->  | T10: =SUMIF([3]SET!$C$6:$R$80,A10,[3]SET!$R$6:$R$80) ->  | U10: =SUMIF([4]Outubro!$C$6:$R$80,A10,[4]Outubro!$O$6:$O$80) ->  | V10: =SUMIF([4]Outubro!$C$6:$R$80,A10,[4]Outubro!$R$6:$R$80) ->  | W10: =SUMIF([5]Novembro!$C$6:$R$80,A10,[5]Novembro!$O$6:$O$80) ->  | X10: =SUMIF([5]Novembro!$C$6:$R$80,A10,[5]Novembro!$R$6:$R$80) ->  | Y10: =SUMIF([6]Dezembro!$C$6:$R$80,D10,[6]Dezembro!$O$6:$O$80) ->  | Z10: =SUMIF([6]Dezembro!$C$6:$R$80,D10,[6]Dezembro!$R$6:$R$80) ->  | AA10: 0 | AB10: 0
A11: Rota | C11: Quant. Total | D11: Vlr. Total | E11: Quant. Total | F11: Vlr. Total | G11: Quant. Total | H11: Vlr. Total | I11: Quant. Total | J11: Vlr. Total | K11: Quant. Total | L11: Vlr. Total | M11: Quant. Total | N11: Vlr. Total | O11: Quant. Total | P11: Vlr. Total | Q11: Quant. Total | R11: Vlr. Total | S11: Quant. Total | T11: Vlr. Total | U11: Quant. Total | V11: Vlr. Total | W11: Quant. Total | X11: Vlr. Total | Y11: Quant. Total | Z11: Vlr. Total | AA11: Quant. Total | AB11: Vlr. Total
A12: 23185 | C12: =SUMIF(Janeiro!$F$6:$R$77,A12,Janeiro!$O$6:$O$77) -> 0 | D12: =SUMIF(Janeiro!$F$6:$R$77,A12,Janeiro!$R$6:$R$77) -> 0 | E12: =SUMIF(Fevereiro!$F$6:$R$77,A12,Fevereiro!$O$6:$O$77) -> 0 | F12: =SUMIF(Fevereiro!$F$6:$R$77,A12,Fevereiro!$R$6:$R$77) -> 0 | G12: =SUMIF(Março!$F$6:$R$80,A12,Março!$O$6:$O$80) -> 0 | H12: =SUMIF(Março!$F$6:$R$80,A12,Março!$R$6:$R$80) -> 0 | I12: =SUMIF(Abril!$F$6:$R$80,A12,Abril!$O$6:$O$80) -> 0 | J12: =SUMIF(Abril!$F$6:$R$80,A12,Abril!$R$6:$R$80) -> 0 | K12: =SUMIF(Maio!$F$6:$R$80,A12,Maio!$O$6:$O$80) -> 0 | L12: =SUMIF(Maio!$F$6:$R$80,A12,Maio!$R$6:$R$80) -> 0 | M12: =SUMIF(Junho!$F$6:$R$80,A12,Junho!$O$6:$O$80) -> 0 | N12: =SUMIF(Junho!$F$6:$R$80,A12,Junho!$R$6:$R$80) -> 0 | O12: =SUMIF(Julho!$F$6:$R$80,A12,Julho!$O$6:$O$80) -> 0 | P12: =SUMIF(Julho!$F$6:$R$80,A12,Julho!$R$6:$R$80) -> 0 | Q12: =SUMIF([1]Agosto!$F$6:$R$80,A12,[1]Agosto!$O$6:$O$80) ->  | R12: =SUMIF([1]Agosto!$F$6:$R$80,A12,[1]Agosto!$R$6:$R$80) ->  | S12: =SUMIF([2]Setembro!$F$6:$R$80,A12,[2]Setembro!$O$6:$O$80) ->  | T12: =SUMIF([3]SET!$F$6:$R$80,A12,[3]SET!$R$6:$R$80) ->  | U12: =SUMIF([4]Outubro!$F$6:$R$80,A12,[4]Outubro!$O$6:$O$80) ->  | V12: =SUMIF([4]Outubro!$F$6:$R$80,A12,[4]Outubro!$R$6:$R$80) ->  | W12: =SUMIF([5]Novembro!$F$6:$R$80,A12,[5]Novembro!$O$6:$O$80) ->  | X12: =SUMIF([5]Novembro!$F$6:$R$80,A12,[5]Novembro!$R$6:$R$80) ->  | Y12: =SUMIF([6]Dezembro!$F$6:$R$80,D12,[6]Dezembro!$O$6:$O$80) ->  | Z12: =SUMIF([6]Dezembro!$F$6:$R$80,D12,[6]Dezembro!$R$6:$R$80) ->  | AA12: 0 | AB12: 0
A13: xxxxx-Y | C13: =SUMIF(Janeiro!$F$6:$R$77,A13,Janeiro!$O$6:$O$77) -> 40 | D13: =SUMIF(Janeiro!$F$6:$R$77,A13,Janeiro!$R$6:$R$77) -> 112 | E13: =SUMIF(Fevereiro!$F$6:$R$77,A13,Fevereiro!$O$6:$O$77) -> 36 | F13: =SUMIF(Fevereiro!$F$6:$R$77,A13,Fevereiro!$R$6:$R$77) -> 100.8 | G13: =SUMIF(Março!$F$6:$R$80,A13,Março!$O$6:$O$80) -> 42 | H13: =SUMIF(Março!$F$6:$R$80,A13,Março!$R$6:$R$80) -> 117.6 | I13: =SUMIF(Abril!$F$6:$R$80,A13,Abril!$O$6:$O$80) -> 40 | J13: =SUMIF(Abril!$F$6:$R$80,A13,Abril!$R$6:$R$80) -> 112 | K13: =SUMIF(Maio!$F$6:$R$80,A13,Maio!$O$6:$O$80) -> 40 | L13: =SUMIF(Maio!$F$6:$R$80,A13,Maio!$R$6:$R$80) -> 112 | M13: =SUMIF(Junho!$F$6:$R$80,A13,Junho!$O$6:$O$80) -> 42 | N13: =SUMIF(Junho!$F$6:$R$80,A13,Junho!$R$6:$R$80) -> 117.6 | O13: =SUMIF(Julho!$F$6:$R$80,A13,Julho!$O$6:$O$80) -> 42 | P13: =SUMIF(Julho!$F$6:$R$80,A13,Julho!$R$6:$R$80) -> 117.6 | Q13: =SUMIF([1]Agosto!$F$6:$R$80,A13,[1]Agosto!$O$6:$O$80) ->  | R13: =SUMIF([1]Agosto!$F$6:$R$80,A13,[1]Agosto!$R$6:$R$80) ->  | S13: =SUMIF([2]Setembro!$F$6:$R$80,A13,[2]Setembro!$O$6:$O$80) ->  | T13: =SUMIF([3]SET!$F$6:$R$80,A13,[3]SET!$R$6:$R$80) ->  | U13: =SUMIF([4]Outubro!$F$6:$R$80,A13,[4]Outubro!$O$6:$O$80) ->  | V13: =SUMIF([4]Outubro!$F$6:$R$80,A13,[4]Outubro!$R$6:$R$80) ->  | W13: =SUMIF([5]Novembro!$F$6:$R$80,A13,[5]Novembro!$O$6:$O$80) ->  | X13: =SUMIF([5]Novembro!$F$6:$R$80,A13,[5]Novembro!$R$6:$R$80) ->  | Y13: =SUMIF([6]Dezembro!$F$6:$R$80,D13,[6]Dezembro!$O$6:$O$80) ->  | Z13: =SUMIF([6]Dezembro!$F$6:$R$80,D13,[6]Dezembro!$R$6:$R$80) ->  | AA13: 282 | AB13: 789.6
A14: 23184 | C14: =SUMIF(Janeiro!$F$6:$R$77,A14,Janeiro!$O$6:$O$77) -> 48 | D14: =SUMIF(Janeiro!$F$6:$R$77,A14,Janeiro!$R$6:$R$77) -> 511.2 | E14: =SUMIF(Fevereiro!$F$6:$R$77,A14,Fevereiro!$O$6:$O$77) -> 48 | F14: =SUMIF(Fevereiro!$F$6:$R$77,A14,Fevereiro!$R$6:$R$77) -> 511.2 | G14: =SUMIF(Março!$F$6:$R$80,A14,Março!$O$6:$O$80) -> 48 | H14: =SUMIF(Março!$F$6:$R$80,A14,Março!$R$6:$R$80) -> 511.2 | I14: =SUMIF(Abril!$F$6:$R$80,A14,Abril!$O$6:$O$80) -> 48 | J14: =SUMIF(Abril!$F$6:$R$80,A14,Abril!$R$6:$R$80) -> 511.2 | K14: =SUMIF(Maio!$F$6:$R$80,A14,Maio!$O$6:$O$80) -> 48 | L14: =SUMIF(Maio!$F$6:$R$80,A14,Maio!$R$6:$R$80) -> 511.2 | M14: =SUMIF(Junho!$F$6:$R$80,A14,Junho!$O$6:$O$80) -> 48 | N14: =SUMIF(Junho!$F$6:$R$80,A14,Junho!$R$6:$R$80) -> 511.2 | O14: =SUMIF(Julho!$F$6:$R$80,A14,Julho!$O$6:$O$80) -> 48 | P14: =SUMIF(Julho!$F$6:$R$80,A14,Julho!$R$6:$R$80) -> 511.2 | Q14: =SUMIF([1]Agosto!$F$6:$R$80,A14,[1]Agosto!$O$6:$O$80) ->  | R14: =SUMIF([1]Agosto!$F$6:$R$80,A14,[1]Agosto!$R$6:$R$80) ->  | S14: =SUMIF([2]Setembro!$F$6:$R$80,A14,[2]Setembro!$O$6:$O$80) ->  | T14: =SUMIF([3]SET!$F$6:$R$80,A14,[3]SET!$R$6:$R$80) ->  | U14: =SUMIF([4]Outubro!$F$6:$R$80,A14,[4]Outubro!$O$6:$O$80) ->  | V14: =SUMIF([4]Outubro!$F$6:$R$80,A14,[4]Outubro!$R$6:$R$80) ->  | W14: =SUMIF([5]Novembro!$F$6:$R$80,A14,[5]Novembro!$O$6:$O$80) ->  | X14: =SUMIF([5]Novembro!$F$6:$R$80,A14,[5]Novembro!$R$6:$R$80) ->  | Y14: =SUMIF([6]Dezembro!$F$6:$R$80,D14,[6]Dezembro!$O$6:$O$80) ->  | Z14: =SUMIF([6]Dezembro!$F$6:$R$80,D14,[6]Dezembro!$R$6:$R$80) ->  | AA14: 336 | AB14: 3578.4
A15: 23196 | C15: =SUMIF(Janeiro!$F$6:$R$77,A15,Janeiro!$O$6:$O$77) -> 40 | D15: =SUMIF(Janeiro!$F$6:$R$77,A15,Janeiro!$R$6:$R$77) -> 1134 | E15: =SUMIF(Fevereiro!$F$6:$R$77,A15,Fevereiro!$O$6:$O$77) -> 36 | F15: =SUMIF(Fevereiro!$F$6:$R$77,A15,Fevereiro!$R$6:$R$77) -> 1020.6 | G15: =SUMIF(Março!$F$6:$R$80,A15,Março!$O$6:$O$80) -> 42 | H15: =SUMIF(Março!$F$6:$R$80,A15,Março!$R$6:$R$80) -> 1190.7 | I15: =SUMIF(Abril!$F$6:$R$80,A15,Abril!$O$6:$O$80) -> 40 | J15: =SUMIF(Abril!$F$6:$R$80,A15,Abril!$R$6:$R$80) -> 1134 | K15: =SUMIF(Maio!$F$6:$R$80,A15,Maio!$O$6:$O$80) -> 40 | L15: =SUMIF(Maio!$F$6:$R$80,A15,Maio!$R$6:$R$80) -> 1134 | M15: =SUMIF(Junho!$F$6:$R$80,A15,Junho!$O$6:$O$80) -> 42 | N15: =SUMIF(Junho!$F$6:$R$80,A15,Junho!$R$6:$R$80) -> 1190.7 | O15: =SUMIF(Julho!$F$6:$R$80,A15,Julho!$O$6:$O$80) -> 42 | P15: =SUMIF(Julho!$F$6:$R$80,A15,Julho!$R$6:$R$80) -> 1190.7 | Q15: =SUMIF([1]Agosto!$F$6:$R$80,A15,[1]Agosto!$O$6:$O$80) ->  | R15: =SUMIF([1]Agosto!$F$6:$R$80,A15,[1]Agosto!$R$6:$R$80) ->  | S15: =SUMIF([2]Setembro!$F$6:$R$80,A15,[2]Setembro!$O$6:$O$80) ->  | T15: =SUMIF([3]SET!$F$6:$R$80,A15,[3]SET!$R$6:$R$80) ->  | U15: =SUMIF([4]Outubro!$F$6:$R$80,A15,[4]Outubro!$O$6:$O$80) ->  | V15: =SUMIF([4]Outubro!$F$6:$R$80,A15,[4]Outubro!$R$6:$R$80) ->  | W15: =SUMIF([5]Novembro!$F$6:$R$80,A15,[5]Novembro!$O$6:$O$80) ->  | X15: =SUMIF([5]Novembro!$F$6:$R$80,A15,[5]Novembro!$R$6:$R$80) ->  | Y15: =SUMIF([6]Dezembro!$F$6:$R$80,D15,[6]Dezembro!$O$6:$O$80) ->  | Z15: =SUMIF([6]Dezembro!$F$6:$R$80,D15,[6]Dezembro!$R$6:$R$80) ->  | AA15: 282 | AB15: 7994.7
A16: 23183 | C16: =SUMIF(Janeiro!$F$6:$R$77,A16,Janeiro!$O$6:$O$77) -> 40 | D16: =SUMIF(Janeiro!$F$6:$R$77,A16,Janeiro!$R$6:$R$77) -> 124 | E16: =SUMIF(Fevereiro!$F$6:$R$77,A16,Fevereiro!$O$6:$O$77) -> 36 | F16: =SUMIF(Fevereiro!$F$6:$R$77,A16,Fevereiro!$R$6:$R$77) -> 111.6 | G16: =SUMIF(Março!$F$6:$R$80,A16,Março!$O$6:$O$80) -> 42 | H16: =SUMIF(Março!$F$6:$R$80,A16,Março!$R$6:$R$80) -> 130.2 | I16: =SUMIF(Abril!$F$6:$R$80,A16,Abril!$O$6:$O$80) -> 40 | J16: =SUMIF(Abril!$F$6:$R$80,A16,Abril!$R$6:$R$80) -> 124 | K16: =SUMIF(Maio!$F$6:$R$80,A16,Maio!$O$6:$O$80) -> 40 | L16: =SUMIF(Maio!$F$6:$R$80,A16,Maio!$R$6:$R$80) -> 124 | M16: =SUMIF(Junho!$F$6:$R$80,A16,Junho!$O$6:$O$80) -> 42 | N16: =SUMIF(Junho!$F$6:$R$80,A16,Junho!$R$6:$R$80) -> 130.2 | O16: =SUMIF(Julho!$F$6:$R$80,A16,Julho!$O$6:$O$80) -> 42 | P16: =SUMIF(Julho!$F$6:$R$80,A16,Julho!$R$6:$R$80) -> 130.2 | Q16: =SUMIF([1]Agosto!$F$6:$R$80,A16,[1]Agosto!$O$6:$O$80) ->  | R16: =SUMIF([1]Agosto!$F$6:$R$80,A16,[1]Agosto!$R$6:$R$80) ->  | S16: =SUMIF([2]Setembro!$F$6:$R$80,A16,[2]Setembro!$O$6:$O$80) ->  | T16: =SUMIF([3]SET!$F$6:$R$80,A16,[3]SET!$R$6:$R$80) ->  | U16: =SUMIF([4]Outubro!$F$6:$R$80,A16,[4]Outubro!$O$6:$O$80) ->  | V16: =SUMIF([4]Outubro!$F$6:$R$80,A16,[4]Outubro!$R$6:$R$80) ->  | W16: =SUMIF([5]Novembro!$F$6:$R$80,A16,[5]Novembro!$O$6:$O$80) ->  | X16: =SUMIF([5]Novembro!$F$6:$R$80,A16,[5]Novembro!$R$6:$R$80) ->  | Y16: =SUMIF([6]Dezembro!$F$6:$R$80,D16,[6]Dezembro!$O$6:$O$80) ->  | Z16: =SUMIF([6]Dezembro!$F$6:$R$80,D16,[6]Dezembro!$R$6:$R$80) ->  | AA16: 282 | AB16: 874.2
A17: 23125-M | C17: =SUMIF(Janeiro!$F$6:$R$77,A17,Janeiro!$O$6:$O$77) -> 50 | D17: =SUMIF(Janeiro!$F$6:$R$77,A17,Janeiro!$R$6:$R$77) -> 1151.5 | E17: =SUMIF(Fevereiro!$F$6:$R$77,A17,Fevereiro!$O$6:$O$77) -> 46 | F17: =SUMIF(Fevereiro!$F$6:$R$77,A17,Fevereiro!$R$6:$R$77) -> 1059.38 | G17: =SUMIF(Março!$F$6:$R$80,A17,Março!$O$6:$O$80) -> 52 | H17: =SUMIF(Março!$F$6:$R$80,A17,Março!$R$6:$R$80) -> 1197.56 | I17: =SUMIF(Abril!$F$6:$R$80,A17,Abril!$O$6:$O$80) -> 50 | J17: =SUMIF(Abril!$F$6:$R$80,A17,Abril!$R$6:$R$80) -> 1151.5 | K17: =SUMIF(Maio!$F$6:$R$80,A17,Maio!$O$6:$O$80) -> 50 | L17: =SUMIF(Maio!$F$6:$R$80,A17,Maio!$R$6:$R$80) -> 1151.5 | M17: =SUMIF(Junho!$F$6:$R$80,A17,Junho!$O$6:$O$80) -> 52 | N17: =SUMIF(Junho!$F$6:$R$80,A17,Junho!$R$6:$R$80) -> 1197.56 | O17: =SUMIF(Julho!$F$6:$R$80,A17,Julho!$O$6:$O$80) -> 52 | P17: =SUMIF(Julho!$F$6:$R$80,A17,Julho!$R$6:$R$80) -> 1197.56 | Q17: =SUMIF([1]Agosto!$F$6:$R$80,A17,[1]Agosto!$O$6:$O$80) ->  | R17: =SUMIF([1]Agosto!$F$6:$R$80,A17,[1]Agosto!$R$6:$R$80) ->  | S17: =SUMIF([2]Setembro!$F$6:$R$80,A17,[2]Setembro!$O$6:$O$80) ->  | T17: =SUMIF([3]SET!$F$6:$R$80,A17,[3]SET!$R$6:$R$80) ->  | U17: =SUMIF([4]Outubro!$F$6:$R$80,A17,[4]Outubro!$O$6:$O$80) ->  | V17: =SUMIF([4]Outubro!$F$6:$R$80,A17,[4]Outubro!$R$6:$R$80) ->  | W17: =SUMIF([5]Novembro!$F$6:$R$80,A17,[5]Novembro!$O$6:$O$80) ->  | X17: =SUMIF([5]Novembro!$F$6:$R$80,A17,[5]Novembro!$R$6:$R$80) ->  | Y17: =SUMIF([6]Dezembro!$F$6:$R$80,D17,[6]Dezembro!$O$6:$O$80) ->  | Z17: =SUMIF([6]Dezembro!$F$6:$R$80,D17,[6]Dezembro!$R$6:$R$80) ->  | AA17: 352 | AB17: 8106.56
A18: 23190-V | C18: =SUMIF(Janeiro!$F$6:$R$77,A18,Janeiro!$O$6:$O$77) -> 120 | D18: =SUMIF(Janeiro!$F$6:$R$77,A18,Janeiro!$R$6:$R$77) -> 396 | E18: =SUMIF(Fevereiro!$F$6:$R$77,A18,Fevereiro!$O$6:$O$77) -> 108 | F18: =SUMIF(Fevereiro!$F$6:$R$77,A18,Fevereiro!$R$6:$R$77) -> 356.4 | G18: =SUMIF(Março!$F$6:$R$80,A18,Março!$O$6:$O$80) -> 126 | H18: =SUMIF(Março!$F$6:$R$80,A18,Março!$R$6:$R$80) -> 415.8 | I18: =SUMIF(Abril!$F$6:$R$80,A18,Abril!$O$6:$O$80) -> 120 | J18: =SUMIF(Abril!$F$6:$R$80,A18,Abril!$R$6:$R$80) -> 396 | K18: =SUMIF(Maio!$F$6:$R$80,A18,Maio!$O$6:$O$80) -> 120 | L18: =SUMIF(Maio!$F$6:$R$80,A18,Maio!$R$6:$R$80) -> 396 | M18: =SUMIF(Junho!$F$6:$R$80,A18,Junho!$O$6:$O$80) -> 126 | N18: =SUMIF(Junho!$F$6:$R$80,A18,Junho!$R$6:$R$80) -> 415.8 | O18: =SUMIF(Julho!$F$6:$R$80,A18,Julho!$O$6:$O$80) -> 126 | P18: =SUMIF(Julho!$F$6:$R$80,A18,Julho!$R$6:$R$80) -> 415.8 | Q18: =SUMIF([1]Agosto!$F$6:$R$80,A18,[1]Agosto!$O$6:$O$80) ->  | R18: =SUMIF([1]Agosto!$F$6:$R$80,A18,[1]Agosto!$R$6:$R$80) ->  | S18: =SUMIF([2]Setembro!$F$6:$R$80,A18,[2]Setembro!$O$6:$O$80) ->  | T18: =SUMIF([3]SET!$F$6:$R$80,A18,[3]SET!$R$6:$R$80) ->  | U18: =SUMIF([4]Outubro!$F$6:$R$80,A18,[4]Outubro!$O$6:$O$80) ->  | V18: =SUMIF([4]Outubro!$F$6:$R$80,A18,[4]Outubro!$R$6:$R$80) ->  | W18: =SUMIF([5]Novembro!$F$6:$R$80,A18,[5]Novembro!$O$6:$O$80) ->  | X18: =SUMIF([5]Novembro!$F$6:$R$80,A18,[5]Novembro!$R$6:$R$80) ->  | Y18: =SUMIF([6]Dezembro!$F$6:$R$80,D18,[6]Dezembro!$O$6:$O$80) ->  | Z18: =SUMIF([6]Dezembro!$F$6:$R$80,D18,[6]Dezembro!$R$6:$R$80) ->  | AA18: 846 | AB18: 2791.8
A19: xxxxx-Y (Pool) | C19: =SUMIF(Janeiro!$F$6:$R$77,A19,Janeiro!$O$6:$O$77) -> 10 | D19: =SUMIF(Janeiro!$F$6:$R$77,A19,Janeiro!$R$6:$R$77) -> 650 | E19: =SUMIF(Fevereiro!$F$6:$R$77,A19,Fevereiro!$O$6:$O$77) -> 10 | F19: =SUMIF(Fevereiro!$F$6:$R$77,A19,Fevereiro!$R$6:$R$77) -> 650 | G19: =SUMIF(Março!$F$6:$R$80,A19,Março!$O$6:$O$80) -> 10 | H19: =SUMIF(Março!$F$6:$R$80,A19,Março!$R$6:$R$80) -> 650 | I19: =SUMIF(Abril!$F$6:$R$80,A19,Abril!$O$6:$O$80) -> 10 | J19: =SUMIF(Abril!$F$6:$R$80,A19,Abril!$R$6:$R$80) -> 650 | K19: =SUMIF(Maio!$F$6:$R$80,A19,Maio!$O$6:$O$80) -> 10 | L19: =SUMIF(Maio!$F$6:$R$80,A19,Maio!$R$6:$R$80) -> 650 | M19: =SUMIF(Junho!$F$6:$R$80,A19,Junho!$O$6:$O$80) -> 10 | N19: =SUMIF(Junho!$F$6:$R$80,A19,Junho!$R$6:$R$80) -> 650 | O19: =SUMIF(Julho!$F$6:$R$80,A19,Julho!$O$6:$O$80) -> 10 | P19: =SUMIF(Julho!$F$6:$R$80,A19,Julho!$R$6:$R$80) -> 650 | Q19: =SUMIF([1]Agosto!$F$6:$R$80,A19,[1]Agosto!$O$6:$O$80) ->  | R19: =SUMIF([1]Agosto!$F$6:$R$80,A19,[1]Agosto!$R$6:$R$80) ->  | S19: =SUMIF([2]Setembro!$F$6:$R$80,A19,[2]Setembro!$O$6:$O$80) ->  | T19: =SUMIF([3]SET!$F$6:$R$80,A19,[3]SET!$R$6:$R$80) ->  | U19: =SUMIF([4]Outubro!$F$6:$R$80,A19,[4]Outubro!$O$6:$O$80) ->  | V19: =SUMIF([4]Outubro!$F$6:$R$80,A19,[4]Outubro!$R$6:$R$80) ->  | W19: =SUMIF([5]Novembro!$F$6:$R$80,A19,[5]Novembro!$O$6:$O$80) ->  | X19: =SUMIF([5]Novembro!$F$6:$R$80,A19,[5]Novembro!$R$6:$R$80) ->  | Y19: =SUMIF([6]Dezembro!$F$6:$R$80,D19,[6]Dezembro!$O$6:$O$80) ->  | Z19: =SUMIF([6]Dezembro!$F$6:$R$80,D19,[6]Dezembro!$R$6:$R$80) ->  | AA19: 70 | AB19: 4550
A20: xxxxx-Y (Pool 1) | C20: =SUMIF(Janeiro!$F$6:$R$77,A20,Janeiro!$O$6:$O$77) -> 0 | D20: =SUMIF(Janeiro!$F$6:$R$77,A20,Janeiro!$R$6:$R$77) -> 0 | E20: =SUMIF(Fevereiro!$F$6:$R$77,A20,Fevereiro!$O$6:$O$77) -> 0 | F20: =SUMIF(Fevereiro!$F$6:$R$77,A20,Fevereiro!$R$6:$R$77) -> 0 | G20: =SUMIF(Março!$F$6:$R$80,A20,Março!$O$6:$O$80) -> 0 | H20: =SUMIF(Março!$F$6:$R$80,A20,Março!$R$6:$R$80) -> 0 | I20: =SUMIF(Abril!$F$6:$R$80,A20,Abril!$O$6:$O$80) -> 0 | J20: =SUMIF(Abril!$F$6:$R$80,A20,Abril!$R$6:$R$80) -> 0 | K20: =SUMIF(Maio!$F$6:$R$80,A20,Maio!$O$6:$O$80) -> 0 | L20: =SUMIF(Maio!$F$6:$R$80,A20,Maio!$R$6:$R$80) -> 0 | M20: =SUMIF(Junho!$F$6:$R$80,A20,Junho!$O$6:$O$80) -> 0 | N20: =SUMIF(Junho!$F$6:$R$80,A20,Junho!$R$6:$R$80) -> 0 | O20: =SUMIF(Julho!$F$6:$R$80,A20,Julho!$O$6:$O$80) -> 0 | P20: =SUMIF(Julho!$F$6:$R$80,A20,Julho!$R$6:$R$80) -> 0 | Q20: =SUMIF([1]Agosto!$F$6:$R$80,A20,[1]Agosto!$O$6:$O$80) ->  | R20: =SUMIF([1]Agosto!$F$6:$R$80,A20,[1]Agosto!$R$6:$R$80) ->  | S20: =SUMIF([2]Setembro!$F$6:$R$80,A20,[2]Setembro!$O$6:$O$80) ->  | T20: =SUMIF([3]SET!$F$6:$R$80,A20,[3]SET!$R$6:$R$80) ->  | U20: =SUMIF([4]Outubro!$F$6:$R$80,A20,[4]Outubro!$O$6:$O$80) ->  | V20: =SUMIF([4]Outubro!$F$6:$R$80,A20,[4]Outubro!$R$6:$R$80) ->  | W20: =SUMIF([5]Novembro!$F$6:$R$80,A20,[5]Novembro!$O$6:$O$80) ->  | X20: =SUMIF([5]Novembro!$F$6:$R$80,A20,[5]Novembro!$R$6:$R$80) ->  | Y20: =SUMIF([6]Dezembro!$F$6:$R$80,D20,[6]Dezembro!$O$6:$O$80) ->  | Z20: =SUMIF([6]Dezembro!$F$6:$R$80,D20,[6]Dezembro!$R$6:$R$80) ->  | AA20: 0 | AB20: 0
